Workbook

Sheet Description
A1: RIIO-3 Cost of Debt model
A2: Published: 16th February 2026, FDs Errata model version
A3: The "Cost of Debt" model (often referred to, internally, as "Embedded Debt model") has the main function of calculating actual cost of debt for network sectors and compare these against alternative allowed cost of debt mechanisms, to inform Ofgem's decisions on allowed cost of debt policy.
A4: The model utilises a database of all companies' financial instruments to calculate annual actual debt volumes and interest expenses, and from these the actual companies and sectors cost of debt.
A5: The potential allowed cost of debt trailing averages are constructed from the iBoxx daily Utilities index.
A6: The model compares actual and selected allowed cost of debt trailing average to assess companies' debt performance against the allowance.
A7: This sheet lists and provides a short description of all model tabs, colour coding and other formatting conventions.
B11: Contents
E12: Note: User can navigate the model by selecting any sheet name in the "Sheet name" column below and using the keyboard command "CTRL + [". Once in the selected sheet, press "F5", then "ENTER" to come back to this sheet.
E14: Model section | F14: Sheet name | G14: Description
E16: Documentation
F17: =MID(CELL("filename",A1),FIND("]",CELL("filename",A1))+1,256) ->  | G17: List of model tabs and short description. Colour coding and other formatting conventions.
F18: =ModelMaps!A1 ->  | G18: Diagrams illustrating structure of full model and detailed embedded and new debt calculation sheets.
F19: =Instructions!$A$1 ->  | G19: Instructions on updating model inputs. Further guidance on updating the embedded debt data sources and operating and maintaining the macro for debt calculation sheets update.
E21: Model Checks
F22: ='Model Checks'!$A$1 ->  | G22: Consistency checks to verify correctness of model calculations.
E24: Cost of debt calibration
F25: ='Policy Options - Live'!$A$1 ->  | G25: Output tab with assessed actual and range of potential allowed cost of debt trailing averages. Contains dropdowns to set up scenario options applied to allowed and actual cost of debt model calculations.
E27: Summary Tabs
F28: ='Individual Summaries'!$A$1 ->  | G28: Summary of actual debt and interest expense by company and sector, sourced from embedded and new debt calculation tabs. Calculation of actual cost of debt by company.
E30: Embedded and new debt calculation tabs
F31: =Fixed!$A$1 ->  | G31: Detailed calculation of annual debt volumes and interest expense for fixed rate debt instruments (sourced from the embedded debt dataset).
F32: =Floating!$A$1 ->  | G32: Detailed calculation of annual debt volumes and interest expense for floating rate debt instruments (sourced from the embedded debt dataset).
F33: =Inflation_Linked!$A$1 ->  | G33: Detailed calculation of annual debt volumes and interest expense for inflation linked debt instruments (sourced from the embedded debt dataset).
F34: =Refinancing!$A$1 ->  | G34: Detailed calculation of annual new debt volumes and interest expense for refinancing of maturing embedded debt instruments (sourced from the embedded debt dataset).
F35: ='Growth debt'!$A$1 ->  | G35: Calculation by company of annual new debt volumes and interest expense for debt financing of RAV growth.
E37: Other intermediate calculation tabs
F38: ED | G38: Calculation of RAV weighted iBoxx trailing average for ED sector.
F39: ET | G39: Calculation of RAV weighted iBoxx trailing average for ET sector.
F40: Yields | G40: Calculation of daily and annual iBoxx rates based on selected index. Also calculation of long-term CPIH deflator.
F41: Trailing Average | G41: Calculation of unweighted iBoxx trailing averages for use in Policy Options tab.
F42: RAV_Gearing | G42: Live-selected RAV values, from RAV (ED) and RAV (GD&T) tabs.
F43: =Infrequent_Issuer!$A$1 ->  | G43: Summary of nominal RAV for all companies (for use in "Growth debt" calculation). Assessment of "Infrequent issuer".
F44: SONIA_LIBOR | G44: SONIA&LIBOR rates for floating embedded debt interest calculations. Application of positive / negative uplift for sensitivities.
E46: Input tabs
F47: =MID(CELL("filename",DebtDataset[[#Headers],[sector]]),FIND("]",CELL("filename",DebtDataset[[#Headers],[sector]]))+1,256) ->  | G47: Embedded debt instruments database for all companies. It is the data source for "Fixed", "Floating", "Inflation_Linked" and "Refinancing" sheet.
F48: =SONIA_LIBOR_data!$A$1 ->  | G48: Annual LIBOR (1/3/6/12 months) historic and forecasted values.
F49: ='Daily Yields'!$A$1 ->  | G49: Daily yields (Utilities index) historic and forecasted values.
F50: ='Monthly Inflation'!$A$1 ->  | G50: Monthly historic and forecasted RPI and CPIH price indices.
F51: ='Annual Inflation'!$A$1 ->  | G51: Annual OBR forecast scenarios; summary of annual historic and forecasted price indices.
F52: ='OBR RPI'!$A$1 ->  | G52: History of OBR RPI forecasts.
F53: ='OBR CPI'!$A$1 ->  | G53: History of OBR CPI forecasts.
F54: ='OBR CPIH'!$A$1 ->  | G54: History of OBR CPIH forecasts.
F55: ='RAV (ED)'!A1 ->  | G55: Nominal RAV for ED companies, sourced from the PCFM.
F56: ='RAV (GD&T)'!A1 ->  | G56: Nominal RAV for GD/T companies, sourced from the PCFM.
F57: ='Additional Inputs'!$A$1 ->  | G57: Other inputs used in calculation of companies and sector actual cost of debt ( NG Cadent refinancing).
E59: Other tabs
F60: =Holidays!A1 ->  | G60: Holiday days (in addition to weekends) to be removed from forecast periods.
F61: =Lookups!$A$1 ->  | G61: Repository of source lookups for dropdowns, functions, macros, etc. in use throughout model.
B65: Key
E67: Formatting | F67: Key
F69: Input cell / hardcoded value
F70: Embedded Debt dataset input submitted by company (import and export cell)
F71: Additional Ofgem input in Embedded Debt dataset for "Back to Back", "EIB" and unique instrument identifier Only in Input Sheet)
F72: In Embedded Debt dataset, input amended from original submission. In other model sections, cell highlight for bespoke formula, potential error or calculation to double check, etc.
F73: Cell intentionally left blank
F74: Cell linked to "Policy Options" sheet scenarios.
E76: Sample | F76: Calculated value
E77: Sample | F77: Imported value
E78: Sample | F78: Exported value
E79: Sample | F79: Additional, supporting cell reference (e.g. for INDEX, SUMIF and similar functions)
F81: Formula break to the right
F82: Separation between cells (e.g. to delimit different price control periods), with no formula break
F84: Policy option dropdown or source list for dropdown
F86: Policy option user input cell
F88: Cell linked to policy option dropdown
F90: Cell linked to policy option user input cell
F92: Named range
F94: Cell used to indicate formula before moving to individual year calculation
E95: Setting | F95: Cell which has link to "Policy Option" and Other worksheets

Sheet ModelMaps
A1: =MID(CELL("filename",A1),FIND("]",CELL("filename",A1))+1,256) -> 
A3: Diagrams to illustrate structure of model, interaction of sheets and calculations.
A4: The first diagram illustrates the full model structure, the other diagrams focus on the structure and calculations of the detailed embedded and new debt sheets.
E6: AVOID ADDING / REMOVING ROWS / COLUMNS TO THIS SHEETS, AS THIS CAN MESS-UP THE POSITION OF ARROWS AND BOXES IN DIAGRAMS BELOW
E7: ADDING OR DELETING FULL ROWS IS FINE, ADDING / REMOVING FULL OR PARTIAL COLUMNS IS RISKY
D9: Model map
E10: Note: User can navigate the model by selecting any sheet box in the map below and using keyboard command "CTRL + [". Once in the selected sheet, press "F5", then "ENTER" to come back to this map.
E11: This map only includes sheet currently in use. A full sheet list is provided in the "Description" tab.
I13: EMBEDDED DEBT DATASET | O13: EMBEDDED DEBT | R13: EMBEDDED AND NEW DEBT SUMMARIES | T13: SECTOR ALLOWED AND ACTUAL COST OF DEBT
O15: =Fixed!$A$1 -> 
I17: =MID(CELL("filename",DebtDataset[[#Headers],[sector]]),FIND("]",CELL("filename",DebtDataset[[#Headers],[sector]]))+1,256) ->  | O17: =Floating!$A$1 -> 
O19: =Inflation_Linked!$A$1 ->  | R19: ='Individual Summaries'!$A$1 ->  | T19: ='Policy Options - Live'!$A$1 -> 
O21: NEW DEBT
O23: =Refinancing!$A$1 -> 
O25: ='Growth debt'!$A$1 -> 
I28: INTEREST RATES
I30: =SONIA_LIBOR_data!$A$1 ->  | L30: =SONIA_LIBOR!$A$1 -> 
I32: ='Daily Yields'!$A$1 ->  | L32: ='Trailing Average'!$A$7 -> Trailing Average
I36: INFLATION AND PRICE INDICES
F38: ='Daily Yields'!$A$1 ->  | I38: =Yields!$A$1 -> 
I42: ='Monthly Inflation'!$A$1 -> 
F44: ='OBR RPI'!$A$1 ->  | I44: ='Annual Inflation'!$A$1 -> 
F46: ='OBR CPI'!$A$1 ->  | L46: =Infrequent_Issuer!$A$1 -> 
I48: RAV
F50: ='OBR CPIH'!$A$1 ->  | I50: ='RAV (ED)'!$A$1 ->  | L50: =RAV_Gearing!$A$1 ->  | O50: =ED!$A$1 -> 
I52: ='RAV (GD&T)'!$A$1 ->  | O52: =ET!$A$1 -> 
I55: OTHER
I57: ='Additional Inputs'!$A$1 -> 
D61: Embedded fixed rate debt
E62: Note: User can navigate the sheet by selecting any grey reference (next to the associated box) in the map below and using keyboard command "CTRL + [". Once in the selected sheet, press "F5", then "ENTER" to come back to this map.
E63: Each box contains comments with explanation of associated inputs and calculations.
I66: FIXED RATE EMBEDDED DEBT INSTRUMENTS | T66: MAIN OUTPUT FOR "INDIVIDUAL SUMMARIES" SHEET
H68: =Fixed!A32 -> Ofgem Identifier | I68: Debt Data | S68: =Fixed!LH29 -> 16. Fixed Interest Payable (£m) | T68: Fixed interest payable
F72: AMORTISATION DATA | L72: DEBT OPENING / CLOSING BALANCES
E74: =DebtDataset[[#Headers],[IssueAmount_2016]] -> IssueAmount_2016 | F74: Annual issuance amount | K74: =Fixed!AI29 -> 1. Opening Principal Outstanding (£m) | L74: Opening principal outstanding | N74: =Fixed!GE29 -> 9. % of year to apply to Principal Outstanding | O74: % year debt is outstanding | Q74: =Fixed!GX29 -> 10. Fixed rate time weighted | R74: Fixed interest rate (time weighted)
E75: =Fixed!DZ29 -> 6. Issuance dates (for profiled instruments) | F75: Annual issuance date | K75: =Fixed!BB29 -> 2. Debt issuance in year (£m) | L75: Debt issuance
E76: =DebtDataset[[#Headers],[RepayAmount_2016]] -> RepayAmount_2016 | F76: Annual repayment amount | K76: =Fixed!BU29 -> 3. Debt repayment in year (£m) | L76: Debt repayment
E77: =Fixed!ES29 -> 7. Repayment dates (for profiled instruments) | F77: Annual repayment date
K78: =Fixed!CN29 -> 4. Closing Principal Outstanding (£m) | L78: Closing principal outstanding | S78: =Fixed!FL29 -> 8. Time Weighted Principal Outstanding (£m) | T78: TW principal outstanding
T83: ADDITIONAL OUTPUT FOR TENOR ANALYSIS
S85: =Fixed!MA29 -> 17. Average Tenor At Issuance of Debt Outstanding in Year * time weighted notional | T85: Avg. tenor at issuance * TW principal
S87: =Fixed!MT29 -> 18. Average Remaining Life of Debt Outstanding in Year (year end)* time weighted notional | T87: Avg. remaining debt life * TW principal
S89: =Fixed!NM29 -> 19. Average Age of Stock Since Issuance of Debt Outstanding in year (year end)* time weighted notional | T89: Avg. age of debt * TW principal
E91: 1. Debt opening and closing balances are calculated by using issue / repayment dates and debt amounts from the debt dataset. Amortising instruments use bespoke calculations and source annual issuance / repayment dates and amounts from supporting amortisation data tables.
E92: 2. Debt opening balances, issuance and repayments are used to calculate time-weighted principal outstanding debt amounts.
E93: 3. Annual TW principal outstanding, divided by nominal debt amounts, provide annual year % debt is outstanding.
E94: 4. Annual % are used to calculate time weighted fixed interest rate, which in turn is applied to nominal debt amounts to yield Fixed interest payable.
E95: 5. TW principal outstanding, issue and repayment dates are used to calculate debt maturity related indicators, used in "Individual Summaries" sheet for the tenor analysis.
D99: Embedded floating rate debt
E100: Note: User can navigate the sheet by selecting any grey reference (next to the associated box) in the map below and using keyboard command "CTRL + [". Once in the selected sheet, press "F5", then "ENTER" to come back to this map.
E101: Each box contains comments with explanation of associated inputs and calculations.
I104: FLOATING RATE EMBEDDED DEBT INSTRUMENTS | Q104: =SONIA_LIBOR!Y8 -> Recalculated annual LIBOR rates (including selected sensitivity uplift) | R104: LIBOR | T104: MAIN OUTPUT FOR "INDIVIDUAL SUMMARIES" SHEET
H106: =Floating!A26 -> Ofgem Identifier | I106: Debt Data | S106: =Floating!HQ23 -> 11. Floating Interest Payable (£m) (price times libor +floating rate) | T106: Floating interest payable
F110: AMORTISATION DATA | L110: DEBT OPENING / CLOSING BALANCES
E112: =DebtDataset[[#Headers],[IssueAmount_2016]] -> IssueAmount_2016 | F112: Annual issuance amount | K112: =Floating!AI23 -> 1. Opening Principal Outstanding (£m) | L112: Opening principal outstanding | N112: =Floating!GE23 -> 9. % of year to apply to Principal Outstanding | O112: % year debt is outstanding | Q112: =Floating!GX23 -> 10. TIME WEIGHTED (LIBOR RATE + FLOATING RATE MARGIN) | R112: Floating interest rate (time weighted)
E113: =Floating!DZ23 -> 6. Issuance dates (for profiled instruments) | F113: Annual issuance date | K113: =Floating!BB23 -> 2. Debt issuance in year (£m) | L113: Debt issuance
E114: =DebtDataset[[#Headers],[RepayAmount_2016]] -> RepayAmount_2016 | F114: Annual repayment amount | K114: =Floating!BU23 -> 3. Debt repayment in year (£m) | L114: Debt repayment
E115: =Floating!ES23 -> 7. Repayment dates (for profiled instruments) | F115: Annual repayment date
K116: =Floating!CN23 -> 4. Closing Principal Outstanding (£m) | L116: Closing principal outstanding | S116: =Floating!FL23 -> 8. Time Weighted Principal Outstanding (£m) | T116: TW principal outstanding
E122: 1. Debt opening and closing balances are calculated by using issue / repayment dates and debt amounts from the debt dataset. Amortising instruments use bespoke calculations and source annual issuance / repayment dates and amounts from supporting amortisation data tables.
E123: 2. Debt opening balances, issuance and repayments are used to calculate time-weighted principal outstanding debt amounts.
E124: 3. Annual TW principal outstanding, divided by nominal debt amounts, provide annual year % debt is outstanding.
E125: 4. Floating interest rate is calculated summing the applicable LIBOR index and the margin rate; floating rate is weighted using annual % of debt outstanding. The weighted annual rate is in turn applied to nominal debt amounts to yield Floating interest payable.
E126: 5. The additional debt maturity indicators are not included in this sheet, as interest rate varies over time. In "Individual Summaries" it is assumed that tenor of floating debt is 0.5 years.
D130: Embedded inflation linked debt
E131: Note: User can navigate the sheet by selecting any grey reference (next to the associated box) in the map below and using keyboard command "CTRL + [". Once in the selected sheet, press "F5", then "ENTER" to come back to this map.
E132: Each box contains comments with explanation of associated inputs and calculations.
L134: ='Monthly Inflation'!C9 -> RPI Used In Model
F135: INFLATION LINKED EMBEDDED DEBT INSTRUMENTS | L135: Monthly Inflation | N135: =Inflation_Linked!GF31 -> 9. RPI/CPI | O135: RPI/CPI | Q135: =Inflation_Linked!HR31 -> 11. Real Interest Payable (interest rate) | R135: Real interest rate (time weighted) | T135: MAIN OUTPUT FOR "INDIVIDUAL SUMMARIES" SHEET
H137: =Inflation_Linked!A34 -> Ofgem Identifier | I137: Debt Data | S137: =Inflation_Linked!IK31 -> 12. Real Interest Payable (£m) | T137: Real interest payable
Q139: =Inflation_Linked!ET31 -> 7. % of year to apply to Principal Outstanding | R139: % year debt is outstanding | S139: =Inflation_Linked!FM31 -> 8. Time Weighted Principal Outstanding (£m) | T139: TW principal outstanding
L141: DEBT OPENING / CLOSING BALANCES
K143: =Inflation_Linked!AJ31 -> 1. Opening Principal Outstanding (£m) | L143: Opening principal outstanding (incl. accretion) | S143: =Inflation_Linked!GY31 -> 10. Time Weighted ACCRETED Principal Outstanding (£m) | T143: TW accreted principal outstanding
K144: =Inflation_Linked!BC31 -> 2. Debt issuance in year (£m) | L144: Debt issuance
K145: =Inflation_Linked!BV31 -> 3. Debt repayment in year INCLUDING ACCRETION (£m) | L145: Debt repayment (incl. accretion) | S145: =Inflation_Linked!CO31 -> 4. Principal accretion in year (£m) | T145: Principal accretion
K146: =Inflation_Linked!CO31 -> 4. Principal accretion in year (£m) | L146: Principal accretion
T147: ADDITIONAL OUTPUT FOR TENOR ANALYSIS
K148: =Inflation_Linked!DH31 -> 5. Closing Principal Outstanding INCLUDING ACCRETION (£m) | L148: Closing principal outstanding (incl. accretion) | S148: =Inflation_Linked!MB31 -> 17. Average Tenor At Issuance of Debt Outstanding in Year * time weighted notional | T148: Avg. tenor at issuance * TW accreted principal
S150: =Inflation_Linked!MU31 -> 18. Average Remaining Life of Debt Outstanding in Year (year end) * time weighted notional | T150: Avg. remaining debt life * TW accreted principal
S152: =Inflation_Linked!NN31 -> 19. Average Age of Stock Since Issuance of Debt Outstanding in year (year end)* time weighted notional | T152: Avg. age of debt * TW accreted principal
T155: ANNUALISED INTEREST RATES FOR "INDIVIDUAL SUMMARIES" SHEET
S157: =Inflation_Linked!JD31 -> 13. Equivalent Nominal Rate (annualised) | T157: Equivalent nominal rate
O159: ='Annual Inflation'!$A$1 ->  | S159: =Inflation_Linked!JW31 -> 14. Equivalent CPIH Real Rate (annualised) | T159: Equivalent CPIH real rate
S161: =Inflation_Linked!KP31 -> 15. Interest if Equivalent Nominal Used (£m) | T161: Nominal interest at equivalent rate
S163: =Inflation_Linked!LI31 -> 16. Interest if Equivalent CPIH Real Used (£m) | T163: CPIH real interest at equivalent rate
E166: 1. Debt opening and closing balances are calculated by using issue / repayment dates and debt amounts from the debt dataset, as well as the applicable indexation factor. This is derived from the monthly RPI indices, taking into account the applicable index lag, and the base index at issuance.
E167: 2. Annual year % debt is outstanding is calculated using issuance and repayment dates.
E168: 3. Annual TW principal outstanding is the debt amount times annual year %.
E169: 4. Annual TW accreted principal outstanding is the debt amount times annual year %, multiplied by the indexation factor,
E170: 5. Real interest payable is calculated by multiplying the (non-accreted) TW principal amount times a real inflation rate, which is "grossed up" to take into account RPI indexation.
E171: 6. Principal inflation accretion is as derived in the "DEBT OPENING / CLOSING BALANCES" calculations.
E172: 7. Due to the complexity of the inflation accretion calculations, the amortisation of inflation linked debt is modelled by decomposing annual issuance / repayments into separate debt instruments, rather than using "AMORTISATION DATA" and bespoke calculations, as done for fixed and floating debt.
E173: 8. Currently all debt is RPI-linked. This may change in the future, as CPI/CPIH linked debt is issued. In that case, the model calculations will need updating, so that RPI as well as CPIH can be used as appropriate (currently the calculations always use RPI).
E174: 9. To keep the diagram above reasonably clear, the relations involving "ANNUALISED INTEREST RATES FOR "INDIVIDUAL SUMMARIES" SHEET" are not displayed. For guidance, please refer to the box comments.
D178: Debt refinancing
E179: Note: User can navigate the sheet by selecting any grey reference (next to the associated box) in the map below and using keyboard command "CTRL + [". Once in the selected sheet, press "F5", then "ENTER" to come back to this map.
E180: Each box contains comments with explanation of associated inputs and calculations.
I183: REFINANCED EMBEDDED DEBT INSTRUMENTS | T183: MAIN OUTPUT FOR "INDIVIDUAL SUMMARIES" SHEET
I184: =Refinancing!A18 -> Ofgem Identifier | J184: =Refinancing!Q18 -> New Start Date
I185: Debt Data | J185: Refinancing Data | S185: =Refinancing!CR15 -> 4. All products interest (£m) | T185: Refinancing interest payable (fixed)
N188: =Refinancing!AM15 -> 1. % of year to apply to Principal Outstanding | O188: % year debt is outstanding | Q188: =Refinancing!BY15 -> 3. Iboxx Rate | R188: iBoxx rate (time weighted)
H189: ='Monthly Inflation'!C9 -> RPI Used In Model | I189: Monthly Inflation
H191: =Yields!K11 -> Annual rates based on iBoxx | I191: Annual Yields | S191: =Refinancing!BF15 -> 2. Time Weighted Principal Outstanding (£m) | T191: TW principal outstanding
E194: 1. Only non-derivatives instruments are considered for refinancing. Refinancing date is equal to maturity date of associated embedded debt instrument. Maturity of refinanced debt is 20 years, all debt is fixed rate (i.e. 0% inflation linked)
E195: 2. Refinanced amount of embedded inflation linked debt is the nominal debt amount, accreted using RPI index (from "Monthly Inflation"), whilst fixed cost of refinanced debt is the average annual spot Utilities index (iBoxx) at issuance date (from "Annual Yields").
E196: 3. Annual year % debt is outstanding is calculated using start date of refinancing.
E197: 4. Annual TW principal outstanding is the refinanced debt amount times annual year %.
E198: 5. Fixed cost of debt refinancing is the annual spot iBoxx rate, time weighted using year %.
D202: New debt issuance for RAV growth financing
E203: Note: User can navigate the sheet by selecting any grey reference (next to the associated box) in the map below and using keyboard command "CTRL + [". Once in the selected sheet, press "F5", then "ENTER" to come back to this map.
E204: Each box contains comments with explanation of associated inputs and calculations.
I207: ANNUAL NEW DEBT ISSUANCE FOR RAV GROWTH | T207: MAIN OUTPUT FOR "INDIVIDUAL SUMMARIES" SHEET
H209: =RAV_Gearing!$A$1 ->  | I209: RAV_Gearing | Q209: =Yields!K11 -> Annual rates based on iBoxx | R209: Annual Yields
H213: ='Growth debt'!P19 -> New Debt issuance (£m nominal) | I213: New Debt Issuance | S213: ='Growth debt'!BU19 -> 3. Interest Payable (£m nominal) | T213: Growth debt interest payable (fixed)
Q216: ='Growth debt'!BB19 -> 2. iBoxx (nominal annual %) | R216: iBoxx rate
S219: ='Growth debt'!AI19 -> 1. Time weighted principal outstanding (£m nominal) | T219: TW principal outstanding
E222: 1. New debt issuance for RAV growth financing is calculated by multiplying annual RAV (positive) variation (from the "RAV_Gearing" tab) for the assumed notional gearing. All debt is assumed fixed rate (i.e. 0% inflation linked), raised in the middle of the year (50%) and remunerated at the annual Utilities index (iBoxx) spot rate (from the "Annual Yields" tab).
E223: 2. Annual TW principal outstanding is sum of historic issuances, plus 50% of issuance in year.
E224: 3. Fixed interest paid of new debt is the sumproduct of historic emissions and applicable annual iBoxx spot rate. Current year emission is weighted by 50% (debt is assumed to be raised in the middle of the year).
E225: 4. Calculations do not take into account maturity dates, as these fall well beyond the model forecasting horizon (20 years maturity is assumed).

Sheet Instructions
A1: =MID(CELL("filename",A1),FIND("]",CELL("filename",A1))+1,256) -> 
A3: Instructions on how to update the model inputs, with detailed information on updating the embedded debt data and using the associated macro fuctionalities.
B7: List of inputs to update
E9: Input | F9: Indicative frequency and timing of updates | G9: Source
E10: Embedded debt instruments dataset | F10: Annually (end of August / beginning of September), with submission of Regulatory Financial Performance Reporting (RFPR) template. During price control determinations, it is updated using Draft/Final Business Plan data submissions, according to the submission timeline and the Determinations project requirement. | G10: RFPR, Business Plan data submissions
E11: Annual SONIA/LIBOR | F11: As required. Note that LIBOR has been discontinued and replaced by SONIA. | G11: WACC allowance model
E12: Daily Yields (iBoxx Utilities Index) | F12: As required. | G12: WACC allowance model
E13: Monthly price indices | F13: As required. | G13: Office for National Statistics (ONS)
E14: Annual OBR inflation forecasts | F14: Twice a year, in March and October / November, after publication of Office for Budget Responsibility (OBR) "Historical official forecasts database". | G14: Office for Budget Responsibility (OBR)
E15: ED RAV | F15: As required, using the appropriate version of the Price Control Financial Model (PCFM). | G15: ED Price Control Financial Model (PCFM)
E16: GD&T RAV | F16: As required, using the appropriate version of the Price Control Financial Model (PCFM). | G16: GD / GT / ET Price Control Financial Model (PCFM)
B19: Detailed instructions on updating embedded debt instruments database.
C21: Instructions for updating the "Cost of Debt" model (also referred to as "Embedded Debt Model")
D23: Summary
E25: Updating the model involves the following tasks, also detailed further down in this sheet, where some additional background information is also provided:
E27: 1. Update the embedded debt instruments dataset ("DebtDataset" table) stored in the "DebtToModel" sheet.
E28: 2. Clean up and check the updated dataset. The related tasks are also automated by running the "DebtDatasetCleansing" macro, from the "MACRO BUTTONS" section below.
E29: 3. Use the updated debt dataset to refresh the four debt calculation sheets. Each sheet can be updated individually (by using the macro buttons at the top of each sheet).
E30: Alternatively, all four sheets can be updated at once, by using the "UpdateAllDebtSheets" macro from the "MACRO BUTTONS" section below.
E31: 4. Check if, as a result of structural changes to either the "DebtDataset" or the input tables of the four calculation sheets, the "Macro lookup" table needs to be amended.
E32: If this is not properly maintained, errors in the update of the calculation tabs are likely to occur.
D34: Macro buttons
D41: 1. Update of embedded debt dataset and data sources
E42: The embedded debt dataset ("DebtDataset") is stored in the "DebtToModel" sheet. It is defined in Excel as a "table" object, which allows some additional functionalities and to use database-style references in formulae and macro instructions.
E44: The latest source of debt data tends to be in the annual Regulatory Financial Performance Reporting (RFPR) submissions.
D46: 2. Data cleansing
E47: The following data cleansing tasks are undertaken on the "DebtDataset" as imported from the "DBP debt dataset" source file:
E48: 1. Check if "Yield to Maturity at Issue Date" is different from "Rate to use". In that case, replace "Rate to use" with "Yield to Maturity at Issue Date" rate.
E49: 2. Check that "Revolving" instruments (see "Maturity type" column) are classified as "Liquidity" (see "Core Debt/ Liquidity"). If not, replace "Core Debt" with "Liquidity". Again, this is a data correction advised by JF: revolving instruments should not be part of core debt,
E50: so that these can be excluded from the cost of debt calculation in this model, by using the "Exclude" flag from the "Include or Exclude liquidity instruments" option in the "Policy Option" tab.
E51: 3. Replace any cell containing "00/01/1900" with a blank cell. This is purely cosmetic to display the data more clearly.
E53: All three tasks above can be automated using the "DebtDatasetCleansing" macro ("Macro buttons" section above in this sheet). Note that cells amended under tasks 1 and 2 are highlighted in red,
E54: so that they can be compared against the original entries in the "DBP debt dataset" file.
D56: 3. Update of calculation sheets
E57: The embedded debt balance and interest cost by instrument is calculated in the four calculation tabs:
E58: 1. "Inflation_Linked" for inflation linked instruments.
E59: 2. "Floating" tab for floating rate instruments.
E60: 3. "Fixed" tab for fixed rate instruments.
E61: 4. "Refinancing" tab to model refinancing of embedded debt instruments, once they reach their maturity date.
E63: The four tabs can be updated individually to reflect the latest "DebtDataset", by using the macro buttons at the top of each calculation sheet.
E64: Alternatively, all four sheets can be updated at once by using the "UpdateAllDebtSheets" macro ("MACRO BUTTONS" section above in this sheet).
E66: The macro filters the "DebtDataset" table using the "type" column and exports only the relevant columns into each calculation sheet.
E67: For "Refinancing" only, the dataset is filtered by using the "Refinancing Code" column at the far right of the table.
D69: 4. Maintaining the "Macro lookup" table
E70: Note that the macros select the columns to copy from the "DebtDataset" into the four calculation sheets by using the "Macro lookups" table from the "lookups" tab (follow link below):
E71: =Lookups!$U$45 -> Macro lookups
E73: The "Macro lookups" table is divided into four sub-tables, one for each calculation tab. Each sub-table lists on the left the input columns in the calculation tab, while on the right the corresponding column in the "DebtDataset" table.
E74: The macro runs through each row of the sub-table and copies data from each column referenced for the "DebtDataset", into the corresponding column referenced for the calculation sheet.
E75: The "N/A" cells in the "Macro lookups" table identifies columns of the calculation sheet that are not imported from the "DebtDataset" table, as they either contain formulae or are left blank.
E77: The "Macro lookup" table should update automatically if columns are renamed in either the debt calculation sheets or the "DebtDataset" table, however it will need updating if the structure of the input section of the calculation tabs
E78: or the structure of the "DebtDataset" is changed.
E79: If the "Macro lookup" table is not consistent with the structure of the four calculation sheets and the source database, the macro may not run due to invalid references, or indeed the wrong columns may be exported from the "DebtDataset"
E80: into the wrong columns of the target calculation sheet.

Sheet Model Checks
A1: =MID(CELL("filename",A1),FIND("]",CELL("filename",A1))+1,256) -> 
A3: Consistency checks to verify correctness of model calculations.
B5: Totals from debt calculation sheets
E7: Total | F7: Inflation Linked (£m) All Years | G7: Floating (£m) All Years | H7: Fixed (£m) All Years | I7: Refinancing (£m) All Years | J7: RAV Growth Debt (£m) All Years | K7: Grand Total from Sheets (£m) All Years | L7: CHECK
E8: Total Non Derivative Interest | F8: =SUMPRODUCT((Inflation_Linked!$NZ$35:$NZ$5023="No")*(Inflation_Linked!$IF$35:$IT$5023)) -> 2110.813413 | G8: =SUMPRODUCT((Floating!$IC$27:$IC$5015="No")*(Floating!$HL$27:$HZ$5015)) -> 656.7482445 | H8: =SUMPRODUCT((Fixed!$OQ$33:$OQ$4992="No")*(Fixed!$LC$33:$LQ$4992)) -> 21740.78457 | K8: =SUM(F8:J8) -> 24508.34623 | L8: =IF(ROUND(K8,0)=ROUND(H26,0),"OK","ERROR") -> OK
E9: Total Derivative Interest | F9: =SUMPRODUCT((Inflation_Linked!$NZ$35:$NZ$5023="Yes")*(Inflation_Linked!$IF$35:$IT$5023)) -> 0 | G9: =SUMPRODUCT((Floating!$IC$27:$IC$5015="Yes")*(Floating!$HL$27:$HZ$5015)) -> 0 | H9: =SUMPRODUCT((Fixed!$OQ$33:$OQ$4992="Yes")*(Fixed!$LC$33:$LQ$4992)) -> 0 | K9: =SUM(F9:J9) -> 0 | L9: OK
E10: Total Derivative Accretion | F10: =SUMPRODUCT((Inflation_Linked!$NZ$35:$NZ$5023="Yes")*(Inflation_Linked!$CJ$35:$CX$5023)) -> 0 | K10: 0 | L10: OK
E11: Total Non Derivative Accretion | F11: =SUMPRODUCT((Inflation_Linked!$NZ$35:$NZ$5023="No")*(Inflation_Linked!$CJ$35:$CX$5023)) -> 3171.664528 | K11: 3171.664528 | L11: OK
E12: Total Time Weighted Notional Non Derivative (accreted) | F12: =SUMPRODUCT((Inflation_Linked!$NZ$35:$NZ$5023="No")*(Inflation_Linked!$GT$35:$HH$5023)) -> 115832.7637 | G12: =SUMPRODUCT((Floating!$IC$27:$IC$5015="No")*(Floating!$FG$27:$FU$5015)) -> 14226.08056 | H12: =SUMPRODUCT((Fixed!$OQ$33:$OQ$4992="No")*(Fixed!$FG$33:$FU$4992)) -> 410097.1899 | K12: =SUM(F12:J12) -> 540156.0342 | L12: OK
E13: Total Time Weighted Notional Derivative | F13: =SUMPRODUCT((Inflation_Linked!$NZ$35:$NZ$5023="Yes")*(Inflation_Linked!$FH$35:$FV$5023)) -> 0 | G13: =SUMPRODUCT((Floating!$IC$27:$IC$5015="Yes")*(Floating!$FG$27:$FU$5015)) -> 0 | H13: =SUMPRODUCT((Fixed!$OQ$33:$OQ$4992="Yes")*(Fixed!$FG$33:$FU$4992)) -> 0 | K13: =SUM(F13:J13) -> 0 | L13: OK
E14: Non derivative inflation linked interest payable using (RPI real) | F14: =SUMPRODUCT((Inflation_Linked!$NZ$35:$NZ$5023="No")*(Inflation_Linked!$IF$35:$IT$5023)) -> 2110.813413 | K14: 2110.813413 | L14: OK
E15: Non derivative inflation linked interest payable using (nominal equiv) | F15: =SUMPRODUCT((Inflation_Linked!$NZ$35:$NZ$5023="No")*(Inflation_Linked!$KK$35:$KY$5023)) -> 3045.22959 | K15: 3045.22959 | L15: OK
E16: Non derivative inflation linked interest payable using (CPIH real equiv) | F16: =SUMPRODUCT((Inflation_Linked!$NZ$35:$NZ$5023="No")*(Inflation_Linked!$LD$35:$LR$5023)) -> 856.0305696 | K16: 856.0305696 | L16: OK
E17: Total refinancing debt cost of debt (nominal) | I17: =SUMPRODUCT((Refinancing!$AC$19:$AC$4998="Include")*(Refinancing!$CM$19:$DA$4998)) -> 7306.257751 | K17: 7306.257751 | L17: OK
E18: Total time weighted refinancing debt | I18: =SUMPRODUCT((Refinancing!$AC$19:$AC$4998="Include")*(Refinancing!$BA$19:$BO$4998)) -> 106263.2984 | K18: 106263.2984 | L18: OK
E19: Total Growth Debt cost of debt (nominal) | J19: =SUM('Growth debt'!BP52:CD55) -> 17728.43813 | K19: 17728.43813 | L19: OK
E20: Total time weighted Growth Debt | J20: =SUM('Growth debt'!AD52:AR55) -> 258803.8066 | K20: 258803.8066 | L20: OK
B22: Totals from "Individual Summaries" sheet
F24: Excluding SHET, if "bespoke" | G24: SHET totals if "bespoke", otherwise set to zero
E25: Total | F25: Total from "Individual Summaries" (£m) All Years | G25: SHET (£m) All Years | H25: Total including SHET (£m) All Years
E26: Total Non Derivative Interest | F26: =SUM('Individual Summaries'!H17:AL19) -> 24508.34623 | G26: =IF('Policy Options - Live'!$G$22="ET",0,SUM('Individual Summaries'!CZ17:DN19)) -> 0 | H26: =SUM(F26:G26) -> 24508.34623
E27: Total Derivative Interest | F27: =SUM('Individual Summaries'!H20:AL22) -> 0 | G27: =IF('Policy Options - Live'!$G$22="ET",0,SUM('Individual Summaries'!CZ20:DN22)) -> 0 | H27: =SUM(F27:G27) -> 0
E28: Total Derivative Accretion | F28: =SUM('Individual Summaries'!H25:AL25) -> 0 | G28: =IF('Policy Options - Live'!$G$22="ET",0,SUM('Individual Summaries'!CZ25:DN25)) -> 0 | H28: 0
E29: Total Non Derivative Accretion | F29: =SUM('Individual Summaries'!H24:AL24) -> 3171.664528 | G29: =IF('Policy Options - Live'!$G$22="ET",0,SUM('Individual Summaries'!CZ24:DN24)) -> 0 | H29: 3171.664528
E30: Total Time Weighted Notional Non Derivative (accreted) | F30: =SUM('Individual Summaries'!H29:AL31) -> 540156.0342 | G30: =IF('Policy Options - Live'!$G$22="ET",0,SUM('Individual Summaries'!CZ29:DN31)) -> 0 | H30: 540156.0342
E31: Total Time Weighted Notional Derivative | F31: =SUM('Individual Summaries'!H35:AL35) -> 0 | G31: =IF('Policy Options - Live'!$G$22="ET",0,SUM('Individual Summaries'!CZ35:DN35)) -> 0 | H31: 0
E32: Non derivative inflation linked interest payable using (RPI real) | F32: =SUM('Individual Summaries'!H42:AL42) -> 2110.813413 | G32: =IF('Policy Options - Live'!$G$22="ET",0,SUM('Individual Summaries'!CZ42:DN42)) -> 0 | H32: 2110.813413
E33: Non derivative inflation linked interest payable using (nominal equiv) | F33: =SUM('Individual Summaries'!H43:AL43) -> 3045.22959 | G33: =IF('Policy Options - Live'!$G$22="ET",0,SUM('Individual Summaries'!CZ43:DN43)) -> 0 | H33: 3045.22959
E34: Non derivative inflation linked interest payable using (CPIH real equiv) | F34: =SUM('Individual Summaries'!H44:AL44) -> 856.0305696 | G34: =IF('Policy Options - Live'!$G$22="ET",0,SUM('Individual Summaries'!CZ44:DN44)) -> 0 | H34: 856.0305696
E35: Total refinancing debt cost of debt (nominal) | F35: =SUM('Individual Summaries'!H69:AL69) -> 7306.257751 | G35: =IF('Policy Options - Live'!$G$22="ET",0,SUM('Individual Summaries'!CZ69:DN69)) -> 0 | H35: 7306.257751
E36: Total time weighted refinancing debt | F36: =SUM('Individual Summaries'!H70:AL70) -> 106263.2984 | G36: =IF('Policy Options - Live'!$G$22="ET",0,SUM('Individual Summaries'!CZ70:DN70)) -> 0 | H36: 106263.2984
E37: Total Growth Debt cost of debt (nominal) | F37: =SUM('Individual Summaries'!H76:AL76) -> 17728.43813 | G37: =IF('Policy Options - Live'!$G$22="ET",0,SUM('Individual Summaries'!CZ76:DN76)) -> 0 | H37: 17728.43813
E38: Total time weighted Growth Debt | F38: =SUM('Individual Summaries'!H77:AL77) -> 258803.8066 | G38: =IF('Policy Options - Live'!$G$22="ET",0,SUM('Individual Summaries'!CZ77:DN77)) -> 0 | H38: 258803.8066
F40: CHECK
E41: Negative RAV Growth Exceeds Refinancing | F41: =IF('Individual Summaries'!F81="WARNING!","ERROR", "OK") -> OK

Sheet Policy Options - Static
A1: Policy Options - Static
A3: This sheet contains dropdowns to set a range of options around: inclusion/exclusion of certain financial instruments in actual embedded debt; inflation, interest rates and RAV scenarios; proportion of ILD and tenor for infrequent issuer assessment, etc. These options are fed back in the various calculation sheets to recalculate actual / allowed cost of debt.
A4: The sheet displays nominal and real (CPIH based) assessed actual cost of debt, compared against a range of potential allowed cost of debt policies; derivation of RPI / CPI mitigation allowance (a component of the 25bps additional cost of borrowing); actual cost of debt as simple average across all companies (as opposed to weighted average); calculation of cost of EIB embedded debt.
B6: Policy options
H7: Explanation
E8: 1 | F8: Include or Exclude non back to back intercompany loans | G8: Exclude | H8: By default exclude intercompany loans. However, when considering an 'all in' approach including derivatives then this can be switched to include intercompany loans as well. Any intercompany loans that have been flagged as "Back to Back" are included in the pool because they are bonds that have been issued by finco and back to back on-lent to opco.
E9: 2 | F9: Include or Exclude liquidity instruments | G9: Exclude | H9: Liquidity instruments (e.g. revolving credit facilities) are not part of core debt, hence should be excluded to assess cost of debt.
E10: 3 | F10: Also exclude for Refinancing | G10: Include | H10: Although we might want to exclude intercompany loans for cost purposes if we also excluded them from refinancing then the model would assume a much lower amount of debt across the sector. So it's prudent to assume intercompany loans ARE refinanced but assume they are refinanced at the general iBoxx level. So set this switch to 'include'.
E11: 4 | F11: Include or Exclude derivative in debt cost perfomance assessment | G11: Exclude | H11: This is a toggle allowing to display the debt cost performance table in this sheet either excluding or including derivatives. It is not used anywhere else in the model. It should be set by default to "Exclude". Red conditional formatting highlights if toggle is set to "Include".
E12: 5 | F12: Refinancing & Growth Debt assumed from start of FYE | G12: Y2026 | H12: This determines from what date any debt maturing is assumed by Ofgem to be refinanced (it should be some point in the future compared to the date of collected data because a company can be assumed to have already refinanced any debt that has already matured at the time they submitted the instrument data).
E13: 6 | F13: Choose Iboxx Forecast | G13: Annual | H13: This was originally a check that the method for calculating iBoxx forecasts did not materially alter the overall picture. This should be set to "Annual"
E14: 7 | F14: Choose Iboxx rate | G14: 31/10/2025 iBoxxNF A/BBB ave | H14: For the 'base case' the most recent Utils nominal yield only should be selected. Note that usually if an iBoxx +1% sensitivity is being selected it would be logical to apply +1% to the LIBOR assumption in C11 of this sheet.
E15: 8 | F15: Choose Iboxx and SONIA cutoff date | G15: 45962 | H15: SONIA and iBoxx rate cutoff date will be the same
E16: 9 | F16: Apply % to iBoxx and SONIA | G16: 0.01 | H16: The base case is set to 0, but sensitivities can be run at ±1% or ±2%.
E17: 10 | F17: Choose monthly CPI rate | G17: 31/09/2025 CPI (flat 2% forecast)
E18: 11 | F18: Choose monthly RPI rate | G18: RPI always 3%, 2% after Feb2030
E19: 12 | F19: Choose monthly CPIH rate | G19: 31/09/2025 CPIH
E20: 13 | F20: Choose CPI daily forecast for iBoxx deflation | G20: OBR long-term forecast | H20: This defines the CPI rates used to deflate the daily nominal iBoxx utilities index.
E21: 14 | F21: Apply Notional Gearing for RIIO-1 adjustment | G21: NO | H21: If notional gearing is being reduced (or increased) from one price control to another it is reasonable to assume network companies will react by adjusting gearing by the same percentage, so for example if notional gearing reducing from 65% to 60% they will refinance/raise 5% less debt than they would have done if notional gearing had been staying the same. Selecting 'yes' here makes this adjustment to the assumed new/refi debt raised by calculating adjustment from rows 80 on the 'Individual Summaries' sheet which takes notional gearing information from the RAV_Gearing sheet
E22: 15 | F22: Include SHET in ET or Bespoke | G22: ET | H22: For RIIO2 SHET could be excluded from GD/T cohort if "Bespoke" was selected. For RIIO3 this should be set to "ET"
E23: 16 | F23: Average Tenor of Debt for Infrequent Issuer (years) (Gas Sector) | G23: 18 | H23: Input informed by separate tenor analysis
E24: 17 | F24: Index-linked debt percentage (for illustration only) (Gas Sector) | G24: 0.3 | H24: This is not used for new debt (100% fixed rate at the iBoxx Utilities index), but for Infrequent Issuer analysis and illustrative "Growth Debt less assumed inflation linked debt growth" amounts (see bottom of "Growth Debt tab").
E25: 18 | F25: Average Tenor of Debt for Infrequent Issuer (years) (ET) | G25: 13 | H25: Input informed by separate tenor analysis
E26: 19 | F26: Index-linked debt percentage (for illustration only) (ET) | G26: 0.1 | H26: This is not used for new debt (100% fixed rate at the iBoxx Utilities index), but for Infrequent Issuer analysis and illustrative "Growth Debt less assumed inflation linked debt growth" amounts (see bottom of "Growth Debt tab").
E27: 20 | F27: Average Tenor of Debt for Infrequent Issuer (years) (ED) | G27: 17 | H27: Input informed by separate tenor analysis
E28: 21 | F28: Index-linked debt percentage (for illustration only) (ED) | G28: 0.1 | H28: This is not used for new debt (100% fixed rate at the iBoxx Utilities index), but for Infrequent Issuer analysis and illustrative "Growth Debt less assumed inflation linked debt growth" amounts (see bottom of "Growth Debt tab").
E29: 22 | F29: Choose RAV to use for GD&GT&ET&ED | G29: Base case | H29: This enables different totex (and therefore RAV) scenarios to be run. RAV input sheets used to insert new RAV scenarios.
E30: 23 | F30: Sensitivity on new debt (GD&GT) - nominal % | G30: 0.003
E31: 24 | F31: Sensitivity on new debt (ED&ET) - nominal % | G31: 0
B36: Assessed actual cost of debt and allowance options
C38: Nominal actual cost of debt and allowance options
I45: Iboxx- Nominal | J45: GD & GT | Q45: Iboxx- Nominal | R45: GD Only | AD45: Iboxx- Nominal | AE45: ED & ET | AL45: Iboxx- Nominal | AM45: TOTAL ET ( including SHET) | AT45: Iboxx- Nominal | AU45: ED Only
J46: 9 | K46: 10 | L46: 11 | M46: 12 | N46: 13 | R46: 9 | S46: 10 | T46: 11 | U46: 12 | V46: 13 | AE46: 9 | AF46: 10 | AG46: 11 | AH46: 12 | AI46: 13 | AM46: 9 | AN46: 10 | AO46: 11 | AP46: 12 | AQ46: 13 | AU46: 9 | AV46: 10 | AW46: 11 | AX46: 12 | AY46: 13
I47: Assessed Expected Costs (Nominal) | J47: Y2027 | K47: Y2028 | L47: Y2029 | M47: Y2030 | N47: Y2031 | O47: RIIO-3 average | Q47: Assessed Expected Costs (Nominal) | R47: Y2027 | S47: Y2028 | T47: Y2029 | U47: Y2030 | V47: Y2031 | W47: RIIO-3 average | AD47: Assessed Expected Costs (Nominal) | AE47: Y2027 | AF47: Y2028 | AG47: Y2029 | AH47: Y2030 | AI47: Y2031 | AJ47: RIIO-3 average | AL47: Assessed Expected Costs (Nominal) | AM47: Y2027 | AN47: Y2028 | AO47: Y2029 | AP47: Y2030 | AQ47: Y2031 | AR47: RIIO-3 average | AT47: Assessed Expected Costs (Nominal) | AU47: Y2027 | AV47: Y2028 | AW47: Y2029 | AX47: Y2030 | AY47: Y2031 | AZ47: RIIO-3 average
I48: Pure debt | J48: 0.04462220676 | K48: 0.04701059199 | L48: 0.04919536352 | M48: 0.05123474714 | N48: 0.05324275073 | O48: 0.04906113203 | Q48: Pure debt | R48: 0.04449724478 | S48: 0.04694386275 | T48: 0.04919709978 | U48: 0.05159664037 | V48: 0.05398535522 | W48: 0.04924404058 | AD48: Pure debt | AE48: 0.04787442992 | AF48: 0.05229606664 | AG48: 0.0567799698 | AH48: 0.05980667401 | AI48: 0.06119521935 | AJ48: 0.05559047195 | AL48: Pure debt | AM48: 0.04607350712 | AN48: 0.05252431243 | AO48: 0.05787813611 | AP48: 0.060861631 | AQ48: 0.06205199264 | AR48: 0.05587791586 | AT48: Pure debt | AU48: 0.04975585569 | AV48: 0.0520203492 | AW48: 0.05525305194 | AX48: 0.05817030525 | AY48: 0.05979569245 | AZ48: 0.05499905091
I49: Derivatives | J49: 0 | K49: 0 | L49: 0 | M49: 0 | N49: 0 | O49: 0 | Q49: Derivatives | R49: 0 | S49: 0 | T49: 0 | U49: 0 | V49: 0 | W49: 0 | AD49: Derivatives | AE49: 0 | AF49: 0 | AG49: 0 | AH49: 0 | AI49: 0 | AJ49: 0 | AL49: Derivatives | AM49: 0 | AN49: 0 | AO49: 0 | AP49: 0 | AQ49: 0 | AR49: 0 | AT49: Derivatives | AU49: 0 | AV49: 0 | AW49: 0 | AX49: 0 | AY49: 0 | AZ49: 0
I50: NG Cadent refi | J50: 0.001615294929 | K50: 0.001369051508 | L50: 0.001038049528 | M50: 0.0008952135058 | N50: 0.0008155514096 | O50: 0.001146632176 | Q50: NG Cadent refi | R50: 0.002070192758 | S50: 0.001777056701 | T50: 0.001355219816 | U50: 0.001171390664 | V50: 0.001066580518 | W50: 0.001488088091 | AD50: NG Cadent refi | AE50: 0 | AF50: 0 | AG50: 0 | AH50: 0 | AI50: 0 | AJ50: 0 | AL50: NG Cadent refi | AM50: 0 | AN50: 0 | AO50: 0 | AP50: 0 | AQ50: 0 | AR50: 0 | AT50: NG Cadent refi | AU50: 0 | AV50: 0 | AW50: 0 | AX50: 0 | AY50: 0 | AZ50: 0
I52: Total | J52: 0.04623750169 | K52: 0.0483796435 | L52: 0.05023341305 | M52: 0.05212996065 | N52: 0.05405830214 | O52: 0.05020776421 | Q52: Total | R52: 0.04656743753 | S52: 0.04872091945 | T52: 0.05055231959 | U52: 0.05276803104 | V52: 0.05505193573 | W52: 0.05073212867 | AD52: Total | AE52: 0.04787442992 | AF52: 0.05229606664 | AG52: 0.0567799698 | AH52: 0.05980667401 | AI52: 0.06119521935 | AJ52: 0.05559047195 | AL52: Total | AM52: 0.04607350712 | AN52: 0.05252431243 | AO52: 0.05787813611 | AP52: 0.060861631 | AQ52: 0.06205199264 | AR52: 0.05587791586 | AT52: Total | AU52: 0.04975585569 | AV52: 0.0520203492 | AW52: 0.05525305194 | AX52: 0.05817030525 | AY52: 0.05979569245 | AZ52: 0.05499905091
I54: Allowance Options | Q54: Allowance Options | AD54: Allowance Options | AL54: Allowance Options | AT54: Allowance Options
F55: From | G55: Adjustment | AA55: From | AB55: Adjustment
I56: RAV weighted ave []yrs | Q56: RAV weighted ave []yrs | AA56: 14 | AB56: 0 | AD56: RAV weighted ave [14]yrs | AE56: 0.04447556021 | AF56: 0.0477719928 | AG56: 0.05165947405 | AH56: 0.05506605681 | AI56: 0.05769623685 | AJ56: 0.05133386414 | AL56: RAV weighted ave [14]yrs | AM56: 0.04585062487 | AN56: 0.04979502877 | AO56: 0.05468395713 | AP56: 0.05851797179 | AQ56: 0.06106429517 | AR56: 0.05398237555 | AT56: RAV weighted ave [14]yrs | AU56: 0.04312873858 | AV56: 0.04544695213 | AW56: 0.04764490175 | AX56: 0.05000555149 | AY56: 0.05238189841 | AZ56: 0.04772160847
I57: RAV weighted ave []yrs + 0 bps costs | Q57: RAV weighted ave []yrs + 0 bps costs | AB57: 0.0043 | AD57: RAV weighted ave [14]yrs + 43 bps costs | AE57: 0.04877556021 | AF57: 0.0520719928 | AG57: 0.05595947405 | AH57: 0.05936605681 | AI57: 0.06199623685 | AJ57: 0.05563386414 | AL57: RAV weighted ave [14]yrs + 43 bps costs | AM57: 0.05015062487 | AN57: 0.05409502877 | AO57: 0.05898395713 | AP57: 0.06281797179 | AQ57: 0.06536429517 | AR57: 0.05828237555 | AT57: RAV weighted ave [14]yrs + 43 bps costs | AU57: 0.04742873858 | AV57: 0.04974695213 | AW57: 0.05194490175 | AX57: 0.05430555149 | AY57: 0.05668189841 | AZ57: 0.05202160847
F58: 10 | G58: 0 | I58: 10 Yr | J58: 0.03854241225 | K58: 0.04144552681 | L58: 0.04531897483 | M58: 0.04905675994 | N58: 0.05304953104 | O58: 0.04548264098 | Q58: 10 Yr | R58: 0.03854241225 | S58: 0.04144552681 | T58: 0.04531897483 | U58: 0.04905675994 | V58: 0.05304953104 | W58: 0.04548264098 | AA58: 14 | AB58: 0 | AD58: RAV weighted ave [14] yr | AE58: 0.04447556021 | AF58: 0.0477719928 | AG58: 0.05165947405 | AH58: 0.05506605681 | AI58: 0.05769623685 | AJ58: 0.05133386414 | AL58: RAV weighted ave [14] yr | AM58: 0.04585062487 | AN58: 0.04979502877 | AO58: 0.05468395713 | AP58: 0.05851797179 | AQ58: 0.06106429517 | AR58: 0.05398237555 | AT58: RAV weighted ave [14] yr | AU58: 0.04312873858 | AV58: 0.04544695213 | AW58: 0.04764490175 | AX58: 0.05000555149 | AY58: 0.05238189841 | AZ58: 0.04772160847
F59: 14 | G59: 0 | I59: 14 Yr | J59: 0.04021320521 | K59: 0.04143542132 | L59: 0.04316391425 | M59: 0.04489571676 | N59: 0.0470824359 | O59: 0.04335813869 | Q59: 14 Yr | R59: 0.04021320521 | S59: 0.04143542132 | T59: 0.04316391425 | U59: 0.04489571676 | V59: 0.0470824359 | W59: 0.04335813869 | AB59: 0.0039 | AD59: RAV weighted ave [14] yr + 39 bps costs | AE59: 0.04837556021 | AF59: 0.0516719928 | AG59: 0.05555947405 | AH59: 0.05896605681 | AI59: 0.06159623685 | AJ59: 0.05523386414 | AL59: RAV weighted ave [14] yr + 39 bps costs | AM59: 0.04975062487 | AN59: 0.05369502877 | AO59: 0.05858395713 | AP59: 0.06241797179 | AQ59: 0.06496429517 | AR59: 0.05788237555 | AT59: RAV weighted ave [14] yr + 39 bps costs | AU59: 0.04702873858 | AV59: 0.04934695213 | AW59: 0.05154490175 | AX59: 0.05390555149 | AY59: 0.05628189841 | AZ59: 0.05162160847
F60: 15 | G60: 0 | I60: 15 Yr | J60: 0.04114067295 | K60: 0.04184539878 | L60: 0.04331157375 | M60: 0.04494257487 | N60: 0.04655553213 | O60: 0.0435591505 | Q60: 15 Yr | R60: 0.04114067295 | S60: 0.04184539878 | T60: 0.04331157375 | U60: 0.04494257487 | V60: 0.04655553213 | W60: 0.0435591505 | AA60: 15 | AB60: 0 | AD60: 15 Yr | AE60: 0.04114067295 | AF60: 0.04184539878 | AG60: 0.04331157375 | AH60: 0.04494257487 | AI60: 0.04655553213 | AJ60: 0.0435591505 | AL60: 15 Yr | AM60: 0.04114067295 | AN60: 0.04184539878 | AO60: 0.04331157375 | AP60: 0.04494257487 | AQ60: 0.04655553213 | AR60: 0.0435591505 | AT60: 15 Yr | AU60: 0.04114067295 | AV60: 0.04184539878 | AW60: 0.04331157375 | AX60: 0.04494257487 | AY60: 0.04655553213 | AZ60: 0.0435591505
F61: 17 | G61: 0 | I61: 17 Yr | J61: 0.04365899758 | K61: 0.04339418147 | L61: 0.04420577929 | M61: 0.045126391 | N61: 0.04643241371 | O61: 0.04456355261 | Q61: 17 Yr | R61: 0.04365899758 | S61: 0.04339418147 | T61: 0.04420577929 | U61: 0.045126391 | V61: 0.04643241371 | W61: 0.04456355261 | AA61: 17 | AB61: 0 | AD61: 17 Yr | AE61: 0.04365899758 | AF61: 0.04339418147 | AG61: 0.04420577929 | AH61: 0.045126391 | AI61: 0.04643241371 | AJ61: 0.04456355261 | AL61: 17 Yr | AM61: 0.04365899758 | AN61: 0.04339418147 | AO61: 0.04420577929 | AP61: 0.045126391 | AQ61: 0.04643241371 | AR61: 0.04456355261 | AT61: 17 Yr | AU61: 0.04365899758 | AV61: 0.04339418147 | AW61: 0.04420577929 | AX61: 0.045126391 | AY61: 0.04643241371 | AZ61: 0.04456355261
F62: 18 | G62: 0 | I62: 18 Yr | J62: 0.04495023198 | K62: 0.044834427 | L62: 0.04485368677 | M62: 0.04563339112 | N62: 0.04649848087 | O62: 0.04535404355 | Q62: 18 Yr | R62: 0.04495023198 | S62: 0.044834427 | T62: 0.04485368677 | U62: 0.04563339112 | V62: 0.04649848087 | W62: 0.04535404355 | AA62: 18 | AB62: 0 | AD62: 18 Yr | AE62: 0.04495023198 | AF62: 0.044834427 | AG62: 0.04485368677 | AH62: 0.04563339112 | AI62: 0.04649848087 | AJ62: 0.04535404355 | AL62: 18 Yr | AM62: 0.04495023198 | AN62: 0.044834427 | AO62: 0.04485368677 | AP62: 0.04563339112 | AQ62: 0.04649848087 | AR62: 0.04535404355 | AT62: 18 Yr | AU62: 0.04495023198 | AV62: 0.044834427 | AW62: 0.04485368677 | AX62: 0.04563339112 | AY62: 0.04649848087 | AZ62: 0.04535404355
F63: 14 | G63: 0 | I63: 14 Yr | J63: 0.04021320521 | K63: 0.04143542132 | L63: 0.04316391425 | M63: 0.04489571676 | N63: 0.0470824359 | O63: 0.04335813869 | Q63: 14 Yr | R63: 0.04021320521 | S63: 0.04143542132 | T63: 0.04316391425 | U63: 0.04489571676 | V63: 0.0470824359 | W63: 0.04335813869 | AA63: 14 | AB63: 0 | AD63: 14 Yr | AE63: 0.04021320521 | AF63: 0.04143542132 | AG63: 0.04316391425 | AH63: 0.04489571676 | AI63: 0.0470824359 | AJ63: 0.04335813869 | AL63: 14 Yr | AM63: 0.04021320521 | AN63: 0.04143542132 | AO63: 0.04316391425 | AP63: 0.04489571676 | AQ63: 0.0470824359 | AR63: 0.04335813869 | AT63: 14 Yr | AU63: 0.04021320521 | AV63: 0.04143542132 | AW63: 0.04316391425 | AX63: 0.04489571676 | AY63: 0.0470824359 | AZ63: 0.04335813869
F64: 14 | G64: 0.006 | I64: 14 Yr + 60 bps | J64: 0.04621320521 | K64: 0.04743542132 | L64: 0.04916391425 | M64: 0.05089571676 | N64: 0.0530824359 | O64: 0.04935813869 | Q64: 14 Yr + 60 bps | R64: 0.04621320521 | S64: 0.04743542132 | T64: 0.04916391425 | U64: 0.05089571676 | V64: 0.0530824359 | W64: 0.04935813869 | AA64: 14 | AB64: 0.006 | AD64: 14 Yr + 60 bps | AE64: 0.04621320521 | AF64: 0.04743542132 | AG64: 0.04916391425 | AH64: 0.05089571676 | AI64: 0.0530824359 | AJ64: 0.04935813869 | AL64: 14 Yr + 60 bps | AM64: 0.04621320521 | AN64: 0.04743542132 | AO64: 0.04916391425 | AP64: 0.05089571676 | AQ64: 0.0530824359 | AR64: 0.04935813869 | AT64: 14 Yr + 60 bps | AU64: 0.04621320521 | AV64: 0.04743542132 | AW64: 0.04916391425 | AX64: 0.05089571676 | AY64: 0.0530824359 | AZ64: 0.04935813869
F65: 14 | G65: 0 | I65: 14 Yrs no lag | J65: 0.0405703083 | K65: 0.04216030829 | L65: 0.04384954174 | M65: 0.04583908075 | N65: 0.04791465418 | O65: 0.04406677865 | Q65: 14 Yrs no lag | R65: 0.0405703083 | S65: 0.04216030829 | T65: 0.04384954174 | U65: 0.04583908075 | V65: 0.04791465418 | W65: 0.04406677865 | AA65: 14 | AB65: 0 | AD65: 14 Yrs no lag | AE65: 0.0405703083 | AF65: 0.04216030829 | AG65: 0.04384954174 | AH65: 0.04583908075 | AI65: 0.04791465418 | AJ65: 0.04406677865 | AL65: 14 Yrs no lag | AM65: 0.0405703083 | AN65: 0.04216030829 | AO65: 0.04384954174 | AP65: 0.04583908075 | AQ65: 0.04791465418 | AR65: 0.04406677865 | AT65: 14 Yrs no lag | AU65: 0.0405703083 | AV65: 0.04216030829 | AW65: 0.04384954174 | AX65: 0.04583908075 | AY65: 0.04791465418 | AZ65: 0.04406677865
F66: 14 | G66: 0.0072 | I66: 14 Yrs no lag + 72 bps | J66: 0.0477703083 | K66: 0.04936030829 | L66: 0.05104954174 | M66: 0.05303908075 | N66: 0.05511465418 | O66: 0.05126677865 | Q66: 14 Yrs no lag + 72 bps | R66: 0.0477703083 | S66: 0.04936030829 | T66: 0.05104954174 | U66: 0.05303908075 | V66: 0.05511465418 | W66: 0.05126677865 | AA66: 14 | AB66: 0.0072 | AD66: 14 Yrs no lag + 72 bps | AE66: 0.0477703083 | AF66: 0.04936030829 | AG66: 0.05104954174 | AH66: 0.05303908075 | AI66: 0.05511465418 | AJ66: 0.05126677865 | AL66: 14 Yrs no lag + 72 bps | AM66: 0.0477703083 | AN66: 0.04936030829 | AO66: 0.05104954174 | AP66: 0.05303908075 | AQ66: 0.05511465418 | AR66: 0.05126677865 | AT66: 14 Yrs no lag + 72 bps | AU66: 0.0477703083 | AV66: 0.04936030829 | AW66: 0.05104954174 | AX66: 0.05303908075 | AY66: 0.05511465418 | AZ66: 0.05126677865
F67: 14 | G67: 0.0061 | I67: 14 Yrs no lag + 61 bps | J67: 0.0466703083 | K67: 0.04826030829 | L67: 0.04994954174 | M67: 0.05193908075 | N67: 0.05401465418 | O67: 0.05016677865 | Q67: 14 Yrs no lag + 61 bps | R67: 0.0466703083 | S67: 0.04826030829 | T67: 0.04994954174 | U67: 0.05193908075 | V67: 0.05401465418 | W67: 0.05016677865 | AA67: 14 | AB67: 0.0061 | AD67: 14 Yrs no lag + 61 bps | AE67: 0.0466703083 | AF67: 0.04826030829 | AG67: 0.04994954174 | AH67: 0.05193908075 | AI67: 0.05401465418 | AJ67: 0.05016677865 | AL67: 14 Yrs no lag + 61 bps | AM67: 0.0466703083 | AN67: 0.04826030829 | AO67: 0.04994954174 | AP67: 0.05193908075 | AQ67: 0.05401465418 | AR67: 0.05016677865 | AT67: 14 Yrs no lag + 61 bps | AU67: 0.0466703083 | AV67: 0.04826030829 | AW67: 0.04994954174 | AX67: 0.05193908075 | AY67: 0.05401465418 | AZ67: 0.05016677865
F68: 13 | G68: 0 | I68: 13 Yrs no lag | J68: 0.0401920923 | K68: 0.04183840531 | L68: 0.04401454237 | M68: 0.04622921811 | N68: 0.04918080773 | O68: 0.04429101316 | Q68: 13 Yrs no lag | R68: 0.0401920923 | S68: 0.04183840531 | T68: 0.04401454237 | U68: 0.04622921811 | V68: 0.04918080773 | W68: 0.04429101316 | AA68: 13 | AB68: 0 | AD68: 13 Yrs no lag | AE68: 0.0401920923 | AF68: 0.04183840531 | AG68: 0.04401454237 | AH68: 0.04622921811 | AI68: 0.04918080773 | AJ68: 0.04429101316 | AL68: 13 Yrs no lag | AM68: 0.0401920923 | AN68: 0.04183840531 | AO68: 0.04401454237 | AP68: 0.04622921811 | AQ68: 0.04918080773 | AR68: 0.04429101316 | AT68: 13 Yrs no lag | AU68: 0.0401920923 | AV68: 0.04183840531 | AW68: 0.04401454237 | AX68: 0.04622921811 | AY68: 0.04918080773 | AZ68: 0.04429101316
F69: Spare | G69: 0 | AA69: Spare | AB69: 0
I72: Policy option selected for chart | J72: Y2027 | K72: Y2028 | L72: Y2029 | M72: Y2030 | N72: Y2031 | O72: RIIO-3 average | Q72: Policy option selected for chart | R72: Y2027 | S72: Y2028 | T72: Y2029 | U72: Y2030 | V72: Y2031 | W72: RIIO-3 average | AD72: Policy option selected for chart | AE72: Y2027 | AF72: Y2028 | AG72: Y2029 | AH72: Y2030 | AI72: Y2031 | AJ72: RIIO-3 average | AL72: Policy option selected for chart | AM72: Y2027 | AN72: Y2028 | AO72: Y2029 | AP72: Y2030 | AQ72: Y2031 | AR72: RIIO-3 average | AT72: Policy option selected for chart | AU72: Y2027 | AV72: Y2028 | AW72: Y2029 | AX72: Y2030 | AY72: Y2031 | AZ72: RIIO-3 average
I73: 14 Yrs no lag + 61 bps | J73: 0.0466703083 | K73: 0.04826030829 | L73: 0.04994954174 | M73: 0.05193908075 | N73: 0.05401465418 | O73: 0.05016677865 | Q73: 14 Yrs no lag + 61 bps | R73: 0.0466703083 | S73: 0.04826030829 | T73: 0.04994954174 | U73: 0.05193908075 | V73: 0.05401465418 | W73: 0.05016677865 | AD73: RAV weighted ave [14]yrs + 43 bps costs | AE73: 0.04877556021 | AF73: 0.0520719928 | AG73: 0.05595947405 | AH73: 0.05936605681 | AI73: 0.06199623685 | AJ73: 0.05563386414 | AL73: RAV weighted ave [14]yrs + 43 bps costs | AM73: 0.05015062487 | AN73: 0.05409502877 | AO73: 0.05898395713 | AP73: 0.06281797179 | AQ73: 0.06536429517 | AR73: 0.05828237555 | AT73: RAV weighted ave [14]yrs + 43 bps costs | AU73: 0.04742873858 | AV73: 0.04974695213 | AW73: 0.05194490175 | AX73: 0.05430555149 | AY73: 0.05668189841 | AZ73: 0.05202160847
I75: Delta to Index (negative = outperformance) | J75: -0.0004328066121 | K75: 0.0001193352119 | L75: 0.0002838713077 | M75: 0.0001908798956 | N75: 4.364796386e-05 | O75: 4.098555341e-05 | Q75: Delta to Index (negative = outperformance) | R75: -0.0001028707695 | S75: 0.0004606111619 | T75: 0.0006027778508 | U75: 0.0008289502852 | V75: 0.001037281556 | W75: 0.0005653500169 | AD75: Delta to Index (negative = outperformance) | AE75: -0.0009011302824 | AF75: 0.000224073839 | AG75: 0.0008204957572 | AH75: 0.0004406171996 | AI75: -0.0008010174997 | AJ75: -4.339219723e-05 | AL75: Delta to Index (negative = outperformance) | AM75: -0.004077117751 | AN75: -0.001570716337 | AO75: -0.001105821023 | AP75: -0.001956340789 | AQ75: -0.003312302534 | AR75: -0.002404459687 | AT75: Delta to Index (negative = outperformance) | AU75: 0.002327117108 | AV75: 0.002273397072 | AW75: 0.003308150188 | AX75: 0.003864753765 | AY75: 0.003113794035 | AZ75: 0.002977442434
C98: Nominal index calibration vs sector / company costs, excluding derivatives (negative = underperformance)
J101: GD & GT | R101: GD Only | AE101: ED & ET | AM101: TOTAL ET ( including SHET) | AU101: ED Only
I102: Allowance Options | J102: Y2027 | K102: Y2028 | L102: Y2029 | M102: Y2030 | N102: Y2031 | O102: RIIO-3 average | Q102: Allowance Options | R102: Y2027 | S102: Y2028 | T102: Y2029 | U102: Y2030 | V102: Y2031 | W102: RIIO-3 average | AD102: Allowance Options | AE102: Y2027 | AF102: Y2028 | AG102: Y2029 | AH102: Y2030 | AI102: Y2031 | AJ102: RIIO-3 average | AL102: Allowance Options | AM102: Y2027 | AN102: Y2028 | AO102: Y2029 | AP102: Y2030 | AQ102: Y2031 | AR102: RIIO-3 average | AT102: Allowance Options | AU102: Y2027 | AV102: Y2028 | AW102: Y2029 | AX102: Y2030 | AY102: Y2031 | AZ102: RIIO-3 average
I103: RAV weighted ave []yrs | Q103: RAV weighted ave []yrs | AD103: RAV weighted ave [14]yrs | AE103: -0.003398869718 | AF103: -0.004524073839 | AG103: -0.005120495757 | AH103: -0.0047406172 | AI103: -0.0034989825 | AJ103: -0.004256607803 | AL103: RAV weighted ave [14]yrs | AM103: -0.000222882249 | AN103: -0.002729283663 | AO103: -0.003194178977 | AP103: -0.002343659211 | AQ103: -0.0009876974658 | AR103: -0.001895540313 | AT103: RAV weighted ave [14]yrs | AU103: -0.006627117108 | AV103: -0.006573397072 | AW103: -0.007608150188 | AX103: -0.008164753765 | AY103: -0.007413794035 | AZ103: -0.007277442434
I104: RAV weighted ave []yrs + 0 bps costs | Q104: RAV weighted ave []yrs + 0 bps costs | AD104: RAV weighted ave [14]yrs + 43 bps costs | AE104: 0.0009011302824 | AF104: -0.000224073839 | AG104: -0.0008204957572 | AH104: -0.0004406171996 | AI104: 0.0008010174997 | AJ104: 4.339219723e-05 | AL104: RAV weighted ave [14]yrs + 43 bps costs | AM104: 0.004077117751 | AN104: 0.001570716337 | AO104: 0.001105821023 | AP104: 0.001956340789 | AQ104: 0.003312302534 | AR104: 0.002404459687 | AT104: RAV weighted ave [14]yrs + 43 bps costs | AU104: -0.002327117108 | AV104: -0.002273397072 | AW104: -0.003308150188 | AX104: -0.003864753765 | AY104: -0.003113794035 | AZ104: -0.002977442434
I105: 10 Yr | J105: -0.007695089438 | K105: -0.006934116689 | L105: -0.004914438217 | M105: -0.003073200702 | N105: -0.001008771099 | O105: -0.004725123229 | Q105: 10 Yr | R105: -0.00802502528 | S105: -0.007275392639 | T105: -0.00523334476 | U105: -0.003711271092 | V105: -0.002002404691 | W105: -0.005249487692 | AD105: RAV weighted ave [14] yr | AE105: -0.003398869718 | AF105: -0.004524073839 | AG105: -0.005120495757 | AH105: -0.0047406172 | AI105: -0.0034989825 | AJ105: -0.004256607803 | AL105: RAV weighted ave [14] yr | AM105: -0.000222882249 | AN105: -0.002729283663 | AO105: -0.003194178977 | AP105: -0.002343659211 | AQ105: -0.0009876974658 | AR105: -0.001895540313 | AT105: RAV weighted ave [14] yr | AU105: -0.006627117108 | AV105: -0.006573397072 | AW105: -0.007608150188 | AX105: -0.008164753765 | AY105: -0.007413794035 | AZ105: -0.007277442434
I106: 14 Yr | J106: -0.006024296477 | K106: -0.006944222184 | L106: -0.0070694988 | M106: -0.007234243889 | N106: -0.006975866236 | O106: -0.006849625517 | Q106: 14 Yr | R106: -0.00635423232 | S106: -0.007285498134 | T106: -0.007388405343 | U106: -0.007872314279 | V106: -0.007969499828 | W106: -0.007373989981 | AD106: RAV weighted ave [14] yr + 39 bps costs | AE106: 0.0005011302824 | AF106: -0.000624073839 | AG106: -0.001220495757 | AH106: -0.0008406171996 | AI106: 0.0004010174997 | AJ106: -0.0003566078028 | AL106: RAV weighted ave [14] yr + 39 bps costs | AM106: 0.003677117751 | AN106: 0.001170716337 | AO106: 0.0007058210233 | AP106: 0.001556340789 | AQ106: 0.002912302534 | AR106: 0.002004459687 | AT106: RAV weighted ave [14] yr + 39 bps costs | AU106: -0.002727117108 | AV106: -0.002673397072 | AW106: -0.003708150188 | AX106: -0.004264753765 | AY106: -0.003513794035 | AZ106: -0.003377442434
I107: 15 Yr | J107: -0.005096828745 | K107: -0.006534244721 | L107: -0.006921839305 | M107: -0.007187385773 | N107: -0.007502770013 | O107: -0.006648613711 | Q107: 15 Yr | R107: -0.005426764587 | S107: -0.006875520671 | T107: -0.007240745848 | U107: -0.007825456163 | V107: -0.008496403606 | W107: -0.007172978175 | AD107: 15 Yr | AE107: -0.006733756978 | AF107: -0.01045066786 | AG107: -0.01346839606 | AH107: -0.01486409914 | AI107: -0.01463968722 | AJ107: -0.01203132145 | AL107: 15 Yr | AM107: -0.004932834176 | AN107: -0.01067891365 | AO107: -0.01456656236 | AP107: -0.01591905613 | AQ107: -0.01549646051 | AR107: -0.01231876536 | AT107: 15 Yr | AU107: -0.008615182743 | AV107: -0.01017495042 | AW107: -0.01194147819 | AX107: -0.01322773038 | AY107: -0.01324016032 | AZ107: -0.01143990041
I108: 17 Yr | J108: -0.00257850411 | K108: -0.004985462034 | L108: -0.006027633761 | M108: -0.007003569649 | N108: -0.007625888426 | O108: -0.005644211596 | Q108: 17 Yr | R108: -0.002908439952 | S108: -0.005326737984 | T108: -0.006346540304 | U108: -0.007641640039 | V108: -0.008619522018 | W108: -0.00616857606 | AD108: 17 Yr | AE108: -0.004215432343 | AF108: -0.00890188517 | AG108: -0.01257419051 | AH108: -0.01468028302 | AI108: -0.01476280564 | AJ108: -0.01102691934 | AL108: 17 Yr | AM108: -0.002414509541 | AN108: -0.009130130962 | AO108: -0.01367235682 | AP108: -0.01573524 | AQ108: -0.01561957892 | AR108: -0.01131436325 | AT108: 17 Yr | AU108: -0.006096858109 | AV108: -0.008626167733 | AW108: -0.01104727265 | AX108: -0.01304391426 | AY108: -0.01336327873 | AZ108: -0.0104354983
I109: 18 Yr | J109: -0.001287269712 | K109: -0.003545216503 | L109: -0.005379726284 | M109: -0.006496569531 | N109: -0.007559821275 | O109: -0.004853720661 | Q109: 18 Yr | R109: -0.001617205554 | S109: -0.003886492453 | T109: -0.005698632827 | U109: -0.007134639921 | V109: -0.008553454868 | W109: -0.005378085125 | AD109: 18 Yr | AE109: -0.002924197945 | AF109: -0.007461639638 | AG109: -0.01192628304 | AH109: -0.0141732829 | AI109: -0.01469673849 | AJ109: -0.0102364284 | AL109: 18 Yr | AM109: -0.001123275143 | AN109: -0.007689885431 | AO109: -0.01302444934 | AP109: -0.01522823988 | AQ109: -0.01555351177 | AR109: -0.01052387231 | AT109: 18 Yr | AU109: -0.004805623711 | AV109: -0.007185922202 | AW109: -0.01039936517 | AX109: -0.01253691414 | AY109: -0.01329721158 | AZ109: -0.00964500736
I110: 14 Yr | J110: -0.006024296477 | K110: -0.006944222184 | L110: -0.0070694988 | M110: -0.007234243889 | N110: -0.006975866236 | O110: -0.006849625517 | Q110: 14 Yr | R110: -0.00635423232 | S110: -0.007285498134 | T110: -0.007388405343 | U110: -0.007872314279 | V110: -0.007969499828 | W110: -0.007373989981 | AD110: 14 Yr | AE110: -0.00766122471 | AF110: -0.01086064532 | AG110: -0.01361605555 | AH110: -0.01491095726 | AI110: -0.01411278345 | AJ110: -0.01223233326 | AL110: 14 Yr | AM110: -0.005860301908 | AN110: -0.01108889111 | AO110: -0.01471422186 | AP110: -0.01596591424 | AQ110: -0.01496955673 | AR110: -0.01251977717 | AT110: 14 Yr | AU110: -0.009542650476 | AV110: -0.01058492788 | AW110: -0.01208913768 | AX110: -0.0132745885 | AY110: -0.01271325654 | AZ110: -0.01164091222
I111: 14 Yr + 60 bps | J111: -2.429647705e-05 | K111: -0.0009442221843 | L111: -0.0010694988 | M111: -0.001234243889 | N111: -0.0009758662359 | O111: -0.0008496255172 | Q111: 14 Yr + 60 bps | R111: -0.0003542323196 | S111: -0.001285498134 | T111: -0.001388405343 | U111: -0.001872314279 | V111: -0.001969499828 | W111: -0.001373989981 | AD111: 14 Yr + 60 bps | AE111: -0.00166122471 | AF111: -0.00486064532 | AG111: -0.007616055553 | AH111: -0.008910957255 | AI111: -0.008112783447 | AJ111: -0.006232333257 | AL111: 14 Yr + 60 bps | AM111: 0.0001396980915 | AN111: -0.005088891112 | AO111: -0.008714221855 | AP111: -0.009965914243 | AQ111: -0.008969556732 | AR111: -0.00651977717 | AT111: 14 Yr + 60 bps | AU111: -0.003542650476 | AV111: -0.004584927883 | AW111: -0.006089137685 | AX111: -0.007274588497 | AY111: -0.006713256541 | AZ111: -0.005640912216
I112: 14 Yrs no lag | J112: -0.005667193388 | K112: -0.006219335212 | L112: -0.006383871308 | M112: -0.006290879896 | N112: -0.006143647964 | O112: -0.006140985553 | Q112: 14 Yrs no lag | R112: -0.00599712923 | S112: -0.006560611162 | T112: -0.006702777851 | U112: -0.006928950285 | V112: -0.007137281556 | W112: -0.006665350017 | AD112: 14 Yrs no lag | AE112: -0.007304121621 | AF112: -0.01013575835 | AG112: -0.01293042806 | AH112: -0.01396759326 | AI112: -0.01328056517 | AJ112: -0.01152369329 | AL112: 14 Yrs no lag | AM112: -0.005503198819 | AN112: -0.01036400414 | AO112: -0.01402859436 | AP112: -0.01502255025 | AQ112: -0.01413733846 | AR112: -0.01181113721 | AT112: 14 Yrs no lag | AU112: -0.009185547387 | AV112: -0.009860040911 | AW112: -0.01140351019 | AX112: -0.0123312245 | AY112: -0.01188103827 | AZ112: -0.01093227225
I113: 14 Yrs no lag + 72 bps | J113: 0.001532806612 | K113: 0.0009806647881 | L113: 0.0008161286923 | M113: 0.0009091201044 | N113: 0.001056352036 | O113: 0.001059014447 | Q113: 14 Yrs no lag + 72 bps | R113: 0.00120287077 | S113: 0.0006393888381 | T113: 0.0004972221492 | U113: 0.0002710497148 | V113: 6.27184436e-05 | W113: 0.0005346499831 | AD113: 14 Yrs no lag + 72 bps | AE113: -0.0001041216208 | AF113: -0.002935758348 | AG113: -0.005730428061 | AH113: -0.006767593262 | AI113: -0.006080565175 | AJ113: -0.004323693293 | AL113: 14 Yrs no lag + 72 bps | AM113: 0.001696801181 | AN113: -0.00316400414 | AO113: -0.006828594363 | AP113: -0.00782255025 | AQ113: -0.00693733846 | AR113: -0.004611137206 | AT113: 14 Yrs no lag + 72 bps | AU113: -0.001985547387 | AV113: -0.002660040911 | AW113: -0.004203510193 | AX113: -0.005131224504 | AY113: -0.004681038269 | AZ113: -0.003732272253
I114: 14 Yrs no lag + 61 bps | J114: 0.0004328066121 | K114: -0.0001193352119 | L114: -0.0002838713077 | M114: -0.0001908798956 | N114: -4.364796386e-05 | O114: -4.098555341e-05 | Q114: 14 Yrs no lag + 61 bps | R114: 0.0001028707695 | S114: -0.0004606111619 | T114: -0.0006027778508 | U114: -0.0008289502852 | V114: -0.001037281556 | W114: -0.0005653500169 | AD114: 14 Yrs no lag + 61 bps | AE114: -0.001204121621 | AF114: -0.004035758348 | AG114: -0.006830428061 | AH114: -0.007867593262 | AI114: -0.007180565175 | AJ114: -0.005423693293 | AL114: 14 Yrs no lag + 61 bps | AM114: 0.0005968011806 | AN114: -0.00426400414 | AO114: -0.007928594363 | AP114: -0.00892255025 | AQ114: -0.00803733846 | AR114: -0.005711137206 | AT114: 14 Yrs no lag + 61 bps | AU114: -0.003085547387 | AV114: -0.003760040911 | AW114: -0.005303510193 | AX114: -0.006231224504 | AY114: -0.005781038269 | AZ114: -0.004832272253
I115: 13 Yrs no lag | J115: -0.006045409394 | K115: -0.006541238192 | L115: -0.006218870682 | M115: -0.005900742537 | N115: -0.004877494411 | O115: -0.005916751043 | Q115: 13 Yrs no lag | R115: -0.006375345236 | S115: -0.006882514142 | T115: -0.006537777225 | U115: -0.006538812927 | V115: -0.005871128003 | W115: -0.006441115507 | AD115: 13 Yrs no lag | AE115: -0.007682337627 | AF115: -0.01045766133 | AG115: -0.01276542744 | AH115: -0.0135774559 | AI115: -0.01201441162 | AJ115: -0.01129945878 | AL115: 13 Yrs no lag | AM115: -0.005881414825 | AN115: -0.01068590712 | AO115: -0.01386359374 | AP115: -0.01463241289 | AQ115: -0.01287118491 | AR115: -0.0115869027 | AT115: 13 Yrs no lag | AU115: -0.009563763392 | AV115: -0.01018194389 | AW115: -0.01123850957 | AX115: -0.01194108715 | AY115: -0.01061488472 | AZ115: -0.01070803774
I121: Iboxx - CPIH Real | J121: GD & GT | Q121: Iboxx - CPIH Real | R121: GD Only | AD121: Iboxx - CPIH Real | AE121: ED Only | AL121: Iboxx - CPIH Real | AM121: TOTAL ET ( including SHET) | AT121: Iboxx - CPIH Real | AU121: TOTAL ET ( including SHET)
J122: 9 | K122: 10 | L122: 11 | M122: 12 | N122: 13 | R122: 9 | S122: 10 | T122: 11 | U122: 12 | V122: 13 | AE122: 9 | AF122: 10 | AG122: 11 | AH122: 12 | AI122: 13 | AM122: 9 | AN122: 10 | AO122: 11 | AP122: 12 | AQ122: 13 | AU122: 9 | AV122: 10 | AW122: 11 | AX122: 12 | AY122: 13
I123: Assessed Expected Costs (Nominal) | J123: Y2027 | K123: Y2028 | L123: Y2029 | M123: Y2030 | N123: Y2031 | O123: RIIO-3 average | Q123: Assessed Expected Costs (Nominal) | R123: Y2027 | S123: Y2028 | T123: Y2029 | U123: Y2030 | V123: Y2031 | W123: RIIO-3 average | AD123: Assessed Expected Costs (Nominal) | AE123: Y2027 | AF123: Y2028 | AG123: Y2029 | AH123: Y2030 | AI123: Y2031 | AJ123: RIIO-3 average | AL123: Assessed Expected Costs (Nominal) | AM123: Y2027 | AN123: Y2028 | AO123: Y2029 | AP123: Y2030 | AQ123: Y2031 | AR123: RIIO-3 average | AT123: Assessed Expected Costs (Nominal) | AU123: Y2027 | AV123: Y2028 | AW123: Y2029 | AX123: Y2030 | AY123: Y2031 | AZ123: RIIO-3 average
I124: Pure debt | J124: 0.02109953725 | K124: 0.02536217492 | L124: 0.0280053807 | M124: 0.0298686584 | N124: 0.03183117361 | O124: 0.02723338497 | Q124: Pure debt | R124: 0.02097738915 | S124: 0.02529682539 | T124: 0.02800708189 | U124: 0.03022319624 | V124: 0.03255868154 | W124: 0.02741263484 | AD124: Pure debt | AE124: 0.02611758733 | AF124: 0.03026834834 | AG124: 0.03394072554 | AH124: 0.03666325299 | AI124: 0.0382508993 | AJ124: 0.0330481627 | AL124: Pure debt | AM124: 0.02251815742 | AN124: 0.03076189142 | AO124: 0.03651279242 | AP124: 0.0392998782 | AQ124: 0.04046133072 | AR124: 0.03391081004 | AT124: Pure debt | AU124: 0.02251815742 | AV124: 0.03076189142 | AW124: 0.03651279242 | AX124: 0.0392998782 | AY124: 0.04046133072 | AZ124: 0.03391081004
I125: Derivatives | J125: 0 | K125: 0 | L125: 0 | M125: 0 | N125: 0 | O125: 0 | Q125: Derivatives | R125: 0 | S125: 0 | T125: 0 | U125: 0 | V125: 0 | W125: 0 | AD125: Derivatives | AE125: 0 | AF125: 0 | AG125: 0 | AH125: 0 | AI125: 0 | AJ125: 0 | AL125: Derivatives | AM125: 0 | AN125: 0 | AO125: 0 | AP125: 0 | AQ125: 0 | AR125: 0 | AT125: Derivatives | AU125: 0 | AV125: 0 | AW125: 0 | AX125: 0 | AY125: 0 | AZ125: 0
I126: NG Cadent refi | J126: 0.001578921924 | K126: 0.001340744442 | L126: 0.001017084651 | M126: 0.0008770185106 | N126: 0.0007989719061 | O126: 0.001122548287 | Q126: NG Cadent refi | R126: 0.002023576422 | S126: 0.001740313553 | T126: 0.001327849237 | U126: 0.001147582436 | V126: 0.001044897795 | W126: 0.001456843889 | AD126: NG Cadent refi | AE126: 0 | AF126: 0 | AG126: 0 | AH126: 0 | AI126: 0 | AJ126: 0 | AL126: NG Cadent refi | AM126: 0 | AN126: 0 | AO126: 0 | AP126: 0 | AQ126: 0 | AR126: 0 | AT126: NG Cadent refi | AU126: 0 | AV126: 0 | AW126: 0 | AX126: 0 | AY126: 0 | AZ126: 0
I128: Total | J128: 0.02267845918 | K128: 0.02670291936 | L128: 0.02902246535 | M128: 0.03074567691 | N128: 0.03263014552 | O128: 0.02835593326 | Q128: Total | R128: 0.02300096557 | S128: 0.02703713895 | T128: 0.02933493113 | U128: 0.03137077867 | V128: 0.03360357934 | W128: 0.02886947873 | AD128: Total | AE128: 0.02611758733 | AF128: 0.03026834834 | AG128: 0.03394072554 | AH128: 0.03666325299 | AI128: 0.0382508993 | AJ128: 0.0330481627 | AL128: Total | AM128: 0.02251815742 | AN128: 0.03076189142 | AO128: 0.03651279242 | AP128: 0.0392998782 | AQ128: 0.04046133072 | AR128: 0.03391081004 | AT128: Total | AU128: 0.02251815742 | AV128: 0.03076189142 | AW128: 0.03651279242 | AX128: 0.0392998782 | AY128: 0.04046133072 | AZ128: 0.03391081004
I130: Allowance Options | Q130: Allowance Options | AD130: Allowance Options | AL130: Allowance Options | AT130: Allowance Options
F131: From | G131: Adjustment | AA131: From | AB131: Adjustment
I132: RAV weighted ave []yrs | Q132: RAV weighted ave []yrs | AA132: 14 | AB132: 0 | AD132: RAV weighted ave [14]yrs | AE132: 0.04312873858 | AF132: 0.04544695213 | AG132: 0.04764490175 | AH132: 0.05000555149 | AI132: 0.05238189841 | AJ132: 0.04772160847 | AL132: RAV weighted ave [14]yrs | AM132: 0.04585062487 | AN132: 0.04979502877 | AO132: 0.05468395713 | AP132: 0.05851797179 | AQ132: 0.06106429517 | AR132: 0.05398237555 | AT132: RAV weighted ave [14]yrs | AU132: 0.04585062487 | AV132: 0.04979502877 | AW132: 0.05468395713 | AX132: 0.05851797179 | AY132: 0.06106429517 | AZ132: 0.05398237555
I133: RAV weighted ave []yrs + 0 bps costs | Q133: RAV weighted ave []yrs + 0 bps costs | AA133: 0 | AB133: 0.0043 | AD133: RAV weighted ave [14]yrs + 43 bps costs | AE133: 0.04742873858 | AF133: 0.04974695213 | AG133: 0.05194490175 | AH133: 0.05430555149 | AI133: 0.05668189841 | AJ133: 0.05202160847 | AL133: RAV weighted ave [14]yrs + 43 bps costs | AM133: 0.05015062487 | AN133: 0.05409502877 | AO133: 0.05898395713 | AP133: 0.06281797179 | AQ133: 0.06536429517 | AR133: 0.05828237555 | AT133: RAV weighted ave [14]yrs + 43 bps costs | AU133: 0.09787223335 | AV133: 0.1018166372 | AW133: 0.1067055656 | AX133: 0.1105395803 | AY133: 0.1130859036 | AZ133: 0.106003984
F134: 10 | G134: 0 | I134: 10 Yr | J134: 0.01850048428 | K134: 0.02127260022 | L134: 0.02499542314 | M134: 0.02858358861 | N134: 0.03243681002 | O134: 0.02515778126 | Q134: 10 Yr | R134: 0.01850048428 | S134: 0.02127260022 | T134: 0.02499542314 | U134: 0.02858358861 | V134: 0.03243681002 | W134: 0.02515778126 | AA134: 14 | AB134: 0 | AD134: RAV weighted ave [14] yr | AE134: 0.01850048428 | AF134: 0.02127260022 | AG134: 0.02499542314 | AH134: 0.02858358861 | AI134: 0.03243681002 | AJ134: 0.02515778126 | AL134: RAV weighted ave [14] yr | AM134: 0.01850048428 | AN134: 0.02127260022 | AO134: 0.02499542314 | AP134: 0.02858358861 | AQ134: 0.03243681002 | AR134: 0.02515778126 | AT134: RAV weighted ave [14] yr | AU134: 0.04365826554 | AV134: 0.04643038147 | AW134: 0.0501532044 | AX134: 0.05374136987 | AY134: 0.05759459128 | AZ134: 0.05031556251
F135: 14 | G135: 0 | I135: 14 Yr | J135: 0.02004746553 | K135: 0.02119258223 | L135: 0.02283361939 | M135: 0.02447731696 | N135: 0.02656717798 | O135: 0.02302363242 | Q135: 14 Yr | R135: 0.02004746553 | S135: 0.02119258223 | T135: 0.02283361939 | U135: 0.02447731696 | V135: 0.02656717798 | W135: 0.02302363242 | AA135: 0 | AB135: 0.0039 | AD135: RAV weighted ave [14] yr + 39 bps costs | AE135: 0.02394746553 | AF135: 0.02509258223 | AG135: 0.02673361939 | AH135: 0.02837731696 | AI135: 0.03046717798 | AJ135: 0.02692363242 | AL135: RAV weighted ave [14] yr + 39 bps costs | AM135: 0.02394746553 | AN135: 0.02509258223 | AO135: 0.02673361939 | AP135: 0.02837731696 | AQ135: 0.03046717798 | AR135: 0.02692363242 | AT135: RAV weighted ave [14] yr + 39 bps costs | AU135: 0.04697109795 | AV135: 0.04811621465 | AW135: 0.04975725181 | AX135: 0.05140094938 | AY135: 0.0534908104 | AZ135: 0.04994726484
F136: 15 | G136: 0 | I136: 15 Yr | J136: 0.02094165957 | K136: 0.02158276626 | L136: 0.02297019824 | M136: 0.02451864581 | N136: 0.0260495543 | O136: 0.02321256484 | Q136: 15 Yr | R136: 0.02094165957 | S136: 0.02158276626 | T136: 0.02297019824 | U136: 0.02451864581 | V136: 0.0260495543 | W136: 0.02321256484 | AA136: 15 | AB136: 0 | AD136: 15 Yr | AE136: 0.02094165957 | AF136: 0.02158276626 | AG136: 0.02297019824 | AH136: 0.02451864581 | AI136: 0.0260495543 | AJ136: 0.02321256484 | AL136: 15 Yr | AM136: 0.02094165957 | AN136: 0.02158276626 | AO136: 0.02297019824 | AP136: 0.02451864581 | AQ136: 0.0260495543 | AR136: 0.02321256484 | AT136: 15 Yr | AU136: 0.04415422441 | AV136: 0.0447953311 | AW136: 0.04618276307 | AX136: 0.04773121065 | AY136: 0.04926211914 | AZ136: 0.04642512968
F137: 17 | G137: 0 | I137: 17 Yr | J137: 0.02338536366 | K137: 0.02308189642 | L137: 0.02383338882 | M137: 0.0246912386 | N137: 0.0259271302 | O137: 0.02418380354 | Q137: 17 Yr | R137: 0.02338536366 | S137: 0.02308189642 | T137: 0.02383338882 | U137: 0.0246912386 | V137: 0.0259271302 | W137: 0.02418380354 | AA137: 17 | AB137: 0 | AD137: 17 Yr | AE137: 0.02338536366 | AF137: 0.02308189642 | AG137: 0.02383338882 | AH137: 0.0246912386 | AI137: 0.0259271302 | AJ137: 0.02418380354 | AL137: 17 Yr | AM137: 0.02338536366 | AN137: 0.02308189642 | AO137: 0.02383338882 | AP137: 0.0246912386 | AQ137: 0.0259271302 | AR137: 0.02418380354 | AT137: 17 Yr | AU137: 0.0475691672 | AV137: 0.04726569996 | AW137: 0.04801719236 | AX137: 0.04887504214 | AY137: 0.05011093374 | AZ137: 0.04836760708
F138: 18 | G138: 0 | I138: 18 Yr | J138: 0.02464081152 | K138: 0.0244857759 | L138: 0.02446293343 | M138: 0.02518514871 | N138: 0.02599118177 | O138: 0.02495317027 | Q138: 18 Yr | R138: 0.02464081152 | S138: 0.0244857759 | T138: 0.02446293343 | U138: 0.02518514871 | V138: 0.02599118177 | W138: 0.02495317027 | AA138: 18 | AB138: 0 | AD138: 18 Yr | AE138: 0.02464081152 | AF138: 0.0244857759 | AG138: 0.02446293343 | AH138: 0.02518514871 | AI138: 0.02599118177 | AJ138: 0.02495317027 | AL138: 18 Yr | AM138: 0.02464081152 | AN138: 0.0244857759 | AO138: 0.02446293343 | AP138: 0.02518514871 | AQ138: 0.02599118177 | AR138: 0.02495317027 | AT138: 18 Yr | AU138: 0.04959398179 | AV138: 0.04943894617 | AW138: 0.0494161037 | AX138: 0.05013831898 | AY138: 0.05094435203 | AZ138: 0.04990634053
F139: 20 | G139: 0 | I139: 20 Yr | J139: 0.02004746553 | K139: 0.02119258223 | L139: 0.02283361939 | M139: 0.02447731696 | N139: 0.02656717798 | O139: 0.02302363242 | Q139: 20 Yr | R139: 0.02004746553 | S139: 0.02119258223 | T139: 0.02283361939 | U139: 0.02447731696 | V139: 0.02656717798 | W139: 0.02302363242 | AA139: 14 | AB139: 0 | AD139: 14 Yr | AE139: 0.02004746553 | AF139: 0.02119258223 | AG139: 0.02283361939 | AH139: 0.02447731696 | AI139: 0.02656717798 | AJ139: 0.02302363242 | AL139: 14 Yr | AM139: 0.02004746553 | AN139: 0.02119258223 | AO139: 0.02283361939 | AP139: 0.02447731696 | AQ139: 0.02656717798 | AR139: 0.02302363242 | AT139: 14 Yr | AU139: 0.04307109795 | AV139: 0.04421621465 | AW139: 0.04585725181 | AX139: 0.04750094938 | AY139: 0.0495908104 | AZ139: 0.04604726484
F140: 14 | G140: 0.006 | I140: 14 Yr + 60 bps | J140: 0.02604746553 | K140: 0.02719258223 | L140: 0.02883361939 | M140: 0.03047731696 | N140: 0.03256717798 | O140: 0.02902363242 | Q140: 14 Yr + 60 bps | R140: 0.02604746553 | S140: 0.02719258223 | T140: 0.02883361939 | U140: 0.03047731696 | V140: 0.03256717798 | W140: 0.02902363242 | AA140: 14 | AB140: 0.006 | AD140: 14 Yr + 60 bps | AE140: 0.02604746553 | AF140: 0.02719258223 | AG140: 0.02883361939 | AH140: 0.03047731696 | AI140: 0.03256717798 | AJ140: 0.02902363242 | AL140: 14 Yr + 60 bps | AM140: 0.02604746553 | AN140: 0.02719258223 | AO140: 0.02883361939 | AP140: 0.03047731696 | AQ140: 0.03256717798 | AR140: 0.02902363242 | AT140: 14 Yr + 60 bps | AU140: 0.04907109795 | AV140: 0.05021621465 | AW140: 0.05185725181 | AX140: 0.05350094938 | AY140: 0.0555908104 | AZ140: 0.05204726484
F141: 14 | G141: 0 | I141: 14 Yr no lag | J141: 0.02037582848 | K141: 0.02188134963 | L141: 0.02348292075 | M141: 0.0253800242 | N141: 0.02736084684 | O141: 0.02369619398 | Q141: 14 Yr no lag | R141: 0.02037582848 | S141: 0.02188134963 | T141: 0.02348292075 | U141: 0.0253800242 | V141: 0.02736084684 | W141: 0.02369619398 | AA141: 14 | AB141: 0 | AD141: 14 Yr | AE141: 0.02037582848 | AF141: 0.02188134963 | AG141: 0.02348292075 | AH141: 0.0253800242 | AI141: 0.02736084684 | AJ141: 0.02369619398 | AL141: 14 Yr | AM141: 0.02037582848 | AN141: 0.02188134963 | AO141: 0.02348292075 | AP141: 0.0253800242 | AQ141: 0.02736084684 | AR141: 0.02369619398 | AT141: 14 Yr | AU141: 0.04407202246 | AV141: 0.04557754361 | AW141: 0.04717911473 | AX141: 0.04907621818 | AY141: 0.05105704082 | AZ141: 0.04739238796
F142: 14 | G142: 0.0072 | I142: 14 Yr no lag + 72 bps | J142: 0.02757582848 | K142: 0.02908134963 | L142: 0.03068292075 | M142: 0.0325800242 | N142: 0.03456084684 | O142: 0.03089619398 | Q142: 14 Yr no lag + 72 bps | R142: 0.02757582848 | S142: 0.02908134963 | T142: 0.03068292075 | U142: 0.0325800242 | V142: 0.03456084684 | W142: 0.03089619398 | AA142: 14 | AB142: 0.0072 | AD142: 14 Yr + 72 bps | AE142: 0.02757582848 | AF142: 0.02908134963 | AG142: 0.03068292075 | AH142: 0.0325800242 | AI142: 0.03456084684 | AJ142: 0.03089619398 | AL142: 14 Yr + 72 bps | AM142: 0.02757582848 | AN142: 0.02908134963 | AO142: 0.03068292075 | AP142: 0.0325800242 | AQ142: 0.03456084684 | AR142: 0.03089619398 | AT142: 14 Yr + 72 bps | AU142: 0.05127202246 | AV142: 0.05277754361 | AW142: 0.05437911473 | AX142: 0.05627621818 | AY142: 0.05825704082 | AZ142: 0.05459238796
F143: 14 | G143: 0.0061 | I143: 14 Yr no lag + 61 bps | J143: 0.02647582848 | K143: 0.02798134963 | L143: 0.02958292075 | M143: 0.0314800242 | N143: 0.03346084684 | O143: 0.02979619398 | Q143: 14 Yr no lag + 61 bps | R143: 0.02647582848 | S143: 0.02798134963 | T143: 0.02958292075 | U143: 0.0314800242 | V143: 0.03346084684 | W143: 0.02979619398 | AA143: 14 | AB143: 0.0061 | AD143: 14 Yr + 61 bps | AE143: 0.02647582848 | AF143: 0.02798134963 | AG143: 0.02958292075 | AH143: 0.0314800242 | AI143: 0.03346084684 | AJ143: 0.02979619398 | AL143: 14 Yr + 61 bps | AM143: 0.02647582848 | AN143: 0.02798134963 | AO143: 0.02958292075 | AP143: 0.0314800242 | AQ143: 0.03346084684 | AR143: 0.02979619398 | AT143: 14 Yr + 61 bps | AU143: 0.05017202246 | AV143: 0.05167754361 | AW143: 0.05327911473 | AX143: 0.05517621818 | AY143: 0.05715704082 | AZ143: 0.05349238796
F144: 13 | G144: 0 | I144: 13 Yr no lag | J144: 0.02002070378 | K144: 0.02157763907 | L144: 0.02365243582 | M144: 0.02576614003 | N144: 0.0286016571 | O144: 0.02392371516 | Q144: 13 Yr no lag | R144: 0.02002070378 | S144: 0.02157763907 | T144: 0.02365243582 | U144: 0.02576614003 | V144: 0.0286016571 | W144: 0.02392371516 | AA144: 13 | AB144: 0 | AD144: 13 Yr | AE144: 0.02002070378 | AF144: 0.02157763907 | AG144: 0.02365243582 | AH144: 0.02576614003 | AI144: 0.0286016571 | AJ144: 0.02392371516 | AL144: 13 Yr | AM144: 0.02002070378 | AN144: 0.02157763907 | AO144: 0.02365243582 | AP144: 0.02576614003 | AQ144: 0.0286016571 | AR144: 0.02392371516 | AT144: 13 Yr | AU144: 0.04394441894 | AV144: 0.04550135423 | AW144: 0.04757615098 | AX144: 0.04968985519 | AY144: 0.05252537226 | AZ144: 0.04784743032
F145: Spare | G145: 0 | AA145: Spare | AB145: 0
F205: Allowed Return on Debt
G206: Y2027 | H206: Y2028 | I206: Y2029 | J206: Y2030 | K206: Y2031
F207: SHET | G207: 0.04765564759 | H207: 0.05404759956 | I207: 0.05958772845 | J207: 0.06292392231 | K207: 0.06478593314
F209: SPT | G209: 0.04729256761 | H209: 0.05119014628 | I209: 0.05506896473 | J209: 0.05835568415 | K209: 0.06077247245
F211: NGET | G211: 0.04486497453 | H211: 0.0480071367 | I211: 0.05235416516 | J211: 0.0560627031 | K211: 0.05881483403
F213: ED & ET | G213: 0.0444928649 | H213: 0.04799272479 | I213: 0.05194575849 | J213: 0.05531099147 | K213: 0.05787959011
F215: TOTAL ET ( including SHET) | G215: 0.04585937406 | H215: 0.05014592841 | I215: 0.05509208254 | J215: 0.05883629458 | K215: 0.06128393239
F217: ED Only | G217: 0.04312873858 | H217: 0.04544695213 | I217: 0.04764490175 | J217: 0.05000555149 | K217: 0.05238189841
F219: ENWL | G219: 0.04385814601 | H219: 0.04702281387 | I219: 0.04996362762 | J219: 0.0521059218 | K219: 0.05416573157
F221: NPgN | G221: 0.04302546039 | H221: 0.04556434517 | I221: 0.04791672918 | J221: 0.05027333593 | K221: 0.05271422555
F223: NPgY | G223: 0.04324737309 | H223: 0.04570906054 | I223: 0.04806732236 | J223: 0.05038292245 | K223: 0.05280496826
F225: NGED WMID | G225: 0.04218054228 | H225: 0.04408554333 | I225: 0.04594319973 | J225: 0.04848437152 | K225: 0.05111974494
F227: NGED EMID | G227: 0.03960858621 | H227: 0.04153558764 | I227: 0.04346287921 | J227: 0.04406653891 | K227: 0.04636333819
F229: NGED SWALES | G229: 0.04279262381 | H229: 0.04498952144 | I229: 0.04727332463 | J229: 0.04954234358 | K229: 0.0519974294
F231: NGED SWEST | G231: 0.0429674451 | H231: 0.04516821243 | I231: 0.04730782261 | J231: 0.04951656521 | K231: 0.05202230817
F233: UKPN LPN | G233: 0.04251475534 | H233: 0.04440032553 | I233: 0.04617091329 | J233: 0.04880653829 | K233: 0.05127496581
F235: UKPN SPN | G235: 0.04291201021 | H235: 0.04490617034 | I235: 0.04685927192 | J235: 0.04937435128 | K235: 0.05177441762
F237: UKPN EPN | G237: 0.04287129726 | H237: 0.04487859218 | I237: 0.04684102603 | J237: 0.04939778436 | K237: 0.05173574229
F239: SPD | G239: 0.04306992665 | H239: 0.04545193816 | I239: 0.04771147308 | J239: 0.05012068552 | K239: 0.0524752014
F241: SPMW | G241: 0.04258842731 | H241: 0.04459311812 | I241: 0.04655064495 | J241: 0.04895731232 | K241: 0.0515765222
F243: SSEH | G243: 0.04627088361 | H243: 0.04900600147 | I243: 0.05123259753 | J243: 0.05315372151 | K243: 0.05496017436
F245: SSES | G245: 0.04377852882 | H245: 0.04667684401 | I245: 0.04925488539 | J245: 0.05146268122 | K245: 0.05352845966

Sheet Policy Options - Live
A1: =MID(CELL("filename",A1),FIND("]",CELL("filename",A1))+1,256) -> 
A3: This sheet contains dropdowns to set a range of options around: inclusion/exclusion of certain financial instruments in actual embedded debt; inflation, interest rates and RAV scenarios; proportion of ILD and tenor for infrequent issuer assessment, etc. These options are fed back in the various calculation sheets to recalculate actual / allowed cost of debt.
A4: The sheet displays nominal and real (CPIH based) assessed actual cost of debt, compared against a range of potential allowed cost of debt policies; derivation of RPI / CPI mitigation allowance (a component of the 25bps additional cost of borrowing); actual cost of debt as simple average across all companies (as opposed to weighted average); calculation of cost of EIB embedded debt.
B6: Policy options
H7: Explanation
E8: 1 | F8: Include or Exclude non back to back intercompany loans | G8: Exclude | H8: By default exclude intercompany loans. However, when considering an 'all in' approach including derivatives then this can be switched to include intercompany loans as well. Any intercompany loans that have been flagged as "Back to Back" are included in the pool because they are bonds that have been issued by finco and back to back on-lent to opco.
E9: =E8 + 1 -> 2 | F9: Include or Exclude liquidity instruments | G9: Exclude | H9: Liquidity instruments (e.g. revolving credit facilities) are not part of core debt, hence should be excluded to assess cost of debt.
E10: =E9 + 1 -> 3 | F10: Also exclude for Refinancing | G10: Include | H10: Although we might want to exclude intercompany loans for cost purposes if we also excluded them from refinancing then the model would assume a much lower amount of debt across the sector. So it's prudent to assume intercompany loans ARE refinanced but assume they are refinanced at the general iBoxx level. So set this switch to 'include'.
E11: 4 | F11: Include or Exclude derivative in debt cost perfomance assessment | G11: Exclude | H11: This is a toggle allowing to display the debt cost performance table in this sheet either excluding or including derivatives. It is not used anywhere else in the model. It should be set by default to "Exclude". Red conditional formatting highlights if toggle is set to "Include".
E12: 5 | F12: Refinancing & Growth Debt assumed from start of FYE | G12: Y2026 | H12: This determines from what date any debt maturing is assumed by Ofgem to be refinanced (it should be some point in the future compared to the date of collected data because a company can be assumed to have already refinanced any debt that has already matured at the time they submitted the instrument data).
E13: 6 | F13: Choose Iboxx Forecast | G13: Annual | H13: This was originally a check that the method for calculating iBoxx forecasts did not materially alter the overall picture. This should be set to "Annual"
E14: 7 | F14: Choose Iboxx rate | G14: 31/10/2025 iBoxxNF A/BBB ave | H14: For the 'base case' the most recent Utils nominal yield only should be selected. Note that usually if an iBoxx +1% sensitivity is being selected it would be logical to apply +1% to the LIBOR assumption in C11 of this sheet.
E15: 8 | F15: Choose Iboxx and SONIA cutoff date | G15: 45962 | H15: SONIA and iBoxx rate cutoff date will be the same
E16: 9 | F16: Apply % to iBoxx and SONIA | G16: 0.01 | H16: The base case is set to 0, but sensitivities can be run at ±1% or ±2%.
E17: 10 | F17: Choose monthly CPI rate | G17: 31/09/2025 CPI (flat 2% forecast)
E18: 11 | F18: Choose monthly RPI rate | G18: RPI always 3%, 2% after Feb2030
E19: 12 | F19: Choose monthly CPIH rate | G19: 31/09/2025 CPIH
E20: 13 | F20: Choose CPI daily forecast for iBoxx deflation | G20: OBR long-term forecast | H20: This defines the CPI rates used to deflate the daily nominal iBoxx utilities index.
E21: 14 | F21: Apply Notional Gearing for RIIO-1 adjustment | G21: NO | H21: If notional gearing is being reduced (or increased) from one price control to another it is reasonable to assume network companies will react by adjusting gearing by the same percentage, so for example if notional gearing reducing from 65% to 60% they will refinance/raise 5% less debt than they would have done if notional gearing had been staying the same. Selecting 'yes' here makes this adjustment to the assumed new/refi debt raised by calculating adjustment from rows 80 on the 'Individual Summaries' sheet which takes notional gearing information from the RAV_Gearing sheet
E22: 15 | F22: Include SHET in ET or Bespoke | G22: ET | H22: For RIIO2 SHET could be excluded from GD/T cohort if "Bespoke" was selected. For RIIO3 this should be set to "ET"
E23: 16 | F23: Average Tenor of Debt for Infrequent Issuer (years) (Gas Sector) | G23: 18 | H23: Input informed by separate tenor analysis
E24: 17 | F24: Index-linked debt percentage (for illustration only) (Gas Sector) | G24: 0.3 | H24: This is not used for new debt (100% fixed rate at the iBoxx Utilities index), but for Infrequent Issuer analysis and illustrative "Growth Debt less assumed inflation linked debt growth" amounts (see bottom of "Growth Debt tab").
E25: 18 | F25: Average Tenor of Debt for Infrequent Issuer (years) (ET) | G25: 13 | H25: Input informed by separate tenor analysis
E26: 19 | F26: Index-linked debt percentage (for illustration only) (ET) | G26: 0.1 | H26: This is not used for new debt (100% fixed rate at the iBoxx Utilities index), but for Infrequent Issuer analysis and illustrative "Growth Debt less assumed inflation linked debt growth" amounts (see bottom of "Growth Debt tab").
E27: 20 | F27: Average Tenor of Debt for Infrequent Issuer (years) (ED) | G27: 17 | H27: Input informed by separate tenor analysis
E28: 21 | F28: Index-linked debt percentage (for illustration only) (ED) | G28: 0.1 | H28: This is not used for new debt (100% fixed rate at the iBoxx Utilities index), but for Infrequent Issuer analysis and illustrative "Growth Debt less assumed inflation linked debt growth" amounts (see bottom of "Growth Debt tab").
E29: 22 | F29: Choose RAV to use for GD&GT&ET&ED | G29: Base case | H29: This enables different totex (and therefore RAV) scenarios to be run. RAV input sheets used to insert new RAV scenarios.
E30: 23 | F30: Sensitivity on new debt (GD&GT) - nominal % | G30: 0.003
E31: 24 | F31: Sensitivity on new debt (ED&ET) - nominal % | G31: 0
B36: Assessed actual cost of debt and allowance options
C38: Nominal actual cost of debt and allowance options
I45: Iboxx- Nominal | J45: GD & GT | Q45: Iboxx- Nominal | R45: GD Only | AD45: Iboxx- Nominal | AE45: ED & ET | AL45: Iboxx- Nominal | AM45: TOTAL ET ( including SHET) | AT45: Iboxx- Nominal | AU45: ED Only
J46: =MATCH(J47,'Individual Summaries'!$H$8:$V$8,0) -> 9 | K46: =MATCH(K47,'Individual Summaries'!$H$8:$V$8,0) -> 10 | L46: =MATCH(L47,'Individual Summaries'!$H$8:$V$8,0) -> 11 | M46: =MATCH(M47,'Individual Summaries'!$H$8:$V$8,0) -> 12 | N46: =MATCH(N47,'Individual Summaries'!$H$8:$V$8,0) -> 13 | R46: =MATCH(R$47,'Individual Summaries'!$H$8:$V$8,0) -> 9 | S46: =MATCH(S$47,'Individual Summaries'!$H$8:$V$8,0) -> 10 | T46: =MATCH(T$47,'Individual Summaries'!$H$8:$V$8,0) -> 11 | U46: =MATCH(U$47,'Individual Summaries'!$H$8:$V$8,0) -> 12 | V46: =MATCH(V$47,'Individual Summaries'!$H$8:$V$8,0) -> 13 | AE46: =MATCH(AE$47,'Individual Summaries'!$H$8:$V$8,0) -> 9 | AF46: =MATCH(AF$47,'Individual Summaries'!$H$8:$V$8,0) -> 10 | AG46: =MATCH(AG$47,'Individual Summaries'!$H$8:$V$8,0) -> 11 | AH46: =MATCH(AH$47,'Individual Summaries'!$H$8:$V$8,0) -> 12 | AI46: =MATCH(AI$47,'Individual Summaries'!$H$8:$V$8,0) -> 13 | AM46: =MATCH(AM47,'Individual Summaries'!$H$8:$V$8,0) -> 9 | AN46: =MATCH(AN47,'Individual Summaries'!$H$8:$V$8,0) -> 10 | AO46: =MATCH(AO$47,'Individual Summaries'!$H$8:$V$8,0) -> 11 | AP46: =MATCH(AP$47,'Individual Summaries'!$H$8:$V$8,0) -> 12 | AQ46: =MATCH(AQ$47,'Individual Summaries'!$H$8:$V$8,0) -> 13 | AU46: =MATCH(AU47,'Individual Summaries'!$H$8:$V$8,0) -> 9 | AV46: =MATCH(AV47,'Individual Summaries'!$H$8:$V$8,0) -> 10 | AW46: =MATCH(AW$47,'Individual Summaries'!$H$8:$V$8,0) -> 11 | AX46: =MATCH(AX$47,'Individual Summaries'!$H$8:$V$8,0) -> 12 | AY46: =MATCH(AY$47,'Individual Summaries'!$H$8:$V$8,0) -> 13
I47: Assessed Expected Costs (Nominal) | J47: Y2027 | K47: Y2028 | L47: Y2029 | M47: Y2030 | N47: Y2031 | O47: RIIO-3 average | Q47: Assessed Expected Costs (Nominal) | R47: Y2027 | S47: Y2028 | T47: Y2029 | U47: Y2030 | V47: Y2031 | W47: RIIO-3 average | AD47: Assessed Expected Costs (Nominal) | AE47: Y2027 | AF47: Y2028 | AG47: Y2029 | AH47: Y2030 | AI47: Y2031 | AJ47: RIIO-3 average | AL47: Assessed Expected Costs (Nominal) | AM47: Y2027 | AN47: Y2028 | AO47: Y2029 | AP47: Y2030 | AQ47: Y2031 | AR47: RIIO-3 average | AT47: Assessed Expected Costs (Nominal) | AU47: Y2027 | AV47: Y2028 | AW47: Y2029 | AX47: Y2030 | AY47: Y2031 | AZ47: RIIO-3 average
I48: Pure debt | J48: =INDEX(IF(I45="iBoxx- Nominal",IF($G$21="NO",'Individual Summaries'!$H$87:$QL$87,'Individual Summaries'!$H$112:$QL$112),IF($G$21="NO",'Individual Summaries'!$H$88:$QL$88,'Individual Summaries'!$H$113:$QL$113)),MATCH(J45 & J47,'Individual Summaries'!$H$10:$QL$10,0)) -> 0.04459652547 | K48: =INDEX(IF(I45="iBoxx- Nominal",IF($G$21="NO",'Individual Summaries'!$H$87:$QL$87,'Individual Summaries'!$H$112:$QL$112),IF($G$21="NO",'Individual Summaries'!$H$88:$QL$88,'Individual Summaries'!$H$113:$QL$113)),MATCH(J45 & K47,'Individual Summaries'!$H$10:$QL$10,0)) -> 0.04660135504 | L48: =INDEX(IF(I45="iBoxx- Nominal",IF($G$21="NO",'Individual Summaries'!$H$87:$QL$87,'Individual Summaries'!$H$112:$QL$112),IF($G$21="NO",'Individual Summaries'!$H$88:$QL$88,'Individual Summaries'!$H$113:$QL$113)),MATCH(J45 & L47,'Individual Summaries'!$H$10:$QL$10,0)) -> 0.04884926498 | M48: =INDEX(IF(I45="iBoxx- Nominal",IF($G$21="NO",'Individual Summaries'!$H$87:$QL$87,'Individual Summaries'!$H$112:$QL$112),IF($G$21="NO",'Individual Summaries'!$H$88:$QL$88,'Individual Summaries'!$H$113:$QL$113)),MATCH(J45 & M47,'Individual Summaries'!$H$10:$QL$10,0)) -> 0.05085889347 | N48: =INDEX(IF(I45="iBoxx- Nominal",IF($G$21="NO",'Individual Summaries'!$H$87:$QL$87,'Individual Summaries'!$H$112:$QL$112),IF($G$21="NO",'Individual Summaries'!$H$88:$QL$88,'Individual Summaries'!$H$113:$QL$113)),MATCH(J45 & N47,'Individual Summaries'!$H$10:$QL$10,0)) -> 0.05282504431 | O48: =AVERAGE(J48:N48) -> 0.04874621665 | Q48: Pure debt | R48: =INDEX(IF(Q45="iBoxx- Nominal",IF($G$21="NO",'Individual Summaries'!$H$87:$QL$87,'Individual Summaries'!$H$112:$QL$112),IF($G$21="NO",'Individual Summaries'!$H$88:$QL$88,'Individual Summaries'!$H$113:$QL$113)),MATCH(R45 & R47,'Individual Summaries'!$H$10:$QL$10,0)) -> 0.04446115539 | S48: =INDEX(IF(Q45="iBoxx- Nominal",IF($G$21="NO",'Individual Summaries'!$H$87:$QL$87,'Individual Summaries'!$H$112:$QL$112),IF($G$21="NO",'Individual Summaries'!$H$88:$QL$88,'Individual Summaries'!$H$113:$QL$113)),MATCH(R45 & S47,'Individual Summaries'!$H$10:$QL$10,0)) -> 0.04639576389 | T48: =INDEX(IF(Q45="iBoxx- Nominal",IF($G$21="NO",'Individual Summaries'!$H$87:$QL$87,'Individual Summaries'!$H$112:$QL$112),IF($G$21="NO",'Individual Summaries'!$H$88:$QL$88,'Individual Summaries'!$H$113:$QL$113)),MATCH(R45 & T47,'Individual Summaries'!$H$10:$QL$10,0)) -> 0.04871975374 | U48: =INDEX(IF(Q45="iBoxx- Nominal",IF($G$21="NO",'Individual Summaries'!$H$87:$QL$87,'Individual Summaries'!$H$112:$QL$112),IF($G$21="NO",'Individual Summaries'!$H$88:$QL$88,'Individual Summaries'!$H$113:$QL$113)),MATCH(R45 & U47,'Individual Summaries'!$H$10:$QL$10,0)) -> 0.05118906181 | V48: =INDEX(IF(Q45="iBoxx- Nominal",IF($G$21="NO",'Individual Summaries'!$H$87:$QL$87,'Individual Summaries'!$H$112:$QL$112),IF($G$21="NO",'Individual Summaries'!$H$88:$QL$88,'Individual Summaries'!$H$113:$QL$113)),MATCH(R45 & V47,'Individual Summaries'!$H$10:$QL$10,0)) -> 0.05357193477 | W48: =AVERAGE(R48:V48) -> 0.04886753392 | AD48: Pure debt | AE48: =INDEX(IF(AD45="iBoxx- Nominal",IF($G$21="NO",'Individual Summaries'!$H$87:$QL$87,'Individual Summaries'!$H$112:$QL$112),IF($G$21="NO",'Individual Summaries'!$H$88:$QL$88,'Individual Summaries'!$H$113:$QL$113)),MATCH(AE45 & AE$47,'Individual Summaries'!$H$10:$QL$10,0)) -> 0.04787442992 | AF48: =INDEX(IF(AD45="iBoxx- Nominal",IF($G$21="NO",'Individual Summaries'!$H$87:$QL$87,'Individual Summaries'!$H$112:$QL$112),IF($G$21="NO",'Individual Summaries'!$H$88:$QL$88,'Individual Summaries'!$H$113:$QL$113)),MATCH(AE45 & AF$47,'Individual Summaries'!$H$10:$QL$10,0)) -> 0.05229606664 | AG48: =INDEX(IF(AD45="iBoxx- Nominal",IF($G$21="NO",'Individual Summaries'!$H$87:$QL$87,'Individual Summaries'!$H$112:$QL$112),IF($G$21="NO",'Individual Summaries'!$H$88:$QL$88,'Individual Summaries'!$H$113:$QL$113)),MATCH(AE45 & AG$47,'Individual Summaries'!$H$10:$QL$10,0)) -> 0.0567799698 | AH48: =INDEX(IF(AD45="iBoxx- Nominal",IF($G$21="NO",'Individual Summaries'!$H$87:$QL$87,'Individual Summaries'!$H$112:$QL$112),IF($G$21="NO",'Individual Summaries'!$H$88:$QL$88,'Individual Summaries'!$H$113:$QL$113)),MATCH(AE45 & AH$47,'Individual Summaries'!$H$10:$QL$10,0)) -> 0.05980667401 | AI48: =INDEX(IF(AD45="iBoxx- Nominal",IF($G$21="NO",'Individual Summaries'!$H$87:$QL$87,'Individual Summaries'!$H$112:$QL$112),IF($G$21="NO",'Individual Summaries'!$H$88:$QL$88,'Individual Summaries'!$H$113:$QL$113)),MATCH(AE45 & AI$47,'Individual Summaries'!$H$10:$QL$10,0)) -> 0.06119521935 | AJ48: =AVERAGE(AE48:AI48) -> 0.05559047195 | AL48: Pure debt | AM48: =INDEX(IF(AL45="iBoxx- Nominal",IF($G$21="NO",'Individual Summaries'!$H$87:$QL$87,'Individual Summaries'!$H$112:$QL$112),IF($G$21="NO",'Individual Summaries'!$H$88:$QL$88,'Individual Summaries'!$H$113:$QL$113)),MATCH(AM45 & AM47,'Individual Summaries'!$H$10:$QL$10,0)) -> 0.04607350712 | AN48: =INDEX(IF(AL45="iBoxx- Nominal",IF($G$21="NO",'Individual Summaries'!$H$87:$QL$87,'Individual Summaries'!$H$112:$QL$112),IF($G$21="NO",'Individual Summaries'!$H$88:$QL$88,'Individual Summaries'!$H$113:$QL$113)),MATCH(AM45 & AN47,'Individual Summaries'!$H$10:$QL$10,0)) -> 0.05252431243 | AO48: =INDEX(IF(AL45="iBoxx- Nominal",IF($G$21="NO",'Individual Summaries'!$H$87:$QL$87,'Individual Summaries'!$H$112:$QL$112),IF($G$21="NO",'Individual Summaries'!$H$88:$QL$88,'Individual Summaries'!$H$113:$QL$113)),MATCH(AM45 & AO$47,'Individual Summaries'!$H$10:$QL$10,0)) -> 0.05787813611 | AP48: =INDEX(IF(AL45="iBoxx- Nominal",IF($G$21="NO",'Individual Summaries'!$H$87:$QL$87,'Individual Summaries'!$H$112:$QL$112),IF($G$21="NO",'Individual Summaries'!$H$88:$QL$88,'Individual Summaries'!$H$113:$QL$113)),MATCH(AM45 & AP$47,'Individual Summaries'!$H$10:$QL$10,0)) -> 0.060861631 | AQ48: =INDEX(IF(AL45="iBoxx- Nominal",IF($G$21="NO",'Individual Summaries'!$H$87:$QL$87,'Individual Summaries'!$H$112:$QL$112),IF($G$21="NO",'Individual Summaries'!$H$88:$QL$88,'Individual Summaries'!$H$113:$QL$113)),MATCH(AM45 & AQ$47,'Individual Summaries'!$H$10:$QL$10,0)) -> 0.06205199264 | AR48: =AVERAGE(AM48:AQ48) -> 0.05587791586 | AT48: Pure debt | AU48: =INDEX(IF(AT45="iBoxx- Nominal",IF($G$21="NO",'Individual Summaries'!$H$87:$QL$87,'Individual Summaries'!$H$112:$QL$112),IF($G$21="NO",'Individual Summaries'!$H$88:$QL$88,'Individual Summaries'!$H$113:$QL$113)),MATCH(AU45 & AU47,'Individual Summaries'!$H$10:$QL$10,0)) -> 0.04975585569 | AV48: =INDEX(IF(AT45="iBoxx- Nominal",IF($G$21="NO",'Individual Summaries'!$H$87:$QL$87,'Individual Summaries'!$H$112:$QL$112),IF($G$21="NO",'Individual Summaries'!$H$88:$QL$88,'Individual Summaries'!$H$113:$QL$113)),MATCH(AU45 & AV47,'Individual Summaries'!$H$10:$QL$10,0)) -> 0.0520203492 | AW48: =INDEX(IF(AT45="iBoxx- Nominal",IF($G$21="NO",'Individual Summaries'!$H$87:$QL$87,'Individual Summaries'!$H$112:$QL$112),IF($G$21="NO",'Individual Summaries'!$H$88:$QL$88,'Individual Summaries'!$H$113:$QL$113)),MATCH(AU45 & AW$47,'Individual Summaries'!$H$10:$QL$10,0)) -> 0.05525305194 | AX48: =INDEX(IF(AT45="iBoxx- Nominal",IF($G$21="NO",'Individual Summaries'!$H$87:$QL$87,'Individual Summaries'!$H$112:$QL$112),IF($G$21="NO",'Individual Summaries'!$H$88:$QL$88,'Individual Summaries'!$H$113:$QL$113)),MATCH(AU45 & AX$47,'Individual Summaries'!$H$10:$QL$10,0)) -> 0.05817030525 | AY48: =INDEX(IF(AT45="iBoxx- Nominal",IF($G$21="NO",'Individual Summaries'!$H$87:$QL$87,'Individual Summaries'!$H$112:$QL$112),IF($G$21="NO",'Individual Summaries'!$H$88:$QL$88,'Individual Summaries'!$H$113:$QL$113)),MATCH(AU45 & AY$47,'Individual Summaries'!$H$10:$QL$10,0)) -> 0.05979569245 | AZ48: =AVERAGE(AU48:AY48) -> 0.05499905091
I49: Derivatives | J49: =INDEX(IF($I$45="iBoxx- Nominal",IF($G$21="NO",'Individual Summaries'!$H$95:$QL$95,'Individual Summaries'!$H$117:$QL$117),IF($G$21="NO",'Individual Summaries'!$H$96:$QL$96,'Individual Summaries'!$H$118:$QL$118)),MATCH(J45 & J47,'Individual Summaries'!$H$10:$QL$10,0)) -> 0 | K49: =INDEX(IF($I$45="iBoxx- Nominal",IF($G$21="NO",'Individual Summaries'!$H$95:$QL$95,'Individual Summaries'!$H$117:$QL$117),IF($G$21="NO",'Individual Summaries'!$H$96:$QL$96,'Individual Summaries'!$H$118:$QL$118)),MATCH(J45 & K47,'Individual Summaries'!$H$10:$QL$10,0)) -> 0 | L49: =INDEX(IF($I$45="iBoxx- Nominal",IF($G$21="NO",'Individual Summaries'!$H$95:$QL$95,'Individual Summaries'!$H$117:$QL$117),IF($G$21="NO",'Individual Summaries'!$H$96:$QL$96,'Individual Summaries'!$H$118:$QL$118)),MATCH(J45 & L47,'Individual Summaries'!$H$10:$QL$10,0)) -> 0 | M49: =INDEX(IF($I$45="iBoxx- Nominal",IF($G$21="NO",'Individual Summaries'!$H$95:$QL$95,'Individual Summaries'!$H$117:$QL$117),IF($G$21="NO",'Individual Summaries'!$H$96:$QL$96,'Individual Summaries'!$H$118:$QL$118)),MATCH(J45 & M47,'Individual Summaries'!$H$10:$QL$10,0)) -> 0 | N49: =INDEX(IF($I$45="iBoxx- Nominal",IF($G$21="NO",'Individual Summaries'!$H$95:$QL$95,'Individual Summaries'!$H$117:$QL$117),IF($G$21="NO",'Individual Summaries'!$H$96:$QL$96,'Individual Summaries'!$H$118:$QL$118)),MATCH(J45 & N47,'Individual Summaries'!$H$10:$QL$10,0)) -> 0 | O49: =AVERAGE(J49:N49) -> 0 | Q49: Derivatives | R49: =INDEX(IF($I$45="iBoxx- Nominal",IF($G$21="NO",'Individual Summaries'!$H$95:$QL$95,'Individual Summaries'!$H$117:$QL$117),IF($G$21="NO",'Individual Summaries'!$H$96:$QL$96,'Individual Summaries'!$H$118:$QL$118)),MATCH(R45 & R47,'Individual Summaries'!$H$10:$QL$10,0)) -> 0 | S49: =INDEX(IF($I$45="iBoxx- Nominal",IF($G$21="NO",'Individual Summaries'!$H$95:$QL$95,'Individual Summaries'!$H$117:$QL$117),IF($G$21="NO",'Individual Summaries'!$H$96:$QL$96,'Individual Summaries'!$H$118:$QL$118)),MATCH(R45 & S47,'Individual Summaries'!$H$10:$QL$10,0)) -> 0 | T49: =INDEX(IF($I$45="iBoxx- Nominal",IF($G$21="NO",'Individual Summaries'!$H$95:$QL$95,'Individual Summaries'!$H$117:$QL$117),IF($G$21="NO",'Individual Summaries'!$H$96:$QL$96,'Individual Summaries'!$H$118:$QL$118)),MATCH(R45 & T47,'Individual Summaries'!$H$10:$QL$10,0)) -> 0 | U49: =INDEX(IF($I$45="iBoxx- Nominal",IF($G$21="NO",'Individual Summaries'!$H$95:$QL$95,'Individual Summaries'!$H$117:$QL$117),IF($G$21="NO",'Individual Summaries'!$H$96:$QL$96,'Individual Summaries'!$H$118:$QL$118)),MATCH(R45 & U47,'Individual Summaries'!$H$10:$QL$10,0)) -> 0 | V49: =INDEX(IF($I$45="iBoxx- Nominal",IF($G$21="NO",'Individual Summaries'!$H$95:$QL$95,'Individual Summaries'!$H$117:$QL$117),IF($G$21="NO",'Individual Summaries'!$H$96:$QL$96,'Individual Summaries'!$H$118:$QL$118)),MATCH(R45 & V47,'Individual Summaries'!$H$10:$QL$10,0)) -> 0 | W49: =AVERAGE(R49:V49) -> 0 | AD49: Derivatives | AE49: =INDEX(IF($I$45="iBoxx- Nominal",IF($G$21="NO",'Individual Summaries'!$H$95:$QL$95,'Individual Summaries'!$H$117:$QL$117),IF($G$21="NO",'Individual Summaries'!$H$96:$QL$96,'Individual Summaries'!$H$118:$QL$118)),MATCH(AE45 & AE$47,'Individual Summaries'!$H$10:$QL$10,0)) -> 0 | AF49: =INDEX(IF($I$45="iBoxx- Nominal",IF($G$21="NO",'Individual Summaries'!$H$95:$QL$95,'Individual Summaries'!$H$117:$QL$117),IF($G$21="NO",'Individual Summaries'!$H$96:$QL$96,'Individual Summaries'!$H$118:$QL$118)),MATCH(AE45 & AF$47,'Individual Summaries'!$H$10:$QL$10,0)) -> 0 | AG49: =INDEX(IF($I$45="iBoxx- Nominal",IF($G$21="NO",'Individual Summaries'!$H$95:$QL$95,'Individual Summaries'!$H$117:$QL$117),IF($G$21="NO",'Individual Summaries'!$H$96:$QL$96,'Individual Summaries'!$H$118:$QL$118)),MATCH(AE45 & AG$47,'Individual Summaries'!$H$10:$QL$10,0)) -> 0 | AH49: =INDEX(IF($I$45="iBoxx- Nominal",IF($G$21="NO",'Individual Summaries'!$H$95:$QL$95,'Individual Summaries'!$H$117:$QL$117),IF($G$21="NO",'Individual Summaries'!$H$96:$QL$96,'Individual Summaries'!$H$118:$QL$118)),MATCH(AE45 & AH$47,'Individual Summaries'!$H$10:$QL$10,0)) -> 0 | AI49: =INDEX(IF($I$45="iBoxx- Nominal",IF($G$21="NO",'Individual Summaries'!$H$95:$QL$95,'Individual Summaries'!$H$117:$QL$117),IF($G$21="NO",'Individual Summaries'!$H$96:$QL$96,'Individual Summaries'!$H$118:$QL$118)),MATCH(AE45 & AI$47,'Individual Summaries'!$H$10:$QL$10,0)) -> 0 | AJ49: =AVERAGE(AE49:AI49) -> 0 | AL49: Derivatives | AM49: =INDEX(IF($I$45="iBoxx- Nominal",IF($G$21="NO",'Individual Summaries'!$H$95:$QL$95,'Individual Summaries'!$H$117:$QL$117),IF($G$21="NO",'Individual Summaries'!$H$96:$QL$96,'Individual Summaries'!$H$118:$QL$118)),MATCH(AM45 & AM47,'Individual Summaries'!$H$10:$QL$10,0)) -> 0 | AN49: =INDEX(IF($I$45="iBoxx- Nominal",IF($G$21="NO",'Individual Summaries'!$H$95:$QL$95,'Individual Summaries'!$H$117:$QL$117),IF($G$21="NO",'Individual Summaries'!$H$96:$QL$96,'Individual Summaries'!$H$118:$QL$118)),MATCH(AM45 & AN47,'Individual Summaries'!$H$10:$QL$10,0)) -> 0 | AO49: =INDEX(IF($I$45="iBoxx- Nominal",IF($G$21="NO",'Individual Summaries'!$H$95:$QL$95,'Individual Summaries'!$H$117:$QL$117),IF($G$21="NO",'Individual Summaries'!$H$96:$QL$96,'Individual Summaries'!$H$118:$QL$118)),MATCH(AM45 & AO$47,'Individual Summaries'!$H$10:$QL$10,0)) -> 0 | AP49: =INDEX(IF($I$45="iBoxx- Nominal",IF($G$21="NO",'Individual Summaries'!$H$95:$QL$95,'Individual Summaries'!$H$117:$QL$117),IF($G$21="NO",'Individual Summaries'!$H$96:$QL$96,'Individual Summaries'!$H$118:$QL$118)),MATCH(AM45 & AP$47,'Individual Summaries'!$H$10:$QL$10,0)) -> 0 | AQ49: =INDEX(IF($I$45="iBoxx- Nominal",IF($G$21="NO",'Individual Summaries'!$H$95:$QL$95,'Individual Summaries'!$H$117:$QL$117),IF($G$21="NO",'Individual Summaries'!$H$96:$QL$96,'Individual Summaries'!$H$118:$QL$118)),MATCH(AM45 & AQ$47,'Individual Summaries'!$H$10:$QL$10,0)) -> 0 | AR49: =AVERAGE(AM49:AQ49) -> 0 | AT49: Derivatives | AU49: =INDEX(IF($I$45="iBoxx- Nominal",IF($G$21="NO",'Individual Summaries'!$H$95:$QL$95,'Individual Summaries'!$H$117:$QL$117),IF($G$21="NO",'Individual Summaries'!$H$96:$QL$96,'Individual Summaries'!$H$118:$QL$118)),MATCH(AU45 & AU47,'Individual Summaries'!$H$10:$QL$10,0)) -> 0 | AV49: =INDEX(IF($I$45="iBoxx- Nominal",IF($G$21="NO",'Individual Summaries'!$H$95:$QL$95,'Individual Summaries'!$H$117:$QL$117),IF($G$21="NO",'Individual Summaries'!$H$96:$QL$96,'Individual Summaries'!$H$118:$QL$118)),MATCH(AU45 & AV47,'Individual Summaries'!$H$10:$QL$10,0)) -> 0 | AW49: =INDEX(IF($I$45="iBoxx- Nominal",IF($G$21="NO",'Individual Summaries'!$H$95:$QL$95,'Individual Summaries'!$H$117:$QL$117),IF($G$21="NO",'Individual Summaries'!$H$96:$QL$96,'Individual Summaries'!$H$118:$QL$118)),MATCH(AU45 & AW$47,'Individual Summaries'!$H$10:$QL$10,0)) -> 0 | AX49: =INDEX(IF($I$45="iBoxx- Nominal",IF($G$21="NO",'Individual Summaries'!$H$95:$QL$95,'Individual Summaries'!$H$117:$QL$117),IF($G$21="NO",'Individual Summaries'!$H$96:$QL$96,'Individual Summaries'!$H$118:$QL$118)),MATCH(AU45 & AX$47,'Individual Summaries'!$H$10:$QL$10,0)) -> 0 | AY49: =INDEX(IF($I$45="iBoxx- Nominal",IF($G$21="NO",'Individual Summaries'!$H$95:$QL$95,'Individual Summaries'!$H$117:$QL$117),IF($G$21="NO",'Individual Summaries'!$H$96:$QL$96,'Individual Summaries'!$H$118:$QL$118)),MATCH(AU45 & AY$47,'Individual Summaries'!$H$10:$QL$10,0)) -> 0 | AZ49: =AVERAGE(AU49:AY49) -> 0
I50: NG Cadent refi | J50: =INDEX(IF(I45="iBoxx- Nominal",'Individual Summaries'!$H$126:$QL$126,'Individual Summaries'!$H$129:$QL$129), MATCH(J45 & J47,'Individual Summaries'!$H$10:$QL$10, 0)) -> 0.001662723529 | K50: =INDEX(IF(I45="iBoxx- Nominal",'Individual Summaries'!$H$126:$QL$126,'Individual Summaries'!$H$129:$QL$129), MATCH(J45 & K47,'Individual Summaries'!$H$10:$QL$10, 0)) -> 0.001407627564 | L50: =INDEX(IF(I45="iBoxx- Nominal",'Individual Summaries'!$H$126:$QL$126,'Individual Summaries'!$H$129:$QL$129), MATCH(J45 & L47,'Individual Summaries'!$H$10:$QL$10, 0)) -> 0.001066431787 | M50: =INDEX(IF(I45="iBoxx- Nominal",'Individual Summaries'!$H$126:$QL$126,'Individual Summaries'!$H$129:$QL$129), MATCH(J45 & M47,'Individual Summaries'!$H$10:$QL$10, 0)) -> 0.0009190706414 | N50: =INDEX(IF(I45="iBoxx- Nominal",'Individual Summaries'!$H$126:$QL$126,'Individual Summaries'!$H$129:$QL$129), MATCH(J45 & N47,'Individual Summaries'!$H$10:$QL$10, 0)) -> 0.0008368722433 | O50: =AVERAGE(J50:N50) -> 0.001178545153 | Q50: NG Cadent refi | R50: =INDEX(IF(Q45="iBoxx- Nominal",'Individual Summaries'!$H$126:$QL$126,'Individual Summaries'!$H$129:$QL$129), MATCH(R45 & R47,'Individual Summaries'!$H$10:$QL$10, 0)) -> 0.002135425937 | S50: =INDEX(IF(Q45="iBoxx- Nominal",'Individual Summaries'!$H$126:$QL$126,'Individual Summaries'!$H$129:$QL$129), MATCH(R45 & S47,'Individual Summaries'!$H$10:$QL$10, 0)) -> 0.001831497268 | T50: =INDEX(IF(Q45="iBoxx- Nominal",'Individual Summaries'!$H$126:$QL$126,'Individual Summaries'!$H$129:$QL$129), MATCH(R45 & T47,'Individual Summaries'!$H$10:$QL$10, 0)) -> 0.001395744177 | U50: =INDEX(IF(Q45="iBoxx- Nominal",'Individual Summaries'!$H$126:$QL$126,'Individual Summaries'!$H$129:$QL$129), MATCH(R45 & U47,'Individual Summaries'!$H$10:$QL$10, 0)) -> 0.001205608752 | V50: =INDEX(IF(Q45="iBoxx- Nominal",'Individual Summaries'!$H$126:$QL$126,'Individual Summaries'!$H$129:$QL$129), MATCH(R45 & V47,'Individual Summaries'!$H$10:$QL$10, 0)) -> 0.00109712612 | W50: =AVERAGE(R50:V50) -> 0.001533080451 | AD50: NG Cadent refi | AE50: =INDEX(IF(AD45="iBoxx- Nominal",'Individual Summaries'!$H$126:$QL$126,'Individual Summaries'!$H$129:$QL$129), MATCH(AE45 & AE$47,'Individual Summaries'!$H$10:$QL$10, 0)) -> 0 | AF50: =INDEX(IF(AD45="iBoxx- Nominal",'Individual Summaries'!$H$126:$QL$126,'Individual Summaries'!$H$129:$QL$129), MATCH(AE45 & AF$47,'Individual Summaries'!$H$10:$QL$10, 0)) -> 0 | AG50: =INDEX(IF(AD45="iBoxx- Nominal",'Individual Summaries'!$H$126:$QL$126,'Individual Summaries'!$H$129:$QL$129), MATCH(AE45 & AG$47,'Individual Summaries'!$H$10:$QL$10, 0)) -> 0 | AH50: =INDEX(IF(AD45="iBoxx- Nominal",'Individual Summaries'!$H$126:$QL$126,'Individual Summaries'!$H$129:$QL$129), MATCH(AE45 & AH$47,'Individual Summaries'!$H$10:$QL$10, 0)) -> 0 | AI50: =INDEX(IF(AD45="iBoxx- Nominal",'Individual Summaries'!$H$126:$QL$126,'Individual Summaries'!$H$129:$QL$129), MATCH(AE45 & AI$47,'Individual Summaries'!$H$10:$QL$10, 0)) -> 0 | AJ50: =AVERAGE(AE50:AI50) -> 0 | AL50: NG Cadent refi | AM50: =INDEX(IF(AL45="iBoxx- Nominal",'Individual Summaries'!$H$126:$QL$126,'Individual Summaries'!$H$129:$QL$129), MATCH(AM45 & AM47,'Individual Summaries'!$H$10:$QL$10, 0)) -> 0 | AN50: =INDEX(IF(AL45="iBoxx- Nominal",'Individual Summaries'!$H$126:$QL$126,'Individual Summaries'!$H$129:$QL$129), MATCH(AM45 & AN47,'Individual Summaries'!$H$10:$QL$10, 0)) -> 0 | AO50: =INDEX(IF(AL45="iBoxx- Nominal",'Individual Summaries'!$H$126:$QL$126,'Individual Summaries'!$H$129:$QL$129), MATCH(AM45 & AO$47,'Individual Summaries'!$H$10:$QL$10, 0)) -> 0 | AP50: =INDEX(IF(AL45="iBoxx- Nominal",'Individual Summaries'!$H$126:$QL$126,'Individual Summaries'!$H$129:$QL$129), MATCH(AM45 & AP$47,'Individual Summaries'!$H$10:$QL$10, 0)) -> 0 | AQ50: =INDEX(IF(AL45="iBoxx- Nominal",'Individual Summaries'!$H$126:$QL$126,'Individual Summaries'!$H$129:$QL$129), MATCH(AM45 & AQ$47,'Individual Summaries'!$H$10:$QL$10, 0)) -> 0 | AR50: =AVERAGE(AM50:AQ50) -> 0 | AT50: NG Cadent refi | AU50: =INDEX(IF(AT45="iBoxx- Nominal",'Individual Summaries'!$H$126:$QL$126,'Individual Summaries'!$H$129:$QL$129), MATCH(AU45 & AU47,'Individual Summaries'!$H$10:$QL$10, 0)) -> 0 | AV50: =INDEX(IF(AT45="iBoxx- Nominal",'Individual Summaries'!$H$126:$QL$126,'Individual Summaries'!$H$129:$QL$129), MATCH(AU45 & AV47,'Individual Summaries'!$H$10:$QL$10, 0)) -> 0 | AW50: =INDEX(IF(AT45="iBoxx- Nominal",'Individual Summaries'!$H$126:$QL$126,'Individual Summaries'!$H$129:$QL$129), MATCH(AU45 & AW$47,'Individual Summaries'!$H$10:$QL$10, 0)) -> 0 | AX50: =INDEX(IF(AT45="iBoxx- Nominal",'Individual Summaries'!$H$126:$QL$126,'Individual Summaries'!$H$129:$QL$129), MATCH(AU45 & AX$47,'Individual Summaries'!$H$10:$QL$10, 0)) -> 0 | AY50: =INDEX(IF(AT45="iBoxx- Nominal",'Individual Summaries'!$H$126:$QL$126,'Individual Summaries'!$H$129:$QL$129), MATCH(AU45 & AY$47,'Individual Summaries'!$H$10:$QL$10, 0)) -> 0 | AZ50: =AVERAGE(AU50:AY50) -> 0
I52: Total | J52: =SUM(J48:J51) -> 0.046259249 | K52: =SUM(K48:K51) -> 0.0480089826 | L52: =SUM(L48:L51) -> 0.04991569677 | M52: =SUM(M48:M51) -> 0.05177796411 | N52: =SUM(N48:N51) -> 0.05366191655 | O52: =AVERAGE(J52:N52) -> 0.04992476181 | Q52: Total | R52: =SUM(R48:R51) -> 0.04659658133 | S52: =SUM(S48:S51) -> 0.04822726115 | T52: =SUM(T48:T51) -> 0.05011549791 | U52: =SUM(U48:U51) -> 0.05239467056 | V52: =SUM(V48:V51) -> 0.05466906089 | W52: =AVERAGE(R52:V52) -> 0.05040061437 | AD52: Total | AE52: =SUM(AE48:AE51) -> 0.04787442992 | AF52: =SUM(AF48:AF51) -> 0.05229606664 | AG52: =SUM(AG48:AG51) -> 0.0567799698 | AH52: =SUM(AH48:AH51) -> 0.05980667401 | AI52: =SUM(AI48:AI51) -> 0.06119521935 | AJ52: =AVERAGE(AE52:AI52) -> 0.05559047195 | AL52: Total | AM52: =SUM(AM48:AM51) -> 0.04607350712 | AN52: =SUM(AN48:AN51) -> 0.05252431243 | AO52: =SUM(AO48:AO51) -> 0.05787813611 | AP52: =SUM(AP48:AP51) -> 0.060861631 | AQ52: =SUM(AQ48:AQ51) -> 0.06205199264 | AR52: =AVERAGE(AM52:AQ52) -> 0.05587791586 | AT52: Total | AU52: =SUM(AU48:AU51) -> 0.04975585569 | AV52: =SUM(AV48:AV51) -> 0.0520203492 | AW52: =SUM(AW48:AW51) -> 0.05525305194 | AX52: =SUM(AX48:AX51) -> 0.05817030525 | AY52: =SUM(AY48:AY51) -> 0.05979569245 | AZ52: =AVERAGE(AU52:AY52) -> 0.05499905091
I54: Allowance Options | Q54: Allowance Options | AD54: Allowance Options | AL54: Allowance Options | AT54: Allowance Options
F55: From | G55: Adjustment | AA55: From | AB55: Adjustment
I56: ="RAV weighted ave ["&$F$56&"]yrs" -> RAV weighted ave []yrs | J56: =IFERROR(INDEX($G$207:$G$246,MATCH(J$45,$F$207:$F$245,0)),"") ->  | K56: =IFERROR(INDEX($H$207:$H$246,MATCH(J$45,$F$207:$F$245,0)),"") ->  | L56: =IFERROR(INDEX($I$207:$I$246,MATCH(J$45,$F$207:$F$245,0)),"") ->  | M56: =IFERROR(INDEX($J$207:$J$246,MATCH(J$45,$F$207:$F$245,0)),"") ->  | N56: =IFERROR(INDEX($K$207:$K$246,MATCH(J$45,$F$207:$F$245,0)),"") ->  | Q56: =I56 -> RAV weighted ave []yrs | R56: =IFERROR(INDEX($G$207:$G$246,MATCH(R$45,$F$207:$F$245,0)),"") ->  | S56: =IFERROR(INDEX($H$207:$H$246,MATCH(R$45,$F$207:$F$245,0)),"") ->  | T56: =IFERROR(INDEX($I$207:$I$246,MATCH(R$45,$F$207:$F$245,0)),"") ->  | U56: =IFERROR(INDEX($J$207:$J$246,MATCH(R$45,$F$207:$F$245,0)),"") ->  | V56: =IFERROR(INDEX($K$207:$K$246,MATCH(R$45,$F$207:$F$245,0)),"") ->  | AA56: 14 | AB56: 0 | AD56: ="RAV weighted ave ["&$AA$56&"]yrs" -> RAV weighted ave [14]yrs | AE56: =IFERROR(INDEX($G$207:$G$246,MATCH(AE45,$F$207:$F$245,0)),"") -> 0.04447556021 | AF56: =IFERROR(INDEX($H$207:$H$246,MATCH(AE45,$F$207:$F$245,0)),"") -> 0.0477719928 | AG56: =IFERROR(INDEX($I$207:$I$246,MATCH(AE45,$F$207:$F$245,0)),"") -> 0.05165947405 | AH56: =IFERROR(INDEX($J$207:$J$246,MATCH(AE45,$F$207:$F$245,0)),"") -> 0.05506605681 | AI56: =IFERROR(INDEX($K$207:$K$246,MATCH(AE45,$F$207:$F$245,0)),"") -> 0.05769623685 | AJ56: =IFERROR(AVERAGE(AE56:AI56),"") -> 0.05133386414 | AL56: =AD56 -> RAV weighted ave [14]yrs | AM56: =IFERROR(INDEX($G$207:$G$246,MATCH(AM45,$F$207:$F$245,0)),"") -> 0.04585062487 | AN56: =IFERROR(INDEX($H$207:$H$246,MATCH(AM45,$F$207:$F$245,0)),"") -> 0.04979502877 | AO56: =IFERROR(INDEX($I$207:$I$246,MATCH(AM45,$F$207:$F$245,0)),"") -> 0.05468395713 | AP56: =IFERROR(INDEX($J$207:$J$246,MATCH(AM45,$F$207:$F$245,0)),"") -> 0.05851797179 | AQ56: =IFERROR(INDEX($K$207:$K$246,MATCH(AM45,$F$207:$F$245,0)),"") -> 0.06106429517 | AR56: =IFERROR(AVERAGE(AM56:AQ56),"") -> 0.05398237555 | AT56: =AL56 -> RAV weighted ave [14]yrs | AU56: =IFERROR(INDEX($G$207:$G$246,MATCH(AU45,$F$207:$F$245,0)),"") -> 0.04312873858 | AV56: =IFERROR(INDEX($H$207:$H$246,MATCH(AU45,$F$207:$F$245,0)),"") -> 0.04544695213 | AW56: =IFERROR(INDEX($I$207:$I$246,MATCH(AU45,$F$207:$F$245,0)),"") -> 0.04764490175 | AX56: =IFERROR(INDEX($J$207:$J$246,MATCH(AU45,$F$207:$F$245,0)),"") -> 0.05000555149 | AY56: =IFERROR(INDEX($K$207:$K$246,MATCH(AU45,$F$207:$F$245,0)),"") -> 0.05238189841 | AZ56: =IFERROR(AVERAGE(AU56:AY56),"") -> 0.04772160847
I57: =I56&" + "&G57*10000&" bps costs" -> RAV weighted ave []yrs + 0 bps costs | J57: =IFERROR(IF(J56=0,"",J56+$AB57),"") ->  | K57: =IFERROR(IF(K56=0,"",K56+$AB57),"") ->  | L57: =IFERROR(IF(L56=0,"",L56+$AB57),"") ->  | M57: =IFERROR(IF(M56=0,"",M56+$AB57),"") ->  | N57: =IFERROR(IF(N56=0,"",N56+$AB57),"") ->  | Q57: =I57 -> RAV weighted ave []yrs + 0 bps costs | R57: =IFERROR(IF(R56=0,"",R56+AJ57),"") ->  | S57: =IFERROR(IF(S56=0,"",S56+AJ57),"") ->  | T57: =IFERROR(IF(T56=0,"",T56+AJ57),"") ->  | U57: =IFERROR(IF(U56=0,"",U56+AJ57),"") ->  | V57: =IFERROR(IF(V56=0,"",V56+AJ57),"") ->  | AB57: 0.0043 | AD57: =AD56&" + "&$AB57*10000&" bps costs" -> RAV weighted ave [14]yrs + 43 bps costs | AE57: =IFERROR(IF(AE56=0,"",AE56+$AB57),"") -> 0.04877556021 | AF57: =IFERROR(IF(AF56=0,"",AF56+$AB57),"") -> 0.0520719928 | AG57: =IFERROR(IF(AG56=0,"",AG56+$AB57),"") -> 0.05595947405 | AH57: =IFERROR(IF(AH56=0,"",AH56+$AB57),"") -> 0.05936605681 | AI57: =IFERROR(IF(AI56=0,"",AI56+$AB57),"") -> 0.06199623685 | AJ57: =IFERROR(AVERAGE(AE57:AI57),"") -> 0.05563386414 | AL57: RAV weighted ave [14]yrs + 43 bps costs | AM57: =IFERROR(IF(AM56=0,"",AM56+$AB57),"") -> 0.05015062487 | AN57: =IFERROR(IF(AN56=0,"",AN56+$AB57),"") -> 0.05409502877 | AO57: =IFERROR(IF(AO56=0,"",AO56+$AB57),"") -> 0.05898395713 | AP57: =IFERROR(IF(AP56=0,"",AP56+$AB57),"") -> 0.06281797179 | AQ57: =IFERROR(IF(AQ56=0,"",AQ56+$AB57),"") -> 0.06536429517 | AR57: =IFERROR(AVERAGE(AM57:AQ57),"") -> 0.05828237555 | AT57: RAV weighted ave [14]yrs + 43 bps costs | AU57: =IFERROR(IF(AU56=0,"",AU56+$AB57),"") -> 0.04742873858 | AV57: =IFERROR(IF(AV56=0,"",AV56+$AB57),"") -> 0.04974695213 | AW57: =IFERROR(IF(AW56=0,"",AW56+$AB57),"") -> 0.05194490175 | AX57: =IFERROR(IF(AX56=0,"",AX56+$AB57),"") -> 0.05430555149 | AY57: =IFERROR(IF(AY56=0,"",AY56+$AB57),"") -> 0.05668189841 | AZ57: =IFERROR(AVERAGE(AU57:AY57),"") -> 0.05202160847
F58: 10 | G58: 0 | I58: =IF(F58 = "Spare","",F58&" Yr"& IF(G58=0,""," + "&G58*10000&" bps")) -> 10 Yr | J58: =IFERROR(IF(I$45 = "Iboxx- Nominal",INDEX('Trailing Average'!$H$21:$Y$21,MATCH(J47,'Trailing Average'!$H$6:$Y$6)),INDEX('Trailing Average'!$H$276:$Y$276,MATCH(J47,'Trailing Average'!$H$6:$Y$6))) + $G58,"") -> 0.03854241225 | K58: =IFERROR(IF(I$45 = "Iboxx- Nominal",INDEX('Trailing Average'!$H$21:$Y$21,MATCH(K47,'Trailing Average'!$H$6:$Y$6)),INDEX('Trailing Average'!$H$276:$Y$276,MATCH(K47,'Trailing Average'!$H$6:$Y$6))) + $G58,"") -> 0.04144552681 | L58: =IFERROR(IF(I$45 = "Iboxx- Nominal",INDEX('Trailing Average'!$H$21:$Y$21,MATCH(L47,'Trailing Average'!$H$6:$Y$6)),INDEX('Trailing Average'!$H$276:$Y$276,MATCH(L47,'Trailing Average'!$H$6:$Y$6))) + $G58,"") -> 0.04531897483 | M58: =IFERROR(IF(I$45 = "Iboxx- Nominal",INDEX('Trailing Average'!$H$21:$Y$21,MATCH(M47,'Trailing Average'!$H$6:$Y$6)),INDEX('Trailing Average'!$H$276:$Y$276,MATCH(M47,'Trailing Average'!$H$6:$Y$6))) + $G58,"") -> 0.04905675994 | N58: =IFERROR(IF(I$45 = "Iboxx- Nominal",INDEX('Trailing Average'!$H$21:$Y$21,MATCH(N47,'Trailing Average'!$H$6:$Y$6)),INDEX('Trailing Average'!$H$276:$Y$276,MATCH(N47,'Trailing Average'!$H$6:$Y$6))) + $G58,"") -> 0.05304953104 | O58: =IFERROR(AVERAGE(J58:N58),"") -> 0.04548264098 | Q58: 10 Yr | R58: =IFERROR(IF(Q$45 = "Iboxx- Nominal",INDEX('Trailing Average'!$H$21:$Y$21,MATCH(R47,'Trailing Average'!$H$6:$Y$6)),INDEX('Trailing Average'!$H$276:$Y$276,MATCH(R47,'Trailing Average'!$H$6:$Y$6))) + $G58,"") -> 0.03854241225 | S58: =IFERROR(IF(Q$45 = "Iboxx- Nominal",INDEX('Trailing Average'!$H$21:$Y$21,MATCH(S47,'Trailing Average'!$H$6:$Y$6)),INDEX('Trailing Average'!$H$276:$Y$276,MATCH(S47,'Trailing Average'!$H$6:$Y$6))) + $G58,"") -> 0.04144552681 | T58: =IFERROR(IF(Q$45 = "Iboxx- Nominal",INDEX('Trailing Average'!$H$21:$Y$21,MATCH(T47,'Trailing Average'!$H$6:$Y$6)),INDEX('Trailing Average'!$H$276:$Y$276,MATCH(T47,'Trailing Average'!$H$6:$Y$6))) + $G58,"") -> 0.04531897483 | U58: =IFERROR(IF(Q$45 = "Iboxx- Nominal",INDEX('Trailing Average'!$H$21:$Y$21,MATCH(U47,'Trailing Average'!$H$6:$Y$6)),INDEX('Trailing Average'!$H$276:$Y$276,MATCH(U47,'Trailing Average'!$H$6:$Y$6))) + $G58,"") -> 0.04905675994 | V58: =IFERROR(IF(Q$45 = "Iboxx- Nominal",INDEX('Trailing Average'!$H$21:$Y$21,MATCH(V47,'Trailing Average'!$H$6:$Y$6)),INDEX('Trailing Average'!$H$276:$Y$276,MATCH(V47,'Trailing Average'!$H$6:$Y$6))) + $G58,"") -> 0.05304953104 | W58: =IFERROR(AVERAGE(R58:V58),"") -> 0.04548264098 | AA58: =AA56 -> 14 | AB58: 0 | AD58: ="RAV weighted ave ["&$AA$56&"] yr" -> RAV weighted ave [14] yr | AE58: =IFERROR(INDEX($G$207:$G$246,MATCH(AE45,$F$207:$F$245,0)),"") -> 0.04447556021 | AF58: =IFERROR(INDEX($H$207:$H$246,MATCH(AE45,$F$207:$F$245,0)),"") -> 0.0477719928 | AG58: =IFERROR(INDEX($I$207:$I$246,MATCH(AE45,$F$207:$F$245,0)),"") -> 0.05165947405 | AH58: =IFERROR(INDEX($J$207:$J$246,MATCH(AE45,$F$207:$F$245,0)),"") -> 0.05506605681 | AI58: =IFERROR(INDEX($K$207:$K$246,MATCH(AE45,$F$207:$F$245,0)),"") -> 0.05769623685 | AJ58: =IFERROR(AVERAGE(AE58:AI58),"") -> 0.05133386414 | AL58: RAV weighted ave [14] yr | AM58: =IFERROR(INDEX($G$207:$G$246,MATCH(AM45,$F$207:$F$245,0)),"") -> 0.04585062487 | AN58: =IFERROR(INDEX($H$207:$H$246,MATCH(AM45,$F$207:$F$245,0)),"") -> 0.04979502877 | AO58: =IFERROR(INDEX($I$207:$I$246,MATCH(AM45,$F$207:$F$245,0)),"") -> 0.05468395713 | AP58: =IFERROR(INDEX($J$207:$J$246,MATCH(AM45,$F$207:$F$245,0)),"") -> 0.05851797179 | AQ58: =IFERROR(INDEX($K$207:$K$246,MATCH(AM45,$F$207:$F$245,0)),"") -> 0.06106429517 | AR58: =IFERROR(AVERAGE(AM58:AQ58),"") -> 0.05398237555 | AT58: RAV weighted ave [14] yr | AU58: =IFERROR(INDEX($G$207:$G$246,MATCH(AU45,$F$207:$F$245,0)),"") -> 0.04312873858 | AV58: =IFERROR(INDEX($H$207:$H$246,MATCH(AU45,$F$207:$F$245,0)),"") -> 0.04544695213 | AW58: =IFERROR(INDEX($I$207:$I$246,MATCH(AU45,$F$207:$F$245,0)),"") -> 0.04764490175 | AX58: =IFERROR(INDEX($J$207:$J$246,MATCH(AU45,$F$207:$F$245,0)),"") -> 0.05000555149 | AY58: =IFERROR(INDEX($K$207:$K$246,MATCH(AU45,$F$207:$F$245,0)),"") -> 0.05238189841 | AZ58: =IFERROR(AVERAGE(AU58:AY58),"") -> 0.04772160847
F59: 14 | G59: 0 | I59: 14 Yr | J59: =IFERROR(IF(I$45="iBoxx- Nominal", INDEX('Trailing Average'!$H$42:$Y$42,MATCH(J47,'Trailing Average'!$H$6:$Y$6)), INDEX('Trailing Average'!$H$297:$Y$297,MATCH(J47,'Trailing Average'!$H$6:$Y$6))) + $G59,"") -> 0.04021320521 | K59: =IFERROR(IF(I$45="iBoxx- Nominal", INDEX('Trailing Average'!$H$42:$Y$42,MATCH(K47,'Trailing Average'!$H$6:$Y$6)), INDEX('Trailing Average'!$H$297:$Y$297,MATCH(K47,'Trailing Average'!$H$6:$Y$6))) + $G59,"") -> 0.04143542132 | L59: =IFERROR(IF(I$45="iBoxx- Nominal", INDEX('Trailing Average'!$H$42:$Y$42,MATCH(L47,'Trailing Average'!$H$6:$Y$6)), INDEX('Trailing Average'!$H$297:$Y$297,MATCH(L47,'Trailing Average'!$H$6:$Y$6))) + $G59,"") -> 0.04316391425 | M59: =IFERROR(IF(I$45="iBoxx- Nominal", INDEX('Trailing Average'!$H$42:$Y$42,MATCH(M47,'Trailing Average'!$H$6:$Y$6)), INDEX('Trailing Average'!$H$297:$Y$297,MATCH(M47,'Trailing Average'!$H$6:$Y$6))) + $G59,"") -> 0.04489571676 | N59: =IFERROR(IF(I$45="iBoxx- Nominal", INDEX('Trailing Average'!$H$42:$Y$42,MATCH(N47,'Trailing Average'!$H$6:$Y$6)), INDEX('Trailing Average'!$H$297:$Y$297,MATCH(N47,'Trailing Average'!$H$6:$Y$6))) + $G59,"") -> 0.0470824359 | O59: =IFERROR(AVERAGE(J59:N59),"") -> 0.04335813869 | Q59: 14 Yr | R59: =IFERROR(IF(Q$45="iBoxx- Nominal", INDEX('Trailing Average'!$H$42:$Y$42,MATCH(R47,'Trailing Average'!$H$6:$Y$6)), INDEX('Trailing Average'!$H$297:$Y$297,MATCH(R47,'Trailing Average'!$H$6:$Y$6))) + $G59,"") -> 0.04021320521 | S59: =IFERROR(IF(Q$45="iBoxx- Nominal", INDEX('Trailing Average'!$H$42:$Y$42,MATCH(S47,'Trailing Average'!$H$6:$Y$6)), INDEX('Trailing Average'!$H$297:$Y$297,MATCH(S47,'Trailing Average'!$H$6:$Y$6))) + $G59,"") -> 0.04143542132 | T59: =IFERROR(IF(Q$45="iBoxx- Nominal", INDEX('Trailing Average'!$H$42:$Y$42,MATCH(T47,'Trailing Average'!$H$6:$Y$6)), INDEX('Trailing Average'!$H$297:$Y$297,MATCH(T47,'Trailing Average'!$H$6:$Y$6))) + $G59,"") -> 0.04316391425 | U59: =IFERROR(IF(Q$45="iBoxx- Nominal", INDEX('Trailing Average'!$H$42:$Y$42,MATCH(U47,'Trailing Average'!$H$6:$Y$6)), INDEX('Trailing Average'!$H$297:$Y$297,MATCH(U47,'Trailing Average'!$H$6:$Y$6))) + $G59,"") -> 0.04489571676 | V59: =IFERROR(IF(Q$45="iBoxx- Nominal", INDEX('Trailing Average'!$H$42:$Y$42,MATCH(V47,'Trailing Average'!$H$6:$Y$6)), INDEX('Trailing Average'!$H$297:$Y$297,MATCH(V47,'Trailing Average'!$H$6:$Y$6))) + $G59,"") -> 0.0470824359 | W59: =IFERROR(AVERAGE(R59:V59),"") -> 0.04335813869 | AB59: 0.0039 | AD59: =AD58&" + "&$AB59*10000&" bps costs" -> RAV weighted ave [14] yr + 39 bps costs | AE59: =IFERROR(IF(AE58=0,"",AE58+$AB59),"") -> 0.04837556021 | AF59: =IFERROR(IF(AF58=0,"",AF58+$AB59),"") -> 0.0516719928 | AG59: =IFERROR(IF(AG58=0,"",AG58+$AB59),"") -> 0.05555947405 | AH59: =IFERROR(IF(AH58=0,"",AH58+$AB59),"") -> 0.05896605681 | AI59: =IFERROR(IF(AI58=0,"",AI58+$AB59),"") -> 0.06159623685 | AJ59: =IFERROR(AVERAGE(AE59:AI59),"") -> 0.05523386414 | AL59: RAV weighted ave [14] yr + 39 bps costs | AM59: =IFERROR(IF(AM58=0,"",AM58+$AB59),"") -> 0.04975062487 | AN59: =IFERROR(IF(AN58=0,"",AN58+$AB59),"") -> 0.05369502877 | AO59: =IFERROR(IF(AO58=0,"",AO58+$AB59),"") -> 0.05858395713 | AP59: =IFERROR(IF(AP58=0,"",AP58+$AB59),"") -> 0.06241797179 | AQ59: =IFERROR(IF(AQ58=0,"",AQ58+$AB59),"") -> 0.06496429517 | AR59: =IFERROR(AVERAGE(AM59:AQ59),"") -> 0.05788237555 | AT59: RAV weighted ave [14] yr + 39 bps costs | AU59: =IFERROR(IF(AU58=0,"",AU58+$AB59),"") -> 0.04702873858 | AV59: =IFERROR(IF(AV58=0,"",AV58+$AB59),"") -> 0.04934695213 | AW59: =IFERROR(IF(AW58=0,"",AW58+$AB59),"") -> 0.05154490175 | AX59: =IFERROR(IF(AX58=0,"",AX58+$AB59),"") -> 0.05390555149 | AY59: =IFERROR(IF(AY58=0,"",AY58+$AB59),"") -> 0.05628189841 | AZ59: =IFERROR(AVERAGE(AU59:AY59),"") -> 0.05162160847
F60: 15 | G60: 0 | I60: 15 Yr | J60: =IFERROR(IF(I$45="iBoxx- Nominal", INDEX('Trailing Average'!$H$63:$Y$63,MATCH(J47,'Trailing Average'!$H$6:$Y$6)),INDEX('Trailing Average'!$H$318:$Y$318,MATCH(J47,'Trailing Average'!$H$6:$Y$6))) + $G60,"") -> 0.04114067295 | K60: =IFERROR(IF(I$45="iBoxx- Nominal", INDEX('Trailing Average'!$H$63:$Y$63,MATCH(K47,'Trailing Average'!$H$6:$Y$6)),INDEX('Trailing Average'!$H$318:$Y$318,MATCH(K47,'Trailing Average'!$H$6:$Y$6))) + $G60,"") -> 0.04184539878 | L60: =IFERROR(IF(I$45="iBoxx- Nominal", INDEX('Trailing Average'!$H$63:$Y$63,MATCH(L47,'Trailing Average'!$H$6:$Y$6)),INDEX('Trailing Average'!$H$318:$Y$318,MATCH(L47,'Trailing Average'!$H$6:$Y$6))) + $G60,"") -> 0.04331157375 | M60: =IFERROR(IF(I$45="iBoxx- Nominal", INDEX('Trailing Average'!$H$63:$Y$63,MATCH(M47,'Trailing Average'!$H$6:$Y$6)),INDEX('Trailing Average'!$H$318:$Y$318,MATCH(M47,'Trailing Average'!$H$6:$Y$6))) + $G60,"") -> 0.04494257487 | N60: =IFERROR(IF(I$45="iBoxx- Nominal", INDEX('Trailing Average'!$H$63:$Y$63,MATCH(N47,'Trailing Average'!$H$6:$Y$6)),INDEX('Trailing Average'!$H$318:$Y$318,MATCH(N47,'Trailing Average'!$H$6:$Y$6))) + $G60,"") -> 0.04655553213 | O60: 0.0435591505 | Q60: 15 Yr | R60: =IFERROR(IF(Q$45="iBoxx- Nominal", INDEX('Trailing Average'!$H$63:$Y$63,MATCH(R47,'Trailing Average'!$H$6:$Y$6)),INDEX('Trailing Average'!$H$318:$Y$318,MATCH(R47,'Trailing Average'!$H$6:$Y$6))) + $G60,"") -> 0.04114067295 | S60: =IFERROR(IF(Q$45="iBoxx- Nominal", INDEX('Trailing Average'!$H$63:$Y$63,MATCH(S47,'Trailing Average'!$H$6:$Y$6)),INDEX('Trailing Average'!$H$318:$Y$318,MATCH(S47,'Trailing Average'!$H$6:$Y$6))) + $G60,"") -> 0.04184539878 | T60: =IFERROR(IF(Q$45="iBoxx- Nominal", INDEX('Trailing Average'!$H$63:$Y$63,MATCH(T47,'Trailing Average'!$H$6:$Y$6)),INDEX('Trailing Average'!$H$318:$Y$318,MATCH(T47,'Trailing Average'!$H$6:$Y$6))) + $G60,"") -> 0.04331157375 | U60: =IFERROR(IF(Q$45="iBoxx- Nominal", INDEX('Trailing Average'!$H$63:$Y$63,MATCH(U47,'Trailing Average'!$H$6:$Y$6)),INDEX('Trailing Average'!$H$318:$Y$318,MATCH(U47,'Trailing Average'!$H$6:$Y$6))) + $G60,"") -> 0.04494257487 | V60: =IFERROR(IF(Q$45="iBoxx- Nominal", INDEX('Trailing Average'!$H$63:$Y$63,MATCH(V47,'Trailing Average'!$H$6:$Y$6)),INDEX('Trailing Average'!$H$318:$Y$318,MATCH(V47,'Trailing Average'!$H$6:$Y$6))) + $G60,"") -> 0.04655553213 | W60: 0.0435591505 | AA60: =F60 -> 15 | AB60: =G60 -> 0 | AD60: =IF(AA60 = "Spare","",AA60&" Yr"& IF($AB60=0,""," + "&$AB60*10000&" bps")) -> 15 Yr | AE60: =IFERROR(IF(AD45="iBoxx- Nominal", INDEX('Trailing Average'!$H$63:$Y$63,MATCH(AE47,'Trailing Average'!$H$6:$Y$6)),INDEX('Trailing Average'!$H$318:$Y$318,MATCH(AE47,'Trailing Average'!$H$6:$Y$6))) + $AB60,"") -> 0.04114067295 | AF60: =IFERROR(IF(AD45="iBoxx- Nominal", INDEX('Trailing Average'!$H$63:$Y$63,MATCH(AF47,'Trailing Average'!$H$6:$Y$6)),INDEX('Trailing Average'!$H$318:$Y$318,MATCH(AF47,'Trailing Average'!$H$6:$Y$6))) + $AB60,"") -> 0.04184539878 | AG60: =IFERROR(IF(AD45="iBoxx- Nominal", INDEX('Trailing Average'!$H$63:$Y$63,MATCH(AG$47,'Trailing Average'!$H$6:$Y$6)),INDEX('Trailing Average'!$H$318:$Y$318,MATCH(AG$47,'Trailing Average'!$H$6:$Y$6))) + $AB60,"") -> 0.04331157375 | AH60: =IFERROR(IF(AD45="iBoxx- Nominal", INDEX('Trailing Average'!$H$63:$Y$63,MATCH(AH$47,'Trailing Average'!$H$6:$Y$6)),INDEX('Trailing Average'!$H$318:$Y$318,MATCH(AH$47,'Trailing Average'!$H$6:$Y$6))) + $AB60,"") -> 0.04494257487 | AI60: =IFERROR(IF(AD45="iBoxx- Nominal", INDEX('Trailing Average'!$H$63:$Y$63,MATCH(AI$47,'Trailing Average'!$H$6:$Y$6)),INDEX('Trailing Average'!$H$318:$Y$318,MATCH(AI$47,'Trailing Average'!$H$6:$Y$6))) + $AB60,"") -> 0.04655553213 | AJ60: =IFERROR(AVERAGE(AE60:AI60),"") -> 0.0435591505 | AL60: 15 Yr | AM60: =IFERROR(IF(AL45="iBoxx- Nominal", INDEX('Trailing Average'!$H$63:$Y$63,MATCH(AM47,'Trailing Average'!$H$6:$Y$6)),INDEX('Trailing Average'!$H$318:$Y$318,MATCH(AM47,'Trailing Average'!$H$6:$Y$6))) + $AB60,"") -> 0.04114067295 | AN60: =IFERROR(IF(AL45="iBoxx- Nominal", INDEX('Trailing Average'!$H$63:$Y$63,MATCH(AN47,'Trailing Average'!$H$6:$Y$6)),INDEX('Trailing Average'!$H$318:$Y$318,MATCH(AN47,'Trailing Average'!$H$6:$Y$6))) + $AB60,"") -> 0.04184539878 | AO60: =IFERROR(IF(AL45="iBoxx- Nominal", INDEX('Trailing Average'!$H$63:$Y$63,MATCH(AO$47,'Trailing Average'!$H$6:$Y$6)),INDEX('Trailing Average'!$H$318:$Y$318,MATCH(AO$47,'Trailing Average'!$H$6:$Y$6))) + $AB60,"") -> 0.04331157375 | AP60: =IFERROR(IF(AL45="iBoxx- Nominal", INDEX('Trailing Average'!$H$63:$Y$63,MATCH(AP$47,'Trailing Average'!$H$6:$Y$6)),INDEX('Trailing Average'!$H$318:$Y$318,MATCH(AP$47,'Trailing Average'!$H$6:$Y$6))) + $AB60,"") -> 0.04494257487 | AQ60: =IFERROR(IF(AL45="iBoxx- Nominal", INDEX('Trailing Average'!$H$63:$Y$63,MATCH(AQ$47,'Trailing Average'!$H$6:$Y$6)),INDEX('Trailing Average'!$H$318:$Y$318,MATCH(AQ$47,'Trailing Average'!$H$6:$Y$6))) + $AB60,"") -> 0.04655553213 | AR60: 0.0435591505 | AT60: 15 Yr | AU60: =IFERROR(IF(AT45="iBoxx- Nominal", INDEX('Trailing Average'!$H$63:$Y$63,MATCH(AU47,'Trailing Average'!$H$6:$Y$6)),INDEX('Trailing Average'!$H$318:$Y$318,MATCH(AU47,'Trailing Average'!$H$6:$Y$6))) + $AB60,"") -> 0.04114067295 | AV60: =IFERROR(IF(AT45="iBoxx- Nominal", INDEX('Trailing Average'!$H$63:$Y$63,MATCH(AV47,'Trailing Average'!$H$6:$Y$6)),INDEX('Trailing Average'!$H$318:$Y$318,MATCH(AV47,'Trailing Average'!$H$6:$Y$6))) + $AB60,"") -> 0.04184539878 | AW60: =IFERROR(IF(AT45="iBoxx- Nominal", INDEX('Trailing Average'!$H$63:$Y$63,MATCH(AW$47,'Trailing Average'!$H$6:$Y$6)),INDEX('Trailing Average'!$H$318:$Y$318,MATCH(AW$47,'Trailing Average'!$H$6:$Y$6))) + $AB60,"") -> 0.04331157375 | AX60: =IFERROR(IF(AT45="iBoxx- Nominal", INDEX('Trailing Average'!$H$63:$Y$63,MATCH(AX$47,'Trailing Average'!$H$6:$Y$6)),INDEX('Trailing Average'!$H$318:$Y$318,MATCH(AX$47,'Trailing Average'!$H$6:$Y$6))) + $AB60,"") -> 0.04494257487 | AY60: =IFERROR(IF(AT45="iBoxx- Nominal", INDEX('Trailing Average'!$H$63:$Y$63,MATCH(AY$47,'Trailing Average'!$H$6:$Y$6)),INDEX('Trailing Average'!$H$318:$Y$318,MATCH(AY$47,'Trailing Average'!$H$6:$Y$6))) + $AB60,"") -> 0.04655553213 | AZ60: 0.0435591505
F61: 17 | G61: 0 | I61: 17 Yr | J61: =IFERROR(IF(I$45="iBoxx- Nominal", INDEX('Trailing Average'!$H$84:$Y$84,MATCH(J47,'Trailing Average'!$H$6:$Y$6)),INDEX('Trailing Average'!$H$339:$Y$339,MATCH(J47,'Trailing Average'!$H$6:$Y$6))) + $G61,"") -> 0.04365899758 | K61: =IFERROR(IF(I$45="iBoxx- Nominal", INDEX('Trailing Average'!$H$84:$Y$84,MATCH(K47,'Trailing Average'!$H$6:$Y$6)),INDEX('Trailing Average'!$H$339:$Y$339,MATCH(K47,'Trailing Average'!$H$6:$Y$6))) + $G61,"") -> 0.04339418147 | L61: =IFERROR(IF(I$45="iBoxx- Nominal", INDEX('Trailing Average'!$H$84:$Y$84,MATCH(L47,'Trailing Average'!$H$6:$Y$6)),INDEX('Trailing Average'!$H$339:$Y$339,MATCH(L47,'Trailing Average'!$H$6:$Y$6))) + $G61,"") -> 0.04420577929 | M61: =IFERROR(IF(I$45="iBoxx- Nominal", INDEX('Trailing Average'!$H$84:$Y$84,MATCH(M47,'Trailing Average'!$H$6:$Y$6)),INDEX('Trailing Average'!$H$339:$Y$339,MATCH(M47,'Trailing Average'!$H$6:$Y$6))) + $G61,"") -> 0.045126391 | N61: =IFERROR(IF(I$45="iBoxx- Nominal", INDEX('Trailing Average'!$H$84:$Y$84,MATCH(N47,'Trailing Average'!$H$6:$Y$6)),INDEX('Trailing Average'!$H$339:$Y$339,MATCH(N47,'Trailing Average'!$H$6:$Y$6))) + $G61,"") -> 0.04643241371 | O61: 0.04456355261 | Q61: 17 Yr | R61: =IFERROR(IF(Q$45="iBoxx- Nominal", INDEX('Trailing Average'!$H$84:$Y$84,MATCH(R47,'Trailing Average'!$H$6:$Y$6)),INDEX('Trailing Average'!$H$339:$Y$339,MATCH(R47,'Trailing Average'!$H$6:$Y$6))) + $G61,"") -> 0.04365899758 | S61: =IFERROR(IF(Q$45="iBoxx- Nominal", INDEX('Trailing Average'!$H$84:$Y$84,MATCH(S47,'Trailing Average'!$H$6:$Y$6)),INDEX('Trailing Average'!$H$339:$Y$339,MATCH(S47,'Trailing Average'!$H$6:$Y$6))) + $G61,"") -> 0.04339418147 | T61: =IFERROR(IF(Q$45="iBoxx- Nominal", INDEX('Trailing Average'!$H$84:$Y$84,MATCH(T47,'Trailing Average'!$H$6:$Y$6)),INDEX('Trailing Average'!$H$339:$Y$339,MATCH(T47,'Trailing Average'!$H$6:$Y$6))) + $G61,"") -> 0.04420577929 | U61: =IFERROR(IF(Q$45="iBoxx- Nominal", INDEX('Trailing Average'!$H$84:$Y$84,MATCH(U47,'Trailing Average'!$H$6:$Y$6)),INDEX('Trailing Average'!$H$339:$Y$339,MATCH(U47,'Trailing Average'!$H$6:$Y$6))) + $G61,"") -> 0.045126391 | V61: =IFERROR(IF(Q$45="iBoxx- Nominal", INDEX('Trailing Average'!$H$84:$Y$84,MATCH(V47,'Trailing Average'!$H$6:$Y$6)),INDEX('Trailing Average'!$H$339:$Y$339,MATCH(V47,'Trailing Average'!$H$6:$Y$6))) + $G61,"") -> 0.04643241371 | W61: 0.04456355261 | AA61: 17 | AB61: 0 | AD61: 17 Yr | AE61: =IFERROR(IF(AD45="iBoxx- Nominal", INDEX('Trailing Average'!$H$84:$Y$84,MATCH(AE47,'Trailing Average'!$H$6:$Y$6)),INDEX('Trailing Average'!$H$339:$Y$339,MATCH(AE47,'Trailing Average'!$H$6:$Y$6))) + $AB61,"") -> 0.04365899758 | AF61: =IFERROR(IF(AD45="iBoxx- Nominal", INDEX('Trailing Average'!$H$84:$Y$84,MATCH(AF47,'Trailing Average'!$H$6:$Y$6)),INDEX('Trailing Average'!$H$339:$Y$339,MATCH(AF47,'Trailing Average'!$H$6:$Y$6))) + $AB61,"") -> 0.04339418147 | AG61: =IFERROR(IF(AD45="iBoxx- Nominal", INDEX('Trailing Average'!$H$84:$Y$84,MATCH(AG$47,'Trailing Average'!$H$6:$Y$6)),INDEX('Trailing Average'!$H$339:$Y$339,MATCH(AG$47,'Trailing Average'!$H$6:$Y$6))) + $AB61,"") -> 0.04420577929 | AH61: =IFERROR(IF(AD45="iBoxx- Nominal", INDEX('Trailing Average'!$H$84:$Y$84,MATCH(AH$47,'Trailing Average'!$H$6:$Y$6)),INDEX('Trailing Average'!$H$339:$Y$339,MATCH(AH$47,'Trailing Average'!$H$6:$Y$6))) + $AB61,"") -> 0.045126391 | AI61: =IFERROR(IF(AD45="iBoxx- Nominal", INDEX('Trailing Average'!$H$84:$Y$84,MATCH(AI$47,'Trailing Average'!$H$6:$Y$6)),INDEX('Trailing Average'!$H$339:$Y$339,MATCH(AI$47,'Trailing Average'!$H$6:$Y$6))) + $AB61,"") -> 0.04643241371 | AJ61: 0.04456355261 | AL61: 17 Yr | AM61: =IFERROR(IF(AL45="iBoxx- Nominal", INDEX('Trailing Average'!$H$84:$Y$84,MATCH(AM47,'Trailing Average'!$H$6:$Y$6)),INDEX('Trailing Average'!$H$339:$Y$339,MATCH(AM47,'Trailing Average'!$H$6:$Y$6))) + $AB61,"") -> 0.04365899758 | AN61: =IFERROR(IF(AL45="iBoxx- Nominal", INDEX('Trailing Average'!$H$84:$Y$84,MATCH(AN47,'Trailing Average'!$H$6:$Y$6)),INDEX('Trailing Average'!$H$339:$Y$339,MATCH(AN47,'Trailing Average'!$H$6:$Y$6))) + $AB61,"") -> 0.04339418147 | AO61: =IFERROR(IF(AL45="iBoxx- Nominal", INDEX('Trailing Average'!$H$84:$Y$84,MATCH(AO$47,'Trailing Average'!$H$6:$Y$6)),INDEX('Trailing Average'!$H$339:$Y$339,MATCH(AO$47,'Trailing Average'!$H$6:$Y$6))) + $AB61,"") -> 0.04420577929 | AP61: =IFERROR(IF(AL45="iBoxx- Nominal", INDEX('Trailing Average'!$H$84:$Y$84,MATCH(AP$47,'Trailing Average'!$H$6:$Y$6)),INDEX('Trailing Average'!$H$339:$Y$339,MATCH(AP$47,'Trailing Average'!$H$6:$Y$6))) + $AB61,"") -> 0.045126391 | AQ61: =IFERROR(IF(AL45="iBoxx- Nominal", INDEX('Trailing Average'!$H$84:$Y$84,MATCH(AQ$47,'Trailing Average'!$H$6:$Y$6)),INDEX('Trailing Average'!$H$339:$Y$339,MATCH(AQ$47,'Trailing Average'!$H$6:$Y$6))) + $AB61,"") -> 0.04643241371 | AR61: 0.04456355261 | AT61: 17 Yr | AU61: =IFERROR(IF(AT45="iBoxx- Nominal", INDEX('Trailing Average'!$H$84:$Y$84,MATCH(AU47,'Trailing Average'!$H$6:$Y$6)),INDEX('Trailing Average'!$H$339:$Y$339,MATCH(AU47,'Trailing Average'!$H$6:$Y$6))) + $AB61,"") -> 0.04365899758 | AV61: =IFERROR(IF(AT45="iBoxx- Nominal", INDEX('Trailing Average'!$H$84:$Y$84,MATCH(AV47,'Trailing Average'!$H$6:$Y$6)),INDEX('Trailing Average'!$H$339:$Y$339,MATCH(AV47,'Trailing Average'!$H$6:$Y$6))) + $AB61,"") -> 0.04339418147 | AW61: =IFERROR(IF(AT45="iBoxx- Nominal", INDEX('Trailing Average'!$H$84:$Y$84,MATCH(AW$47,'Trailing Average'!$H$6:$Y$6)),INDEX('Trailing Average'!$H$339:$Y$339,MATCH(AW$47,'Trailing Average'!$H$6:$Y$6))) + $AB61,"") -> 0.04420577929 | AX61: =IFERROR(IF(AT45="iBoxx- Nominal", INDEX('Trailing Average'!$H$84:$Y$84,MATCH(AX$47,'Trailing Average'!$H$6:$Y$6)),INDEX('Trailing Average'!$H$339:$Y$339,MATCH(AX$47,'Trailing Average'!$H$6:$Y$6))) + $AB61,"") -> 0.045126391 | AY61: =IFERROR(IF(AT45="iBoxx- Nominal", INDEX('Trailing Average'!$H$84:$Y$84,MATCH(AY$47,'Trailing Average'!$H$6:$Y$6)),INDEX('Trailing Average'!$H$339:$Y$339,MATCH(AY$47,'Trailing Average'!$H$6:$Y$6))) + $AB61,"") -> 0.04643241371 | AZ61: 0.04456355261
F62: 18 | G62: 0 | I62: 18 Yr | J62: =IFERROR(IF(I$45="iBoxx- Nominal", INDEX('Trailing Average'!$H$105:$Y$105,MATCH(J47,'Trailing Average'!$H$6:$Y$6)), INDEX('Trailing Average'!$H$360:$Y$360,MATCH(J47,'Trailing Average'!$H$6:$Y$6))) + $G62,"") -> 0.04495023198 | K62: =IFERROR(IF(I$45="iBoxx- Nominal", INDEX('Trailing Average'!$H$105:$Y$105,MATCH(K47,'Trailing Average'!$H$6:$Y$6)), INDEX('Trailing Average'!$H$360:$Y$360,MATCH(K47,'Trailing Average'!$H$6:$Y$6))) + $G62,"") -> 0.044834427 | L62: =IFERROR(IF(I$45="iBoxx- Nominal", INDEX('Trailing Average'!$H$105:$Y$105,MATCH(L47,'Trailing Average'!$H$6:$Y$6)), INDEX('Trailing Average'!$H$360:$Y$360,MATCH(L47,'Trailing Average'!$H$6:$Y$6))) + $G62,"") -> 0.04485368677 | M62: =IFERROR(IF(I$45="iBoxx- Nominal", INDEX('Trailing Average'!$H$105:$Y$105,MATCH(M47,'Trailing Average'!$H$6:$Y$6)), INDEX('Trailing Average'!$H$360:$Y$360,MATCH(M47,'Trailing Average'!$H$6:$Y$6))) + $G62,"") -> 0.04563339112 | N62: =IFERROR(IF(I$45="iBoxx- Nominal", INDEX('Trailing Average'!$H$105:$Y$105,MATCH(N47,'Trailing Average'!$H$6:$Y$6)), INDEX('Trailing Average'!$H$360:$Y$360,MATCH(N47,'Trailing Average'!$H$6:$Y$6))) + $G62,"") -> 0.04649848087 | O62: 0.04535404355 | Q62: 18 Yr | R62: =IFERROR(IF(Q$45="iBoxx- Nominal", INDEX('Trailing Average'!$H$105:$Y$105,MATCH(R47,'Trailing Average'!$H$6:$Y$6)), INDEX('Trailing Average'!$H$360:$Y$360,MATCH(R47,'Trailing Average'!$H$6:$Y$6))) + $G62,"") -> 0.04495023198 | S62: =IFERROR(IF(Q$45="iBoxx- Nominal", INDEX('Trailing Average'!$H$105:$Y$105,MATCH(S47,'Trailing Average'!$H$6:$Y$6)), INDEX('Trailing Average'!$H$360:$Y$360,MATCH(S47,'Trailing Average'!$H$6:$Y$6))) + $G62,"") -> 0.044834427 | T62: =IFERROR(IF(Q$45="iBoxx- Nominal", INDEX('Trailing Average'!$H$105:$Y$105,MATCH(T47,'Trailing Average'!$H$6:$Y$6)), INDEX('Trailing Average'!$H$360:$Y$360,MATCH(T47,'Trailing Average'!$H$6:$Y$6))) + $G62,"") -> 0.04485368677 | U62: =IFERROR(IF(Q$45="iBoxx- Nominal", INDEX('Trailing Average'!$H$105:$Y$105,MATCH(U47,'Trailing Average'!$H$6:$Y$6)), INDEX('Trailing Average'!$H$360:$Y$360,MATCH(U47,'Trailing Average'!$H$6:$Y$6))) + $G62,"") -> 0.04563339112 | V62: =IFERROR(IF(Q$45="iBoxx- Nominal", INDEX('Trailing Average'!$H$105:$Y$105,MATCH(V47,'Trailing Average'!$H$6:$Y$6)), INDEX('Trailing Average'!$H$360:$Y$360,MATCH(V47,'Trailing Average'!$H$6:$Y$6))) + $G62,"") -> 0.04649848087 | W62: 0.04535404355 | AA62: 18 | AB62: 0 | AD62: 18 Yr | AE62: =IFERROR(IF(AD45="iBoxx- Nominal", INDEX('Trailing Average'!$H$105:$Y$105,MATCH(AE47,'Trailing Average'!$H$6:$Y$6)), INDEX('Trailing Average'!$H$360:$Y$360,MATCH(AE47,'Trailing Average'!$H$6:$Y$6))) + $AB62,"") -> 0.04495023198 | AF62: =IFERROR(IF(AD45="iBoxx- Nominal", INDEX('Trailing Average'!$H$105:$Y$105,MATCH(AF47,'Trailing Average'!$H$6:$Y$6)), INDEX('Trailing Average'!$H$360:$Y$360,MATCH(AF47,'Trailing Average'!$H$6:$Y$6))) + $AB62,"") -> 0.044834427 | AG62: =IFERROR(IF(AD45="iBoxx- Nominal", INDEX('Trailing Average'!$H$105:$Y$105,MATCH(AG$47,'Trailing Average'!$H$6:$Y$6)), INDEX('Trailing Average'!$H$360:$Y$360,MATCH(AG$47,'Trailing Average'!$H$6:$Y$6))) + $AB62,"") -> 0.04485368677 | AH62: =IFERROR(IF(AD45="iBoxx- Nominal", INDEX('Trailing Average'!$H$105:$Y$105,MATCH(AH$47,'Trailing Average'!$H$6:$Y$6)), INDEX('Trailing Average'!$H$360:$Y$360,MATCH(AH$47,'Trailing Average'!$H$6:$Y$6))) + $AB62,"") -> 0.04563339112 | AI62: =IFERROR(IF(AD45="iBoxx- Nominal", INDEX('Trailing Average'!$H$105:$Y$105,MATCH(AI$47,'Trailing Average'!$H$6:$Y$6)), INDEX('Trailing Average'!$H$360:$Y$360,MATCH(AI$47,'Trailing Average'!$H$6:$Y$6))) + $AB62,"") -> 0.04649848087 | AJ62: 0.04535404355 | AL62: 18 Yr | AM62: =IFERROR(IF(AL45="iBoxx- Nominal", INDEX('Trailing Average'!$H$105:$Y$105,MATCH(AM47,'Trailing Average'!$H$6:$Y$6)), INDEX('Trailing Average'!$H$360:$Y$360,MATCH(AM47,'Trailing Average'!$H$6:$Y$6))) + $AB62,"") -> 0.04495023198 | AN62: =IFERROR(IF(AL45="iBoxx- Nominal", INDEX('Trailing Average'!$H$105:$Y$105,MATCH(AN47,'Trailing Average'!$H$6:$Y$6)), INDEX('Trailing Average'!$H$360:$Y$360,MATCH(AN47,'Trailing Average'!$H$6:$Y$6))) + $AB62,"") -> 0.044834427 | AO62: =IFERROR(IF(AL45="iBoxx- Nominal", INDEX('Trailing Average'!$H$105:$Y$105,MATCH(AO$47,'Trailing Average'!$H$6:$Y$6)), INDEX('Trailing Average'!$H$360:$Y$360,MATCH(AO$47,'Trailing Average'!$H$6:$Y$6))) + $AB62,"") -> 0.04485368677 | AP62: =IFERROR(IF(AL45="iBoxx- Nominal", INDEX('Trailing Average'!$H$105:$Y$105,MATCH(AP$47,'Trailing Average'!$H$6:$Y$6)), INDEX('Trailing Average'!$H$360:$Y$360,MATCH(AP$47,'Trailing Average'!$H$6:$Y$6))) + $AB62,"") -> 0.04563339112 | AQ62: =IFERROR(IF(AL45="iBoxx- Nominal", INDEX('Trailing Average'!$H$105:$Y$105,MATCH(AQ$47,'Trailing Average'!$H$6:$Y$6)), INDEX('Trailing Average'!$H$360:$Y$360,MATCH(AQ$47,'Trailing Average'!$H$6:$Y$6))) + $AB62,"") -> 0.04649848087 | AR62: 0.04535404355 | AT62: 18 Yr | AU62: =IFERROR(IF(AT45="iBoxx- Nominal", INDEX('Trailing Average'!$H$105:$Y$105,MATCH(AU47,'Trailing Average'!$H$6:$Y$6)), INDEX('Trailing Average'!$H$360:$Y$360,MATCH(AU47,'Trailing Average'!$H$6:$Y$6))) + $AB62,"") -> 0.04495023198 | AV62: =IFERROR(IF(AT45="iBoxx- Nominal", INDEX('Trailing Average'!$H$105:$Y$105,MATCH(AV47,'Trailing Average'!$H$6:$Y$6)), INDEX('Trailing Average'!$H$360:$Y$360,MATCH(AV47,'Trailing Average'!$H$6:$Y$6))) + $AB62,"") -> 0.044834427 | AW62: =IFERROR(IF(AT45="iBoxx- Nominal", INDEX('Trailing Average'!$H$105:$Y$105,MATCH(AW$47,'Trailing Average'!$H$6:$Y$6)), INDEX('Trailing Average'!$H$360:$Y$360,MATCH(AW$47,'Trailing Average'!$H$6:$Y$6))) + $AB62,"") -> 0.04485368677 | AX62: =IFERROR(IF(AT45="iBoxx- Nominal", INDEX('Trailing Average'!$H$105:$Y$105,MATCH(AX$47,'Trailing Average'!$H$6:$Y$6)), INDEX('Trailing Average'!$H$360:$Y$360,MATCH(AX$47,'Trailing Average'!$H$6:$Y$6))) + $AB62,"") -> 0.04563339112 | AY62: =IFERROR(IF(AT45="iBoxx- Nominal", INDEX('Trailing Average'!$H$105:$Y$105,MATCH(AY$47,'Trailing Average'!$H$6:$Y$6)), INDEX('Trailing Average'!$H$360:$Y$360,MATCH(AY$47,'Trailing Average'!$H$6:$Y$6))) + $AB62,"") -> 0.04649848087 | AZ62: 0.04535404355
F63: 14 | G63: 0 | I63: 14 Yr | J63: =IFERROR(IF(I$45="iBoxx- Nominal", INDEX('Trailing Average'!$H$126:$Y$126,MATCH(J47,'Trailing Average'!$H$6:$Y$6)), INDEX('Trailing Average'!$H$381:$Y$381,MATCH(J47,'Trailing Average'!$H$6:$Y$6))) + $G63,"") -> 0.04021320521 | K63: =IFERROR(IF(I$45="iBoxx- Nominal", INDEX('Trailing Average'!$H$126:$Y$126,MATCH(K47,'Trailing Average'!$H$6:$Y$6)), INDEX('Trailing Average'!$H$381:$Y$381,MATCH(K47,'Trailing Average'!$H$6:$Y$6))) + $G63,"") -> 0.04143542132 | L63: =IFERROR(IF(I$45="iBoxx- Nominal", INDEX('Trailing Average'!$H$126:$Y$126,MATCH(L47,'Trailing Average'!$H$6:$Y$6)), INDEX('Trailing Average'!$H$381:$Y$381,MATCH(L47,'Trailing Average'!$H$6:$Y$6))) + $G63,"") -> 0.04316391425 | M63: =IFERROR(IF(I$45="iBoxx- Nominal", INDEX('Trailing Average'!$H$126:$Y$126,MATCH(M47,'Trailing Average'!$H$6:$Y$6)), INDEX('Trailing Average'!$H$381:$Y$381,MATCH(M47,'Trailing Average'!$H$6:$Y$6))) + $G63,"") -> 0.04489571676 | N63: =IFERROR(IF(I$45="iBoxx- Nominal", INDEX('Trailing Average'!$H$126:$Y$126,MATCH(N47,'Trailing Average'!$H$6:$Y$6)), INDEX('Trailing Average'!$H$381:$Y$381,MATCH(N47,'Trailing Average'!$H$6:$Y$6))) + $G63,"") -> 0.0470824359 | O63: 0.04335813869 | Q63: 14 Yr | R63: =IFERROR(IF(Q$45="iBoxx- Nominal", INDEX('Trailing Average'!$H$126:$Y$126,MATCH(R47,'Trailing Average'!$H$6:$Y$6)), INDEX('Trailing Average'!$H$381:$Y$381,MATCH(R47,'Trailing Average'!$H$6:$Y$6))) + $G63,"") -> 0.04021320521 | S63: =IFERROR(IF(Q$45="iBoxx- Nominal", INDEX('Trailing Average'!$H$126:$Y$126,MATCH(S47,'Trailing Average'!$H$6:$Y$6)), INDEX('Trailing Average'!$H$381:$Y$381,MATCH(S47,'Trailing Average'!$H$6:$Y$6))) + $G63,"") -> 0.04143542132 | T63: =IFERROR(IF(Q$45="iBoxx- Nominal", INDEX('Trailing Average'!$H$126:$Y$126,MATCH(T47,'Trailing Average'!$H$6:$Y$6)), INDEX('Trailing Average'!$H$381:$Y$381,MATCH(T47,'Trailing Average'!$H$6:$Y$6))) + $G63,"") -> 0.04316391425 | U63: =IFERROR(IF(Q$45="iBoxx- Nominal", INDEX('Trailing Average'!$H$126:$Y$126,MATCH(U47,'Trailing Average'!$H$6:$Y$6)), INDEX('Trailing Average'!$H$381:$Y$381,MATCH(U47,'Trailing Average'!$H$6:$Y$6))) + $G63,"") -> 0.04489571676 | V63: =IFERROR(IF(Q$45="iBoxx- Nominal", INDEX('Trailing Average'!$H$126:$Y$126,MATCH(V47,'Trailing Average'!$H$6:$Y$6)), INDEX('Trailing Average'!$H$381:$Y$381,MATCH(V47,'Trailing Average'!$H$6:$Y$6))) + $G63,"") -> 0.0470824359 | W63: 0.04335813869 | AA63: 14 | AB63: 0 | AD63: 14 Yr | AE63: =IFERROR(IF(AD45="iBoxx- Nominal", INDEX('Trailing Average'!$H$126:$Y$126,MATCH(AE47,'Trailing Average'!$H$6:$Y$6)), INDEX('Trailing Average'!$H$381:$Y$381,MATCH(AE47,'Trailing Average'!$H$6:$Y$6))) + $AB63,"") -> 0.04021320521 | AF63: =IFERROR(IF(AD45="iBoxx- Nominal", INDEX('Trailing Average'!$H$126:$Y$126,MATCH(AF47,'Trailing Average'!$H$6:$Y$6)), INDEX('Trailing Average'!$H$381:$Y$381,MATCH(AF47,'Trailing Average'!$H$6:$Y$6))) + $AB63,"") -> 0.04143542132 | AG63: =IFERROR(IF(AD45="iBoxx- Nominal", INDEX('Trailing Average'!$H$126:$Y$126,MATCH(AG$47,'Trailing Average'!$H$6:$Y$6)), INDEX('Trailing Average'!$H$381:$Y$381,MATCH(AG$47,'Trailing Average'!$H$6:$Y$6))) + $AB63,"") -> 0.04316391425 | AH63: =IFERROR(IF(AD45="iBoxx- Nominal", INDEX('Trailing Average'!$H$126:$Y$126,MATCH(AH$47,'Trailing Average'!$H$6:$Y$6)), INDEX('Trailing Average'!$H$381:$Y$381,MATCH(AH$47,'Trailing Average'!$H$6:$Y$6))) + $AB63,"") -> 0.04489571676 | AI63: =IFERROR(IF(AD45="iBoxx- Nominal", INDEX('Trailing Average'!$H$126:$Y$126,MATCH(AI$47,'Trailing Average'!$H$6:$Y$6)), INDEX('Trailing Average'!$H$381:$Y$381,MATCH(AI$47,'Trailing Average'!$H$6:$Y$6))) + $AB63,"") -> 0.0470824359 | AJ63: 0.04335813869 | AL63: 14 Yr | AM63: =IFERROR(IF(AL45="iBoxx- Nominal", INDEX('Trailing Average'!$H$126:$Y$126,MATCH(AM47,'Trailing Average'!$H$6:$Y$6)), INDEX('Trailing Average'!$H$381:$Y$381,MATCH(AM47,'Trailing Average'!$H$6:$Y$6))) + $AB63,"") -> 0.04021320521 | AN63: =IFERROR(IF(AL45="iBoxx- Nominal", INDEX('Trailing Average'!$H$126:$Y$126,MATCH(AN47,'Trailing Average'!$H$6:$Y$6)), INDEX('Trailing Average'!$H$381:$Y$381,MATCH(AN47,'Trailing Average'!$H$6:$Y$6))) + $AB63,"") -> 0.04143542132 | AO63: =IFERROR(IF(AL45="iBoxx- Nominal", INDEX('Trailing Average'!$H$126:$Y$126,MATCH(AO$47,'Trailing Average'!$H$6:$Y$6)), INDEX('Trailing Average'!$H$381:$Y$381,MATCH(AO$47,'Trailing Average'!$H$6:$Y$6))) + $AB63,"") -> 0.04316391425 | AP63: =IFERROR(IF(AL45="iBoxx- Nominal", INDEX('Trailing Average'!$H$126:$Y$126,MATCH(AP$47,'Trailing Average'!$H$6:$Y$6)), INDEX('Trailing Average'!$H$381:$Y$381,MATCH(AP$47,'Trailing Average'!$H$6:$Y$6))) + $AB63,"") -> 0.04489571676 | AQ63: =IFERROR(IF(AL45="iBoxx- Nominal", INDEX('Trailing Average'!$H$126:$Y$126,MATCH(AQ$47,'Trailing Average'!$H$6:$Y$6)), INDEX('Trailing Average'!$H$381:$Y$381,MATCH(AQ$47,'Trailing Average'!$H$6:$Y$6))) + $AB63,"") -> 0.0470824359 | AR63: 0.04335813869 | AT63: 14 Yr | AU63: =IFERROR(IF(AT45="iBoxx- Nominal", INDEX('Trailing Average'!$H$126:$Y$126,MATCH(AU47,'Trailing Average'!$H$6:$Y$6)), INDEX('Trailing Average'!$H$381:$Y$381,MATCH(AU47,'Trailing Average'!$H$6:$Y$6))) + $AB63,"") -> 0.04021320521 | AV63: =IFERROR(IF(AT45="iBoxx- Nominal", INDEX('Trailing Average'!$H$126:$Y$126,MATCH(AV47,'Trailing Average'!$H$6:$Y$6)), INDEX('Trailing Average'!$H$381:$Y$381,MATCH(AV47,'Trailing Average'!$H$6:$Y$6))) + $AB63,"") -> 0.04143542132 | AW63: =IFERROR(IF(AT45="iBoxx- Nominal", INDEX('Trailing Average'!$H$126:$Y$126,MATCH(AW$47,'Trailing Average'!$H$6:$Y$6)), INDEX('Trailing Average'!$H$381:$Y$381,MATCH(AW$47,'Trailing Average'!$H$6:$Y$6))) + $AB63,"") -> 0.04316391425 | AX63: =IFERROR(IF(AT45="iBoxx- Nominal", INDEX('Trailing Average'!$H$126:$Y$126,MATCH(AX$47,'Trailing Average'!$H$6:$Y$6)), INDEX('Trailing Average'!$H$381:$Y$381,MATCH(AX$47,'Trailing Average'!$H$6:$Y$6))) + $AB63,"") -> 0.04489571676 | AY63: =IFERROR(IF(AT45="iBoxx- Nominal", INDEX('Trailing Average'!$H$126:$Y$126,MATCH(AY$47,'Trailing Average'!$H$6:$Y$6)), INDEX('Trailing Average'!$H$381:$Y$381,MATCH(AY$47,'Trailing Average'!$H$6:$Y$6))) + $AB63,"") -> 0.0470824359 | AZ63: 0.04335813869
F64: 14 | G64: 0.006 | I64: =IF(F64 = "Spare","",F64&" Yr"& IF(G64=0,""," + "&G64*10000&" bps")) -> 14 Yr + 60 bps | J64: =IFERROR(IF(I$45="iBoxx- Nominal", INDEX('Trailing Average'!$H$147:$Y$147,MATCH(J47,'Trailing Average'!$H$6:$Y$6)),INDEX('Trailing Average'!$H$402:$Y$402,MATCH(J47,'Trailing Average'!$H$6:$Y$6))) + $G64,"") -> 0.04621320521 | K64: =IFERROR(IF(I$45="iBoxx- Nominal", INDEX('Trailing Average'!$H$147:$Y$147,MATCH(K47,'Trailing Average'!$H$6:$Y$6)),INDEX('Trailing Average'!$H$402:$Y$402,MATCH(K47,'Trailing Average'!$H$6:$Y$6))) + $G64,"") -> 0.04743542132 | L64: =IFERROR(IF(I$45="iBoxx- Nominal", INDEX('Trailing Average'!$H$147:$Y$147,MATCH(L47,'Trailing Average'!$H$6:$Y$6)),INDEX('Trailing Average'!$H$402:$Y$402,MATCH(L47,'Trailing Average'!$H$6:$Y$6))) + $G64,"") -> 0.04916391425 | M64: =IFERROR(IF(I$45="iBoxx- Nominal", INDEX('Trailing Average'!$H$147:$Y$147,MATCH(M47,'Trailing Average'!$H$6:$Y$6)),INDEX('Trailing Average'!$H$402:$Y$402,MATCH(M47,'Trailing Average'!$H$6:$Y$6))) + $G64,"") -> 0.05089571676 | N64: =IFERROR(IF(I$45="iBoxx- Nominal", INDEX('Trailing Average'!$H$147:$Y$147,MATCH(N47,'Trailing Average'!$H$6:$Y$6)),INDEX('Trailing Average'!$H$402:$Y$402,MATCH(N47,'Trailing Average'!$H$6:$Y$6))) + $G64,"") -> 0.0530824359 | O64: 0.04935813869 | Q64: 14 Yr + 60 bps | R64: =IFERROR(IF(Q$45="iBoxx- Nominal", INDEX('Trailing Average'!$H$147:$Y$147,MATCH(R47,'Trailing Average'!$H$6:$Y$6)),INDEX('Trailing Average'!$H$402:$Y$402,MATCH(R47,'Trailing Average'!$H$6:$Y$6))) + $G64,"") -> 0.04621320521 | S64: =IFERROR(IF(Q$45="iBoxx- Nominal", INDEX('Trailing Average'!$H$147:$Y$147,MATCH(S47,'Trailing Average'!$H$6:$Y$6)),INDEX('Trailing Average'!$H$402:$Y$402,MATCH(S47,'Trailing Average'!$H$6:$Y$6))) + $G64,"") -> 0.04743542132 | T64: =IFERROR(IF(Q$45="iBoxx- Nominal", INDEX('Trailing Average'!$H$147:$Y$147,MATCH(T47,'Trailing Average'!$H$6:$Y$6)),INDEX('Trailing Average'!$H$402:$Y$402,MATCH(T47,'Trailing Average'!$H$6:$Y$6))) + $G64,"") -> 0.04916391425 | U64: =IFERROR(IF(Q$45="iBoxx- Nominal", INDEX('Trailing Average'!$H$147:$Y$147,MATCH(U47,'Trailing Average'!$H$6:$Y$6)),INDEX('Trailing Average'!$H$402:$Y$402,MATCH(U47,'Trailing Average'!$H$6:$Y$6))) + $G64,"") -> 0.05089571676 | V64: =IFERROR(IF(Q$45="iBoxx- Nominal", INDEX('Trailing Average'!$H$147:$Y$147,MATCH(V47,'Trailing Average'!$H$6:$Y$6)),INDEX('Trailing Average'!$H$402:$Y$402,MATCH(V47,'Trailing Average'!$H$6:$Y$6))) + $G64,"") -> 0.0530824359 | W64: 0.04935813869 | AA64: 14 | AB64: 0.006 | AD64: 14 Yr + 60 bps | AE64: =IFERROR(IF(AD45="iBoxx- Nominal", INDEX('Trailing Average'!$H$147:$Y$147,MATCH(AE47,'Trailing Average'!$H$6:$Y$6)),INDEX('Trailing Average'!$H$402:$Y$402,MATCH(AE47,'Trailing Average'!$H$6:$Y$6))) + $AB64,"") -> 0.04621320521 | AF64: =IFERROR(IF(AD45="iBoxx- Nominal", INDEX('Trailing Average'!$H$147:$Y$147,MATCH(AF47,'Trailing Average'!$H$6:$Y$6)),INDEX('Trailing Average'!$H$402:$Y$402,MATCH(AF47,'Trailing Average'!$H$6:$Y$6))) + $AB64,"") -> 0.04743542132 | AG64: =IFERROR(IF(AD45="iBoxx- Nominal", INDEX('Trailing Average'!$H$147:$Y$147,MATCH(AG$47,'Trailing Average'!$H$6:$Y$6)),INDEX('Trailing Average'!$H$402:$Y$402,MATCH(AG$47,'Trailing Average'!$H$6:$Y$6))) + $AB64,"") -> 0.04916391425 | AH64: =IFERROR(IF(AD45="iBoxx- Nominal", INDEX('Trailing Average'!$H$147:$Y$147,MATCH(AH$47,'Trailing Average'!$H$6:$Y$6)),INDEX('Trailing Average'!$H$402:$Y$402,MATCH(AH$47,'Trailing Average'!$H$6:$Y$6))) + $AB64,"") -> 0.05089571676 | AI64: =IFERROR(IF(AD45="iBoxx- Nominal", INDEX('Trailing Average'!$H$147:$Y$147,MATCH(AI$47,'Trailing Average'!$H$6:$Y$6)),INDEX('Trailing Average'!$H$402:$Y$402,MATCH(AI$47,'Trailing Average'!$H$6:$Y$6))) + $AB64,"") -> 0.0530824359 | AJ64: 0.04935813869 | AL64: 14 Yr + 60 bps | AM64: =IFERROR(IF(AL45="iBoxx- Nominal", INDEX('Trailing Average'!$H$147:$Y$147,MATCH(AM47,'Trailing Average'!$H$6:$Y$6)),INDEX('Trailing Average'!$H$402:$Y$402,MATCH(AM47,'Trailing Average'!$H$6:$Y$6))) + $AB64,"") -> 0.04621320521 | AN64: =IFERROR(IF(AL45="iBoxx- Nominal", INDEX('Trailing Average'!$H$147:$Y$147,MATCH(AN47,'Trailing Average'!$H$6:$Y$6)),INDEX('Trailing Average'!$H$402:$Y$402,MATCH(AN47,'Trailing Average'!$H$6:$Y$6))) + $AB64,"") -> 0.04743542132 | AO64: =IFERROR(IF(AL45="iBoxx- Nominal", INDEX('Trailing Average'!$H$147:$Y$147,MATCH(AO$47,'Trailing Average'!$H$6:$Y$6)),INDEX('Trailing Average'!$H$402:$Y$402,MATCH(AO$47,'Trailing Average'!$H$6:$Y$6))) + $AB64,"") -> 0.04916391425 | AP64: =IFERROR(IF(AL45="iBoxx- Nominal", INDEX('Trailing Average'!$H$147:$Y$147,MATCH(AP$47,'Trailing Average'!$H$6:$Y$6)),INDEX('Trailing Average'!$H$402:$Y$402,MATCH(AP$47,'Trailing Average'!$H$6:$Y$6))) + $AB64,"") -> 0.05089571676 | AQ64: =IFERROR(IF(AL45="iBoxx- Nominal", INDEX('Trailing Average'!$H$147:$Y$147,MATCH(AQ$47,'Trailing Average'!$H$6:$Y$6)),INDEX('Trailing Average'!$H$402:$Y$402,MATCH(AQ$47,'Trailing Average'!$H$6:$Y$6))) + $AB64,"") -> 0.0530824359 | AR64: 0.04935813869 | AT64: 14 Yr + 60 bps | AU64: =IFERROR(IF(AT45="iBoxx- Nominal", INDEX('Trailing Average'!$H$147:$Y$147,MATCH(AU47,'Trailing Average'!$H$6:$Y$6)),INDEX('Trailing Average'!$H$402:$Y$402,MATCH(AU47,'Trailing Average'!$H$6:$Y$6))) + $AB64,"") -> 0.04621320521 | AV64: =IFERROR(IF(AT45="iBoxx- Nominal", INDEX('Trailing Average'!$H$147:$Y$147,MATCH(AV47,'Trailing Average'!$H$6:$Y$6)),INDEX('Trailing Average'!$H$402:$Y$402,MATCH(AV47,'Trailing Average'!$H$6:$Y$6))) + $AB64,"") -> 0.04743542132 | AW64: =IFERROR(IF(AT45="iBoxx- Nominal", INDEX('Trailing Average'!$H$147:$Y$147,MATCH(AW$47,'Trailing Average'!$H$6:$Y$6)),INDEX('Trailing Average'!$H$402:$Y$402,MATCH(AW$47,'Trailing Average'!$H$6:$Y$6))) + $AB64,"") -> 0.04916391425 | AX64: =IFERROR(IF(AT45="iBoxx- Nominal", INDEX('Trailing Average'!$H$147:$Y$147,MATCH(AX$47,'Trailing Average'!$H$6:$Y$6)),INDEX('Trailing Average'!$H$402:$Y$402,MATCH(AX$47,'Trailing Average'!$H$6:$Y$6))) + $AB64,"") -> 0.05089571676 | AY64: =IFERROR(IF(AT45="iBoxx- Nominal", INDEX('Trailing Average'!$H$147:$Y$147,MATCH(AY$47,'Trailing Average'!$H$6:$Y$6)),INDEX('Trailing Average'!$H$402:$Y$402,MATCH(AY$47,'Trailing Average'!$H$6:$Y$6))) + $AB64,"") -> 0.0530824359 | AZ64: 0.04935813869
F65: 14 | G65: 0 | I65: =IF(F65 = "Spare","",F65&" Yrs no lag"& IF(G65=0,""," + "&G65*10000&" bps")) -> 14 Yrs no lag | J65: =IFERROR(IF(I$45="iBoxx- Nominal", INDEX('Trailing Average'!$H$168:$Y$168,MATCH(J47,'Trailing Average'!$H$6:$Y$6)), INDEX('Trailing Average'!$H$423:$Y$423,MATCH(J47,'Trailing Average'!$H$6:$Y$6))) + $G65,"") -> 0.0405703083 | K65: =IFERROR(IF(I$45="iBoxx- Nominal", INDEX('Trailing Average'!$H$168:$Y$168,MATCH(K47,'Trailing Average'!$H$6:$Y$6)), INDEX('Trailing Average'!$H$423:$Y$423,MATCH(K47,'Trailing Average'!$H$6:$Y$6))) + $G65,"") -> 0.04216030829 | L65: =IFERROR(IF(I$45="iBoxx- Nominal", INDEX('Trailing Average'!$H$168:$Y$168,MATCH(L47,'Trailing Average'!$H$6:$Y$6)), INDEX('Trailing Average'!$H$423:$Y$423,MATCH(L47,'Trailing Average'!$H$6:$Y$6))) + $G65,"") -> 0.04384954174 | M65: =IFERROR(IF(I$45="iBoxx- Nominal", INDEX('Trailing Average'!$H$168:$Y$168,MATCH(M47,'Trailing Average'!$H$6:$Y$6)), INDEX('Trailing Average'!$H$423:$Y$423,MATCH(M47,'Trailing Average'!$H$6:$Y$6))) + $G65,"") -> 0.04583908075 | N65: =IFERROR(IF(I$45="iBoxx- Nominal", INDEX('Trailing Average'!$H$168:$Y$168,MATCH(N47,'Trailing Average'!$H$6:$Y$6)), INDEX('Trailing Average'!$H$423:$Y$423,MATCH(N47,'Trailing Average'!$H$6:$Y$6))) + $G65,"") -> 0.04791465418 | O65: 0.04406677865 | Q65: 14 Yrs no lag | R65: =IFERROR(IF(Q$45="iBoxx- Nominal", INDEX('Trailing Average'!$H$168:$Y$168,MATCH(R47,'Trailing Average'!$H$6:$Y$6)), INDEX('Trailing Average'!$H$423:$Y$423,MATCH(R47,'Trailing Average'!$H$6:$Y$6))) + $G65,"") -> 0.0405703083 | S65: =IFERROR(IF(Q$45="iBoxx- Nominal", INDEX('Trailing Average'!$H$168:$Y$168,MATCH(S47,'Trailing Average'!$H$6:$Y$6)), INDEX('Trailing Average'!$H$423:$Y$423,MATCH(S47,'Trailing Average'!$H$6:$Y$6))) + $G65,"") -> 0.04216030829 | T65: =IFERROR(IF(Q$45="iBoxx- Nominal", INDEX('Trailing Average'!$H$168:$Y$168,MATCH(T47,'Trailing Average'!$H$6:$Y$6)), INDEX('Trailing Average'!$H$423:$Y$423,MATCH(T47,'Trailing Average'!$H$6:$Y$6))) + $G65,"") -> 0.04384954174 | U65: =IFERROR(IF(Q$45="iBoxx- Nominal", INDEX('Trailing Average'!$H$168:$Y$168,MATCH(U47,'Trailing Average'!$H$6:$Y$6)), INDEX('Trailing Average'!$H$423:$Y$423,MATCH(U47,'Trailing Average'!$H$6:$Y$6))) + $G65,"") -> 0.04583908075 | V65: =IFERROR(IF(Q$45="iBoxx- Nominal", INDEX('Trailing Average'!$H$168:$Y$168,MATCH(V47,'Trailing Average'!$H$6:$Y$6)), INDEX('Trailing Average'!$H$423:$Y$423,MATCH(V47,'Trailing Average'!$H$6:$Y$6))) + $G65,"") -> 0.04791465418 | W65: 0.04406677865 | AA65: 14 | AB65: 0 | AD65: =IF(AA65 = "Spare","",AA65&" Yrs no lag"& IF(AB65=0,""," + "&AB65*10000&" bps")) -> 14 Yrs no lag | AE65: =IFERROR(IF(AD45="iBoxx- Nominal", INDEX('Trailing Average'!$H$168:$Y$168,MATCH(AE47,'Trailing Average'!$H$6:$Y$6)), INDEX('Trailing Average'!$H$423:$Y$423,MATCH(AE47,'Trailing Average'!$H$6:$Y$6))) +$AB65,"") -> 0.0405703083 | AF65: =IFERROR(IF(AD45="iBoxx- Nominal", INDEX('Trailing Average'!$H$168:$Y$168,MATCH(AF47,'Trailing Average'!$H$6:$Y$6)), INDEX('Trailing Average'!$H$423:$Y$423,MATCH(AF47,'Trailing Average'!$H$6:$Y$6))) +$AB65,"") -> 0.04216030829 | AG65: =IFERROR(IF(AD45="iBoxx- Nominal", INDEX('Trailing Average'!$H$168:$Y$168,MATCH(AG47,'Trailing Average'!$H$6:$Y$6)), INDEX('Trailing Average'!$H$423:$Y$423,MATCH(AG47,'Trailing Average'!$H$6:$Y$6))) +$AB65,"") -> 0.04384954174 | AH65: =IFERROR(IF(AD45="iBoxx- Nominal", INDEX('Trailing Average'!$H$168:$Y$168,MATCH(AH47,'Trailing Average'!$H$6:$Y$6)), INDEX('Trailing Average'!$H$423:$Y$423,MATCH(AH47,'Trailing Average'!$H$6:$Y$6))) +$AB65,"") -> 0.04583908075 | AI65: =IFERROR(IF(AD45="iBoxx- Nominal", INDEX('Trailing Average'!$H$168:$Y$168,MATCH(AI47,'Trailing Average'!$H$6:$Y$6)), INDEX('Trailing Average'!$H$423:$Y$423,MATCH(AI47,'Trailing Average'!$H$6:$Y$6))) +$AB65,"") -> 0.04791465418 | AJ65: 0.04406677865 | AL65: 14 Yrs no lag | AM65: =IFERROR(IF(AL45="iBoxx- Nominal", INDEX('Trailing Average'!$H$168:$Y$168,MATCH(AM47,'Trailing Average'!$H$6:$Y$6)), INDEX('Trailing Average'!$H$423:$Y$423,MATCH(AM47,'Trailing Average'!$H$6:$Y$6))) + AB65,"") -> 0.0405703083 | AN65: =IFERROR(IF(AL45="iBoxx- Nominal", INDEX('Trailing Average'!$H$168:$Y$168,MATCH(AN47,'Trailing Average'!$H$6:$Y$6)), INDEX('Trailing Average'!$H$423:$Y$423,MATCH(AN47,'Trailing Average'!$H$6:$Y$6))) + AB65,"") -> 0.04216030829 | AO65: =IFERROR(IF(AL45="iBoxx- Nominal", INDEX('Trailing Average'!$H$168:$Y$168,MATCH(AO$47,'Trailing Average'!$H$6:$Y$6)), INDEX('Trailing Average'!$H$423:$Y$423,MATCH(AO$47,'Trailing Average'!$H$6:$Y$6))) + AB65,"") -> 0.04384954174 | AP65: =IFERROR(IF(AL45="iBoxx- Nominal", INDEX('Trailing Average'!$H$168:$Y$168,MATCH(AP$47,'Trailing Average'!$H$6:$Y$6)), INDEX('Trailing Average'!$H$423:$Y$423,MATCH(AP$47,'Trailing Average'!$H$6:$Y$6))) + AB65,"") -> 0.04583908075 | AQ65: =IFERROR(IF(AL45="iBoxx- Nominal", INDEX('Trailing Average'!$H$168:$Y$168,MATCH(AQ$47,'Trailing Average'!$H$6:$Y$6)), INDEX('Trailing Average'!$H$423:$Y$423,MATCH(AQ$47,'Trailing Average'!$H$6:$Y$6))) + AB65,"") -> 0.04791465418 | AR65: 0.04406677865 | AT65: 14 Yrs no lag | AU65: =IFERROR(IF(AT45="iBoxx- Nominal", INDEX('Trailing Average'!$H$168:$Y$168,MATCH(AU47,'Trailing Average'!$H$6:$Y$6)), INDEX('Trailing Average'!$H$423:$Y$423,MATCH(AU47,'Trailing Average'!$H$6:$Y$6))) + AB65,"") -> 0.0405703083 | AV65: =IFERROR(IF(AT45="iBoxx- Nominal", INDEX('Trailing Average'!$H$168:$Y$168,MATCH(AV47,'Trailing Average'!$H$6:$Y$6)), INDEX('Trailing Average'!$H$423:$Y$423,MATCH(AV47,'Trailing Average'!$H$6:$Y$6))) + AB65,"") -> 0.04216030829 | AW65: =IFERROR(IF(AT45="iBoxx- Nominal", INDEX('Trailing Average'!$H$168:$Y$168,MATCH(AW$47,'Trailing Average'!$H$6:$Y$6)), INDEX('Trailing Average'!$H$423:$Y$423,MATCH(AW$47,'Trailing Average'!$H$6:$Y$6))) + AB65,"") -> 0.04384954174 | AX65: =IFERROR(IF(AT45="iBoxx- Nominal", INDEX('Trailing Average'!$H$168:$Y$168,MATCH(AX$47,'Trailing Average'!$H$6:$Y$6)), INDEX('Trailing Average'!$H$423:$Y$423,MATCH(AX$47,'Trailing Average'!$H$6:$Y$6))) + AB65,"") -> 0.04583908075 | AY65: =IFERROR(IF(AT45="iBoxx- Nominal", INDEX('Trailing Average'!$H$168:$Y$168,MATCH(AY$47,'Trailing Average'!$H$6:$Y$6)), INDEX('Trailing Average'!$H$423:$Y$423,MATCH(AY$47,'Trailing Average'!$H$6:$Y$6))) + AB65,"") -> 0.04791465418 | AZ65: 0.04406677865
F66: 14 | G66: 0.0072 | I66: =IF(F66 = "Spare","",F66&" Yrs no lag"& IF(G66=0,""," + "&G66*10000&" bps")) -> 14 Yrs no lag + 72 bps | J66: =IFERROR(IF(I$45= "iBoxx- Nominal", INDEX('Trailing Average'!$H$189:$Y$189,MATCH(J47,'Trailing Average'!$H$6:$Y$6)), INDEX('Trailing Average'!$H$444:$Y$444,MATCH(J47,'Trailing Average'!$H$6:$Y$6)) ) + $G66,"") -> 0.0477703083 | K66: =IFERROR(IF(I$45= "iBoxx- Nominal", INDEX('Trailing Average'!$H$189:$Y$189,MATCH(K47,'Trailing Average'!$H$6:$Y$6)), INDEX('Trailing Average'!$H$444:$Y$444,MATCH(K47,'Trailing Average'!$H$6:$Y$6)) ) + $G66,"") -> 0.04936030829 | L66: =IFERROR(IF(I$45= "iBoxx- Nominal", INDEX('Trailing Average'!$H$189:$Y$189,MATCH(L47,'Trailing Average'!$H$6:$Y$6)), INDEX('Trailing Average'!$H$444:$Y$444,MATCH(L47,'Trailing Average'!$H$6:$Y$6)) ) + $G66,"") -> 0.05104954174 | M66: =IFERROR(IF(I$45= "iBoxx- Nominal", INDEX('Trailing Average'!$H$189:$Y$189,MATCH(M47,'Trailing Average'!$H$6:$Y$6)), INDEX('Trailing Average'!$H$444:$Y$444,MATCH(M47,'Trailing Average'!$H$6:$Y$6)) ) + $G66,"") -> 0.05303908075 | N66: =IFERROR(IF(I$45= "iBoxx- Nominal", INDEX('Trailing Average'!$H$189:$Y$189,MATCH(N47,'Trailing Average'!$H$6:$Y$6)), INDEX('Trailing Average'!$H$444:$Y$444,MATCH(N47,'Trailing Average'!$H$6:$Y$6)) ) + $G66,"") -> 0.05511465418 | O66: 0.05126677865 | Q66: 14 Yrs no lag + 72 bps | R66: =IFERROR(IF(Q$45= "iBoxx- Nominal", INDEX('Trailing Average'!$H$189:$Y$189,MATCH(R47,'Trailing Average'!$H$6:$Y$6)), INDEX('Trailing Average'!$H$444:$Y$444,MATCH(R47,'Trailing Average'!$H$6:$Y$6)) ) + $G66,"") -> 0.0477703083 | S66: =IFERROR(IF(Q$45= "iBoxx- Nominal", INDEX('Trailing Average'!$H$189:$Y$189,MATCH(S47,'Trailing Average'!$H$6:$Y$6)), INDEX('Trailing Average'!$H$444:$Y$444,MATCH(S47,'Trailing Average'!$H$6:$Y$6)) ) + $G66,"") -> 0.04936030829 | T66: =IFERROR(IF(Q$45= "iBoxx- Nominal", INDEX('Trailing Average'!$H$189:$Y$189,MATCH(T47,'Trailing Average'!$H$6:$Y$6)), INDEX('Trailing Average'!$H$444:$Y$444,MATCH(T47,'Trailing Average'!$H$6:$Y$6)) ) + $G66,"") -> 0.05104954174 | U66: =IFERROR(IF(Q$45= "iBoxx- Nominal", INDEX('Trailing Average'!$H$189:$Y$189,MATCH(U47,'Trailing Average'!$H$6:$Y$6)), INDEX('Trailing Average'!$H$444:$Y$444,MATCH(U47,'Trailing Average'!$H$6:$Y$6)) ) + $G66,"") -> 0.05303908075 | V66: =IFERROR(IF(Q$45= "iBoxx- Nominal", INDEX('Trailing Average'!$H$189:$Y$189,MATCH(V47,'Trailing Average'!$H$6:$Y$6)), INDEX('Trailing Average'!$H$444:$Y$444,MATCH(V47,'Trailing Average'!$H$6:$Y$6)) ) + $G66,"") -> 0.05511465418 | W66: 0.05126677865 | AA66: 14 | AB66: 0.0072 | AD66: =IF(AA66 = "Spare","",AA66&" Yrs no lag"& IF(AB66=0,""," + "&AB66*10000&" bps")) -> 14 Yrs no lag + 72 bps | AE66: =IFERROR(IF(AD45= "iBoxx- Nominal", INDEX('Trailing Average'!$H$189:$Y$189,MATCH(AE47,'Trailing Average'!$H$6:$Y$6)), INDEX('Trailing Average'!$H$444:$Y$444,MATCH(AE47,'Trailing Average'!$H$6:$Y$6)) ) +$AB66,"") -> 0.0477703083 | AF66: =IFERROR(IF(AD45= "iBoxx- Nominal", INDEX('Trailing Average'!$H$189:$Y$189,MATCH(AF47,'Trailing Average'!$H$6:$Y$6)), INDEX('Trailing Average'!$H$444:$Y$444,MATCH(AF47,'Trailing Average'!$H$6:$Y$6)) ) +$AB66,"") -> 0.04936030829 | AG66: =IFERROR(IF(AD45= "iBoxx- Nominal", INDEX('Trailing Average'!$H$189:$Y$189,MATCH(AG47,'Trailing Average'!$H$6:$Y$6)), INDEX('Trailing Average'!$H$444:$Y$444,MATCH(AG47,'Trailing Average'!$H$6:$Y$6)) ) +$AB66,"") -> 0.05104954174 | AH66: =IFERROR(IF(AD45= "iBoxx- Nominal", INDEX('Trailing Average'!$H$189:$Y$189,MATCH(AH47,'Trailing Average'!$H$6:$Y$6)), INDEX('Trailing Average'!$H$444:$Y$444,MATCH(AH47,'Trailing Average'!$H$6:$Y$6)) ) +$AB66,"") -> 0.05303908075 | AI66: =IFERROR(IF(AD45= "iBoxx- Nominal", INDEX('Trailing Average'!$H$189:$Y$189,MATCH(AI47,'Trailing Average'!$H$6:$Y$6)), INDEX('Trailing Average'!$H$444:$Y$444,MATCH(AI47,'Trailing Average'!$H$6:$Y$6)) ) +$AB66,"") -> 0.05511465418 | AJ66: 0.05126677865 | AL66: 14 Yrs no lag + 72 bps | AM66: =IFERROR(IF(AL45= "iBoxx- Nominal", INDEX('Trailing Average'!$H$189:$Y$189,MATCH(AM47,'Trailing Average'!$H$6:$Y$6)), INDEX('Trailing Average'!$H$444:$Y$444,MATCH(AM47,'Trailing Average'!$H$6:$Y$6)) ) + AB66,"") -> 0.0477703083 | AN66: =IFERROR(IF(AL45= "iBoxx- Nominal", INDEX('Trailing Average'!$H$189:$Y$189,MATCH(AN47,'Trailing Average'!$H$6:$Y$6)), INDEX('Trailing Average'!$H$444:$Y$444,MATCH(AN47,'Trailing Average'!$H$6:$Y$6)) ) + AB66,"") -> 0.04936030829 | AO66: =IFERROR(IF(AL45= "iBoxx- Nominal", INDEX('Trailing Average'!$H$189:$Y$189,MATCH(AO$47,'Trailing Average'!$H$6:$Y$6)), INDEX('Trailing Average'!$H$444:$Y$444,MATCH(AO$47,'Trailing Average'!$H$6:$Y$6)) ) + AB66,"") -> 0.05104954174 | AP66: =IFERROR(IF(AL45= "iBoxx- Nominal", INDEX('Trailing Average'!$H$189:$Y$189,MATCH(AP$47,'Trailing Average'!$H$6:$Y$6)), INDEX('Trailing Average'!$H$444:$Y$444,MATCH(AP$47,'Trailing Average'!$H$6:$Y$6)) ) + AB66,"") -> 0.05303908075 | AQ66: =IFERROR(IF(AL45= "iBoxx- Nominal", INDEX('Trailing Average'!$H$189:$Y$189,MATCH(AQ$47,'Trailing Average'!$H$6:$Y$6)), INDEX('Trailing Average'!$H$444:$Y$444,MATCH(AQ$47,'Trailing Average'!$H$6:$Y$6)) ) + AB66,"") -> 0.05511465418 | AR66: 0.05126677865 | AT66: 14 Yrs no lag + 72 bps | AU66: =IFERROR(IF(AT45= "iBoxx- Nominal", INDEX('Trailing Average'!$H$189:$Y$189,MATCH(AU47,'Trailing Average'!$H$6:$Y$6)), INDEX('Trailing Average'!$H$444:$Y$444,MATCH(AU47,'Trailing Average'!$H$6:$Y$6)) ) + AB66,"") -> 0.0477703083 | AV66: =IFERROR(IF(AT45= "iBoxx- Nominal", INDEX('Trailing Average'!$H$189:$Y$189,MATCH(AV47,'Trailing Average'!$H$6:$Y$6)), INDEX('Trailing Average'!$H$444:$Y$444,MATCH(AV47,'Trailing Average'!$H$6:$Y$6)) ) + AB66,"") -> 0.04936030829 | AW66: =IFERROR(IF(AT45= "iBoxx- Nominal", INDEX('Trailing Average'!$H$189:$Y$189,MATCH(AW$47,'Trailing Average'!$H$6:$Y$6)), INDEX('Trailing Average'!$H$444:$Y$444,MATCH(AW$47,'Trailing Average'!$H$6:$Y$6)) ) + AB66,"") -> 0.05104954174 | AX66: =IFERROR(IF(AT45= "iBoxx- Nominal", INDEX('Trailing Average'!$H$189:$Y$189,MATCH(AX$47,'Trailing Average'!$H$6:$Y$6)), INDEX('Trailing Average'!$H$444:$Y$444,MATCH(AX$47,'Trailing Average'!$H$6:$Y$6)) ) + AB66,"") -> 0.05303908075 | AY66: =IFERROR(IF(AT45= "iBoxx- Nominal", INDEX('Trailing Average'!$H$189:$Y$189,MATCH(AY$47,'Trailing Average'!$H$6:$Y$6)), INDEX('Trailing Average'!$H$444:$Y$444,MATCH(AY$47,'Trailing Average'!$H$6:$Y$6)) ) + AB66,"") -> 0.05511465418 | AZ66: 0.05126677865
F67: 14 | G67: 0.0061 | I67: =IF(F67 = "Spare","",F67&" Yrs no lag"& IF(G67=0,""," + "&G67*10000&" bps")) -> 14 Yrs no lag + 61 bps | J67: =IFERROR(IF(I$45 = "iBoxx- Nominal", INDEX('Trailing Average'!$H$210:$Y$210,MATCH(J47,'Trailing Average'!$H$6:$Y$6)), INDEX('Trailing Average'!$H$465:$Y$465,MATCH(J47,'Trailing Average'!$H$6:$Y$6))) + $G67,"") -> 0.0466703083 | K67: =IFERROR(IF(I$45 = "iBoxx- Nominal", INDEX('Trailing Average'!$H$210:$Y$210,MATCH(K47,'Trailing Average'!$H$6:$Y$6)), INDEX('Trailing Average'!$H$465:$Y$465,MATCH(K47,'Trailing Average'!$H$6:$Y$6))) + $G67,"") -> 0.04826030829 | L67: =IFERROR(IF(I$45 = "iBoxx- Nominal", INDEX('Trailing Average'!$H$210:$Y$210,MATCH(L47,'Trailing Average'!$H$6:$Y$6)), INDEX('Trailing Average'!$H$465:$Y$465,MATCH(L47,'Trailing Average'!$H$6:$Y$6))) + $G67,"") -> 0.04994954174 | M67: =IFERROR(IF(I$45 = "iBoxx- Nominal", INDEX('Trailing Average'!$H$210:$Y$210,MATCH(M47,'Trailing Average'!$H$6:$Y$6)), INDEX('Trailing Average'!$H$465:$Y$465,MATCH(M47,'Trailing Average'!$H$6:$Y$6))) + $G67,"") -> 0.05193908075 | N67: =IFERROR(IF(I$45 = "iBoxx- Nominal", INDEX('Trailing Average'!$H$210:$Y$210,MATCH(N47,'Trailing Average'!$H$6:$Y$6)), INDEX('Trailing Average'!$H$465:$Y$465,MATCH(N47,'Trailing Average'!$H$6:$Y$6))) + $G67,"") -> 0.05401465418 | O67: 0.05016677865 | Q67: 14 Yrs no lag + 61 bps | R67: =IFERROR(IF(Q$45 = "iBoxx- Nominal", INDEX('Trailing Average'!$H$210:$Y$210,MATCH(R47,'Trailing Average'!$H$6:$Y$6)), INDEX('Trailing Average'!$H$465:$Y$465,MATCH(R47,'Trailing Average'!$H$6:$Y$6))) + $G67,"") -> 0.0466703083 | S67: =IFERROR(IF(Q$45 = "iBoxx- Nominal", INDEX('Trailing Average'!$H$210:$Y$210,MATCH(S47,'Trailing Average'!$H$6:$Y$6)), INDEX('Trailing Average'!$H$465:$Y$465,MATCH(S47,'Trailing Average'!$H$6:$Y$6))) + $G67,"") -> 0.04826030829 | T67: =IFERROR(IF(Q$45 = "iBoxx- Nominal", INDEX('Trailing Average'!$H$210:$Y$210,MATCH(T47,'Trailing Average'!$H$6:$Y$6)), INDEX('Trailing Average'!$H$465:$Y$465,MATCH(T47,'Trailing Average'!$H$6:$Y$6))) + $G67,"") -> 0.04994954174 | U67: =IFERROR(IF(Q$45 = "iBoxx- Nominal", INDEX('Trailing Average'!$H$210:$Y$210,MATCH(U47,'Trailing Average'!$H$6:$Y$6)), INDEX('Trailing Average'!$H$465:$Y$465,MATCH(U47,'Trailing Average'!$H$6:$Y$6))) + $G67,"") -> 0.05193908075 | V67: =IFERROR(IF(Q$45 = "iBoxx- Nominal", INDEX('Trailing Average'!$H$210:$Y$210,MATCH(V47,'Trailing Average'!$H$6:$Y$6)), INDEX('Trailing Average'!$H$465:$Y$465,MATCH(V47,'Trailing Average'!$H$6:$Y$6))) + $G67,"") -> 0.05401465418 | W67: 0.05016677865 | AA67: 14 | AB67: 0.0061 | AD67: =IF(AA67 = "Spare","",AA67&" Yrs no lag"& IF(AB67=0,""," + "&AB67*10000&" bps")) -> 14 Yrs no lag + 61 bps | AE67: =IFERROR(IF(AD45 = "iBoxx- Nominal", INDEX('Trailing Average'!$H$210:$Y$210,MATCH(AE47,'Trailing Average'!$H$6:$Y$6)), INDEX('Trailing Average'!$H$465:$Y$465,MATCH(AE47,'Trailing Average'!$H$6:$Y$6))) +$AB67,"") -> 0.0466703083 | AF67: =IFERROR(IF(AD45 = "iBoxx- Nominal", INDEX('Trailing Average'!$H$210:$Y$210,MATCH(AF47,'Trailing Average'!$H$6:$Y$6)), INDEX('Trailing Average'!$H$465:$Y$465,MATCH(AF47,'Trailing Average'!$H$6:$Y$6))) +$AB67,"") -> 0.04826030829 | AG67: =IFERROR(IF(AD45 = "iBoxx- Nominal", INDEX('Trailing Average'!$H$210:$Y$210,MATCH(AG47,'Trailing Average'!$H$6:$Y$6)), INDEX('Trailing Average'!$H$465:$Y$465,MATCH(AG47,'Trailing Average'!$H$6:$Y$6))) +$AB67,"") -> 0.04994954174 | AH67: =IFERROR(IF(AD45 = "iBoxx- Nominal", INDEX('Trailing Average'!$H$210:$Y$210,MATCH(AH47,'Trailing Average'!$H$6:$Y$6)), INDEX('Trailing Average'!$H$465:$Y$465,MATCH(AH47,'Trailing Average'!$H$6:$Y$6))) +$AB67,"") -> 0.05193908075 | AI67: =IFERROR(IF(AD45 = "iBoxx- Nominal", INDEX('Trailing Average'!$H$210:$Y$210,MATCH(AI47,'Trailing Average'!$H$6:$Y$6)), INDEX('Trailing Average'!$H$465:$Y$465,MATCH(AI47,'Trailing Average'!$H$6:$Y$6))) +$AB67,"") -> 0.05401465418 | AJ67: 0.05016677865 | AL67: 14 Yrs no lag + 61 bps | AM67: =IFERROR(IF(AL45 = "iBoxx- Nominal", INDEX('Trailing Average'!$H$210:$Y$210,MATCH(AM47,'Trailing Average'!$H$6:$Y$6)), INDEX('Trailing Average'!$H$465:$Y$465,MATCH(AM47,'Trailing Average'!$H$6:$Y$6))) + AB67,"") -> 0.0466703083 | AN67: =IFERROR(IF(AL45 = "iBoxx- Nominal", INDEX('Trailing Average'!$H$210:$Y$210,MATCH(AN47,'Trailing Average'!$H$6:$Y$6)), INDEX('Trailing Average'!$H$465:$Y$465,MATCH(AN47,'Trailing Average'!$H$6:$Y$6))) + AB67,"") -> 0.04826030829 | AO67: =IFERROR(IF(AL45 = "iBoxx- Nominal", INDEX('Trailing Average'!$H$210:$Y$210,MATCH(AO$47,'Trailing Average'!$H$6:$Y$6)), INDEX('Trailing Average'!$H$465:$Y$465,MATCH(AO$47,'Trailing Average'!$H$6:$Y$6))) + AB67,"") -> 0.04994954174 | AP67: =IFERROR(IF(AL45 = "iBoxx- Nominal", INDEX('Trailing Average'!$H$210:$Y$210,MATCH(AP$47,'Trailing Average'!$H$6:$Y$6)), INDEX('Trailing Average'!$H$465:$Y$465,MATCH(AP$47,'Trailing Average'!$H$6:$Y$6))) + AB67,"") -> 0.05193908075 | AQ67: =IFERROR(IF(AL45 = "iBoxx- Nominal", INDEX('Trailing Average'!$H$210:$Y$210,MATCH(AQ$47,'Trailing Average'!$H$6:$Y$6)), INDEX('Trailing Average'!$H$465:$Y$465,MATCH(AQ$47,'Trailing Average'!$H$6:$Y$6))) + AB67,"") -> 0.05401465418 | AR67: 0.05016677865 | AT67: 14 Yrs no lag + 61 bps | AU67: =IFERROR(IF(AT45 = "iBoxx- Nominal", INDEX('Trailing Average'!$H$210:$Y$210,MATCH(AU47,'Trailing Average'!$H$6:$Y$6)), INDEX('Trailing Average'!$H$465:$Y$465,MATCH(AU47,'Trailing Average'!$H$6:$Y$6))) + AB67,"") -> 0.0466703083 | AV67: =IFERROR(IF(AT45 = "iBoxx- Nominal", INDEX('Trailing Average'!$H$210:$Y$210,MATCH(AV47,'Trailing Average'!$H$6:$Y$6)), INDEX('Trailing Average'!$H$465:$Y$465,MATCH(AV47,'Trailing Average'!$H$6:$Y$6))) + AB67,"") -> 0.04826030829 | AW67: =IFERROR(IF(AT45 = "iBoxx- Nominal", INDEX('Trailing Average'!$H$210:$Y$210,MATCH(AW$47,'Trailing Average'!$H$6:$Y$6)), INDEX('Trailing Average'!$H$465:$Y$465,MATCH(AW$47,'Trailing Average'!$H$6:$Y$6))) + AB67,"") -> 0.04994954174 | AX67: =IFERROR(IF(AT45 = "iBoxx- Nominal", INDEX('Trailing Average'!$H$210:$Y$210,MATCH(AX$47,'Trailing Average'!$H$6:$Y$6)), INDEX('Trailing Average'!$H$465:$Y$465,MATCH(AX$47,'Trailing Average'!$H$6:$Y$6))) + AB67,"") -> 0.05193908075 | AY67: =IFERROR(IF(AT45 = "iBoxx- Nominal", INDEX('Trailing Average'!$H$210:$Y$210,MATCH(AY$47,'Trailing Average'!$H$6:$Y$6)), INDEX('Trailing Average'!$H$465:$Y$465,MATCH(AY$47,'Trailing Average'!$H$6:$Y$6))) + AB67,"") -> 0.05401465418 | AZ67: 0.05016677865
F68: 13 | G68: 0 | I68: =IF(F68 = "Spare","",F68&" Yrs no lag"& IF(G68=0,""," + "&G68*10000&" bps")) -> 13 Yrs no lag | J68: =IFERROR(IF(I$45="iBoxx- Nominal", INDEX('Trailing Average'!$H$231:$Y$231,MATCH(J47,'Trailing Average'!$H$6:$Y$6)), INDEX('Trailing Average'!$H$486:$Y$486,MATCH(J47,'Trailing Average'!$H$6:$Y$6))) + $G68,"") -> 0.0401920923 | K68: =IFERROR(IF(I$45="iBoxx- Nominal", INDEX('Trailing Average'!$H$231:$Y$231,MATCH(K47,'Trailing Average'!$H$6:$Y$6)), INDEX('Trailing Average'!$H$486:$Y$486,MATCH(K47,'Trailing Average'!$H$6:$Y$6))) + $G68,"") -> 0.04183840531 | L68: =IFERROR(IF(I$45="iBoxx- Nominal", INDEX('Trailing Average'!$H$231:$Y$231,MATCH(L47,'Trailing Average'!$H$6:$Y$6)), INDEX('Trailing Average'!$H$486:$Y$486,MATCH(L47,'Trailing Average'!$H$6:$Y$6))) + $G68,"") -> 0.04401454237 | M68: =IFERROR(IF(I$45="iBoxx- Nominal", INDEX('Trailing Average'!$H$231:$Y$231,MATCH(M47,'Trailing Average'!$H$6:$Y$6)), INDEX('Trailing Average'!$H$486:$Y$486,MATCH(M47,'Trailing Average'!$H$6:$Y$6))) + $G68,"") -> 0.04622921811 | N68: =IFERROR(IF(I$45="iBoxx- Nominal", INDEX('Trailing Average'!$H$231:$Y$231,MATCH(N47,'Trailing Average'!$H$6:$Y$6)), INDEX('Trailing Average'!$H$486:$Y$486,MATCH(N47,'Trailing Average'!$H$6:$Y$6))) + $G68,"") -> 0.04918080773 | O68: 0.04429101316 | Q68: 13 Yrs no lag | R68: =IFERROR(IF(Q$45="iBoxx- Nominal", INDEX('Trailing Average'!$H$231:$Y$231,MATCH(R47,'Trailing Average'!$H$6:$Y$6)), INDEX('Trailing Average'!$H$486:$Y$486,MATCH(R47,'Trailing Average'!$H$6:$Y$6))) + $G68,"") -> 0.0401920923 | S68: =IFERROR(IF(Q$45="iBoxx- Nominal", INDEX('Trailing Average'!$H$231:$Y$231,MATCH(S47,'Trailing Average'!$H$6:$Y$6)), INDEX('Trailing Average'!$H$486:$Y$486,MATCH(S47,'Trailing Average'!$H$6:$Y$6))) + $G68,"") -> 0.04183840531 | T68: =IFERROR(IF(Q$45="iBoxx- Nominal", INDEX('Trailing Average'!$H$231:$Y$231,MATCH(T47,'Trailing Average'!$H$6:$Y$6)), INDEX('Trailing Average'!$H$486:$Y$486,MATCH(T47,'Trailing Average'!$H$6:$Y$6))) + $G68,"") -> 0.04401454237 | U68: =IFERROR(IF(Q$45="iBoxx- Nominal", INDEX('Trailing Average'!$H$231:$Y$231,MATCH(U47,'Trailing Average'!$H$6:$Y$6)), INDEX('Trailing Average'!$H$486:$Y$486,MATCH(U47,'Trailing Average'!$H$6:$Y$6))) + $G68,"") -> 0.04622921811 | V68: =IFERROR(IF(Q$45="iBoxx- Nominal", INDEX('Trailing Average'!$H$231:$Y$231,MATCH(V47,'Trailing Average'!$H$6:$Y$6)), INDEX('Trailing Average'!$H$486:$Y$486,MATCH(V47,'Trailing Average'!$H$6:$Y$6))) + $G68,"") -> 0.04918080773 | W68: 0.04429101316 | AA68: 13 | AB68: 0 | AD68: =IF(AA68 = "Spare","",AA68&" Yrs no lag"& IF(AB68=0,""," + "&AB68*10000&" bps")) -> 13 Yrs no lag | AE68: =IFERROR(IF(AD45="iBoxx- Nominal", INDEX('Trailing Average'!$H$231:$Y$231,MATCH(AE47,'Trailing Average'!$H$6:$Y$6)), INDEX('Trailing Average'!$H$486:$Y$486,MATCH(AE47,'Trailing Average'!$H$6:$Y$6))) +$AB68,"") -> 0.0401920923 | AF68: =IFERROR(IF(AD45="iBoxx- Nominal", INDEX('Trailing Average'!$H$231:$Y$231,MATCH(AF47,'Trailing Average'!$H$6:$Y$6)), INDEX('Trailing Average'!$H$486:$Y$486,MATCH(AF47,'Trailing Average'!$H$6:$Y$6))) +$AB68,"") -> 0.04183840531 | AG68: =IFERROR(IF(AD45="iBoxx- Nominal", INDEX('Trailing Average'!$H$231:$Y$231,MATCH(AG47,'Trailing Average'!$H$6:$Y$6)), INDEX('Trailing Average'!$H$486:$Y$486,MATCH(AG47,'Trailing Average'!$H$6:$Y$6))) +$AB68,"") -> 0.04401454237 | AH68: =IFERROR(IF(AD45="iBoxx- Nominal", INDEX('Trailing Average'!$H$231:$Y$231,MATCH(AH47,'Trailing Average'!$H$6:$Y$6)), INDEX('Trailing Average'!$H$486:$Y$486,MATCH(AH47,'Trailing Average'!$H$6:$Y$6))) +$AB68,"") -> 0.04622921811 | AI68: =IFERROR(IF(AD45="iBoxx- Nominal", INDEX('Trailing Average'!$H$231:$Y$231,MATCH(AI47,'Trailing Average'!$H$6:$Y$6)), INDEX('Trailing Average'!$H$486:$Y$486,MATCH(AI47,'Trailing Average'!$H$6:$Y$6))) +$AB68,"") -> 0.04918080773 | AJ68: 0.04429101316 | AL68: 13 Yrs no lag | AM68: =IFERROR(IF(AL45="iBoxx- Nominal", INDEX('Trailing Average'!$H$231:$Y$231,MATCH(AM47,'Trailing Average'!$H$6:$Y$6)), INDEX('Trailing Average'!$H$486:$Y$486,MATCH(AM47,'Trailing Average'!$H$6:$Y$6))) + AB68,"") -> 0.0401920923 | AN68: =IFERROR(IF(AL45="iBoxx- Nominal", INDEX('Trailing Average'!$H$231:$Y$231,MATCH(AN47,'Trailing Average'!$H$6:$Y$6)), INDEX('Trailing Average'!$H$486:$Y$486,MATCH(AN47,'Trailing Average'!$H$6:$Y$6))) + AB68,"") -> 0.04183840531 | AO68: =IFERROR(IF(AL45="iBoxx- Nominal", INDEX('Trailing Average'!$H$231:$Y$231,MATCH(AO$47,'Trailing Average'!$H$6:$Y$6)), INDEX('Trailing Average'!$H$486:$Y$486,MATCH(AO$47,'Trailing Average'!$H$6:$Y$6))) + AB68,"") -> 0.04401454237 | AP68: =IFERROR(IF(AL45="iBoxx- Nominal", INDEX('Trailing Average'!$H$231:$Y$231,MATCH(AP$47,'Trailing Average'!$H$6:$Y$6)), INDEX('Trailing Average'!$H$486:$Y$486,MATCH(AP$47,'Trailing Average'!$H$6:$Y$6))) + AB68,"") -> 0.04622921811 | AQ68: =IFERROR(IF(AL45="iBoxx- Nominal", INDEX('Trailing Average'!$H$231:$Y$231,MATCH(AQ$47,'Trailing Average'!$H$6:$Y$6)), INDEX('Trailing Average'!$H$486:$Y$486,MATCH(AQ$47,'Trailing Average'!$H$6:$Y$6))) + AB68,"") -> 0.04918080773 | AR68: 0.04429101316 | AT68: 13 Yrs no lag | AU68: =IFERROR(IF(AT45="iBoxx- Nominal", INDEX('Trailing Average'!$H$231:$Y$231,MATCH(AU47,'Trailing Average'!$H$6:$Y$6)), INDEX('Trailing Average'!$H$486:$Y$486,MATCH(AU47,'Trailing Average'!$H$6:$Y$6))) + AB68,"") -> 0.0401920923 | AV68: =IFERROR(IF(AT45="iBoxx- Nominal", INDEX('Trailing Average'!$H$231:$Y$231,MATCH(AV47,'Trailing Average'!$H$6:$Y$6)), INDEX('Trailing Average'!$H$486:$Y$486,MATCH(AV47,'Trailing Average'!$H$6:$Y$6))) + AB68,"") -> 0.04183840531 | AW68: =IFERROR(IF(AT45="iBoxx- Nominal", INDEX('Trailing Average'!$H$231:$Y$231,MATCH(AW$47,'Trailing Average'!$H$6:$Y$6)), INDEX('Trailing Average'!$H$486:$Y$486,MATCH(AW$47,'Trailing Average'!$H$6:$Y$6))) + AB68,"") -> 0.04401454237 | AX68: =IFERROR(IF(AT45="iBoxx- Nominal", INDEX('Trailing Average'!$H$231:$Y$231,MATCH(AX$47,'Trailing Average'!$H$6:$Y$6)), INDEX('Trailing Average'!$H$486:$Y$486,MATCH(AX$47,'Trailing Average'!$H$6:$Y$6))) + AB68,"") -> 0.04622921811 | AY68: =IFERROR(IF(AT45="iBoxx- Nominal", INDEX('Trailing Average'!$H$231:$Y$231,MATCH(AY$47,'Trailing Average'!$H$6:$Y$6)), INDEX('Trailing Average'!$H$486:$Y$486,MATCH(AY$47,'Trailing Average'!$H$6:$Y$6))) + AB68,"") -> 0.04918080773 | AZ68: 0.04429101316
F69: Spare | G69: 0 | I69: =IF(F69 = "Spare","",F69&" Yr"& IF(G69=0,""," + "&G69*10000&" bps")) ->  | J69: =IFERROR(IF(I$45 = "iBoxx- Nominal", INDEX('Trailing Average'!$H$252:$Y$252,MATCH(J47,'Trailing Average'!$H$6:$Y$6)), INDEX('Trailing Average'!$H$507:$Y$507,MATCH(J47,'Trailing Average'!$H$6:$Y$6))) + $G69,"") ->  | K69: =IFERROR(IF(I$45 = "iBoxx- Nominal", INDEX('Trailing Average'!$H$252:$Y$252,MATCH(K47,'Trailing Average'!$H$6:$Y$6)), INDEX('Trailing Average'!$H$507:$Y$507,MATCH(K47,'Trailing Average'!$H$6:$Y$6))) + $G69,"") ->  | L69: =IFERROR(IF(I$45 = "iBoxx- Nominal", INDEX('Trailing Average'!$H$252:$Y$252,MATCH(L47,'Trailing Average'!$H$6:$Y$6)), INDEX('Trailing Average'!$H$507:$Y$507,MATCH(L47,'Trailing Average'!$H$6:$Y$6))) + $G69,"") ->  | M69: =IFERROR(IF(I$45 = "iBoxx- Nominal", INDEX('Trailing Average'!$H$252:$Y$252,MATCH(M47,'Trailing Average'!$H$6:$Y$6)), INDEX('Trailing Average'!$H$507:$Y$507,MATCH(M47,'Trailing Average'!$H$6:$Y$6))) + $G69,"") ->  | N69: =IFERROR(IF(I$45 = "iBoxx- Nominal", INDEX('Trailing Average'!$H$252:$Y$252,MATCH(N47,'Trailing Average'!$H$6:$Y$6)), INDEX('Trailing Average'!$H$507:$Y$507,MATCH(N47,'Trailing Average'!$H$6:$Y$6))) + $G69,"") ->  | R69: =IFERROR(IF(Q$45 = "iBoxx- Nominal", INDEX('Trailing Average'!$H$252:$Y$252,MATCH(R47,'Trailing Average'!$H$6:$Y$6)), INDEX('Trailing Average'!$H$507:$Y$507,MATCH(R47,'Trailing Average'!$H$6:$Y$6))) + $G69,"") ->  | S69: =IFERROR(IF(Q$45 = "iBoxx- Nominal", INDEX('Trailing Average'!$H$252:$Y$252,MATCH(S47,'Trailing Average'!$H$6:$Y$6)), INDEX('Trailing Average'!$H$507:$Y$507,MATCH(S47,'Trailing Average'!$H$6:$Y$6))) + $G69,"") ->  | T69: =IFERROR(IF(Q$45 = "iBoxx- Nominal", INDEX('Trailing Average'!$H$252:$Y$252,MATCH(T47,'Trailing Average'!$H$6:$Y$6)), INDEX('Trailing Average'!$H$507:$Y$507,MATCH(T47,'Trailing Average'!$H$6:$Y$6))) + $G69,"") ->  | U69: =IFERROR(IF(Q$45 = "iBoxx- Nominal", INDEX('Trailing Average'!$H$252:$Y$252,MATCH(U47,'Trailing Average'!$H$6:$Y$6)), INDEX('Trailing Average'!$H$507:$Y$507,MATCH(U47,'Trailing Average'!$H$6:$Y$6))) + $G69,"") ->  | V69: =IFERROR(IF(Q$45 = "iBoxx- Nominal", INDEX('Trailing Average'!$H$252:$Y$252,MATCH(V47,'Trailing Average'!$H$6:$Y$6)), INDEX('Trailing Average'!$H$507:$Y$507,MATCH(V47,'Trailing Average'!$H$6:$Y$6))) + $G69,"") ->  | AA69: Spare | AB69: 0 | AE69: =IFERROR(IF(AD45 = "iBoxx- Nominal", INDEX('Trailing Average'!$H$252:$Y$252,MATCH(AE47,'Trailing Average'!$H$6:$Y$6)), INDEX('Trailing Average'!$H$507:$Y$507,MATCH(AE47,'Trailing Average'!$H$6:$Y$6))) +$AB69,"") ->  | AF69: =IFERROR(IF(AD45 = "iBoxx- Nominal", INDEX('Trailing Average'!$H$252:$Y$252,MATCH(AF47,'Trailing Average'!$H$6:$Y$6)), INDEX('Trailing Average'!$H$507:$Y$507,MATCH(AF47,'Trailing Average'!$H$6:$Y$6))) +$AB69,"") ->  | AG69: =IFERROR(IF(AD45 = "iBoxx- Nominal", INDEX('Trailing Average'!$H$252:$Y$252,MATCH(AG47,'Trailing Average'!$H$6:$Y$6)), INDEX('Trailing Average'!$H$507:$Y$507,MATCH(AG47,'Trailing Average'!$H$6:$Y$6))) +$AB69,"") ->  | AH69: =IFERROR(IF(AD45 = "iBoxx- Nominal", INDEX('Trailing Average'!$H$252:$Y$252,MATCH(AH47,'Trailing Average'!$H$6:$Y$6)), INDEX('Trailing Average'!$H$507:$Y$507,MATCH(AH47,'Trailing Average'!$H$6:$Y$6))) +$AB69,"") ->  | AI69: =IFERROR(IF(AD45 = "iBoxx- Nominal", INDEX('Trailing Average'!$H$252:$Y$252,MATCH(AI47,'Trailing Average'!$H$6:$Y$6)), INDEX('Trailing Average'!$H$507:$Y$507,MATCH(AI47,'Trailing Average'!$H$6:$Y$6))) +$AB69,"") ->  | AM69: =IFERROR(IF(AL45 = "iBoxx- Nominal", INDEX('Trailing Average'!$H$252:$Y$252,MATCH(AM47,'Trailing Average'!$H$6:$Y$6)), INDEX('Trailing Average'!$H$507:$Y$507,MATCH(AM47,'Trailing Average'!$H$6:$Y$6))) + AB69,"") ->  | AN69: =IFERROR(IF(AL45 = "iBoxx- Nominal", INDEX('Trailing Average'!$H$252:$Y$252,MATCH(AN47,'Trailing Average'!$H$6:$Y$6)), INDEX('Trailing Average'!$H$507:$Y$507,MATCH(AN47,'Trailing Average'!$H$6:$Y$6))) + AB69,"") ->  | AO69: =IFERROR(IF(AL45 = "iBoxx- Nominal", INDEX('Trailing Average'!$H$252:$Y$252,MATCH(AO$47,'Trailing Average'!$H$6:$Y$6)), INDEX('Trailing Average'!$H$507:$Y$507,MATCH(AO$47,'Trailing Average'!$H$6:$Y$6))) + AB69,"") ->  | AP69: =IFERROR(IF(AL45 = "iBoxx- Nominal", INDEX('Trailing Average'!$H$252:$Y$252,MATCH(AP$47,'Trailing Average'!$H$6:$Y$6)), INDEX('Trailing Average'!$H$507:$Y$507,MATCH(AP$47,'Trailing Average'!$H$6:$Y$6))) + AB69,"") ->  | AQ69: =IFERROR(IF(AL45 = "iBoxx- Nominal", INDEX('Trailing Average'!$H$252:$Y$252,MATCH(AQ$47,'Trailing Average'!$H$6:$Y$6)), INDEX('Trailing Average'!$H$507:$Y$507,MATCH(AQ$47,'Trailing Average'!$H$6:$Y$6))) + AB69,"") ->  | AU69: =IFERROR(IF(AT45 = "iBoxx- Nominal", INDEX('Trailing Average'!$H$252:$Y$252,MATCH(AU47,'Trailing Average'!$H$6:$Y$6)), INDEX('Trailing Average'!$H$507:$Y$507,MATCH(AU47,'Trailing Average'!$H$6:$Y$6))) + AB69,"") ->  | AV69: =IFERROR(IF(AT45 = "iBoxx- Nominal", INDEX('Trailing Average'!$H$252:$Y$252,MATCH(AV47,'Trailing Average'!$H$6:$Y$6)), INDEX('Trailing Average'!$H$507:$Y$507,MATCH(AV47,'Trailing Average'!$H$6:$Y$6))) + AB69,"") ->  | AW69: =IFERROR(IF(AT45 = "iBoxx- Nominal", INDEX('Trailing Average'!$H$252:$Y$252,MATCH(AW$47,'Trailing Average'!$H$6:$Y$6)), INDEX('Trailing Average'!$H$507:$Y$507,MATCH(AW$47,'Trailing Average'!$H$6:$Y$6))) + AB69,"") ->  | AX69: =IFERROR(IF(AT45 = "iBoxx- Nominal", INDEX('Trailing Average'!$H$252:$Y$252,MATCH(AX$47,'Trailing Average'!$H$6:$Y$6)), INDEX('Trailing Average'!$H$507:$Y$507,MATCH(AX$47,'Trailing Average'!$H$6:$Y$6))) + AB69,"") ->  | AY69: =IFERROR(IF(AT45 = "iBoxx- Nominal", INDEX('Trailing Average'!$H$252:$Y$252,MATCH(AY$47,'Trailing Average'!$H$6:$Y$6)), INDEX('Trailing Average'!$H$507:$Y$507,MATCH(AY$47,'Trailing Average'!$H$6:$Y$6))) + AB69,"") -> 
I72: Policy option selected for chart | J72: Y2027 | K72: Y2028 | L72: Y2029 | M72: Y2030 | N72: Y2031 | O72: RIIO-3 average | Q72: Policy option selected for chart | R72: Y2027 | S72: Y2028 | T72: Y2029 | U72: Y2030 | V72: Y2031 | W72: RIIO-3 average | AD72: Policy option selected for chart | AE72: Y2027 | AF72: Y2028 | AG72: Y2029 | AH72: Y2030 | AI72: Y2031 | AJ72: RIIO-3 average | AL72: Policy option selected for chart | AM72: Y2027 | AN72: Y2028 | AO72: Y2029 | AP72: Y2030 | AQ72: Y2031 | AR72: RIIO-3 average | AT72: Policy option selected for chart | AU72: Y2027 | AV72: Y2028 | AW72: Y2029 | AX72: Y2030 | AY72: Y2031 | AZ72: RIIO-3 average
I73: 14 Yrs no lag + 61 bps | J73: =INDEX(J58:J69,MATCH(I73,$I$58:$I$69,0),0) -> 0.0466703083 | K73: =INDEX(K58:K69,MATCH(I73,$I$58:$I$69,0),0) -> 0.04826030829 | L73: =INDEX(L58:L69,MATCH(I73,$I$58:$I$69,0),0) -> 0.04994954174 | M73: =INDEX(M58:M69,MATCH(I73,$I$58:$I$69,0),0) -> 0.05193908075 | N73: =INDEX(N58:N69,MATCH(I73,$I$58:$I$69,0),0) -> 0.05401465418 | O73: =AVERAGE(J73:N73) -> 0.05016677865 | Q73: =I73 -> 14 Yrs no lag + 61 bps | R73: =INDEX(R58:R69,MATCH(Q73,$I$58:$I$69,0),0) -> 0.0466703083 | S73: =INDEX(S58:S69,MATCH(Q73,$I$58:$I$69,0),0) -> 0.04826030829 | T73: =INDEX(T58:T69,MATCH(Q73,$I$58:$I$69,0),0) -> 0.04994954174 | U73: =INDEX(U58:U69,MATCH(Q73,$I$58:$I$69,0),0) -> 0.05193908075 | V73: =INDEX(V58:V69,MATCH(Q73,$I$58:$I$69,0),0) -> 0.05401465418 | W73: =AVERAGE(R73:V73) -> 0.05016677865 | AD73: RAV weighted ave [14]yrs + 43 bps costs | AE73: =INDEX(AE56:AE69,MATCH(AD73,AD56:AD69,0),0) -> 0.04877556021 | AF73: =INDEX(AF56:AF69,MATCH(AD73,AD56:AD69,0),0) -> 0.0520719928 | AG73: =INDEX(AG56:AG69,MATCH(AD73,AD56:AD69,0),0) -> 0.05595947405 | AH73: =INDEX(AH56:AH69,MATCH(AE73,AE56:AE69,0),0) -> 0.05936605681 | AI73: =INDEX(AI56:AI69,MATCH(AD73,AD56:AD69,0),0) -> 0.06199623685 | AJ73: =AVERAGE(AE73:AI73) -> 0.05563386414 | AL73: =AD73 -> RAV weighted ave [14]yrs + 43 bps costs | AM73: =INDEX(AM56:AM69,MATCH(AL73,AL56:AL69,0),0) -> 0.05015062487 | AN73: =INDEX(AN56:AN69,MATCH(AL73,AL56:AL69,0),0) -> 0.05409502877 | AO73: =INDEX(AO56:AO69,MATCH(AL73,AL56:AL69,0),0) -> 0.05898395713 | AP73: =INDEX(AP56:AP69,MATCH(AM73,AM56:AM69,0),0) -> 0.06281797179 | AQ73: =INDEX(AQ56:AQ69,MATCH(AL73,AL56:AL69,0),0) -> 0.06536429517 | AR73: =AVERAGE(AM73:AQ73) -> 0.05828237555 | AT73: =AD73 -> RAV weighted ave [14]yrs + 43 bps costs | AU73: =INDEX(AU56:AU69,MATCH(AT73,AT56:AT69,0),0) -> 0.04742873858 | AV73: =INDEX(AV56:AV69,MATCH(AT73,AT56:AT69,0),0) -> 0.04974695213 | AW73: =INDEX(AW56:AW69,MATCH(AT73,AT56:AT69,0),0) -> 0.05194490175 | AX73: =INDEX(AX56:AX69,MATCH(AU73,AU56:AU69,0),0) -> 0.05430555149 | AY73: =INDEX(AY56:AY69,MATCH(AT73,AT56:AT69,0),0) -> 0.05668189841 | AZ73: =AVERAGE(AU73:AY73) -> 0.05202160847
I75: Delta to Index (negative = outperformance) | J75: =J52-J73 -> -0.000411059302 | K75: -0.0002513256874 | L75: -3.384497718e-05 | M75: -0.0001611166386 | N75: -0.000352737626 | O75: -0.0002420168463 | Q75: Delta to Index (negative = outperformance) | R75: =R52-R73 -> -7.372697826e-05 | S75: -3.304713644e-05 | T75: 0.0001659561702 | U75: 0.0004555898072 | V75: 0.0006544067151 | W75: 0.0002338357156 | AD75: Delta to Index (negative = outperformance) | AE75: =AE52-AE73 -> -0.0009011302824 | AF75: 0.000224073839 | AG75: 0.0008204957572 | AH75: 0.0004406171996 | AI75: -0.0008010174997 | AJ75: -4.339219723e-05 | AL75: Delta to Index (negative = outperformance) | AM75: =AM52-AM73 -> -0.004077117751 | AN75: -0.001570716337 | AO75: -0.001105821023 | AP75: -0.001956340789 | AQ75: -0.003312302534 | AR75: -0.002404459687 | AT75: Delta to Index (negative = outperformance) | AU75: =AU52-AU73 -> 0.002327117108 | AV75: 0.002273397072 | AW75: 0.003308150188 | AX75: 0.003864753765 | AY75: 0.003113794035 | AZ75: 0.002977442434
C98: ="Nominal index calibration vs sector / company costs, "&IF($G$11 = "Exclude", "excluding", "including")&" derivatives (negative = underperformance)" -> Nominal index calibration vs sector / company costs, excluding derivatives (negative = underperformance)
J101: =J45 -> GD & GT | R101: =R45 -> GD Only | AE101: =AE45 -> ED & ET | AM101: =AM45 -> TOTAL ET ( including SHET) | AU101: =AU45 -> ED Only
I102: Allowance Options | J102: =J47:O47 -> Y2027 | K102: Y2028 | L102: Y2029 | M102: Y2030 | N102: Y2031 | O102: RIIO-3 average | Q102: Allowance Options | R102: =R47:W47 -> Y2027 | S102: Y2028 | T102: Y2029 | U102: Y2030 | V102: Y2031 | W102: RIIO-3 average | AD102: Allowance Options | AE102: =AE47:AJ47 -> Y2027 | AF102: Y2028 | AG102: Y2029 | AH102: Y2030 | AI102: Y2031 | AJ102: RIIO-3 average | AL102: Allowance Options | AM102: =AM47:AR47 -> Y2027 | AN102: Y2028 | AO102: Y2029 | AP102: Y2030 | AQ102: Y2031 | AR102: RIIO-3 average | AT102: Allowance Options | AU102: =AU47:AZ47 -> Y2027 | AV102: Y2028 | AW102: Y2029 | AX102: Y2030 | AY102: Y2031 | AZ102: RIIO-3 average
I103: =I56 -> RAV weighted ave []yrs | J103: =IFERROR((J56-(J52-J49*($G$11="Exclude"))),"") ->  | K103: =IFERROR((K56-(K52-K49*($G$11="Exclude"))),"") ->  | L103: =IFERROR((L56-(L52-L49*($G$11="Exclude"))),"") ->  | M103: =IFERROR((M56-(M52-M49*($G$11="Exclude"))),"") ->  | N103: =IFERROR((N56-(N52-N49*($G$11="Exclude"))),"") ->  | O103: =IFERROR(AVERAGE(J103:N103),"") ->  | Q103: =Q56 -> RAV weighted ave []yrs | R103: =IFERROR((R56-(R52-R49*($G$11="Exclude"))),"") ->  | S103: =IFERROR((S56-(S52-S49*($G$11="Exclude"))),"") ->  | T103: =IFERROR((T56-(T52-T49*($G$11="Exclude"))),"") ->  | U103: =IFERROR((U56-(U52-U49*($G$11="Exclude"))),"") ->  | V103: =IFERROR((V56-(V52-V49*($G$11="Exclude"))),"") ->  | W103: =IFERROR(AVERAGE(R103:V103),"") ->  | AD103: =AD56 -> RAV weighted ave [14]yrs | AE103: =IFERROR((AE56-(AE52-AE49*($G$11="Exclude"))),"") -> -0.003398869718 | AF103: =IFERROR((AF56-(AF52-AF49*($G$11="Exclude"))),"") -> -0.004524073839 | AG103: =IFERROR((AG56-(AG52-AG49*($G$11="Exclude"))),"") -> -0.005120495757 | AH103: =IFERROR((AH56-(AH52-AH49*($G$11="Exclude"))),"") -> -0.0047406172 | AI103: =IFERROR((AI56-(AI52-AI49*($G$11="Exclude"))),"") -> -0.0034989825 | AJ103: =IFERROR(AVERAGE(AE103:AI103),"") -> -0.004256607803 | AL103: =AL56 -> RAV weighted ave [14]yrs | AM103: =IFERROR((AM56-(AM52-AM49*($G$11="Exclude"))),"") -> -0.000222882249 | AN103: -0.002729283663 | AO103: -0.003194178977 | AP103: -0.002343659211 | AQ103: -0.0009876974658 | AR103: -0.001895540313 | AT103: =AT56 -> RAV weighted ave [14]yrs | AU103: =IFERROR((AU56-(AU52-AU49*($G$11="Exclude"))),"") -> -0.006627117108 | AV103: =IFERROR((AV56-(AV52-AV49*($G$11="Exclude"))),"") -> -0.006573397072 | AW103: =IFERROR((AW56-(AW52-AW49*($G$11="Exclude"))),"") -> -0.007608150188 | AX103: =IFERROR((AX56-(AX52-AX49*($G$11="Exclude"))),"") -> -0.008164753765 | AY103: =IFERROR((AY56-(AY52-AY49*($G$11="Exclude"))),"") -> -0.007413794035 | AZ103: =IFERROR(AVERAGE(AU103:AY103),"") -> -0.007277442434
I104: RAV weighted ave []yrs + 0 bps costs | J104: =IFERROR((J57-(J52-J49*($G$11="Exclude"))),"") ->  | K104: =IFERROR((K57-(K52-K49*($G$11="Exclude"))),"") ->  | L104: =IFERROR((L57-(L52-L49*($G$11="Exclude"))),"") ->  | M104: =IFERROR((M57-(M52-M49*($G$11="Exclude"))),"") ->  | N104: =IFERROR((N57-(N52-N49*($G$11="Exclude"))),"") ->  | O104: =IFERROR(AVERAGE(J104:N104),"") ->  | Q104: RAV weighted ave []yrs + 0 bps costs | R104: =IFERROR((R57-(R52-R49*($G$11="Exclude"))),"") ->  | S104: =IFERROR((S57-(S52-S49*($G$11="Exclude"))),"") ->  | T104: =IFERROR((T57-(T52-T49*($G$11="Exclude"))),"") ->  | U104: =IFERROR((U57-(U52-U49*($G$11="Exclude"))),"") ->  | V104: =IFERROR((V57-(V52-V49*($G$11="Exclude"))),"") ->  | W104: =IFERROR(AVERAGE(R104:V104),"") ->  | AD104: RAV weighted ave [14]yrs + 43 bps costs | AE104: =IFERROR((AE57-(AE52-AE49*($G$11="Exclude"))),"") -> 0.0009011302824 | AF104: =IFERROR((AF57-(AF52-AF49*($G$11="Exclude"))),"") -> -0.000224073839 | AG104: =IFERROR((AG57-(AG52-AG49*($G$11="Exclude"))),"") -> -0.0008204957572 | AH104: =IFERROR((AH57-(AH52-AH49*($G$11="Exclude"))),"") -> -0.0004406171996 | AI104: =IFERROR((AI57-(AI52-AI49*($G$11="Exclude"))),"") -> 0.0008010174997 | AJ104: =IFERROR(AVERAGE(AE104:AI104),"") -> 4.339219723e-05 | AL104: RAV weighted ave [14]yrs + 43 bps costs | AM104: =IFERROR((AM57-(AM52-AM49*($G$11="Exclude"))),"") -> 0.004077117751 | AN104: =IFERROR((AN57-(AN52-AN49*($G$11="Exclude"))),"") -> 0.001570716337 | AO104: =IFERROR((AO57-(AO52-AO49*($G$11="Exclude"))),"") -> 0.001105821023 | AP104: =IFERROR((AP57-(AP52-AP49*($G$11="Exclude"))),"") -> 0.001956340789 | AQ104: =IFERROR((AQ57-(AQ52-AQ49*($G$11="Exclude"))),"") -> 0.003312302534 | AR104: =IFERROR(AVERAGE(AM104:AQ104),"") -> 0.002404459687 | AT104: RAV weighted ave [14]yrs + 43 bps costs | AU104: =IFERROR((AU57-(AU52-AU49*($G$11="Exclude"))),"") -> -0.002327117108 | AV104: =IFERROR((AV57-(AV52-AV49*($G$11="Exclude"))),"") -> -0.002273397072 | AW104: =IFERROR((AW57-(AW52-AW49*($G$11="Exclude"))),"") -> -0.003308150188 | AX104: =IFERROR((AX57-(AX52-AX49*($G$11="Exclude"))),"") -> -0.003864753765 | AY104: =IFERROR((AY57-(AY52-AY49*($G$11="Exclude"))),"") -> -0.003113794035 | AZ104: =IFERROR(AVERAGE(AU104:AY104),"") -> -0.002977442434
I105: 10 Yr | J105: =IFERROR((J58-(J52-J49*($G$11="Exclude"))),"") -> -0.007716836748 | K105: =IFERROR((K58-(K52-K49*($G$11="Exclude"))),"") -> -0.006563455789 | L105: =IFERROR((L58-(L52-L49*($G$11="Exclude"))),"") -> -0.004596721932 | M105: =IFERROR((M58-(M52-M49*($G$11="Exclude"))),"") -> -0.002721204168 | N105: =IFERROR((N58-(N52-N49*($G$11="Exclude"))),"") -> -0.0006123855089 | O105: -0.004442120829 | Q105: 10 Yr | R105: =IFERROR((R58-(R52-R49*($G$11="Exclude"))),"") -> -0.008054169072 | S105: =IFERROR((S58-(S52-S49*($G$11="Exclude"))),"") -> -0.00678173434 | T105: =IFERROR((T58-(T52-T49*($G$11="Exclude"))),"") -> -0.004796523079 | U105: =IFERROR((U58-(U52-U49*($G$11="Exclude"))),"") -> -0.003337910614 | V105: =IFERROR((V58-(V52-V49*($G$11="Exclude"))),"") -> -0.00161952985 | W105: -0.004917973391 | AD105: RAV weighted ave [14] yr | AE105: =IFERROR((AE58-(AE52-AE49*($G$11="Exclude"))),"") -> -0.003398869718 | AF105: =IFERROR((AF58-(AF52-AF49*($G$11="Exclude"))),"") -> -0.004524073839 | AG105: =IFERROR((AG58-(AG52-AG49*($G$11="Exclude"))),"") -> -0.005120495757 | AH105: =IFERROR((AH58-(AH52-AH49*($G$11="Exclude"))),"") -> -0.0047406172 | AI105: =IFERROR((AI58-(AI52-AI49*($G$11="Exclude"))),"") -> -0.0034989825 | AJ105: -0.004256607803 | AL105: RAV weighted ave [14] yr | AM105: =IFERROR((AM58-(AM52-AM49*($G$11="Exclude"))),"") -> -0.000222882249 | AN105: =IFERROR((AN58-(AN52-AN49*($G$11="Exclude"))),"") -> -0.002729283663 | AO105: =IFERROR((AO58-(AO52-AO49*($G$11="Exclude"))),"") -> -0.003194178977 | AP105: =IFERROR((AP58-(AP52-AP49*($G$11="Exclude"))),"") -> -0.002343659211 | AQ105: =IFERROR((AQ58-(AQ52-AQ49*($G$11="Exclude"))),"") -> -0.0009876974658 | AR105: -0.001895540313 | AT105: RAV weighted ave [14] yr | AU105: =IFERROR((AU58-(AU52-AU49*($G$11="Exclude"))),"") -> -0.006627117108 | AV105: =IFERROR((AV58-(AV52-AV49*($G$11="Exclude"))),"") -> -0.006573397072 | AW105: =IFERROR((AW58-(AW52-AW49*($G$11="Exclude"))),"") -> -0.007608150188 | AX105: =IFERROR((AX58-(AX52-AX49*($G$11="Exclude"))),"") -> -0.008164753765 | AY105: =IFERROR((AY58-(AY52-AY49*($G$11="Exclude"))),"") -> -0.007413794035 | AZ105: -0.007277442434
I106: 14 Yr | J106: =IFERROR((J59-(J52-J49*($G$11="Exclude"))),"") -> -0.006046043787 | K106: =IFERROR((K59-(K52-K49*($G$11="Exclude"))),"") -> -0.006573561285 | L106: =IFERROR((L59-(L52-L49*($G$11="Exclude"))),"") -> -0.006751782515 | M106: =IFERROR((M59-(M52-M49*($G$11="Exclude"))),"") -> -0.006882247355 | N106: =IFERROR((N59-(N52-N49*($G$11="Exclude"))),"") -> -0.006579480646 | O106: -0.006566623118 | Q106: 14 Yr | R106: =IFERROR((R59-(R52-R49*($G$11="Exclude"))),"") -> -0.006383376111 | S106: =IFERROR((S59-(S52-S49*($G$11="Exclude"))),"") -> -0.006791839836 | T106: =IFERROR((T59-(T52-T49*($G$11="Exclude"))),"") -> -0.006951583662 | U106: =IFERROR((U59-(U52-U49*($G$11="Exclude"))),"") -> -0.007498953801 | V106: =IFERROR((V59-(V52-V49*($G$11="Exclude"))),"") -> -0.007586624987 | W106: -0.007042475679 | AD106: RAV weighted ave [14] yr + 39 bps costs | AE106: =IFERROR((AE59-(AE52-AE49*($G$11="Exclude"))),"") -> 0.0005011302824 | AF106: =IFERROR((AF59-(AF52-AF49*($G$11="Exclude"))),"") -> -0.000624073839 | AG106: =IFERROR((AG59-(AG52-AG49*($G$11="Exclude"))),"") -> -0.001220495757 | AH106: =IFERROR((AH59-(AH52-AH49*($G$11="Exclude"))),"") -> -0.0008406171996 | AI106: =IFERROR((AI59-(AI52-AI49*($G$11="Exclude"))),"") -> 0.0004010174997 | AJ106: -0.0003566078028 | AL106: RAV weighted ave [14] yr + 39 bps costs | AM106: =IFERROR((AM59-(AM52-AM49*($G$11="Exclude"))),"") -> 0.003677117751 | AN106: =IFERROR((AN59-(AN52-AN49*($G$11="Exclude"))),"") -> 0.001170716337 | AO106: =IFERROR((AO59-(AO52-AO49*($G$11="Exclude"))),"") -> 0.0007058210233 | AP106: =IFERROR((AP59-(AP52-AP49*($G$11="Exclude"))),"") -> 0.001556340789 | AQ106: =IFERROR((AQ59-(AQ52-AQ49*($G$11="Exclude"))),"") -> 0.002912302534 | AR106: 0.002004459687 | AT106: RAV weighted ave [14] yr + 39 bps costs | AU106: =IFERROR((AU59-(AU52-AU49*($G$11="Exclude"))),"") -> -0.002727117108 | AV106: =IFERROR((AV59-(AV52-AV49*($G$11="Exclude"))),"") -> -0.002673397072 | AW106: =IFERROR((AW59-(AW52-AW49*($G$11="Exclude"))),"") -> -0.003708150188 | AX106: =IFERROR((AX59-(AX52-AX49*($G$11="Exclude"))),"") -> -0.004264753765 | AY106: =IFERROR((AY59-(AY52-AY49*($G$11="Exclude"))),"") -> -0.003513794035 | AZ106: -0.003377442434
I107: 15 Yr | J107: =IFERROR((J60-(J52-J49*($G$11="Exclude"))),"") -> -0.005118576055 | K107: =IFERROR((K60-(K52-K49*($G$11="Exclude"))),"") -> -0.006163583821 | L107: =IFERROR((L60-(L52-L49*($G$11="Exclude"))),"") -> -0.00660412302 | M107: =IFERROR((M60-(M52-M49*($G$11="Exclude"))),"") -> -0.006835389239 | N107: =IFERROR((N60-(N52-N49*($G$11="Exclude"))),"") -> -0.007106384424 | O107: -0.006365611312 | Q107: 15 Yr | R107: =IFERROR((R60-(R52-R49*($G$11="Exclude"))),"") -> -0.005455908379 | S107: =IFERROR((S60-(S52-S49*($G$11="Exclude"))),"") -> -0.006381862372 | T107: =IFERROR((T60-(T52-T49*($G$11="Exclude"))),"") -> -0.006803924167 | U107: =IFERROR((U60-(U52-U49*($G$11="Exclude"))),"") -> -0.007452095685 | V107: =IFERROR((V60-(V52-V49*($G$11="Exclude"))),"") -> -0.008113528765 | W107: -0.006841463873 | AD107: 15 Yr | AE107: =IFERROR((AE60-(AE52-AE49*($G$11="Exclude"))),"") -> -0.006733756978 | AF107: =IFERROR((AF60-(AF52-AF49*($G$11="Exclude"))),"") -> -0.01045066786 | AG107: =IFERROR((AG60-(AG52-AG49*($G$11="Exclude"))),"") -> -0.01346839606 | AH107: =IFERROR((AH60-(AH52-AH49*($G$11="Exclude"))),"") -> -0.01486409914 | AI107: =IFERROR((AI60-(AI52-AI49*($G$11="Exclude"))),"") -> -0.01463968722 | AJ107: -0.01203132145 | AL107: 15 Yr | AM107: =IFERROR((AM60-(AM52-AM49*($G$11="Exclude"))),"") -> -0.004932834176 | AN107: =IFERROR((AN60-(AN52-AN49*($G$11="Exclude"))),"") -> -0.01067891365 | AO107: =IFERROR((AO60-(AO52-AO49*($G$11="Exclude"))),"") -> -0.01456656236 | AP107: =IFERROR((AP60-(AP52-AP49*($G$11="Exclude"))),"") -> -0.01591905613 | AQ107: =IFERROR((AQ60-(AQ52-AQ49*($G$11="Exclude"))),"") -> -0.01549646051 | AR107: -0.01231876536 | AT107: 15 Yr | AU107: =IFERROR((AU60-(AU52-AU49*($G$11="Exclude"))),"") -> -0.008615182743 | AV107: =IFERROR((AV60-(AV52-AV49*($G$11="Exclude"))),"") -> -0.01017495042 | AW107: =IFERROR((AW60-(AW52-AW49*($G$11="Exclude"))),"") -> -0.01194147819 | AX107: =IFERROR((AX60-(AX52-AX49*($G$11="Exclude"))),"") -> -0.01322773038 | AY107: =IFERROR((AY60-(AY52-AY49*($G$11="Exclude"))),"") -> -0.01324016032 | AZ107: -0.01143990041
I108: 17 Yr | J108: =IFERROR((J61-(J52-J49*($G$11="Exclude"))),"") -> -0.00260025142 | K108: =IFERROR((K61-(K52-K49*($G$11="Exclude"))),"") -> -0.004614801135 | L108: =IFERROR((L61-(L52-L49*($G$11="Exclude"))),"") -> -0.005709917476 | M108: =IFERROR((M61-(M52-M49*($G$11="Exclude"))),"") -> -0.006651573115 | N108: =IFERROR((N61-(N52-N49*($G$11="Exclude"))),"") -> -0.007229502836 | O108: -0.005361209196 | Q108: 17 Yr | R108: =IFERROR((R61-(R52-R49*($G$11="Exclude"))),"") -> -0.002937583744 | S108: =IFERROR((S61-(S52-S49*($G$11="Exclude"))),"") -> -0.004833079686 | T108: =IFERROR((T61-(T52-T49*($G$11="Exclude"))),"") -> -0.005909718623 | U108: =IFERROR((U61-(U52-U49*($G$11="Exclude"))),"") -> -0.007268279561 | V108: =IFERROR((V61-(V52-V49*($G$11="Exclude"))),"") -> -0.008236647177 | W108: -0.005837061758 | AD108: 17 Yr | AE108: =IFERROR((AE61-(AE52-AE49*($G$11="Exclude"))),"") -> -0.004215432343 | AF108: =IFERROR((AF61-(AF52-AF49*($G$11="Exclude"))),"") -> -0.00890188517 | AG108: =IFERROR((AG61-(AG52-AG49*($G$11="Exclude"))),"") -> -0.01257419051 | AH108: =IFERROR((AH61-(AH52-AH49*($G$11="Exclude"))),"") -> -0.01468028302 | AI108: =IFERROR((AI61-(AI52-AI49*($G$11="Exclude"))),"") -> -0.01476280564 | AJ108: -0.01102691934 | AL108: 17 Yr | AM108: =IFERROR((AM61-(AM52-AM49*($G$11="Exclude"))),"") -> -0.002414509541 | AN108: =IFERROR((AN61-(AN52-AN49*($G$11="Exclude"))),"") -> -0.009130130962 | AO108: =IFERROR((AO61-(AO52-AO49*($G$11="Exclude"))),"") -> -0.01367235682 | AP108: =IFERROR((AP61-(AP52-AP49*($G$11="Exclude"))),"") -> -0.01573524 | AQ108: =IFERROR((AQ61-(AQ52-AQ49*($G$11="Exclude"))),"") -> -0.01561957892 | AR108: -0.01131436325 | AT108: 17 Yr | AU108: =IFERROR((AU61-(AU52-AU49*($G$11="Exclude"))),"") -> -0.006096858109 | AV108: =IFERROR((AV61-(AV52-AV49*($G$11="Exclude"))),"") -> -0.008626167733 | AW108: =IFERROR((AW61-(AW52-AW49*($G$11="Exclude"))),"") -> -0.01104727265 | AX108: =IFERROR((AX61-(AX52-AX49*($G$11="Exclude"))),"") -> -0.01304391426 | AY108: =IFERROR((AY61-(AY52-AY49*($G$11="Exclude"))),"") -> -0.01336327873 | AZ108: -0.0104354983
I109: 18 Yr | J109: =IFERROR((J62-(J52-J49*($G$11="Exclude"))),"") -> -0.001309017022 | K109: =IFERROR((K62-(K52-K49*($G$11="Exclude"))),"") -> -0.003174555603 | L109: =IFERROR((L62-(L52-L49*($G$11="Exclude"))),"") -> -0.005062009999 | M109: =IFERROR((M62-(M52-M49*($G$11="Exclude"))),"") -> -0.006144572997 | N109: =IFERROR((N62-(N52-N49*($G$11="Exclude"))),"") -> -0.007163435685 | O109: -0.004570718261 | Q109: 18 Yr | R109: =IFERROR((R62-(R52-R49*($G$11="Exclude"))),"") -> -0.001646349346 | S109: =IFERROR((S62-(S52-S49*($G$11="Exclude"))),"") -> -0.003392834154 | T109: =IFERROR((T62-(T52-T49*($G$11="Exclude"))),"") -> -0.005261811147 | U109: =IFERROR((U62-(U52-U49*($G$11="Exclude"))),"") -> -0.006761279443 | V109: =IFERROR((V62-(V52-V49*($G$11="Exclude"))),"") -> -0.008170580026 | W109: -0.005046570823 | AD109: 18 Yr | AE109: =IFERROR((AE62-(AE52-AE49*($G$11="Exclude"))),"") -> -0.002924197945 | AF109: =IFERROR((AF62-(AF52-AF49*($G$11="Exclude"))),"") -> -0.007461639638 | AG109: =IFERROR((AG62-(AG52-AG49*($G$11="Exclude"))),"") -> -0.01192628304 | AH109: =IFERROR((AH62-(AH52-AH49*($G$11="Exclude"))),"") -> -0.0141732829 | AI109: =IFERROR((AI62-(AI52-AI49*($G$11="Exclude"))),"") -> -0.01469673849 | AJ109: -0.0102364284 | AL109: 18 Yr | AM109: =IFERROR((AM62-(AM52-AM49*($G$11="Exclude"))),"") -> -0.001123275143 | AN109: =IFERROR((AN62-(AN52-AN49*($G$11="Exclude"))),"") -> -0.007689885431 | AO109: =IFERROR((AO62-(AO52-AO49*($G$11="Exclude"))),"") -> -0.01302444934 | AP109: =IFERROR((AP62-(AP52-AP49*($G$11="Exclude"))),"") -> -0.01522823988 | AQ109: =IFERROR((AQ62-(AQ52-AQ49*($G$11="Exclude"))),"") -> -0.01555351177 | AR109: -0.01052387231 | AT109: 18 Yr | AU109: =IFERROR((AU62-(AU52-AU49*($G$11="Exclude"))),"") -> -0.004805623711 | AV109: =IFERROR((AV62-(AV52-AV49*($G$11="Exclude"))),"") -> -0.007185922202 | AW109: =IFERROR((AW62-(AW52-AW49*($G$11="Exclude"))),"") -> -0.01039936517 | AX109: =IFERROR((AX62-(AX52-AX49*($G$11="Exclude"))),"") -> -0.01253691414 | AY109: =IFERROR((AY62-(AY52-AY49*($G$11="Exclude"))),"") -> -0.01329721158 | AZ109: -0.00964500736
I110: 14 Yr | J110: =IFERROR((J63-(J52-J49*($G$11="Exclude"))),"") -> -0.006046043787 | K110: =IFERROR((K63-(K52-K49*($G$11="Exclude"))),"") -> -0.006573561285 | L110: =IFERROR((L63-(L52-L49*($G$11="Exclude"))),"") -> -0.006751782515 | M110: =IFERROR((M63-(M52-M49*($G$11="Exclude"))),"") -> -0.006882247355 | N110: =IFERROR((N63-(N52-N49*($G$11="Exclude"))),"") -> -0.006579480646 | O110: -0.006566623118 | Q110: 14 Yr | R110: =IFERROR((R63-(R52-R49*($G$11="Exclude"))),"") -> -0.006383376111 | S110: =IFERROR((S63-(S52-S49*($G$11="Exclude"))),"") -> -0.006791839836 | T110: =IFERROR((T63-(T52-T49*($G$11="Exclude"))),"") -> -0.006951583662 | U110: =IFERROR((U63-(U52-U49*($G$11="Exclude"))),"") -> -0.007498953801 | V110: =IFERROR((V63-(V52-V49*($G$11="Exclude"))),"") -> -0.007586624987 | W110: -0.007042475679 | AD110: 14 Yr | AE110: =IFERROR((AE63-(AE52-AE49*($G$11="Exclude"))),"") -> -0.00766122471 | AF110: =IFERROR((AF63-(AF52-AF49*($G$11="Exclude"))),"") -> -0.01086064532 | AG110: =IFERROR((AG63-(AG52-AG49*($G$11="Exclude"))),"") -> -0.01361605555 | AH110: =IFERROR((AH63-(AH52-AH49*($G$11="Exclude"))),"") -> -0.01491095726 | AI110: =IFERROR((AI63-(AI52-AI49*($G$11="Exclude"))),"") -> -0.01411278345 | AJ110: -0.01223233326 | AL110: 14 Yr | AM110: =IFERROR((AM63-(AM52-AM49*($G$11="Exclude"))),"") -> -0.005860301908 | AN110: =IFERROR((AN63-(AN52-AN49*($G$11="Exclude"))),"") -> -0.01108889111 | AO110: =IFERROR((AO63-(AO52-AO49*($G$11="Exclude"))),"") -> -0.01471422186 | AP110: =IFERROR((AP63-(AP52-AP49*($G$11="Exclude"))),"") -> -0.01596591424 | AQ110: =IFERROR((AQ63-(AQ52-AQ49*($G$11="Exclude"))),"") -> -0.01496955673 | AR110: -0.01251977717 | AT110: 14 Yr | AU110: =IFERROR((AU63-(AU52-AU49*($G$11="Exclude"))),"") -> -0.009542650476 | AV110: =IFERROR((AV63-(AV52-AV49*($G$11="Exclude"))),"") -> -0.01058492788 | AW110: =IFERROR((AW63-(AW52-AW49*($G$11="Exclude"))),"") -> -0.01208913768 | AX110: =IFERROR((AX63-(AX52-AX49*($G$11="Exclude"))),"") -> -0.0132745885 | AY110: =IFERROR((AY63-(AY52-AY49*($G$11="Exclude"))),"") -> -0.01271325654 | AZ110: -0.01164091222
I111: 14 Yr + 60 bps | J111: =IFERROR((J64-(J52-J49*($G$11="Exclude"))),"") -> -4.604378708e-05 | K111: =IFERROR((K64-(K52-K49*($G$11="Exclude"))),"") -> -0.0005735612849 | L111: =IFERROR((L64-(L52-L49*($G$11="Exclude"))),"") -> -0.0007517825148 | M111: =IFERROR((M64-(M52-M49*($G$11="Exclude"))),"") -> -0.0008822473549 | N111: =IFERROR((N64-(N52-N49*($G$11="Exclude"))),"") -> -0.000579480646 | O111: -0.0005666231175 | Q111: 14 Yr + 60 bps | R111: =IFERROR((R64-(R52-R49*($G$11="Exclude"))),"") -> -0.0003833761108 | S111: =IFERROR((S64-(S52-S49*($G$11="Exclude"))),"") -> -0.0007918398359 | T111: =IFERROR((T64-(T52-T49*($G$11="Exclude"))),"") -> -0.0009515836622 | U111: =IFERROR((U64-(U52-U49*($G$11="Exclude"))),"") -> -0.001498953801 | V111: =IFERROR((V64-(V52-V49*($G$11="Exclude"))),"") -> -0.001586624987 | W111: -0.001042475679 | AD111: 14 Yr + 60 bps | AE111: =IFERROR((AE64-(AE52-AE49*($G$11="Exclude"))),"") -> -0.00166122471 | AF111: =IFERROR((AF64-(AF52-AF49*($G$11="Exclude"))),"") -> -0.00486064532 | AG111: =IFERROR((AG64-(AG52-AG49*($G$11="Exclude"))),"") -> -0.007616055553 | AH111: =IFERROR((AH64-(AH52-AH49*($G$11="Exclude"))),"") -> -0.008910957255 | AI111: =IFERROR((AI64-(AI52-AI49*($G$11="Exclude"))),"") -> -0.008112783447 | AJ111: -0.006232333257 | AL111: 14 Yr + 60 bps | AM111: =IFERROR((AM64-(AM52-AM49*($G$11="Exclude"))),"") -> 0.0001396980915 | AN111: =IFERROR((AN64-(AN52-AN49*($G$11="Exclude"))),"") -> -0.005088891112 | AO111: =IFERROR((AO64-(AO52-AO49*($G$11="Exclude"))),"") -> -0.008714221855 | AP111: =IFERROR((AP64-(AP52-AP49*($G$11="Exclude"))),"") -> -0.009965914243 | AQ111: =IFERROR((AQ64-(AQ52-AQ49*($G$11="Exclude"))),"") -> -0.008969556732 | AR111: -0.00651977717 | AT111: 14 Yr + 60 bps | AU111: =IFERROR((AU64-(AU52-AU49*($G$11="Exclude"))),"") -> -0.003542650476 | AV111: =IFERROR((AV64-(AV52-AV49*($G$11="Exclude"))),"") -> -0.004584927883 | AW111: =IFERROR((AW64-(AW52-AW49*($G$11="Exclude"))),"") -> -0.006089137685 | AX111: =IFERROR((AX64-(AX52-AX49*($G$11="Exclude"))),"") -> -0.007274588497 | AY111: =IFERROR((AY64-(AY52-AY49*($G$11="Exclude"))),"") -> -0.006713256541 | AZ111: -0.005640912216
I112: 14 Yrs no lag | J112: =IFERROR((J65-(J52-J49*($G$11="Exclude"))),"") -> -0.005688940698 | K112: =IFERROR((K65-(K52-K49*($G$11="Exclude"))),"") -> -0.005848674313 | L112: =IFERROR((L65-(L52-L49*($G$11="Exclude"))),"") -> -0.006066155023 | M112: =IFERROR((M65-(M52-M49*($G$11="Exclude"))),"") -> -0.005938883361 | N112: =IFERROR((N65-(N52-N49*($G$11="Exclude"))),"") -> -0.005747262374 | O112: -0.005857983154 | Q112: 14 Yrs no lag | R112: =IFERROR((R65-(R52-R49*($G$11="Exclude"))),"") -> -0.006026273022 | S112: =IFERROR((S65-(S52-S49*($G$11="Exclude"))),"") -> -0.006066952864 | T112: =IFERROR((T65-(T52-T49*($G$11="Exclude"))),"") -> -0.00626595617 | U112: =IFERROR((U65-(U52-U49*($G$11="Exclude"))),"") -> -0.006555589807 | V112: =IFERROR((V65-(V52-V49*($G$11="Exclude"))),"") -> -0.006754406715 | W112: -0.006333835716 | AD112: 14 Yrs no lag | AE112: =IFERROR((AE65-(AE52-AE49*($G$11="Exclude"))),"") -> -0.007304121621 | AF112: =IFERROR((AF65-(AF52-AF49*($G$11="Exclude"))),"") -> -0.01013575835 | AG112: =IFERROR((AG65-(AG52-AG49*($G$11="Exclude"))),"") -> -0.01293042806 | AH112: =IFERROR((AH65-(AH52-AH49*($G$11="Exclude"))),"") -> -0.01396759326 | AI112: =IFERROR((AI65-(AI52-AI49*($G$11="Exclude"))),"") -> -0.01328056517 | AJ112: -0.01152369329 | AL112: 14 Yrs no lag | AM112: =IFERROR((AM65-(AM52-AM49*($G$11="Exclude"))),"") -> -0.005503198819 | AN112: =IFERROR((AN65-(AN52-AN49*($G$11="Exclude"))),"") -> -0.01036400414 | AO112: =IFERROR((AO65-(AO52-AO49*($G$11="Exclude"))),"") -> -0.01402859436 | AP112: =IFERROR((AP65-(AP52-AP49*($G$11="Exclude"))),"") -> -0.01502255025 | AQ112: =IFERROR((AQ65-(AQ52-AQ49*($G$11="Exclude"))),"") -> -0.01413733846 | AR112: -0.01181113721 | AT112: 14 Yrs no lag | AU112: =IFERROR((AU65-(AU52-AU49*($G$11="Exclude"))),"") -> -0.009185547387 | AV112: =IFERROR((AV65-(AV52-AV49*($G$11="Exclude"))),"") -> -0.009860040911 | AW112: =IFERROR((AW65-(AW52-AW49*($G$11="Exclude"))),"") -> -0.01140351019 | AX112: =IFERROR((AX65-(AX52-AX49*($G$11="Exclude"))),"") -> -0.0123312245 | AY112: =IFERROR((AY65-(AY52-AY49*($G$11="Exclude"))),"") -> -0.01188103827 | AZ112: -0.01093227225
I113: 14 Yrs no lag + 72 bps | J113: =IFERROR((J66-(J52-J49*($G$11="Exclude"))),"") -> 0.001511059302 | K113: =IFERROR((K66-(K52-K49*($G$11="Exclude"))),"") -> 0.001351325687 | L113: =IFERROR((L66-(L52-L49*($G$11="Exclude"))),"") -> 0.001133844977 | M113: =IFERROR((M66-(M52-M49*($G$11="Exclude"))),"") -> 0.001261116639 | N113: =IFERROR((N66-(N52-N49*($G$11="Exclude"))),"") -> 0.001452737626 | O113: 0.001342016846 | Q113: 14 Yrs no lag + 72 bps | R113: =IFERROR((R66-(R52-R49*($G$11="Exclude"))),"") -> 0.001173726978 | S113: =IFERROR((S66-(S52-S49*($G$11="Exclude"))),"") -> 0.001133047136 | T113: =IFERROR((T66-(T52-T49*($G$11="Exclude"))),"") -> 0.0009340438298 | U113: =IFERROR((U66-(U52-U49*($G$11="Exclude"))),"") -> 0.0006444101928 | V113: =IFERROR((V66-(V52-V49*($G$11="Exclude"))),"") -> 0.0004455932849 | W113: 0.0008661642844 | AD113: 14 Yrs no lag + 72 bps | AE113: =IFERROR((AE66-(AE52-AE49*($G$11="Exclude"))),"") -> -0.0001041216208 | AF113: =IFERROR((AF66-(AF52-AF49*($G$11="Exclude"))),"") -> -0.002935758348 | AG113: =IFERROR((AG66-(AG52-AG49*($G$11="Exclude"))),"") -> -0.005730428061 | AH113: =IFERROR((AH66-(AH52-AH49*($G$11="Exclude"))),"") -> -0.006767593262 | AI113: =IFERROR((AI66-(AI52-AI49*($G$11="Exclude"))),"") -> -0.006080565175 | AJ113: -0.004323693293 | AL113: 14 Yrs no lag + 72 bps | AM113: =IFERROR((AM66-(AM52-AM49*($G$11="Exclude"))),"") -> 0.001696801181 | AN113: =IFERROR((AN66-(AN52-AN49*($G$11="Exclude"))),"") -> -0.00316400414 | AO113: =IFERROR((AO66-(AO52-AO49*($G$11="Exclude"))),"") -> -0.006828594363 | AP113: =IFERROR((AP66-(AP52-AP49*($G$11="Exclude"))),"") -> -0.00782255025 | AQ113: =IFERROR((AQ66-(AQ52-AQ49*($G$11="Exclude"))),"") -> -0.00693733846 | AR113: -0.004611137206 | AT113: 14 Yrs no lag + 72 bps | AU113: =IFERROR((AU66-(AU52-AU49*($G$11="Exclude"))),"") -> -0.001985547387 | AV113: =IFERROR((AV66-(AV52-AV49*($G$11="Exclude"))),"") -> -0.002660040911 | AW113: =IFERROR((AW66-(AW52-AW49*($G$11="Exclude"))),"") -> -0.004203510193 | AX113: =IFERROR((AX66-(AX52-AX49*($G$11="Exclude"))),"") -> -0.005131224504 | AY113: =IFERROR((AY66-(AY52-AY49*($G$11="Exclude"))),"") -> -0.004681038269 | AZ113: -0.003732272253
I114: 14 Yrs no lag + 61 bps | J114: =IFERROR((J67-(J52-J49*($G$11="Exclude"))),"") -> 0.000411059302 | K114: =IFERROR((K67-(K52-K49*($G$11="Exclude"))),"") -> 0.0002513256874 | L114: =IFERROR((L67-(L52-L49*($G$11="Exclude"))),"") -> 3.384497718e-05 | M114: =IFERROR((M67-(M52-M49*($G$11="Exclude"))),"") -> 0.0001611166386 | N114: =IFERROR((N67-(N52-N49*($G$11="Exclude"))),"") -> 0.000352737626 | O114: 0.0002420168463 | Q114: 14 Yrs no lag + 61 bps | R114: =IFERROR((R67-(R52-R49*($G$11="Exclude"))),"") -> 7.372697826e-05 | S114: =IFERROR((S67-(S52-S49*($G$11="Exclude"))),"") -> 3.304713644e-05 | T114: =IFERROR((T67-(T52-T49*($G$11="Exclude"))),"") -> -0.0001659561702 | U114: =IFERROR((U67-(U52-U49*($G$11="Exclude"))),"") -> -0.0004555898072 | V114: =IFERROR((V67-(V52-V49*($G$11="Exclude"))),"") -> -0.0006544067151 | W114: -0.0002338357156 | AD114: 14 Yrs no lag + 61 bps | AE114: =IFERROR((AE67-(AE52-AE49*($G$11="Exclude"))),"") -> -0.001204121621 | AF114: =IFERROR((AF67-(AF52-AF49*($G$11="Exclude"))),"") -> -0.004035758348 | AG114: =IFERROR((AG67-(AG52-AG49*($G$11="Exclude"))),"") -> -0.006830428061 | AH114: =IFERROR((AH67-(AH52-AH49*($G$11="Exclude"))),"") -> -0.007867593262 | AI114: =IFERROR((AI67-(AI52-AI49*($G$11="Exclude"))),"") -> -0.007180565175 | AJ114: -0.005423693293 | AL114: 14 Yrs no lag + 61 bps | AM114: =IFERROR((AM67-(AM52-AM49*($G$11="Exclude"))),"") -> 0.0005968011806 | AN114: =IFERROR((AN67-(AN52-AN49*($G$11="Exclude"))),"") -> -0.00426400414 | AO114: =IFERROR((AO67-(AO52-AO49*($G$11="Exclude"))),"") -> -0.007928594363 | AP114: =IFERROR((AP67-(AP52-AP49*($G$11="Exclude"))),"") -> -0.00892255025 | AQ114: =IFERROR((AQ67-(AQ52-AQ49*($G$11="Exclude"))),"") -> -0.00803733846 | AR114: -0.005711137206 | AT114: 14 Yrs no lag + 61 bps | AU114: =IFERROR((AU67-(AU52-AU49*($G$11="Exclude"))),"") -> -0.003085547387 | AV114: =IFERROR((AV67-(AV52-AV49*($G$11="Exclude"))),"") -> -0.003760040911 | AW114: =IFERROR((AW67-(AW52-AW49*($G$11="Exclude"))),"") -> -0.005303510193 | AX114: =IFERROR((AX67-(AX52-AX49*($G$11="Exclude"))),"") -> -0.006231224504 | AY114: =IFERROR((AY67-(AY52-AY49*($G$11="Exclude"))),"") -> -0.005781038269 | AZ114: -0.004832272253
I115: 13 Yrs no lag | J115: =IFERROR((J68-(J52-J49*($G$11="Exclude"))),"") -> -0.006067156704 | K115: =IFERROR((K68-(K52-K49*($G$11="Exclude"))),"") -> -0.006170577292 | L115: =IFERROR((L68-(L52-L49*($G$11="Exclude"))),"") -> -0.005901154397 | M115: =IFERROR((M68-(M52-M49*($G$11="Exclude"))),"") -> -0.005548746003 | N115: =IFERROR((N68-(N52-N49*($G$11="Exclude"))),"") -> -0.004481108821 | O115: -0.005633748643 | Q115: 13 Yrs no lag | R115: =IFERROR((R68-(R52-R49*($G$11="Exclude"))),"") -> -0.006404489028 | S115: =IFERROR((S68-(S52-S49*($G$11="Exclude"))),"") -> -0.006388855843 | T115: =IFERROR((T68-(T52-T49*($G$11="Exclude"))),"") -> -0.006100955545 | U115: =IFERROR((U68-(U52-U49*($G$11="Exclude"))),"") -> -0.006165452449 | V115: =IFERROR((V68-(V52-V49*($G$11="Exclude"))),"") -> -0.005488253162 | W115: -0.006109601205 | AD115: 13 Yrs no lag | AE115: =IFERROR((AE68-(AE52-AE49*($G$11="Exclude"))),"") -> -0.007682337627 | AF115: =IFERROR((AF68-(AF52-AF49*($G$11="Exclude"))),"") -> -0.01045766133 | AG115: =IFERROR((AG68-(AG52-AG49*($G$11="Exclude"))),"") -> -0.01276542744 | AH115: =IFERROR((AH68-(AH52-AH49*($G$11="Exclude"))),"") -> -0.0135774559 | AI115: =IFERROR((AI68-(AI52-AI49*($G$11="Exclude"))),"") -> -0.01201441162 | AJ115: -0.01129945878 | AL115: 13 Yrs no lag | AM115: =IFERROR((AM68-(AM52-AM49*($G$11="Exclude"))),"") -> -0.005881414825 | AN115: =IFERROR((AN68-(AN52-AN49*($G$11="Exclude"))),"") -> -0.01068590712 | AO115: =IFERROR((AO68-(AO52-AO49*($G$11="Exclude"))),"") -> -0.01386359374 | AP115: =IFERROR((AP68-(AP52-AP49*($G$11="Exclude"))),"") -> -0.01463241289 | AQ115: =IFERROR((AQ68-(AQ52-AQ49*($G$11="Exclude"))),"") -> -0.01287118491 | AR115: -0.0115869027 | AT115: 13 Yrs no lag | AU115: =IFERROR((AU68-(AU52-AU49*($G$11="Exclude"))),"") -> -0.009563763392 | AV115: =IFERROR((AV68-(AV52-AV49*($G$11="Exclude"))),"") -> -0.01018194389 | AW115: =IFERROR((AW68-(AW52-AW49*($G$11="Exclude"))),"") -> -0.01123850957 | AX115: =IFERROR((AX68-(AX52-AX49*($G$11="Exclude"))),"") -> -0.01194108715 | AY115: =IFERROR((AY68-(AY52-AY49*($G$11="Exclude"))),"") -> -0.01061488472 | AZ115: -0.01070803774
J116: =IFERROR((J69-(J52-J49*($G$11="Exclude"))),"") ->  | K116: =IFERROR((K69-(K52-K49*($G$11="Exclude"))),"") ->  | L116: =IFERROR((L69-(L52-L49*($G$11="Exclude"))),"") ->  | M116: =IFERROR((M69-(M52-M49*($G$11="Exclude"))),"") ->  | N116: =IFERROR((N69-(N52-N49*($G$11="Exclude"))),"") ->  | R116: =IFERROR((R69-(R52-R49*($G$11="Exclude"))),"") ->  | S116: =IFERROR((S69-(S52-S49*($G$11="Exclude"))),"") ->  | T116: =IFERROR((T69-(T52-T49*($G$11="Exclude"))),"") ->  | U116: =IFERROR((U69-(U52-U49*($G$11="Exclude"))),"") ->  | V116: =IFERROR((V69-(V52-V49*($G$11="Exclude"))),"") ->  | AE116: =IFERROR((AE69-(AE52-AE49*($G$11="Exclude"))),"") ->  | AF116: =IFERROR((AF69-(AF52-AF49*($G$11="Exclude"))),"") ->  | AG116: =IFERROR((AG69-(AG52-AG49*($G$11="Exclude"))),"") ->  | AH116: =IFERROR((AH69-(AH52-AH49*($G$11="Exclude"))),"") ->  | AI116: =IFERROR((AI69-(AI52-AI49*($G$11="Exclude"))),"") ->  | AM116: =IFERROR((AM69-(AM52-AM49*($G$11="Exclude"))),"") ->  | AN116: =IFERROR((AN69-(AN52-AN49*($G$11="Exclude"))),"") ->  | AO116: =IFERROR((AO69-(AO52-AO49*($G$11="Exclude"))),"") ->  | AP116: =IFERROR((AP69-(AP52-AP49*($G$11="Exclude"))),"") ->  | AQ116: =IFERROR((AQ69-(AQ52-AQ49*($G$11="Exclude"))),"") ->  | AU116: =IFERROR((AU69-(AU52-AU49*($G$11="Exclude"))),"") ->  | AV116: =IFERROR((AV69-(AV52-AV49*($G$11="Exclude"))),"") ->  | AW116: =IFERROR((AW69-(AW52-AW49*($G$11="Exclude"))),"") ->  | AX116: =IFERROR((AX69-(AX52-AX49*($G$11="Exclude"))),"") ->  | AY116: =IFERROR((AY69-(AY52-AY49*($G$11="Exclude"))),"") -> 
I121: Iboxx - CPIH Real | J121: GD & GT | Q121: Iboxx - CPIH Real | R121: GD Only | AD121: Iboxx - CPIH Real | AE121: ED Only | AL121: Iboxx - CPIH Real | AM121: TOTAL ET ( including SHET) | AT121: Iboxx - CPIH Real | AU121: TOTAL ET ( including SHET)
J122: =MATCH(J123,'Individual Summaries'!$H$8:$V$8,0) -> 9 | K122: =MATCH(K123,'Individual Summaries'!$H$8:$V$8,0) -> 10 | L122: =MATCH(L123,'Individual Summaries'!$H$8:$V$8,0) -> 11 | M122: =MATCH(M123,'Individual Summaries'!$H$8:$V$8,0) -> 12 | N122: =MATCH(N123,'Individual Summaries'!$H$8:$V$8,0) -> 13 | R122: =MATCH(R$47,'Individual Summaries'!$H$8:$V$8,0) -> 9 | S122: =MATCH(S$47,'Individual Summaries'!$H$8:$V$8,0) -> 10 | T122: =MATCH(T$47,'Individual Summaries'!$H$8:$V$8,0) -> 11 | U122: =MATCH(U$47,'Individual Summaries'!$H$8:$V$8,0) -> 12 | V122: =MATCH(V$47,'Individual Summaries'!$H$8:$V$8,0) -> 13 | AE122: =MATCH(AE$47,'Individual Summaries'!$H$8:$V$8,0) -> 9 | AF122: =MATCH(AF$47,'Individual Summaries'!$H$8:$V$8,0) -> 10 | AG122: =MATCH(AG$47,'Individual Summaries'!$H$8:$V$8,0) -> 11 | AH122: =MATCH(AH$47,'Individual Summaries'!$H$8:$V$8,0) -> 12 | AI122: =MATCH(AI$47,'Individual Summaries'!$H$8:$V$8,0) -> 13 | AM122: =MATCH(AM123,'Individual Summaries'!$H$8:$V$8,0) -> 9 | AN122: =MATCH(AN123,'Individual Summaries'!$H$8:$V$8,0) -> 10 | AO122: =MATCH(AO$47,'Individual Summaries'!$H$8:$V$8,0) -> 11 | AP122: =MATCH(AP$47,'Individual Summaries'!$H$8:$V$8,0) -> 12 | AQ122: =MATCH(AQ$47,'Individual Summaries'!$H$8:$V$8,0) -> 13 | AU122: =MATCH(AU123,'Individual Summaries'!$H$8:$V$8,0) -> 9 | AV122: =MATCH(AV123,'Individual Summaries'!$H$8:$V$8,0) -> 10 | AW122: =MATCH(AW$47,'Individual Summaries'!$H$8:$V$8,0) -> 11 | AX122: =MATCH(AX$47,'Individual Summaries'!$H$8:$V$8,0) -> 12 | AY122: =MATCH(AY$47,'Individual Summaries'!$H$8:$V$8,0) -> 13
I123: Assessed Expected Costs (Nominal) | J123: Y2027 | K123: Y2028 | L123: Y2029 | M123: Y2030 | N123: Y2031 | O123: RIIO-3 average | Q123: Assessed Expected Costs (Nominal) | R123: Y2027 | S123: Y2028 | T123: Y2029 | U123: Y2030 | V123: Y2031 | W123: RIIO-3 average | AD123: Assessed Expected Costs (Nominal) | AE123: Y2027 | AF123: Y2028 | AG123: Y2029 | AH123: Y2030 | AI123: Y2031 | AJ123: RIIO-3 average | AL123: Assessed Expected Costs (Nominal) | AM123: Y2027 | AN123: Y2028 | AO123: Y2029 | AP123: Y2030 | AQ123: Y2031 | AR123: RIIO-3 average | AT123: Assessed Expected Costs (Nominal) | AU123: Y2027 | AV123: Y2028 | AW123: Y2029 | AX123: Y2030 | AY123: Y2031 | AZ123: RIIO-3 average
I124: Pure debt | J124: =INDEX(IF(I121="iBoxx- Nominal",IF($G$21="NO",'Individual Summaries'!$H$87:$QL$87,'Individual Summaries'!$H$112:$QL$112),IF($G$21="NO",'Individual Summaries'!$H$88:$QL$88,'Individual Summaries'!$H$113:$QL$113)),MATCH(J121 & J123,'Individual Summaries'!$H$10:$QL$10,0)) -> 0.02107443425 | K124: =INDEX(IF(I121="iBoxx- Nominal",IF($G$21="NO",'Individual Summaries'!$H$87:$QL$87,'Individual Summaries'!$H$112:$QL$112),IF($G$21="NO",'Individual Summaries'!$H$88:$QL$88,'Individual Summaries'!$H$113:$QL$113)),MATCH(J121 & K123,'Individual Summaries'!$H$10:$QL$10,0)) -> 0.02496139951 | L124: =INDEX(IF(I121="iBoxx- Nominal",IF($G$21="NO",'Individual Summaries'!$H$87:$QL$87,'Individual Summaries'!$H$112:$QL$112),IF($G$21="NO",'Individual Summaries'!$H$88:$QL$88,'Individual Summaries'!$H$113:$QL$113)),MATCH(J121 & L123,'Individual Summaries'!$H$10:$QL$10,0)) -> 0.02766627211 | M124: =INDEX(IF(I121="iBoxx- Nominal",IF($G$21="NO",'Individual Summaries'!$H$87:$QL$87,'Individual Summaries'!$H$112:$QL$112),IF($G$21="NO",'Individual Summaries'!$H$88:$QL$88,'Individual Summaries'!$H$113:$QL$113)),MATCH(J121 & M123,'Individual Summaries'!$H$10:$QL$10,0)) -> 0.02950044386 | N124: =INDEX(IF(I121="iBoxx- Nominal",IF($G$21="NO",'Individual Summaries'!$H$87:$QL$87,'Individual Summaries'!$H$112:$QL$112),IF($G$21="NO",'Individual Summaries'!$H$88:$QL$88,'Individual Summaries'!$H$113:$QL$113)),MATCH(J121 & N123,'Individual Summaries'!$H$10:$QL$10,0)) -> 0.03142195882 | O124: =AVERAGE(J124:N124) -> 0.02692490171 | Q124: Pure debt | R124: =INDEX(IF(Q121="iBoxx- Nominal",IF($G$21="NO",'Individual Summaries'!$H$87:$QL$87,'Individual Summaries'!$H$112:$QL$112),IF($G$21="NO",'Individual Summaries'!$H$88:$QL$88,'Individual Summaries'!$H$113:$QL$113)),MATCH(R121 & R123,'Individual Summaries'!$H$10:$QL$10,0)) -> 0.02094211241 | S124: =INDEX(IF(Q121="iBoxx- Nominal",IF($G$21="NO",'Individual Summaries'!$H$87:$QL$87,'Individual Summaries'!$H$112:$QL$112),IF($G$21="NO",'Individual Summaries'!$H$88:$QL$88,'Individual Summaries'!$H$113:$QL$113)),MATCH(R121 & S123,'Individual Summaries'!$H$10:$QL$10,0)) -> 0.02476005924 | T124: =INDEX(IF(Q121="iBoxx- Nominal",IF($G$21="NO",'Individual Summaries'!$H$87:$QL$87,'Individual Summaries'!$H$112:$QL$112),IF($G$21="NO",'Individual Summaries'!$H$88:$QL$88,'Individual Summaries'!$H$113:$QL$113)),MATCH(R121 & T123,'Individual Summaries'!$H$10:$QL$10,0)) -> 0.02753937652 | U124: =INDEX(IF(Q121="iBoxx- Nominal",IF($G$21="NO",'Individual Summaries'!$H$87:$QL$87,'Individual Summaries'!$H$112:$QL$112),IF($G$21="NO",'Individual Summaries'!$H$88:$QL$88,'Individual Summaries'!$H$113:$QL$113)),MATCH(R121 & U123,'Individual Summaries'!$H$10:$QL$10,0)) -> 0.0298239016 | V124: =INDEX(IF(Q121="iBoxx- Nominal",IF($G$21="NO",'Individual Summaries'!$H$87:$QL$87,'Individual Summaries'!$H$112:$QL$112),IF($G$21="NO",'Individual Summaries'!$H$88:$QL$88,'Individual Summaries'!$H$113:$QL$113)),MATCH(R121 & V123,'Individual Summaries'!$H$10:$QL$10,0)) -> 0.03215366561 | W124: =AVERAGE(R124:V124) -> 0.02704382308 | AD124: Pure debt | AE124: =INDEX(IF(AD121="iBoxx- Nominal",IF($G$21="NO",'Individual Summaries'!$H$87:$QL$87,'Individual Summaries'!$H$112:$QL$112),IF($G$21="NO",'Individual Summaries'!$H$88:$QL$88,'Individual Summaries'!$H$113:$QL$113)),MATCH(AE121 & AE$47,'Individual Summaries'!$H$10:$QL$10,0)) -> 0.02611758733 | AF124: =INDEX(IF(AD121="iBoxx- Nominal",IF($G$21="NO",'Individual Summaries'!$H$87:$QL$87,'Individual Summaries'!$H$112:$QL$112),IF($G$21="NO",'Individual Summaries'!$H$88:$QL$88,'Individual Summaries'!$H$113:$QL$113)),MATCH(AE121 & AF$47,'Individual Summaries'!$H$10:$QL$10,0)) -> 0.03026834834 | AG124: =INDEX(IF(AD121="iBoxx- Nominal",IF($G$21="NO",'Individual Summaries'!$H$87:$QL$87,'Individual Summaries'!$H$112:$QL$112),IF($G$21="NO",'Individual Summaries'!$H$88:$QL$88,'Individual Summaries'!$H$113:$QL$113)),MATCH(AE121 & AG$47,'Individual Summaries'!$H$10:$QL$10,0)) -> 0.03394072554 | AH124: =INDEX(IF(AD121="iBoxx- Nominal",IF($G$21="NO",'Individual Summaries'!$H$87:$QL$87,'Individual Summaries'!$H$112:$QL$112),IF($G$21="NO",'Individual Summaries'!$H$88:$QL$88,'Individual Summaries'!$H$113:$QL$113)),MATCH(AE121 & AH$47,'Individual Summaries'!$H$10:$QL$10,0)) -> 0.03666325299 | AI124: =INDEX(IF(AD121="iBoxx- Nominal",IF($G$21="NO",'Individual Summaries'!$H$87:$QL$87,'Individual Summaries'!$H$112:$QL$112),IF($G$21="NO",'Individual Summaries'!$H$88:$QL$88,'Individual Summaries'!$H$113:$QL$113)),MATCH(AE121 & AI$47,'Individual Summaries'!$H$10:$QL$10,0)) -> 0.0382508993 | AJ124: =AVERAGE(AE124:AI124) -> 0.0330481627 | AL124: Pure debt | AM124: =INDEX(IF(AL121="iBoxx- Nominal",IF($G$21="NO",'Individual Summaries'!$H$87:$QL$87,'Individual Summaries'!$H$112:$QL$112),IF($G$21="NO",'Individual Summaries'!$H$88:$QL$88,'Individual Summaries'!$H$113:$QL$113)),MATCH(AM121 & AM123,'Individual Summaries'!$H$10:$QL$10,0)) -> 0.02251815742 | AN124: =INDEX(IF(AL121="iBoxx- Nominal",IF($G$21="NO",'Individual Summaries'!$H$87:$QL$87,'Individual Summaries'!$H$112:$QL$112),IF($G$21="NO",'Individual Summaries'!$H$88:$QL$88,'Individual Summaries'!$H$113:$QL$113)),MATCH(AM121 & AN123,'Individual Summaries'!$H$10:$QL$10,0)) -> 0.03076189142 | AO124: =INDEX(IF(AL121="iBoxx- Nominal",IF($G$21="NO",'Individual Summaries'!$H$87:$QL$87,'Individual Summaries'!$H$112:$QL$112),IF($G$21="NO",'Individual Summaries'!$H$88:$QL$88,'Individual Summaries'!$H$113:$QL$113)),MATCH(AM121 & AO$47,'Individual Summaries'!$H$10:$QL$10,0)) -> 0.03651279242 | AP124: =INDEX(IF(AL121="iBoxx- Nominal",IF($G$21="NO",'Individual Summaries'!$H$87:$QL$87,'Individual Summaries'!$H$112:$QL$112),IF($G$21="NO",'Individual Summaries'!$H$88:$QL$88,'Individual Summaries'!$H$113:$QL$113)),MATCH(AM121 & AP$47,'Individual Summaries'!$H$10:$QL$10,0)) -> 0.0392998782 | AQ124: =INDEX(IF(AL121="iBoxx- Nominal",IF($G$21="NO",'Individual Summaries'!$H$87:$QL$87,'Individual Summaries'!$H$112:$QL$112),IF($G$21="NO",'Individual Summaries'!$H$88:$QL$88,'Individual Summaries'!$H$113:$QL$113)),MATCH(AM121 & AQ$47,'Individual Summaries'!$H$10:$QL$10,0)) -> 0.04046133072 | AR124: =AVERAGE(AM124:AQ124) -> 0.03391081004 | AT124: Pure debt | AU124: =INDEX(IF(AT121="iBoxx- Nominal",IF($G$21="NO",'Individual Summaries'!$H$87:$QL$87,'Individual Summaries'!$H$112:$QL$112),IF($G$21="NO",'Individual Summaries'!$H$88:$QL$88,'Individual Summaries'!$H$113:$QL$113)),MATCH(AU121 & AU123,'Individual Summaries'!$H$10:$QL$10,0)) -> 0.02251815742 | AV124: =INDEX(IF(AT121="iBoxx- Nominal",IF($G$21="NO",'Individual Summaries'!$H$87:$QL$87,'Individual Summaries'!$H$112:$QL$112),IF($G$21="NO",'Individual Summaries'!$H$88:$QL$88,'Individual Summaries'!$H$113:$QL$113)),MATCH(AU121 & AV123,'Individual Summaries'!$H$10:$QL$10,0)) -> 0.03076189142 | AW124: =INDEX(IF(AT121="iBoxx- Nominal",IF($G$21="NO",'Individual Summaries'!$H$87:$QL$87,'Individual Summaries'!$H$112:$QL$112),IF($G$21="NO",'Individual Summaries'!$H$88:$QL$88,'Individual Summaries'!$H$113:$QL$113)),MATCH(AU121 & AW$47,'Individual Summaries'!$H$10:$QL$10,0)) -> 0.03651279242 | AX124: =INDEX(IF(AT121="iBoxx- Nominal",IF($G$21="NO",'Individual Summaries'!$H$87:$QL$87,'Individual Summaries'!$H$112:$QL$112),IF($G$21="NO",'Individual Summaries'!$H$88:$QL$88,'Individual Summaries'!$H$113:$QL$113)),MATCH(AU121 & AX$47,'Individual Summaries'!$H$10:$QL$10,0)) -> 0.0392998782 | AY124: =INDEX(IF(AT121="iBoxx- Nominal",IF($G$21="NO",'Individual Summaries'!$H$87:$QL$87,'Individual Summaries'!$H$112:$QL$112),IF($G$21="NO",'Individual Summaries'!$H$88:$QL$88,'Individual Summaries'!$H$113:$QL$113)),MATCH(AU121 & AY$47,'Individual Summaries'!$H$10:$QL$10,0)) -> 0.04046133072 | AZ124: =AVERAGE(AU124:AY124) -> 0.03391081004
I125: Derivatives | J125: =INDEX(IF($I$45="iBoxx- Nominal",IF($G$21="NO",'Individual Summaries'!$H$95:$QL$95,'Individual Summaries'!$H$117:$QL$117),IF($G$21="NO",'Individual Summaries'!$H$96:$QL$96,'Individual Summaries'!$H$118:$QL$118)),MATCH(J121 & J123,'Individual Summaries'!$H$10:$QL$10,0)) -> 0 | K125: =INDEX(IF($I$45="iBoxx- Nominal",IF($G$21="NO",'Individual Summaries'!$H$95:$QL$95,'Individual Summaries'!$H$117:$QL$117),IF($G$21="NO",'Individual Summaries'!$H$96:$QL$96,'Individual Summaries'!$H$118:$QL$118)),MATCH(J121 & K123,'Individual Summaries'!$H$10:$QL$10,0)) -> 0 | L125: =INDEX(IF($I$45="iBoxx- Nominal",IF($G$21="NO",'Individual Summaries'!$H$95:$QL$95,'Individual Summaries'!$H$117:$QL$117),IF($G$21="NO",'Individual Summaries'!$H$96:$QL$96,'Individual Summaries'!$H$118:$QL$118)),MATCH(J121 & L123,'Individual Summaries'!$H$10:$QL$10,0)) -> 0 | M125: =INDEX(IF($I$45="iBoxx- Nominal",IF($G$21="NO",'Individual Summaries'!$H$95:$QL$95,'Individual Summaries'!$H$117:$QL$117),IF($G$21="NO",'Individual Summaries'!$H$96:$QL$96,'Individual Summaries'!$H$118:$QL$118)),MATCH(J121 & M123,'Individual Summaries'!$H$10:$QL$10,0)) -> 0 | N125: =INDEX(IF($I$45="iBoxx- Nominal",IF($G$21="NO",'Individual Summaries'!$H$95:$QL$95,'Individual Summaries'!$H$117:$QL$117),IF($G$21="NO",'Individual Summaries'!$H$96:$QL$96,'Individual Summaries'!$H$118:$QL$118)),MATCH(J121 & N123,'Individual Summaries'!$H$10:$QL$10,0)) -> 0 | O125: =AVERAGE(J125:N125) -> 0 | Q125: Derivatives | R125: =INDEX(IF($I$45="iBoxx- Nominal",IF($G$21="NO",'Individual Summaries'!$H$95:$QL$95,'Individual Summaries'!$H$117:$QL$117),IF($G$21="NO",'Individual Summaries'!$H$96:$QL$96,'Individual Summaries'!$H$118:$QL$118)),MATCH(R121 & R123,'Individual Summaries'!$H$10:$QL$10,0)) -> 0 | S125: =INDEX(IF($I$45="iBoxx- Nominal",IF($G$21="NO",'Individual Summaries'!$H$95:$QL$95,'Individual Summaries'!$H$117:$QL$117),IF($G$21="NO",'Individual Summaries'!$H$96:$QL$96,'Individual Summaries'!$H$118:$QL$118)),MATCH(R121 & S123,'Individual Summaries'!$H$10:$QL$10,0)) -> 0 | T125: =INDEX(IF($I$45="iBoxx- Nominal",IF($G$21="NO",'Individual Summaries'!$H$95:$QL$95,'Individual Summaries'!$H$117:$QL$117),IF($G$21="NO",'Individual Summaries'!$H$96:$QL$96,'Individual Summaries'!$H$118:$QL$118)),MATCH(R121 & T123,'Individual Summaries'!$H$10:$QL$10,0)) -> 0 | U125: =INDEX(IF($I$45="iBoxx- Nominal",IF($G$21="NO",'Individual Summaries'!$H$95:$QL$95,'Individual Summaries'!$H$117:$QL$117),IF($G$21="NO",'Individual Summaries'!$H$96:$QL$96,'Individual Summaries'!$H$118:$QL$118)),MATCH(R121 & U123,'Individual Summaries'!$H$10:$QL$10,0)) -> 0 | V125: =INDEX(IF($I$45="iBoxx- Nominal",IF($G$21="NO",'Individual Summaries'!$H$95:$QL$95,'Individual Summaries'!$H$117:$QL$117),IF($G$21="NO",'Individual Summaries'!$H$96:$QL$96,'Individual Summaries'!$H$118:$QL$118)),MATCH(R121 & V123,'Individual Summaries'!$H$10:$QL$10,0)) -> 0 | W125: =AVERAGE(R125:V125) -> 0 | AD125: Derivatives | AE125: =INDEX(IF($I$45="iBoxx- Nominal",IF($G$21="NO",'Individual Summaries'!$H$95:$QL$95,'Individual Summaries'!$H$117:$QL$117),IF($G$21="NO",'Individual Summaries'!$H$96:$QL$96,'Individual Summaries'!$H$118:$QL$118)),MATCH(AE121 & AE$47,'Individual Summaries'!$H$10:$QL$10,0)) -> 0 | AF125: =INDEX(IF($I$45="iBoxx- Nominal",IF($G$21="NO",'Individual Summaries'!$H$95:$QL$95,'Individual Summaries'!$H$117:$QL$117),IF($G$21="NO",'Individual Summaries'!$H$96:$QL$96,'Individual Summaries'!$H$118:$QL$118)),MATCH(AE121 & AF$47,'Individual Summaries'!$H$10:$QL$10,0)) -> 0 | AG125: =INDEX(IF($I$45="iBoxx- Nominal",IF($G$21="NO",'Individual Summaries'!$H$95:$QL$95,'Individual Summaries'!$H$117:$QL$117),IF($G$21="NO",'Individual Summaries'!$H$96:$QL$96,'Individual Summaries'!$H$118:$QL$118)),MATCH(AE121 & AG$47,'Individual Summaries'!$H$10:$QL$10,0)) -> 0 | AH125: =INDEX(IF($I$45="iBoxx- Nominal",IF($G$21="NO",'Individual Summaries'!$H$95:$QL$95,'Individual Summaries'!$H$117:$QL$117),IF($G$21="NO",'Individual Summaries'!$H$96:$QL$96,'Individual Summaries'!$H$118:$QL$118)),MATCH(AE121 & AH$47,'Individual Summaries'!$H$10:$QL$10,0)) -> 0 | AI125: =INDEX(IF($I$45="iBoxx- Nominal",IF($G$21="NO",'Individual Summaries'!$H$95:$QL$95,'Individual Summaries'!$H$117:$QL$117),IF($G$21="NO",'Individual Summaries'!$H$96:$QL$96,'Individual Summaries'!$H$118:$QL$118)),MATCH(AE121 & AI$47,'Individual Summaries'!$H$10:$QL$10,0)) -> 0 | AJ125: =AVERAGE(AE125:AI125) -> 0 | AL125: Derivatives | AM125: =INDEX(IF($I$45="iBoxx- Nominal",IF($G$21="NO",'Individual Summaries'!$H$95:$QL$95,'Individual Summaries'!$H$117:$QL$117),IF($G$21="NO",'Individual Summaries'!$H$96:$QL$96,'Individual Summaries'!$H$118:$QL$118)),MATCH(AM121 & AM123,'Individual Summaries'!$H$10:$QL$10,0)) -> 0 | AN125: =INDEX(IF($I$45="iBoxx- Nominal",IF($G$21="NO",'Individual Summaries'!$H$95:$QL$95,'Individual Summaries'!$H$117:$QL$117),IF($G$21="NO",'Individual Summaries'!$H$96:$QL$96,'Individual Summaries'!$H$118:$QL$118)),MATCH(AM121 & AN123,'Individual Summaries'!$H$10:$QL$10,0)) -> 0 | AO125: =INDEX(IF($I$45="iBoxx- Nominal",IF($G$21="NO",'Individual Summaries'!$H$95:$QL$95,'Individual Summaries'!$H$117:$QL$117),IF($G$21="NO",'Individual Summaries'!$H$96:$QL$96,'Individual Summaries'!$H$118:$QL$118)),MATCH(AM121 & AO$47,'Individual Summaries'!$H$10:$QL$10,0)) -> 0 | AP125: =INDEX(IF($I$45="iBoxx- Nominal",IF($G$21="NO",'Individual Summaries'!$H$95:$QL$95,'Individual Summaries'!$H$117:$QL$117),IF($G$21="NO",'Individual Summaries'!$H$96:$QL$96,'Individual Summaries'!$H$118:$QL$118)),MATCH(AM121 & AP$47,'Individual Summaries'!$H$10:$QL$10,0)) -> 0 | AQ125: =INDEX(IF($I$45="iBoxx- Nominal",IF($G$21="NO",'Individual Summaries'!$H$95:$QL$95,'Individual Summaries'!$H$117:$QL$117),IF($G$21="NO",'Individual Summaries'!$H$96:$QL$96,'Individual Summaries'!$H$118:$QL$118)),MATCH(AM121 & AQ$47,'Individual Summaries'!$H$10:$QL$10,0)) -> 0 | AR125: =AVERAGE(AM125:AQ125) -> 0 | AT125: Derivatives | AU125: =INDEX(IF($I$45="iBoxx- Nominal",IF($G$21="NO",'Individual Summaries'!$H$95:$QL$95,'Individual Summaries'!$H$117:$QL$117),IF($G$21="NO",'Individual Summaries'!$H$96:$QL$96,'Individual Summaries'!$H$118:$QL$118)),MATCH(AU121 & AU123,'Individual Summaries'!$H$10:$QL$10,0)) -> 0 | AV125: =INDEX(IF($I$45="iBoxx- Nominal",IF($G$21="NO",'Individual Summaries'!$H$95:$QL$95,'Individual Summaries'!$H$117:$QL$117),IF($G$21="NO",'Individual Summaries'!$H$96:$QL$96,'Individual Summaries'!$H$118:$QL$118)),MATCH(AU121 & AV123,'Individual Summaries'!$H$10:$QL$10,0)) -> 0 | AW125: =INDEX(IF($I$45="iBoxx- Nominal",IF($G$21="NO",'Individual Summaries'!$H$95:$QL$95,'Individual Summaries'!$H$117:$QL$117),IF($G$21="NO",'Individual Summaries'!$H$96:$QL$96,'Individual Summaries'!$H$118:$QL$118)),MATCH(AU121 & AW$47,'Individual Summaries'!$H$10:$QL$10,0)) -> 0 | AX125: =INDEX(IF($I$45="iBoxx- Nominal",IF($G$21="NO",'Individual Summaries'!$H$95:$QL$95,'Individual Summaries'!$H$117:$QL$117),IF($G$21="NO",'Individual Summaries'!$H$96:$QL$96,'Individual Summaries'!$H$118:$QL$118)),MATCH(AU121 & AX$47,'Individual Summaries'!$H$10:$QL$10,0)) -> 0 | AY125: =INDEX(IF($I$45="iBoxx- Nominal",IF($G$21="NO",'Individual Summaries'!$H$95:$QL$95,'Individual Summaries'!$H$117:$QL$117),IF($G$21="NO",'Individual Summaries'!$H$96:$QL$96,'Individual Summaries'!$H$118:$QL$118)),MATCH(AU121 & AY$47,'Individual Summaries'!$H$10:$QL$10,0)) -> 0 | AZ125: =AVERAGE(AU125:AY125) -> 0
I126: NG Cadent refi | J126: =INDEX(IF(I121="iBoxx- Nominal",'Individual Summaries'!$H$126:$QL$126,'Individual Summaries'!$H$129:$QL$129), MATCH(J121 & J123,'Individual Summaries'!$H$10:$QL$10, 0)) -> 0.001625282533 | K126: =INDEX(IF(I121="iBoxx- Nominal",'Individual Summaries'!$H$126:$QL$126,'Individual Summaries'!$H$129:$QL$129), MATCH(J121 & K123,'Individual Summaries'!$H$10:$QL$10, 0)) -> 0.001378522884 | L126: =INDEX(IF(I121="iBoxx- Nominal",'Individual Summaries'!$H$126:$QL$126,'Individual Summaries'!$H$129:$QL$129), MATCH(J121 & L123,'Individual Summaries'!$H$10:$QL$10, 0)) -> 0.00104489369 | M126: =INDEX(IF(I121="iBoxx- Nominal",'Individual Summaries'!$H$126:$QL$126,'Individual Summaries'!$H$129:$QL$129), MATCH(J121 & M123,'Individual Summaries'!$H$10:$QL$10, 0)) -> 0.0009003907558 | N126: =INDEX(IF(I121="iBoxx- Nominal",'Individual Summaries'!$H$126:$QL$126,'Individual Summaries'!$H$129:$QL$129), MATCH(J121 & N123,'Individual Summaries'!$H$10:$QL$10, 0)) -> 0.0008198593044 | O126: =AVERAGE(J126:N126) -> 0.001153789833 | Q126: NG Cadent refi | R126: =INDEX(IF(Q121="iBoxx- Nominal",'Individual Summaries'!$H$126:$QL$126,'Individual Summaries'!$H$129:$QL$129), MATCH(R121 & R123,'Individual Summaries'!$H$10:$QL$10, 0)) -> 0.002087340688 | S126: =INDEX(IF(Q121="iBoxx- Nominal",'Individual Summaries'!$H$126:$QL$126,'Individual Summaries'!$H$129:$QL$129), MATCH(R121 & S123,'Individual Summaries'!$H$10:$QL$10, 0)) -> 0.001793628485 | T126: =INDEX(IF(Q121="iBoxx- Nominal",'Individual Summaries'!$H$126:$QL$126,'Individual Summaries'!$H$129:$QL$129), MATCH(R121 & T123,'Individual Summaries'!$H$10:$QL$10, 0)) -> 0.001367555151 | U126: =INDEX(IF(Q121="iBoxx- Nominal",'Individual Summaries'!$H$126:$QL$126,'Individual Summaries'!$H$129:$QL$129), MATCH(R121 & U123,'Individual Summaries'!$H$10:$QL$10, 0)) -> 0.00118110505 | V126: =INDEX(IF(Q121="iBoxx- Nominal",'Individual Summaries'!$H$126:$QL$126,'Individual Summaries'!$H$129:$QL$129), MATCH(R121 & V123,'Individual Summaries'!$H$10:$QL$10, 0)) -> 0.001074822429 | W126: =AVERAGE(R126:V126) -> 0.001500890361 | AD126: NG Cadent refi | AE126: =INDEX(IF(AD121="iBoxx- Nominal",'Individual Summaries'!$H$126:$QL$126,'Individual Summaries'!$H$129:$QL$129), MATCH(AE121 & AE$47,'Individual Summaries'!$H$10:$QL$10, 0)) -> 0 | AF126: =INDEX(IF(AD121="iBoxx- Nominal",'Individual Summaries'!$H$126:$QL$126,'Individual Summaries'!$H$129:$QL$129), MATCH(AE121 & AF$47,'Individual Summaries'!$H$10:$QL$10, 0)) -> 0 | AG126: =INDEX(IF(AD121="iBoxx- Nominal",'Individual Summaries'!$H$126:$QL$126,'Individual Summaries'!$H$129:$QL$129), MATCH(AE121 & AG$47,'Individual Summaries'!$H$10:$QL$10, 0)) -> 0 | AH126: =INDEX(IF(AD121="iBoxx- Nominal",'Individual Summaries'!$H$126:$QL$126,'Individual Summaries'!$H$129:$QL$129), MATCH(AE121 & AH$47,'Individual Summaries'!$H$10:$QL$10, 0)) -> 0 | AI126: =INDEX(IF(AD121="iBoxx- Nominal",'Individual Summaries'!$H$126:$QL$126,'Individual Summaries'!$H$129:$QL$129), MATCH(AE121 & AI$47,'Individual Summaries'!$H$10:$QL$10, 0)) -> 0 | AJ126: =AVERAGE(AE126:AI126) -> 0 | AL126: NG Cadent refi | AM126: =INDEX(IF(AL121="iBoxx- Nominal",'Individual Summaries'!$H$126:$QL$126,'Individual Summaries'!$H$129:$QL$129), MATCH(AM121 & AM123,'Individual Summaries'!$H$10:$QL$10, 0)) -> 0 | AN126: =INDEX(IF(AL121="iBoxx- Nominal",'Individual Summaries'!$H$126:$QL$126,'Individual Summaries'!$H$129:$QL$129), MATCH(AM121 & AN123,'Individual Summaries'!$H$10:$QL$10, 0)) -> 0 | AO126: =INDEX(IF(AL121="iBoxx- Nominal",'Individual Summaries'!$H$126:$QL$126,'Individual Summaries'!$H$129:$QL$129), MATCH(AM121 & AO$47,'Individual Summaries'!$H$10:$QL$10, 0)) -> 0 | AP126: =INDEX(IF(AL121="iBoxx- Nominal",'Individual Summaries'!$H$126:$QL$126,'Individual Summaries'!$H$129:$QL$129), MATCH(AM121 & AP$47,'Individual Summaries'!$H$10:$QL$10, 0)) -> 0 | AQ126: =INDEX(IF(AL121="iBoxx- Nominal",'Individual Summaries'!$H$126:$QL$126,'Individual Summaries'!$H$129:$QL$129), MATCH(AM121 & AQ$47,'Individual Summaries'!$H$10:$QL$10, 0)) -> 0 | AR126: =AVERAGE(AM126:AQ126) -> 0 | AT126: NG Cadent refi | AU126: =INDEX(IF(AT121="iBoxx- Nominal",'Individual Summaries'!$H$126:$QL$126,'Individual Summaries'!$H$129:$QL$129), MATCH(AU121 & AU123,'Individual Summaries'!$H$10:$QL$10, 0)) -> 0 | AV126: =INDEX(IF(AT121="iBoxx- Nominal",'Individual Summaries'!$H$126:$QL$126,'Individual Summaries'!$H$129:$QL$129), MATCH(AU121 & AV123,'Individual Summaries'!$H$10:$QL$10, 0)) -> 0 | AW126: =INDEX(IF(AT121="iBoxx- Nominal",'Individual Summaries'!$H$126:$QL$126,'Individual Summaries'!$H$129:$QL$129), MATCH(AU121 & AW$47,'Individual Summaries'!$H$10:$QL$10, 0)) -> 0 | AX126: =INDEX(IF(AT121="iBoxx- Nominal",'Individual Summaries'!$H$126:$QL$126,'Individual Summaries'!$H$129:$QL$129), MATCH(AU121 & AX$47,'Individual Summaries'!$H$10:$QL$10, 0)) -> 0 | AY126: =INDEX(IF(AT121="iBoxx- Nominal",'Individual Summaries'!$H$126:$QL$126,'Individual Summaries'!$H$129:$QL$129), MATCH(AU121 & AY$47,'Individual Summaries'!$H$10:$QL$10, 0)) -> 0 | AZ126: =AVERAGE(AU126:AY126) -> 0
I128: Total | J128: =SUM(J124:J127) -> 0.02269971678 | K128: =SUM(K124:K127) -> 0.02633992239 | L128: =SUM(L124:L127) -> 0.0287111658 | M128: =SUM(M124:M127) -> 0.03040083461 | N128: =SUM(N124:N127) -> 0.03224181813 | O128: =AVERAGE(J128:N128) -> 0.02807869154 | Q128: Total | R128: =SUM(R124:R127) -> 0.0230294531 | S128: =SUM(S124:S127) -> 0.02655368773 | T128: =SUM(T124:T127) -> 0.02890693168 | U128: =SUM(U124:U127) -> 0.03100500665 | V128: =SUM(V124:V127) -> 0.03322848803 | W128: =AVERAGE(R128:V128) -> 0.02854471344 | AD128: Total | AE128: =SUM(AE124:AE127) -> 0.02611758733 | AF128: =SUM(AF124:AF127) -> 0.03026834834 | AG128: =SUM(AG124:AG127) -> 0.03394072554 | AH128: =SUM(AH124:AH127) -> 0.03666325299 | AI128: =SUM(AI124:AI127) -> 0.0382508993 | AJ128: =AVERAGE(AE128:AI128) -> 0.0330481627 | AL128: Total | AM128: =SUM(AM124:AM127) -> 0.02251815742 | AN128: =SUM(AN124:AN127) -> 0.03076189142 | AO128: =SUM(AO124:AO127) -> 0.03651279242 | AP128: =SUM(AP124:AP127) -> 0.0392998782 | AQ128: =SUM(AQ124:AQ127) -> 0.04046133072 | AR128: =AVERAGE(AM128:AQ128) -> 0.03391081004 | AT128: Total | AU128: =SUM(AU124:AU127) -> 0.02251815742 | AV128: =SUM(AV124:AV127) -> 0.03076189142 | AW128: =SUM(AW124:AW127) -> 0.03651279242 | AX128: =SUM(AX124:AX127) -> 0.0392998782 | AY128: =SUM(AY124:AY127) -> 0.04046133072 | AZ128: =AVERAGE(AU128:AY128) -> 0.03391081004
I130: Allowance Options | Q130: Allowance Options | AD130: Allowance Options | AL130: Allowance Options | AT130: Allowance Options
F131: From | G131: Adjustment | AA131: From | AB131: Adjustment
I132: ="RAV weighted ave ["&$F$56&"]yrs" -> RAV weighted ave []yrs | J132: =IFERROR(INDEX($G$207:$G$246,MATCH(J$45,$F$207:$F$245,0)),"") ->  | K132: =IFERROR(INDEX($H$207:$H$246,MATCH(J$45,$F$207:$F$245,0)),"") ->  | L132: =IFERROR(INDEX($I$207:$I$246,MATCH(J$45,$F$207:$F$245,0)),"") ->  | M132: =IFERROR(INDEX($J$207:$J$246,MATCH(J$45,$F$207:$F$245,0)),"") ->  | N132: =IFERROR(INDEX($K$207:$K$246,MATCH(J$45,$F$207:$F$245,0)),"") ->  | Q132: =I132 -> RAV weighted ave []yrs | R132: =IFERROR(INDEX($G$207:$G$246,MATCH(R$45,$F$207:$F$245,0)),"") ->  | S132: =IFERROR(INDEX($H$207:$H$246,MATCH(R$45,$F$207:$F$245,0)),"") ->  | T132: =IFERROR(INDEX($I$207:$I$246,MATCH(R$45,$F$207:$F$245,0)),"") ->  | U132: =IFERROR(INDEX($J$207:$J$246,MATCH(R$45,$F$207:$F$245,0)),"") ->  | V132: =IFERROR(INDEX($K$207:$K$246,MATCH(R$45,$F$207:$F$245,0)),"") ->  | AA132: =AA56 -> 14 | AB132: =$AB56 -> 0 | AD132: ="RAV weighted ave ["&$AA$56&"]yrs" -> RAV weighted ave [14]yrs | AE132: =IFERROR(INDEX($G$207:$G$246,MATCH(AE121,$F$207:$F$245,0)),"") -> 0.04312873858 | AF132: =IFERROR(INDEX($H$207:$H$246,MATCH(AE121,$F$207:$F$245,0)),"") -> 0.04544695213 | AG132: =IFERROR(INDEX($I$207:$I$246,MATCH(AE121,$F$207:$F$245,0)),"") -> 0.04764490175 | AH132: =IFERROR(INDEX($J$207:$J$246,MATCH(AE121,$F$207:$F$245,0)),"") -> 0.05000555149 | AI132: =IFERROR(INDEX($K$207:$K$246,MATCH(AE121,$F$207:$F$245,0)),"") -> 0.05238189841 | AJ132: =IFERROR(AVERAGE(AE132:AI132),"") -> 0.04772160847 | AL132: =AD132 -> RAV weighted ave [14]yrs | AM132: =IFERROR(INDEX($G$207:$G$246,MATCH(AM121,$F$207:$F$245,0)),"") -> 0.04585062487 | AN132: =IFERROR(INDEX($H$207:$H$246,MATCH(AM121,$F$207:$F$245,0)),"") -> 0.04979502877 | AO132: =IFERROR(INDEX($I$207:$I$246,MATCH(AM121,$F$207:$F$245,0)),"") -> 0.05468395713 | AP132: =IFERROR(INDEX($J$207:$J$246,MATCH(AM121,$F$207:$F$245,0)),"") -> 0.05851797179 | AQ132: =IFERROR(INDEX($K$207:$K$246,MATCH(AM121,$F$207:$F$245,0)),"") -> 0.06106429517 | AR132: =IFERROR(AVERAGE(AM132:AQ132),"") -> 0.05398237555 | AT132: =AL132 -> RAV weighted ave [14]yrs | AU132: =IFERROR(INDEX($G$207:$G$246,MATCH(AU121,$F$207:$F$245,0)),"") -> 0.04585062487 | AV132: =IFERROR(INDEX($H$207:$H$246,MATCH(AU121,$F$207:$F$245,0)),"") -> 0.04979502877 | AW132: =IFERROR(INDEX($I$207:$I$246,MATCH(AU121,$F$207:$F$245,0)),"") -> 0.05468395713 | AX132: =IFERROR(INDEX($J$207:$J$246,MATCH(AU121,$F$207:$F$245,0)),"") -> 0.05851797179 | AY132: =IFERROR(INDEX($K$207:$K$246,MATCH(AU121,$F$207:$F$245,0)),"") -> 0.06106429517 | AZ132: =IFERROR(AVERAGE(AU132:AY132),"") -> 0.05398237555
I133: =I132&" + "&G133*10000&" bps costs" -> RAV weighted ave []yrs + 0 bps costs | J133: =IFERROR(IF(J132=0,"",J132+$G$133),"") ->  | K133: =IFERROR(IF(K132=0,"",K132+$G$133),"") ->  | L133: =IFERROR(IF(L132=0,"",L132+$G$133),"") ->  | M133: =IFERROR(IF(M132=0,"",M132+$G$133),"") ->  | N133: =IFERROR(IF(N132=0,"",N132+$G$133),"") ->  | Q133: =I133 -> RAV weighted ave []yrs + 0 bps costs | R133: =IFERROR(IF(R132=0,"",R132+$G$133),"") ->  | S133: =IFERROR(IF(S132=0,"",S132+$G$133),"") ->  | T133: =IFERROR(IF(T132=0,"",T132+$G$133),"") ->  | U133: =IFERROR(IF(U132=0,"",U132+$G$133),"") ->  | V133: =IFERROR(IF(V132=0,"",V132+$G$133),"") ->  | AA133: 0 | AB133: 0.0043 | AD133: =AD132&" + "&$AB133*10000&" bps costs" -> RAV weighted ave [14]yrs + 43 bps costs | AE133: =IFERROR(IF(AE132=0,"",AE132+$AB133),"") -> 0.04742873858 | AF133: =IFERROR(IF(AF132=0,"",AF132+$AB133),"") -> 0.04974695213 | AG133: =IFERROR(IF(AG132=0,"",AG132+$AB133),"") -> 0.05194490175 | AH133: =IFERROR(IF(AH132=0,"",AH132+$AB133),"") -> 0.05430555149 | AI133: =IFERROR(IF(AI132=0,"",AI132+$AB133),"") -> 0.05668189841 | AJ133: =IFERROR(AVERAGE(AE133:AI133),"") -> 0.05202160847 | AL133: RAV weighted ave [14]yrs + 43 bps costs | AM133: =IFERROR(IF(AM132=0,"",AM132+$AB133),"") -> 0.05015062487 | AN133: =IFERROR(IF(AN132=0,"",AN132+$AB133),"") -> 0.05409502877 | AO133: =IFERROR(IF(AO132=0,"",AO132+$AB133),"") -> 0.05898395713 | AP133: =IFERROR(IF(AP132=0,"",AP132+$AB133),"") -> 0.06281797179 | AQ133: =IFERROR(IF(AQ132=0,"",AQ132+$AB133),"") -> 0.06536429517 | AR133: =IFERROR(AVERAGE(AM133:AQ133),"") -> 0.05828237555 | AT133: RAV weighted ave [14]yrs + 43 bps costs | AU133: =IFERROR(IF(AU132=0,"",AU132+AJ133),"") -> 0.09787223335 | AV133: =IFERROR(IF(AV132=0,"",AV132+AJ133),"") -> 0.1018166372 | AW133: =IFERROR(IF(AW132=0,"",AW132+AJ133),"") -> 0.1067055656 | AX133: =IFERROR(IF(AX132=0,"",AX132+AJ133),"") -> 0.1105395803 | AY133: =IFERROR(IF(AY132=0,"",AY132+AJ133),"") -> 0.1130859036 | AZ133: =IFERROR(AVERAGE(AU133:AY133),"") -> 0.106003984
F134: 10 | G134: =G58 -> 0 | I134: =IF(F134 = "Spare","",F134&" Yr"& IF(G134=0,""," + "&G134*10000&" bps")) -> 10 Yr | J134: =IFERROR(IF(I$121 = "Iboxx- Nominal",INDEX('Trailing Average'!$H$21:$Y$21,MATCH(J123,'Trailing Average'!$H$6:$Y$6)),INDEX('Trailing Average'!$H$276:$Y$276,MATCH(J123,'Trailing Average'!$H$6:$Y$6))) + $G134,"") -> 0.01850048428 | K134: =IFERROR(IF(J$121 = "Iboxx- Nominal",INDEX('Trailing Average'!$H$21:$Y$21,MATCH(K123,'Trailing Average'!$H$6:$Y$6)),INDEX('Trailing Average'!$H$276:$Y$276,MATCH(K123,'Trailing Average'!$H$6:$Y$6))) + $G134,"") -> 0.02127260022 | L134: =IFERROR(IF(K$121 = "Iboxx- Nominal",INDEX('Trailing Average'!$H$21:$Y$21,MATCH(L123,'Trailing Average'!$H$6:$Y$6)),INDEX('Trailing Average'!$H$276:$Y$276,MATCH(L123,'Trailing Average'!$H$6:$Y$6))) + $G134,"") -> 0.02499542314 | M134: =IFERROR(IF(L$121 = "Iboxx- Nominal",INDEX('Trailing Average'!$H$21:$Y$21,MATCH(M123,'Trailing Average'!$H$6:$Y$6)),INDEX('Trailing Average'!$H$276:$Y$276,MATCH(M123,'Trailing Average'!$H$6:$Y$6))) + $G134,"") -> 0.02858358861 | N134: =IFERROR(IF(M$121 = "Iboxx- Nominal",INDEX('Trailing Average'!$H$21:$Y$21,MATCH(N123,'Trailing Average'!$H$6:$Y$6)),INDEX('Trailing Average'!$H$276:$Y$276,MATCH(N123,'Trailing Average'!$H$6:$Y$6))) + $G134,"") -> 0.03243681002 | O134: =IFERROR(AVERAGE(J134:N134),"") -> 0.02515778126 | Q134: 10 Yr | R134: =IFERROR(IF(Q$121 = "Iboxx- Nominal",INDEX('Trailing Average'!$H$21:$Y$21,MATCH(R123,'Trailing Average'!$H$6:$Y$6)),INDEX('Trailing Average'!$H$276:$Y$276,MATCH(R123,'Trailing Average'!$H$6:$Y$6))) + $G134,"") -> 0.01850048428 | S134: =IFERROR(IF(R$121 = "Iboxx- Nominal",INDEX('Trailing Average'!$H$21:$Y$21,MATCH(S123,'Trailing Average'!$H$6:$Y$6)),INDEX('Trailing Average'!$H$276:$Y$276,MATCH(S123,'Trailing Average'!$H$6:$Y$6))) + $G134,"") -> 0.02127260022 | T134: =IFERROR(IF(S$121 = "Iboxx- Nominal",INDEX('Trailing Average'!$H$21:$Y$21,MATCH(T123,'Trailing Average'!$H$6:$Y$6)),INDEX('Trailing Average'!$H$276:$Y$276,MATCH(T123,'Trailing Average'!$H$6:$Y$6))) + $G134,"") -> 0.02499542314 | U134: =IFERROR(IF(T$121 = "Iboxx- Nominal",INDEX('Trailing Average'!$H$21:$Y$21,MATCH(U123,'Trailing Average'!$H$6:$Y$6)),INDEX('Trailing Average'!$H$276:$Y$276,MATCH(U123,'Trailing Average'!$H$6:$Y$6))) + $G134,"") -> 0.02858358861 | V134: =IFERROR(IF(U$121 = "Iboxx- Nominal",INDEX('Trailing Average'!$H$21:$Y$21,MATCH(V123,'Trailing Average'!$H$6:$Y$6)),INDEX('Trailing Average'!$H$276:$Y$276,MATCH(V123,'Trailing Average'!$H$6:$Y$6))) + $G134,"") -> 0.03243681002 | W134: =IFERROR(AVERAGE(R134:V134),"") -> 0.02515778126 | AA134: 14 | AB134: 0 | AD134: ="RAV weighted ave ["&$AA$56&"] yr" -> RAV weighted ave [14] yr | AE134: =IFERROR(IF(AD121 = "Iboxx- Nominal",INDEX('Trailing Average'!$H$21:$Y$21,MATCH(AE123,'Trailing Average'!$H$6:$Y$6)),INDEX('Trailing Average'!$H$276:$Y$276,MATCH(AE123,'Trailing Average'!$H$6:$Y$6))) + $AB134,"") -> 0.01850048428 | AF134: =IFERROR(IF(AD121 = "Iboxx- Nominal",INDEX('Trailing Average'!$H$21:$Y$21,MATCH(AF123,'Trailing Average'!$H$6:$Y$6)),INDEX('Trailing Average'!$H$276:$Y$276,MATCH(AF123,'Trailing Average'!$H$6:$Y$6))) + $AB134,"") -> 0.02127260022 | AG134: =IFERROR(IF(AD121 = "Iboxx- Nominal",INDEX('Trailing Average'!$H$21:$Y$21,MATCH(AG$47,'Trailing Average'!$H$6:$Y$6)),INDEX('Trailing Average'!$H$276:$Y$276,MATCH(AG$47,'Trailing Average'!$H$6:$Y$6))) + $AB134,"") -> 0.02499542314 | AH134: =IFERROR(IF(AD121 = "Iboxx- Nominal",INDEX('Trailing Average'!$H$21:$Y$21,MATCH(AH$47,'Trailing Average'!$H$6:$Y$6)),INDEX('Trailing Average'!$H$276:$Y$276,MATCH(AH$47,'Trailing Average'!$H$6:$Y$6))) + $AB134,"") -> 0.02858358861 | AI134: =IFERROR(IF(AD121 = "Iboxx- Nominal",INDEX('Trailing Average'!$H$21:$Y$21,MATCH(AI$47,'Trailing Average'!$H$6:$Y$6)),INDEX('Trailing Average'!$H$276:$Y$276,MATCH(AI$47,'Trailing Average'!$H$6:$Y$6))) + $AB134,"") -> 0.03243681002 | AJ134: =IFERROR(AVERAGE(AE134:AI134),"") -> 0.02515778126 | AL134: RAV weighted ave [14] yr | AM134: =IFERROR(IF(AL121 = "Iboxx- Nominal",INDEX('Trailing Average'!$H$21:$Y$21,MATCH(AM123,'Trailing Average'!$H$6:$Y$6)),INDEX('Trailing Average'!$H$276:$Y$276,MATCH(AM123,'Trailing Average'!$H$6:$Y$6))) + $AB134,"") -> 0.01850048428 | AN134: =IFERROR(IF(AL121 = "Iboxx- Nominal",INDEX('Trailing Average'!$H$21:$Y$21,MATCH(AN123,'Trailing Average'!$H$6:$Y$6)),INDEX('Trailing Average'!$H$276:$Y$276,MATCH(AN123,'Trailing Average'!$H$6:$Y$6))) + $AB134,"") -> 0.02127260022 | AO134: =IFERROR(IF(AL121 = "Iboxx- Nominal",INDEX('Trailing Average'!$H$21:$Y$21,MATCH(AO$47,'Trailing Average'!$H$6:$Y$6)),INDEX('Trailing Average'!$H$276:$Y$276,MATCH(AO$47,'Trailing Average'!$H$6:$Y$6))) + $AB134,"") -> 0.02499542314 | AP134: =IFERROR(IF(AL121 = "Iboxx- Nominal",INDEX('Trailing Average'!$H$21:$Y$21,MATCH(AP$47,'Trailing Average'!$H$6:$Y$6)),INDEX('Trailing Average'!$H$276:$Y$276,MATCH(AP$47,'Trailing Average'!$H$6:$Y$6))) + $AB134,"") -> 0.02858358861 | AQ134: =IFERROR(IF(AL121 = "Iboxx- Nominal",INDEX('Trailing Average'!$H$21:$Y$21,MATCH(AQ$47,'Trailing Average'!$H$6:$Y$6)),INDEX('Trailing Average'!$H$276:$Y$276,MATCH(AQ$47,'Trailing Average'!$H$6:$Y$6))) + $AB134,"") -> 0.03243681002 | AR134: =IFERROR(AVERAGE(AM134:AQ134),"") -> 0.02515778126 | AT134: RAV weighted ave [14] yr | AU134: =IFERROR(IF(AT121 = "Iboxx- Nominal",INDEX('Trailing Average'!$H$21:$Y$21,MATCH(AU123,'Trailing Average'!$H$6:$Y$6)),INDEX('Trailing Average'!$H$276:$Y$276,MATCH(AU123,'Trailing Average'!$H$6:$Y$6))) + AJ134,"") -> 0.04365826554 | AV134: =IFERROR(IF(AT121 = "Iboxx- Nominal",INDEX('Trailing Average'!$H$21:$Y$21,MATCH(AV123,'Trailing Average'!$H$6:$Y$6)),INDEX('Trailing Average'!$H$276:$Y$276,MATCH(AV123,'Trailing Average'!$H$6:$Y$6))) + AJ134,"") -> 0.04643038147 | AW134: =IFERROR(IF(AT121 = "Iboxx- Nominal",INDEX('Trailing Average'!$H$21:$Y$21,MATCH(AW$47,'Trailing Average'!$H$6:$Y$6)),INDEX('Trailing Average'!$H$276:$Y$276,MATCH(AW$47,'Trailing Average'!$H$6:$Y$6))) + AJ134,"") -> 0.0501532044 | AX134: =IFERROR(IF(AT121 = "Iboxx- Nominal",INDEX('Trailing Average'!$H$21:$Y$21,MATCH(AX$47,'Trailing Average'!$H$6:$Y$6)),INDEX('Trailing Average'!$H$276:$Y$276,MATCH(AX$47,'Trailing Average'!$H$6:$Y$6))) + AJ134,"") -> 0.05374136987 | AY134: =IFERROR(IF(AT121 = "Iboxx- Nominal",INDEX('Trailing Average'!$H$21:$Y$21,MATCH(AY$47,'Trailing Average'!$H$6:$Y$6)),INDEX('Trailing Average'!$H$276:$Y$276,MATCH(AY$47,'Trailing Average'!$H$6:$Y$6))) + AJ134,"") -> 0.05759459128 | AZ134: =IFERROR(AVERAGE(AU134:AY134),"") -> 0.05031556251
F135: 14 | G135: =G59 -> 0 | I135: 14 Yr | J135: =IFERROR(IF(I$121="iBoxx- Nominal", INDEX('Trailing Average'!$H$42:$Y$42,MATCH(J123,'Trailing Average'!$H$6:$Y$6)), INDEX('Trailing Average'!$H$297:$Y$297,MATCH(J123,'Trailing Average'!$H$6:$Y$6))) + $G135,"") -> 0.02004746553 | K135: =IFERROR(IF(J$121="iBoxx- Nominal", INDEX('Trailing Average'!$H$42:$Y$42,MATCH(K123,'Trailing Average'!$H$6:$Y$6)), INDEX('Trailing Average'!$H$297:$Y$297,MATCH(K123,'Trailing Average'!$H$6:$Y$6))) + $G135,"") -> 0.02119258223 | L135: =IFERROR(IF(K$121="iBoxx- Nominal", INDEX('Trailing Average'!$H$42:$Y$42,MATCH(L123,'Trailing Average'!$H$6:$Y$6)), INDEX('Trailing Average'!$H$297:$Y$297,MATCH(L123,'Trailing Average'!$H$6:$Y$6))) + $G135,"") -> 0.02283361939 | M135: =IFERROR(IF(L$121="iBoxx- Nominal", INDEX('Trailing Average'!$H$42:$Y$42,MATCH(M123,'Trailing Average'!$H$6:$Y$6)), INDEX('Trailing Average'!$H$297:$Y$297,MATCH(M123,'Trailing Average'!$H$6:$Y$6))) + $G135,"") -> 0.02447731696 | N135: =IFERROR(IF(M$121="iBoxx- Nominal", INDEX('Trailing Average'!$H$42:$Y$42,MATCH(N123,'Trailing Average'!$H$6:$Y$6)), INDEX('Trailing Average'!$H$297:$Y$297,MATCH(N123,'Trailing Average'!$H$6:$Y$6))) + $G135,"") -> 0.02656717798 | O135: =IFERROR(AVERAGE(J135:N135),"") -> 0.02302363242 | Q135: 14 Yr | R135: =IFERROR(IF(Q$121="iBoxx- Nominal", INDEX('Trailing Average'!$H$42:$Y$42,MATCH(R123,'Trailing Average'!$H$6:$Y$6)), INDEX('Trailing Average'!$H$297:$Y$297,MATCH(R123,'Trailing Average'!$H$6:$Y$6))) + $G135,"") -> 0.02004746553 | S135: =IFERROR(IF(R$121="iBoxx- Nominal", INDEX('Trailing Average'!$H$42:$Y$42,MATCH(S123,'Trailing Average'!$H$6:$Y$6)), INDEX('Trailing Average'!$H$297:$Y$297,MATCH(S123,'Trailing Average'!$H$6:$Y$6))) + $G135,"") -> 0.02119258223 | T135: =IFERROR(IF(S$121="iBoxx- Nominal", INDEX('Trailing Average'!$H$42:$Y$42,MATCH(T123,'Trailing Average'!$H$6:$Y$6)), INDEX('Trailing Average'!$H$297:$Y$297,MATCH(T123,'Trailing Average'!$H$6:$Y$6))) + $G135,"") -> 0.02283361939 | U135: =IFERROR(IF(T$121="iBoxx- Nominal", INDEX('Trailing Average'!$H$42:$Y$42,MATCH(U123,'Trailing Average'!$H$6:$Y$6)), INDEX('Trailing Average'!$H$297:$Y$297,MATCH(U123,'Trailing Average'!$H$6:$Y$6))) + $G135,"") -> 0.02447731696 | V135: =IFERROR(IF(U$121="iBoxx- Nominal", INDEX('Trailing Average'!$H$42:$Y$42,MATCH(V123,'Trailing Average'!$H$6:$Y$6)), INDEX('Trailing Average'!$H$297:$Y$297,MATCH(V123,'Trailing Average'!$H$6:$Y$6))) + $G135,"") -> 0.02656717798 | W135: =IFERROR(AVERAGE(R135:V135),"") -> 0.02302363242 | AA135: 0 | AB135: 0.0039 | AD135: =AD134&" + "&$AB135*10000&" bps costs" -> RAV weighted ave [14] yr + 39 bps costs | AE135: =IFERROR(IF(AD121="iBoxx- Nominal", INDEX('Trailing Average'!$H$42:$Y$42,MATCH(AE123,'Trailing Average'!$H$6:$Y$6)), INDEX('Trailing Average'!$H$297:$Y$297,MATCH(AE123,'Trailing Average'!$H$6:$Y$6))) + $AB135,"") -> 0.02394746553 | AF135: =IFERROR(IF(AD121="iBoxx- Nominal", INDEX('Trailing Average'!$H$42:$Y$42,MATCH(AF123,'Trailing Average'!$H$6:$Y$6)), INDEX('Trailing Average'!$H$297:$Y$297,MATCH(AF123,'Trailing Average'!$H$6:$Y$6))) + $AB135,"") -> 0.02509258223 | AG135: =IFERROR(IF(AD121="iBoxx- Nominal", INDEX('Trailing Average'!$H$42:$Y$42,MATCH(AG$47,'Trailing Average'!$H$6:$Y$6)), INDEX('Trailing Average'!$H$297:$Y$297,MATCH(AG$47,'Trailing Average'!$H$6:$Y$6))) + $AB135,"") -> 0.02673361939 | AH135: =IFERROR(IF(AD121="iBoxx- Nominal", INDEX('Trailing Average'!$H$42:$Y$42,MATCH(AH$47,'Trailing Average'!$H$6:$Y$6)), INDEX('Trailing Average'!$H$297:$Y$297,MATCH(AH$47,'Trailing Average'!$H$6:$Y$6))) + $AB135,"") -> 0.02837731696 | AI135: =IFERROR(IF(AD121="iBoxx- Nominal", INDEX('Trailing Average'!$H$42:$Y$42,MATCH(AI$47,'Trailing Average'!$H$6:$Y$6)), INDEX('Trailing Average'!$H$297:$Y$297,MATCH(AI$47,'Trailing Average'!$H$6:$Y$6))) + $AB135,"") -> 0.03046717798 | AJ135: =IFERROR(AVERAGE(AE135:AI135),"") -> 0.02692363242 | AL135: RAV weighted ave [14] yr + 39 bps costs | AM135: =IFERROR(IF(AL121="iBoxx- Nominal", INDEX('Trailing Average'!$H$42:$Y$42,MATCH(AM123,'Trailing Average'!$H$6:$Y$6)), INDEX('Trailing Average'!$H$297:$Y$297,MATCH(AM123,'Trailing Average'!$H$6:$Y$6))) + $AB135,"") -> 0.02394746553 | AN135: =IFERROR(IF(AL121="iBoxx- Nominal", INDEX('Trailing Average'!$H$42:$Y$42,MATCH(AN123,'Trailing Average'!$H$6:$Y$6)), INDEX('Trailing Average'!$H$297:$Y$297,MATCH(AN123,'Trailing Average'!$H$6:$Y$6))) + $AB135,"") -> 0.02509258223 | AO135: =IFERROR(IF(AL121="iBoxx- Nominal", INDEX('Trailing Average'!$H$42:$Y$42,MATCH(AO$47,'Trailing Average'!$H$6:$Y$6)), INDEX('Trailing Average'!$H$297:$Y$297,MATCH(AO$47,'Trailing Average'!$H$6:$Y$6))) + $AB135,"") -> 0.02673361939 | AP135: =IFERROR(IF(AL121="iBoxx- Nominal", INDEX('Trailing Average'!$H$42:$Y$42,MATCH(AP$47,'Trailing Average'!$H$6:$Y$6)), INDEX('Trailing Average'!$H$297:$Y$297,MATCH(AP$47,'Trailing Average'!$H$6:$Y$6))) + $AB135,"") -> 0.02837731696 | AQ135: =IFERROR(IF(AL121="iBoxx- Nominal", INDEX('Trailing Average'!$H$42:$Y$42,MATCH(AQ$47,'Trailing Average'!$H$6:$Y$6)), INDEX('Trailing Average'!$H$297:$Y$297,MATCH(AQ$47,'Trailing Average'!$H$6:$Y$6))) + $AB135,"") -> 0.03046717798 | AR135: =IFERROR(AVERAGE(AM135:AQ135),"") -> 0.02692363242 | AT135: RAV weighted ave [14] yr + 39 bps costs | AU135: =IFERROR(IF(AT121="iBoxx- Nominal", INDEX('Trailing Average'!$H$42:$Y$42,MATCH(AU123,'Trailing Average'!$H$6:$Y$6)), INDEX('Trailing Average'!$H$297:$Y$297,MATCH(AU123,'Trailing Average'!$H$6:$Y$6))) + AJ135,"") -> 0.04697109795 | AV135: =IFERROR(IF(AT121="iBoxx- Nominal", INDEX('Trailing Average'!$H$42:$Y$42,MATCH(AV123,'Trailing Average'!$H$6:$Y$6)), INDEX('Trailing Average'!$H$297:$Y$297,MATCH(AV123,'Trailing Average'!$H$6:$Y$6))) + AJ135,"") -> 0.04811621465 | AW135: =IFERROR(IF(AT121="iBoxx- Nominal", INDEX('Trailing Average'!$H$42:$Y$42,MATCH(AW$47,'Trailing Average'!$H$6:$Y$6)), INDEX('Trailing Average'!$H$297:$Y$297,MATCH(AW$47,'Trailing Average'!$H$6:$Y$6))) + AJ135,"") -> 0.04975725181 | AX135: =IFERROR(IF(AT121="iBoxx- Nominal", INDEX('Trailing Average'!$H$42:$Y$42,MATCH(AX$47,'Trailing Average'!$H$6:$Y$6)), INDEX('Trailing Average'!$H$297:$Y$297,MATCH(AX$47,'Trailing Average'!$H$6:$Y$6))) + AJ135,"") -> 0.05140094938 | AY135: =IFERROR(IF(AT121="iBoxx- Nominal", INDEX('Trailing Average'!$H$42:$Y$42,MATCH(AY$47,'Trailing Average'!$H$6:$Y$6)), INDEX('Trailing Average'!$H$297:$Y$297,MATCH(AY$47,'Trailing Average'!$H$6:$Y$6))) + AJ135,"") -> 0.0534908104 | AZ135: =IFERROR(AVERAGE(AU135:AY135),"") -> 0.04994726484
F136: 15 | G136: 0 | I136: 15 Yr | J136: =IFERROR(IF(I$121="iBoxx- Nominal", INDEX('Trailing Average'!$H$63:$Y$63,MATCH(J123,'Trailing Average'!$H$6:$Y$6)),INDEX('Trailing Average'!$H$318:$Y$318,MATCH(J123,'Trailing Average'!$H$6:$Y$6))) + $G136,"") -> 0.02094165957 | K136: =IFERROR(IF(J$121="iBoxx- Nominal", INDEX('Trailing Average'!$H$63:$Y$63,MATCH(K123,'Trailing Average'!$H$6:$Y$6)),INDEX('Trailing Average'!$H$318:$Y$318,MATCH(K123,'Trailing Average'!$H$6:$Y$6))) + $G136,"") -> 0.02158276626 | L136: =IFERROR(IF(K$121="iBoxx- Nominal", INDEX('Trailing Average'!$H$63:$Y$63,MATCH(L123,'Trailing Average'!$H$6:$Y$6)),INDEX('Trailing Average'!$H$318:$Y$318,MATCH(L123,'Trailing Average'!$H$6:$Y$6))) + $G136,"") -> 0.02297019824 | M136: =IFERROR(IF(L$121="iBoxx- Nominal", INDEX('Trailing Average'!$H$63:$Y$63,MATCH(M123,'Trailing Average'!$H$6:$Y$6)),INDEX('Trailing Average'!$H$318:$Y$318,MATCH(M123,'Trailing Average'!$H$6:$Y$6))) + $G136,"") -> 0.02451864581 | N136: =IFERROR(IF(M$121="iBoxx- Nominal", INDEX('Trailing Average'!$H$63:$Y$63,MATCH(N123,'Trailing Average'!$H$6:$Y$6)),INDEX('Trailing Average'!$H$318:$Y$318,MATCH(N123,'Trailing Average'!$H$6:$Y$6))) + $G136,"") -> 0.0260495543 | O136: 0.02321256484 | Q136: 15 Yr | R136: =IFERROR(IF(Q$121="iBoxx- Nominal", INDEX('Trailing Average'!$H$63:$Y$63,MATCH(R123,'Trailing Average'!$H$6:$Y$6)),INDEX('Trailing Average'!$H$318:$Y$318,MATCH(R123,'Trailing Average'!$H$6:$Y$6))) + $G136,"") -> 0.02094165957 | S136: =IFERROR(IF(R$121="iBoxx- Nominal", INDEX('Trailing Average'!$H$63:$Y$63,MATCH(S123,'Trailing Average'!$H$6:$Y$6)),INDEX('Trailing Average'!$H$318:$Y$318,MATCH(S123,'Trailing Average'!$H$6:$Y$6))) + $G136,"") -> 0.02158276626 | T136: =IFERROR(IF(S$121="iBoxx- Nominal", INDEX('Trailing Average'!$H$63:$Y$63,MATCH(T123,'Trailing Average'!$H$6:$Y$6)),INDEX('Trailing Average'!$H$318:$Y$318,MATCH(T123,'Trailing Average'!$H$6:$Y$6))) + $G136,"") -> 0.02297019824 | U136: =IFERROR(IF(T$121="iBoxx- Nominal", INDEX('Trailing Average'!$H$63:$Y$63,MATCH(U123,'Trailing Average'!$H$6:$Y$6)),INDEX('Trailing Average'!$H$318:$Y$318,MATCH(U123,'Trailing Average'!$H$6:$Y$6))) + $G136,"") -> 0.02451864581 | V136: =IFERROR(IF(U$121="iBoxx- Nominal", INDEX('Trailing Average'!$H$63:$Y$63,MATCH(V123,'Trailing Average'!$H$6:$Y$6)),INDEX('Trailing Average'!$H$318:$Y$318,MATCH(V123,'Trailing Average'!$H$6:$Y$6))) + $G136,"") -> 0.0260495543 | W136: 0.02321256484 | AA136: 15 | AB136: 0 | AD136: =IF(AA136 = "Spare","",AA136&" Yr"& IF($AB136=0,""," + "&$AB136*10000&" bps")) -> 15 Yr | AE136: =IFERROR(IF(AD121="iBoxx- Nominal", INDEX('Trailing Average'!$H$63:$Y$63,MATCH(AE123,'Trailing Average'!$H$6:$Y$6)),INDEX('Trailing Average'!$H$318:$Y$318,MATCH(AE123,'Trailing Average'!$H$6:$Y$6))) + $AB136,"") -> 0.02094165957 | AF136: =IFERROR(IF(AD121="iBoxx- Nominal", INDEX('Trailing Average'!$H$63:$Y$63,MATCH(AF123,'Trailing Average'!$H$6:$Y$6)),INDEX('Trailing Average'!$H$318:$Y$318,MATCH(AF123,'Trailing Average'!$H$6:$Y$6))) + $AB136,"") -> 0.02158276626 | AG136: =IFERROR(IF(AD121="iBoxx- Nominal", INDEX('Trailing Average'!$H$63:$Y$63,MATCH(AG$47,'Trailing Average'!$H$6:$Y$6)),INDEX('Trailing Average'!$H$318:$Y$318,MATCH(AG$47,'Trailing Average'!$H$6:$Y$6))) + $AB136,"") -> 0.02297019824 | AH136: =IFERROR(IF(AD121="iBoxx- Nominal", INDEX('Trailing Average'!$H$63:$Y$63,MATCH(AH$47,'Trailing Average'!$H$6:$Y$6)),INDEX('Trailing Average'!$H$318:$Y$318,MATCH(AH$47,'Trailing Average'!$H$6:$Y$6))) + $AB136,"") -> 0.02451864581 | AI136: =IFERROR(IF(AD121="iBoxx- Nominal", INDEX('Trailing Average'!$H$63:$Y$63,MATCH(AI$47,'Trailing Average'!$H$6:$Y$6)),INDEX('Trailing Average'!$H$318:$Y$318,MATCH(AI$47,'Trailing Average'!$H$6:$Y$6))) + $AB136,"") -> 0.0260495543 | AJ136: 0.02321256484 | AL136: 15 Yr | AM136: =IFERROR(IF(AL121="iBoxx- Nominal", INDEX('Trailing Average'!$H$63:$Y$63,MATCH(AM123,'Trailing Average'!$H$6:$Y$6)),INDEX('Trailing Average'!$H$318:$Y$318,MATCH(AM123,'Trailing Average'!$H$6:$Y$6))) + $AB136,"") -> 0.02094165957 | AN136: =IFERROR(IF(AL121="iBoxx- Nominal", INDEX('Trailing Average'!$H$63:$Y$63,MATCH(AN123,'Trailing Average'!$H$6:$Y$6)),INDEX('Trailing Average'!$H$318:$Y$318,MATCH(AN123,'Trailing Average'!$H$6:$Y$6))) + $AB136,"") -> 0.02158276626 | AO136: =IFERROR(IF(AL121="iBoxx- Nominal", INDEX('Trailing Average'!$H$63:$Y$63,MATCH(AO$47,'Trailing Average'!$H$6:$Y$6)),INDEX('Trailing Average'!$H$318:$Y$318,MATCH(AO$47,'Trailing Average'!$H$6:$Y$6))) + $AB136,"") -> 0.02297019824 | AP136: =IFERROR(IF(AL121="iBoxx- Nominal", INDEX('Trailing Average'!$H$63:$Y$63,MATCH(AP$47,'Trailing Average'!$H$6:$Y$6)),INDEX('Trailing Average'!$H$318:$Y$318,MATCH(AP$47,'Trailing Average'!$H$6:$Y$6))) + $AB136,"") -> 0.02451864581 | AQ136: =IFERROR(IF(AL121="iBoxx- Nominal", INDEX('Trailing Average'!$H$63:$Y$63,MATCH(AQ$47,'Trailing Average'!$H$6:$Y$6)),INDEX('Trailing Average'!$H$318:$Y$318,MATCH(AQ$47,'Trailing Average'!$H$6:$Y$6))) + $AB136,"") -> 0.0260495543 | AR136: 0.02321256484 | AT136: 15 Yr | AU136: =IFERROR(IF(AT121="iBoxx- Nominal", INDEX('Trailing Average'!$H$63:$Y$63,MATCH(AU123,'Trailing Average'!$H$6:$Y$6)),INDEX('Trailing Average'!$H$318:$Y$318,MATCH(AU123,'Trailing Average'!$H$6:$Y$6))) + AJ136,"") -> 0.04415422441 | AV136: =IFERROR(IF(AT121="iBoxx- Nominal", INDEX('Trailing Average'!$H$63:$Y$63,MATCH(AV123,'Trailing Average'!$H$6:$Y$6)),INDEX('Trailing Average'!$H$318:$Y$318,MATCH(AV123,'Trailing Average'!$H$6:$Y$6))) + AJ136,"") -> 0.0447953311 | AW136: =IFERROR(IF(AT121="iBoxx- Nominal", INDEX('Trailing Average'!$H$63:$Y$63,MATCH(AW$47,'Trailing Average'!$H$6:$Y$6)),INDEX('Trailing Average'!$H$318:$Y$318,MATCH(AW$47,'Trailing Average'!$H$6:$Y$6))) + AJ136,"") -> 0.04618276307 | AX136: =IFERROR(IF(AT121="iBoxx- Nominal", INDEX('Trailing Average'!$H$63:$Y$63,MATCH(AX$47,'Trailing Average'!$H$6:$Y$6)),INDEX('Trailing Average'!$H$318:$Y$318,MATCH(AX$47,'Trailing Average'!$H$6:$Y$6))) + AJ136,"") -> 0.04773121065 | AY136: =IFERROR(IF(AT121="iBoxx- Nominal", INDEX('Trailing Average'!$H$63:$Y$63,MATCH(AY$47,'Trailing Average'!$H$6:$Y$6)),INDEX('Trailing Average'!$H$318:$Y$318,MATCH(AY$47,'Trailing Average'!$H$6:$Y$6))) + AJ136,"") -> 0.04926211914 | AZ136: 0.04642512968
F137: 17 | G137: 0 | I137: 17 Yr | J137: =IFERROR(IF(I$121="iBoxx- Nominal", INDEX('Trailing Average'!$H$84:$Y$84,MATCH(J123,'Trailing Average'!$H$6:$Y$6)),INDEX('Trailing Average'!$H$339:$Y$339,MATCH(J123,'Trailing Average'!$H$6:$Y$6))) + $G137,"") -> 0.02338536366 | K137: =IFERROR(IF(J$121="iBoxx- Nominal", INDEX('Trailing Average'!$H$84:$Y$84,MATCH(K123,'Trailing Average'!$H$6:$Y$6)),INDEX('Trailing Average'!$H$339:$Y$339,MATCH(K123,'Trailing Average'!$H$6:$Y$6))) + $G137,"") -> 0.02308189642 | L137: =IFERROR(IF(K$121="iBoxx- Nominal", INDEX('Trailing Average'!$H$84:$Y$84,MATCH(L123,'Trailing Average'!$H$6:$Y$6)),INDEX('Trailing Average'!$H$339:$Y$339,MATCH(L123,'Trailing Average'!$H$6:$Y$6))) + $G137,"") -> 0.02383338882 | M137: =IFERROR(IF(L$121="iBoxx- Nominal", INDEX('Trailing Average'!$H$84:$Y$84,MATCH(M123,'Trailing Average'!$H$6:$Y$6)),INDEX('Trailing Average'!$H$339:$Y$339,MATCH(M123,'Trailing Average'!$H$6:$Y$6))) + $G137,"") -> 0.0246912386 | N137: =IFERROR(IF(M$121="iBoxx- Nominal", INDEX('Trailing Average'!$H$84:$Y$84,MATCH(N123,'Trailing Average'!$H$6:$Y$6)),INDEX('Trailing Average'!$H$339:$Y$339,MATCH(N123,'Trailing Average'!$H$6:$Y$6))) + $G137,"") -> 0.0259271302 | O137: 0.02418380354 | Q137: 17 Yr | R137: =IFERROR(IF(Q$121="iBoxx- Nominal", INDEX('Trailing Average'!$H$84:$Y$84,MATCH(R123,'Trailing Average'!$H$6:$Y$6)),INDEX('Trailing Average'!$H$339:$Y$339,MATCH(R123,'Trailing Average'!$H$6:$Y$6))) + $G137,"") -> 0.02338536366 | S137: =IFERROR(IF(R$121="iBoxx- Nominal", INDEX('Trailing Average'!$H$84:$Y$84,MATCH(S123,'Trailing Average'!$H$6:$Y$6)),INDEX('Trailing Average'!$H$339:$Y$339,MATCH(S123,'Trailing Average'!$H$6:$Y$6))) + $G137,"") -> 0.02308189642 | T137: =IFERROR(IF(S$121="iBoxx- Nominal", INDEX('Trailing Average'!$H$84:$Y$84,MATCH(T123,'Trailing Average'!$H$6:$Y$6)),INDEX('Trailing Average'!$H$339:$Y$339,MATCH(T123,'Trailing Average'!$H$6:$Y$6))) + $G137,"") -> 0.02383338882 | U137: =IFERROR(IF(T$121="iBoxx- Nominal", INDEX('Trailing Average'!$H$84:$Y$84,MATCH(U123,'Trailing Average'!$H$6:$Y$6)),INDEX('Trailing Average'!$H$339:$Y$339,MATCH(U123,'Trailing Average'!$H$6:$Y$6))) + $G137,"") -> 0.0246912386 | V137: =IFERROR(IF(U$121="iBoxx- Nominal", INDEX('Trailing Average'!$H$84:$Y$84,MATCH(V123,'Trailing Average'!$H$6:$Y$6)),INDEX('Trailing Average'!$H$339:$Y$339,MATCH(V123,'Trailing Average'!$H$6:$Y$6))) + $G137,"") -> 0.0259271302 | W137: 0.02418380354 | AA137: 17 | AB137: 0 | AD137: 17 Yr | AE137: =IFERROR(IF(AD121="iBoxx- Nominal", INDEX('Trailing Average'!$H$84:$Y$84,MATCH(AE123,'Trailing Average'!$H$6:$Y$6)),INDEX('Trailing Average'!$H$339:$Y$339,MATCH(AE123,'Trailing Average'!$H$6:$Y$6))) + $AB137,"") -> 0.02338536366 | AF137: =IFERROR(IF(AD121="iBoxx- Nominal", INDEX('Trailing Average'!$H$84:$Y$84,MATCH(AF123,'Trailing Average'!$H$6:$Y$6)),INDEX('Trailing Average'!$H$339:$Y$339,MATCH(AF123,'Trailing Average'!$H$6:$Y$6))) + $AB137,"") -> 0.02308189642 | AG137: =IFERROR(IF(AD121="iBoxx- Nominal", INDEX('Trailing Average'!$H$84:$Y$84,MATCH(AG$47,'Trailing Average'!$H$6:$Y$6)),INDEX('Trailing Average'!$H$339:$Y$339,MATCH(AG$47,'Trailing Average'!$H$6:$Y$6))) + $AB137,"") -> 0.02383338882 | AH137: =IFERROR(IF(AD121="iBoxx- Nominal", INDEX('Trailing Average'!$H$84:$Y$84,MATCH(AH$47,'Trailing Average'!$H$6:$Y$6)),INDEX('Trailing Average'!$H$339:$Y$339,MATCH(AH$47,'Trailing Average'!$H$6:$Y$6))) + $AB137,"") -> 0.0246912386 | AI137: =IFERROR(IF(AD121="iBoxx- Nominal", INDEX('Trailing Average'!$H$84:$Y$84,MATCH(AI$47,'Trailing Average'!$H$6:$Y$6)),INDEX('Trailing Average'!$H$339:$Y$339,MATCH(AI$47,'Trailing Average'!$H$6:$Y$6))) + $AB137,"") -> 0.0259271302 | AJ137: 0.02418380354 | AL137: 17 Yr | AM137: =IFERROR(IF(AL121="iBoxx- Nominal", INDEX('Trailing Average'!$H$84:$Y$84,MATCH(AM123,'Trailing Average'!$H$6:$Y$6)),INDEX('Trailing Average'!$H$339:$Y$339,MATCH(AM123,'Trailing Average'!$H$6:$Y$6))) + $AB137,"") -> 0.02338536366 | AN137: =IFERROR(IF(AL121="iBoxx- Nominal", INDEX('Trailing Average'!$H$84:$Y$84,MATCH(AN123,'Trailing Average'!$H$6:$Y$6)),INDEX('Trailing Average'!$H$339:$Y$339,MATCH(AN123,'Trailing Average'!$H$6:$Y$6))) + $AB137,"") -> 0.02308189642 | AO137: =IFERROR(IF(AL121="iBoxx- Nominal", INDEX('Trailing Average'!$H$84:$Y$84,MATCH(AO$47,'Trailing Average'!$H$6:$Y$6)),INDEX('Trailing Average'!$H$339:$Y$339,MATCH(AO$47,'Trailing Average'!$H$6:$Y$6))) + $AB137,"") -> 0.02383338882 | AP137: =IFERROR(IF(AL121="iBoxx- Nominal", INDEX('Trailing Average'!$H$84:$Y$84,MATCH(AP$47,'Trailing Average'!$H$6:$Y$6)),INDEX('Trailing Average'!$H$339:$Y$339,MATCH(AP$47,'Trailing Average'!$H$6:$Y$6))) + $AB137,"") -> 0.0246912386 | AQ137: =IFERROR(IF(AL121="iBoxx- Nominal", INDEX('Trailing Average'!$H$84:$Y$84,MATCH(AQ$47,'Trailing Average'!$H$6:$Y$6)),INDEX('Trailing Average'!$H$339:$Y$339,MATCH(AQ$47,'Trailing Average'!$H$6:$Y$6))) + $AB137,"") -> 0.0259271302 | AR137: 0.02418380354 | AT137: 17 Yr | AU137: =IFERROR(IF(AT121="iBoxx- Nominal", INDEX('Trailing Average'!$H$84:$Y$84,MATCH(AU123,'Trailing Average'!$H$6:$Y$6)),INDEX('Trailing Average'!$H$339:$Y$339,MATCH(AU123,'Trailing Average'!$H$6:$Y$6))) + AJ137,"") -> 0.0475691672 | AV137: =IFERROR(IF(AT121="iBoxx- Nominal", INDEX('Trailing Average'!$H$84:$Y$84,MATCH(AV123,'Trailing Average'!$H$6:$Y$6)),INDEX('Trailing Average'!$H$339:$Y$339,MATCH(AV123,'Trailing Average'!$H$6:$Y$6))) + AJ137,"") -> 0.04726569996 | AW137: =IFERROR(IF(AT121="iBoxx- Nominal", INDEX('Trailing Average'!$H$84:$Y$84,MATCH(AW$47,'Trailing Average'!$H$6:$Y$6)),INDEX('Trailing Average'!$H$339:$Y$339,MATCH(AW$47,'Trailing Average'!$H$6:$Y$6))) + AJ137,"") -> 0.04801719236 | AX137: =IFERROR(IF(AT121="iBoxx- Nominal", INDEX('Trailing Average'!$H$84:$Y$84,MATCH(AX$47,'Trailing Average'!$H$6:$Y$6)),INDEX('Trailing Average'!$H$339:$Y$339,MATCH(AX$47,'Trailing Average'!$H$6:$Y$6))) + AJ137,"") -> 0.04887504214 | AY137: =IFERROR(IF(AT121="iBoxx- Nominal", INDEX('Trailing Average'!$H$84:$Y$84,MATCH(AY$47,'Trailing Average'!$H$6:$Y$6)),INDEX('Trailing Average'!$H$339:$Y$339,MATCH(AY$47,'Trailing Average'!$H$6:$Y$6))) + AJ137,"") -> 0.05011093374 | AZ137: 0.04836760708
F138: 18 | G138: 0 | I138: 18 Yr | J138: =IFERROR(IF(I$121="iBoxx- Nominal", INDEX('Trailing Average'!$H$105:$Y$105,MATCH(J123,'Trailing Average'!$H$6:$Y$6)), INDEX('Trailing Average'!$H$360:$Y$360,MATCH(J123,'Trailing Average'!$H$6:$Y$6))) + $G138,"") -> 0.02464081152 | K138: =IFERROR(IF(J$121="iBoxx- Nominal", INDEX('Trailing Average'!$H$105:$Y$105,MATCH(K123,'Trailing Average'!$H$6:$Y$6)), INDEX('Trailing Average'!$H$360:$Y$360,MATCH(K123,'Trailing Average'!$H$6:$Y$6))) + $G138,"") -> 0.0244857759 | L138: =IFERROR(IF(K$121="iBoxx- Nominal", INDEX('Trailing Average'!$H$105:$Y$105,MATCH(L123,'Trailing Average'!$H$6:$Y$6)), INDEX('Trailing Average'!$H$360:$Y$360,MATCH(L123,'Trailing Average'!$H$6:$Y$6))) + $G138,"") -> 0.02446293343 | M138: =IFERROR(IF(L$121="iBoxx- Nominal", INDEX('Trailing Average'!$H$105:$Y$105,MATCH(M123,'Trailing Average'!$H$6:$Y$6)), INDEX('Trailing Average'!$H$360:$Y$360,MATCH(M123,'Trailing Average'!$H$6:$Y$6))) + $G138,"") -> 0.02518514871 | N138: =IFERROR(IF(M$121="iBoxx- Nominal", INDEX('Trailing Average'!$H$105:$Y$105,MATCH(N123,'Trailing Average'!$H$6:$Y$6)), INDEX('Trailing Average'!$H$360:$Y$360,MATCH(N123,'Trailing Average'!$H$6:$Y$6))) + $G138,"") -> 0.02599118177 | O138: 0.02495317027 | Q138: 18 Yr | R138: =IFERROR(IF(Q$121="iBoxx- Nominal", INDEX('Trailing Average'!$H$105:$Y$105,MATCH(R123,'Trailing Average'!$H$6:$Y$6)), INDEX('Trailing Average'!$H$360:$Y$360,MATCH(R123,'Trailing Average'!$H$6:$Y$6))) + $G138,"") -> 0.02464081152 | S138: =IFERROR(IF(R$121="iBoxx- Nominal", INDEX('Trailing Average'!$H$105:$Y$105,MATCH(S123,'Trailing Average'!$H$6:$Y$6)), INDEX('Trailing Average'!$H$360:$Y$360,MATCH(S123,'Trailing Average'!$H$6:$Y$6))) + $G138,"") -> 0.0244857759 | T138: =IFERROR(IF(S$121="iBoxx- Nominal", INDEX('Trailing Average'!$H$105:$Y$105,MATCH(T123,'Trailing Average'!$H$6:$Y$6)), INDEX('Trailing Average'!$H$360:$Y$360,MATCH(T123,'Trailing Average'!$H$6:$Y$6))) + $G138,"") -> 0.02446293343 | U138: =IFERROR(IF(T$121="iBoxx- Nominal", INDEX('Trailing Average'!$H$105:$Y$105,MATCH(U123,'Trailing Average'!$H$6:$Y$6)), INDEX('Trailing Average'!$H$360:$Y$360,MATCH(U123,'Trailing Average'!$H$6:$Y$6))) + $G138,"") -> 0.02518514871 | V138: =IFERROR(IF(U$121="iBoxx- Nominal", INDEX('Trailing Average'!$H$105:$Y$105,MATCH(V123,'Trailing Average'!$H$6:$Y$6)), INDEX('Trailing Average'!$H$360:$Y$360,MATCH(V123,'Trailing Average'!$H$6:$Y$6))) + $G138,"") -> 0.02599118177 | W138: 0.02495317027 | AA138: 18 | AB138: 0 | AD138: 18 Yr | AE138: =IFERROR(IF(AD121="iBoxx- Nominal", INDEX('Trailing Average'!$H$105:$Y$105,MATCH(AE123,'Trailing Average'!$H$6:$Y$6)), INDEX('Trailing Average'!$H$360:$Y$360,MATCH(AE123,'Trailing Average'!$H$6:$Y$6))) + $AB138,"") -> 0.02464081152 | AF138: =IFERROR(IF(AD121="iBoxx- Nominal", INDEX('Trailing Average'!$H$105:$Y$105,MATCH(AF123,'Trailing Average'!$H$6:$Y$6)), INDEX('Trailing Average'!$H$360:$Y$360,MATCH(AF123,'Trailing Average'!$H$6:$Y$6))) + $AB138,"") -> 0.0244857759 | AG138: =IFERROR(IF(AD121="iBoxx- Nominal", INDEX('Trailing Average'!$H$105:$Y$105,MATCH(AG$47,'Trailing Average'!$H$6:$Y$6)), INDEX('Trailing Average'!$H$360:$Y$360,MATCH(AG$47,'Trailing Average'!$H$6:$Y$6))) + $AB138,"") -> 0.02446293343 | AH138: =IFERROR(IF(AD121="iBoxx- Nominal", INDEX('Trailing Average'!$H$105:$Y$105,MATCH(AH$47,'Trailing Average'!$H$6:$Y$6)), INDEX('Trailing Average'!$H$360:$Y$360,MATCH(AH$47,'Trailing Average'!$H$6:$Y$6))) + $AB138,"") -> 0.02518514871 | AI138: =IFERROR(IF(AD121="iBoxx- Nominal", INDEX('Trailing Average'!$H$105:$Y$105,MATCH(AI$47,'Trailing Average'!$H$6:$Y$6)), INDEX('Trailing Average'!$H$360:$Y$360,MATCH(AI$47,'Trailing Average'!$H$6:$Y$6))) + $AB138,"") -> 0.02599118177 | AJ138: 0.02495317027 | AL138: 18 Yr | AM138: =IFERROR(IF(AL121="iBoxx- Nominal", INDEX('Trailing Average'!$H$105:$Y$105,MATCH(AM123,'Trailing Average'!$H$6:$Y$6)), INDEX('Trailing Average'!$H$360:$Y$360,MATCH(AM123,'Trailing Average'!$H$6:$Y$6))) + $AB138,"") -> 0.02464081152 | AN138: =IFERROR(IF(AL121="iBoxx- Nominal", INDEX('Trailing Average'!$H$105:$Y$105,MATCH(AN123,'Trailing Average'!$H$6:$Y$6)), INDEX('Trailing Average'!$H$360:$Y$360,MATCH(AN123,'Trailing Average'!$H$6:$Y$6))) + $AB138,"") -> 0.0244857759 | AO138: =IFERROR(IF(AL121="iBoxx- Nominal", INDEX('Trailing Average'!$H$105:$Y$105,MATCH(AO$47,'Trailing Average'!$H$6:$Y$6)), INDEX('Trailing Average'!$H$360:$Y$360,MATCH(AO$47,'Trailing Average'!$H$6:$Y$6))) + $AB138,"") -> 0.02446293343 | AP138: =IFERROR(IF(AL121="iBoxx- Nominal", INDEX('Trailing Average'!$H$105:$Y$105,MATCH(AP$47,'Trailing Average'!$H$6:$Y$6)), INDEX('Trailing Average'!$H$360:$Y$360,MATCH(AP$47,'Trailing Average'!$H$6:$Y$6))) + $AB138,"") -> 0.02518514871 | AQ138: =IFERROR(IF(AL121="iBoxx- Nominal", INDEX('Trailing Average'!$H$105:$Y$105,MATCH(AQ$47,'Trailing Average'!$H$6:$Y$6)), INDEX('Trailing Average'!$H$360:$Y$360,MATCH(AQ$47,'Trailing Average'!$H$6:$Y$6))) + $AB138,"") -> 0.02599118177 | AR138: 0.02495317027 | AT138: 18 Yr | AU138: =IFERROR(IF(AT121="iBoxx- Nominal", INDEX('Trailing Average'!$H$105:$Y$105,MATCH(AU123,'Trailing Average'!$H$6:$Y$6)), INDEX('Trailing Average'!$H$360:$Y$360,MATCH(AU123,'Trailing Average'!$H$6:$Y$6))) + AJ138,"") -> 0.04959398179 | AV138: =IFERROR(IF(AT121="iBoxx- Nominal", INDEX('Trailing Average'!$H$105:$Y$105,MATCH(AV123,'Trailing Average'!$H$6:$Y$6)), INDEX('Trailing Average'!$H$360:$Y$360,MATCH(AV123,'Trailing Average'!$H$6:$Y$6))) + AJ138,"") -> 0.04943894617 | AW138: =IFERROR(IF(AT121="iBoxx- Nominal", INDEX('Trailing Average'!$H$105:$Y$105,MATCH(AW$47,'Trailing Average'!$H$6:$Y$6)), INDEX('Trailing Average'!$H$360:$Y$360,MATCH(AW$47,'Trailing Average'!$H$6:$Y$6))) + AJ138,"") -> 0.0494161037 | AX138: =IFERROR(IF(AT121="iBoxx- Nominal", INDEX('Trailing Average'!$H$105:$Y$105,MATCH(AX$47,'Trailing Average'!$H$6:$Y$6)), INDEX('Trailing Average'!$H$360:$Y$360,MATCH(AX$47,'Trailing Average'!$H$6:$Y$6))) + AJ138,"") -> 0.05013831898 | AY138: =IFERROR(IF(AT121="iBoxx- Nominal", INDEX('Trailing Average'!$H$105:$Y$105,MATCH(AY$47,'Trailing Average'!$H$6:$Y$6)), INDEX('Trailing Average'!$H$360:$Y$360,MATCH(AY$47,'Trailing Average'!$H$6:$Y$6))) + AJ138,"") -> 0.05094435203 | AZ138: 0.04990634053
F139: 20 | G139: 0 | I139: 20 Yr | J139: =IFERROR(IF(I$121="iBoxx- Nominal", INDEX('Trailing Average'!$H$126:$Y$126,MATCH(J123,'Trailing Average'!$H$6:$Y$6)), INDEX('Trailing Average'!$H$381:$Y$381,MATCH(J123,'Trailing Average'!$H$6:$Y$6))) + $G139,"") -> 0.02004746553 | K139: =IFERROR(IF(J$121="iBoxx- Nominal", INDEX('Trailing Average'!$H$126:$Y$126,MATCH(K123,'Trailing Average'!$H$6:$Y$6)), INDEX('Trailing Average'!$H$381:$Y$381,MATCH(K123,'Trailing Average'!$H$6:$Y$6))) + $G139,"") -> 0.02119258223 | L139: =IFERROR(IF(K$121="iBoxx- Nominal", INDEX('Trailing Average'!$H$126:$Y$126,MATCH(L123,'Trailing Average'!$H$6:$Y$6)), INDEX('Trailing Average'!$H$381:$Y$381,MATCH(L123,'Trailing Average'!$H$6:$Y$6))) + $G139,"") -> 0.02283361939 | M139: =IFERROR(IF(L$121="iBoxx- Nominal", INDEX('Trailing Average'!$H$126:$Y$126,MATCH(M123,'Trailing Average'!$H$6:$Y$6)), INDEX('Trailing Average'!$H$381:$Y$381,MATCH(M123,'Trailing Average'!$H$6:$Y$6))) + $G139,"") -> 0.02447731696 | N139: =IFERROR(IF(M$121="iBoxx- Nominal", INDEX('Trailing Average'!$H$126:$Y$126,MATCH(N123,'Trailing Average'!$H$6:$Y$6)), INDEX('Trailing Average'!$H$381:$Y$381,MATCH(N123,'Trailing Average'!$H$6:$Y$6))) + $G139,"") -> 0.02656717798 | O139: 0.02302363242 | Q139: 20 Yr | R139: =IFERROR(IF(Q$121="iBoxx- Nominal", INDEX('Trailing Average'!$H$126:$Y$126,MATCH(R123,'Trailing Average'!$H$6:$Y$6)), INDEX('Trailing Average'!$H$381:$Y$381,MATCH(R123,'Trailing Average'!$H$6:$Y$6))) + $G139,"") -> 0.02004746553 | S139: =IFERROR(IF(R$121="iBoxx- Nominal", INDEX('Trailing Average'!$H$126:$Y$126,MATCH(S123,'Trailing Average'!$H$6:$Y$6)), INDEX('Trailing Average'!$H$381:$Y$381,MATCH(S123,'Trailing Average'!$H$6:$Y$6))) + $G139,"") -> 0.02119258223 | T139: =IFERROR(IF(S$121="iBoxx- Nominal", INDEX('Trailing Average'!$H$126:$Y$126,MATCH(T123,'Trailing Average'!$H$6:$Y$6)), INDEX('Trailing Average'!$H$381:$Y$381,MATCH(T123,'Trailing Average'!$H$6:$Y$6))) + $G139,"") -> 0.02283361939 | U139: =IFERROR(IF(T$121="iBoxx- Nominal", INDEX('Trailing Average'!$H$126:$Y$126,MATCH(U123,'Trailing Average'!$H$6:$Y$6)), INDEX('Trailing Average'!$H$381:$Y$381,MATCH(U123,'Trailing Average'!$H$6:$Y$6))) + $G139,"") -> 0.02447731696 | V139: =IFERROR(IF(U$121="iBoxx- Nominal", INDEX('Trailing Average'!$H$126:$Y$126,MATCH(V123,'Trailing Average'!$H$6:$Y$6)), INDEX('Trailing Average'!$H$381:$Y$381,MATCH(V123,'Trailing Average'!$H$6:$Y$6))) + $G139,"") -> 0.02656717798 | W139: 0.02302363242 | AA139: 14 | AB139: 0 | AD139: 14 Yr | AE139: =IFERROR(IF(AD121="iBoxx- Nominal", INDEX('Trailing Average'!$H$126:$Y$126,MATCH(AE123,'Trailing Average'!$H$6:$Y$6)), INDEX('Trailing Average'!$H$381:$Y$381,MATCH(AE123,'Trailing Average'!$H$6:$Y$6))) + $AB139,"") -> 0.02004746553 | AF139: =IFERROR(IF(AD121="iBoxx- Nominal", INDEX('Trailing Average'!$H$126:$Y$126,MATCH(AF123,'Trailing Average'!$H$6:$Y$6)), INDEX('Trailing Average'!$H$381:$Y$381,MATCH(AF123,'Trailing Average'!$H$6:$Y$6))) + $AB139,"") -> 0.02119258223 | AG139: =IFERROR(IF(AD121="iBoxx- Nominal", INDEX('Trailing Average'!$H$126:$Y$126,MATCH(AG$47,'Trailing Average'!$H$6:$Y$6)), INDEX('Trailing Average'!$H$381:$Y$381,MATCH(AG$47,'Trailing Average'!$H$6:$Y$6))) + $AB139,"") -> 0.02283361939 | AH139: =IFERROR(IF(AD121="iBoxx- Nominal", INDEX('Trailing Average'!$H$126:$Y$126,MATCH(AH$47,'Trailing Average'!$H$6:$Y$6)), INDEX('Trailing Average'!$H$381:$Y$381,MATCH(AH$47,'Trailing Average'!$H$6:$Y$6))) + $AB139,"") -> 0.02447731696 | AI139: =IFERROR(IF(AD121="iBoxx- Nominal", INDEX('Trailing Average'!$H$126:$Y$126,MATCH(AI$47,'Trailing Average'!$H$6:$Y$6)), INDEX('Trailing Average'!$H$381:$Y$381,MATCH(AI$47,'Trailing Average'!$H$6:$Y$6))) + $AB139,"") -> 0.02656717798 | AJ139: 0.02302363242 | AL139: 14 Yr | AM139: =IFERROR(IF(AL121="iBoxx- Nominal", INDEX('Trailing Average'!$H$126:$Y$126,MATCH(AM123,'Trailing Average'!$H$6:$Y$6)), INDEX('Trailing Average'!$H$381:$Y$381,MATCH(AM123,'Trailing Average'!$H$6:$Y$6))) + $AB139,"") -> 0.02004746553 | AN139: =IFERROR(IF(AL121="iBoxx- Nominal", INDEX('Trailing Average'!$H$126:$Y$126,MATCH(AN123,'Trailing Average'!$H$6:$Y$6)), INDEX('Trailing Average'!$H$381:$Y$381,MATCH(AN123,'Trailing Average'!$H$6:$Y$6))) + $AB139,"") -> 0.02119258223 | AO139: =IFERROR(IF(AL121="iBoxx- Nominal", INDEX('Trailing Average'!$H$126:$Y$126,MATCH(AO$47,'Trailing Average'!$H$6:$Y$6)), INDEX('Trailing Average'!$H$381:$Y$381,MATCH(AO$47,'Trailing Average'!$H$6:$Y$6))) + $AB139,"") -> 0.02283361939 | AP139: =IFERROR(IF(AL121="iBoxx- Nominal", INDEX('Trailing Average'!$H$126:$Y$126,MATCH(AP$47,'Trailing Average'!$H$6:$Y$6)), INDEX('Trailing Average'!$H$381:$Y$381,MATCH(AP$47,'Trailing Average'!$H$6:$Y$6))) + $AB139,"") -> 0.02447731696 | AQ139: =IFERROR(IF(AL121="iBoxx- Nominal", INDEX('Trailing Average'!$H$126:$Y$126,MATCH(AQ$47,'Trailing Average'!$H$6:$Y$6)), INDEX('Trailing Average'!$H$381:$Y$381,MATCH(AQ$47,'Trailing Average'!$H$6:$Y$6))) + $AB139,"") -> 0.02656717798 | AR139: 0.02302363242 | AT139: 14 Yr | AU139: =IFERROR(IF(AT121="iBoxx- Nominal", INDEX('Trailing Average'!$H$126:$Y$126,MATCH(AU123,'Trailing Average'!$H$6:$Y$6)), INDEX('Trailing Average'!$H$381:$Y$381,MATCH(AU123,'Trailing Average'!$H$6:$Y$6))) + AJ139,"") -> 0.04307109795 | AV139: =IFERROR(IF(AT121="iBoxx- Nominal", INDEX('Trailing Average'!$H$126:$Y$126,MATCH(AV123,'Trailing Average'!$H$6:$Y$6)), INDEX('Trailing Average'!$H$381:$Y$381,MATCH(AV123,'Trailing Average'!$H$6:$Y$6))) + AJ139,"") -> 0.04421621465 | AW139: =IFERROR(IF(AT121="iBoxx- Nominal", INDEX('Trailing Average'!$H$126:$Y$126,MATCH(AW$47,'Trailing Average'!$H$6:$Y$6)), INDEX('Trailing Average'!$H$381:$Y$381,MATCH(AW$47,'Trailing Average'!$H$6:$Y$6))) + AJ139,"") -> 0.04585725181 | AX139: =IFERROR(IF(AT121="iBoxx- Nominal", INDEX('Trailing Average'!$H$126:$Y$126,MATCH(AX$47,'Trailing Average'!$H$6:$Y$6)), INDEX('Trailing Average'!$H$381:$Y$381,MATCH(AX$47,'Trailing Average'!$H$6:$Y$6))) + AJ139,"") -> 0.04750094938 | AY139: =IFERROR(IF(AT121="iBoxx- Nominal", INDEX('Trailing Average'!$H$126:$Y$126,MATCH(AY$47,'Trailing Average'!$H$6:$Y$6)), INDEX('Trailing Average'!$H$381:$Y$381,MATCH(AY$47,'Trailing Average'!$H$6:$Y$6))) + AJ139,"") -> 0.0495908104 | AZ139: 0.04604726484
F140: 14 | G140: 0.006 | I140: =IF(F140 = "Spare","",F140&" Yr"& IF(G140=0,""," + "&G140*10000&" bps")) -> 14 Yr + 60 bps | J140: =IFERROR(IF(I$121="iBoxx- Nominal", INDEX('Trailing Average'!$H$147:$Y$147,MATCH(J123,'Trailing Average'!$H$6:$Y$6)),INDEX('Trailing Average'!$H$402:$Y$402,MATCH(J123,'Trailing Average'!$H$6:$Y$6))) + $G140,"") -> 0.02604746553 | K140: =IFERROR(IF(J$121="iBoxx- Nominal", INDEX('Trailing Average'!$H$147:$Y$147,MATCH(K123,'Trailing Average'!$H$6:$Y$6)),INDEX('Trailing Average'!$H$402:$Y$402,MATCH(K123,'Trailing Average'!$H$6:$Y$6))) + $G140,"") -> 0.02719258223 | L140: =IFERROR(IF(K$121="iBoxx- Nominal", INDEX('Trailing Average'!$H$147:$Y$147,MATCH(L123,'Trailing Average'!$H$6:$Y$6)),INDEX('Trailing Average'!$H$402:$Y$402,MATCH(L123,'Trailing Average'!$H$6:$Y$6))) + $G140,"") -> 0.02883361939 | M140: =IFERROR(IF(L$121="iBoxx- Nominal", INDEX('Trailing Average'!$H$147:$Y$147,MATCH(M123,'Trailing Average'!$H$6:$Y$6)),INDEX('Trailing Average'!$H$402:$Y$402,MATCH(M123,'Trailing Average'!$H$6:$Y$6))) + $G140,"") -> 0.03047731696 | N140: =IFERROR(IF(M$121="iBoxx- Nominal", INDEX('Trailing Average'!$H$147:$Y$147,MATCH(N123,'Trailing Average'!$H$6:$Y$6)),INDEX('Trailing Average'!$H$402:$Y$402,MATCH(N123,'Trailing Average'!$H$6:$Y$6))) + $G140,"") -> 0.03256717798 | O140: 0.02902363242 | Q140: 14 Yr + 60 bps | R140: =IFERROR(IF(Q$121="iBoxx- Nominal", INDEX('Trailing Average'!$H$147:$Y$147,MATCH(R123,'Trailing Average'!$H$6:$Y$6)),INDEX('Trailing Average'!$H$402:$Y$402,MATCH(R123,'Trailing Average'!$H$6:$Y$6))) + $G140,"") -> 0.02604746553 | S140: =IFERROR(IF(R$121="iBoxx- Nominal", INDEX('Trailing Average'!$H$147:$Y$147,MATCH(S123,'Trailing Average'!$H$6:$Y$6)),INDEX('Trailing Average'!$H$402:$Y$402,MATCH(S123,'Trailing Average'!$H$6:$Y$6))) + $G140,"") -> 0.02719258223 | T140: =IFERROR(IF(S$121="iBoxx- Nominal", INDEX('Trailing Average'!$H$147:$Y$147,MATCH(T123,'Trailing Average'!$H$6:$Y$6)),INDEX('Trailing Average'!$H$402:$Y$402,MATCH(T123,'Trailing Average'!$H$6:$Y$6))) + $G140,"") -> 0.02883361939 | U140: =IFERROR(IF(T$121="iBoxx- Nominal", INDEX('Trailing Average'!$H$147:$Y$147,MATCH(U123,'Trailing Average'!$H$6:$Y$6)),INDEX('Trailing Average'!$H$402:$Y$402,MATCH(U123,'Trailing Average'!$H$6:$Y$6))) + $G140,"") -> 0.03047731696 | V140: =IFERROR(IF(U$121="iBoxx- Nominal", INDEX('Trailing Average'!$H$147:$Y$147,MATCH(V123,'Trailing Average'!$H$6:$Y$6)),INDEX('Trailing Average'!$H$402:$Y$402,MATCH(V123,'Trailing Average'!$H$6:$Y$6))) + $G140,"") -> 0.03256717798 | W140: 0.02902363242 | AA140: 14 | AB140: 0.006 | AD140: 14 Yr + 60 bps | AE140: =IFERROR(IF(AD121="iBoxx- Nominal", INDEX('Trailing Average'!$H$147:$Y$147,MATCH(AE123,'Trailing Average'!$H$6:$Y$6)),INDEX('Trailing Average'!$H$402:$Y$402,MATCH(AE123,'Trailing Average'!$H$6:$Y$6))) + $AB140,"") -> 0.02604746553 | AF140: =IFERROR(IF(AD121="iBoxx- Nominal", INDEX('Trailing Average'!$H$147:$Y$147,MATCH(AF123,'Trailing Average'!$H$6:$Y$6)),INDEX('Trailing Average'!$H$402:$Y$402,MATCH(AF123,'Trailing Average'!$H$6:$Y$6))) + $AB140,"") -> 0.02719258223 | AG140: =IFERROR(IF(AD121="iBoxx- Nominal", INDEX('Trailing Average'!$H$147:$Y$147,MATCH(AG$47,'Trailing Average'!$H$6:$Y$6)),INDEX('Trailing Average'!$H$402:$Y$402,MATCH(AG$47,'Trailing Average'!$H$6:$Y$6))) + $AB140,"") -> 0.02883361939 | AH140: =IFERROR(IF(AD121="iBoxx- Nominal", INDEX('Trailing Average'!$H$147:$Y$147,MATCH(AH$47,'Trailing Average'!$H$6:$Y$6)),INDEX('Trailing Average'!$H$402:$Y$402,MATCH(AH$47,'Trailing Average'!$H$6:$Y$6))) + $AB140,"") -> 0.03047731696 | AI140: =IFERROR(IF(AD121="iBoxx- Nominal", INDEX('Trailing Average'!$H$147:$Y$147,MATCH(AI$47,'Trailing Average'!$H$6:$Y$6)),INDEX('Trailing Average'!$H$402:$Y$402,MATCH(AI$47,'Trailing Average'!$H$6:$Y$6))) + $AB140,"") -> 0.03256717798 | AJ140: 0.02902363242 | AL140: 14 Yr + 60 bps | AM140: =IFERROR(IF(AL121="iBoxx- Nominal", INDEX('Trailing Average'!$H$147:$Y$147,MATCH(AM123,'Trailing Average'!$H$6:$Y$6)),INDEX('Trailing Average'!$H$402:$Y$402,MATCH(AM123,'Trailing Average'!$H$6:$Y$6))) + $AB140,"") -> 0.02604746553 | AN140: =IFERROR(IF(AL121="iBoxx- Nominal", INDEX('Trailing Average'!$H$147:$Y$147,MATCH(AN123,'Trailing Average'!$H$6:$Y$6)),INDEX('Trailing Average'!$H$402:$Y$402,MATCH(AN123,'Trailing Average'!$H$6:$Y$6))) + $AB140,"") -> 0.02719258223 | AO140: =IFERROR(IF(AL121="iBoxx- Nominal", INDEX('Trailing Average'!$H$147:$Y$147,MATCH(AO$47,'Trailing Average'!$H$6:$Y$6)),INDEX('Trailing Average'!$H$402:$Y$402,MATCH(AO$47,'Trailing Average'!$H$6:$Y$6))) + $AB140,"") -> 0.02883361939 | AP140: =IFERROR(IF(AL121="iBoxx- Nominal", INDEX('Trailing Average'!$H$147:$Y$147,MATCH(AP$47,'Trailing Average'!$H$6:$Y$6)),INDEX('Trailing Average'!$H$402:$Y$402,MATCH(AP$47,'Trailing Average'!$H$6:$Y$6))) + $AB140,"") -> 0.03047731696 | AQ140: =IFERROR(IF(AL121="iBoxx- Nominal", INDEX('Trailing Average'!$H$147:$Y$147,MATCH(AQ$47,'Trailing Average'!$H$6:$Y$6)),INDEX('Trailing Average'!$H$402:$Y$402,MATCH(AQ$47,'Trailing Average'!$H$6:$Y$6))) + $AB140,"") -> 0.03256717798 | AR140: 0.02902363242 | AT140: 14 Yr + 60 bps | AU140: =IFERROR(IF(AT121="iBoxx- Nominal", INDEX('Trailing Average'!$H$147:$Y$147,MATCH(AU123,'Trailing Average'!$H$6:$Y$6)),INDEX('Trailing Average'!$H$402:$Y$402,MATCH(AU123,'Trailing Average'!$H$6:$Y$6))) + AJ140,"") -> 0.04907109795 | AV140: =IFERROR(IF(AT121="iBoxx- Nominal", INDEX('Trailing Average'!$H$147:$Y$147,MATCH(AV123,'Trailing Average'!$H$6:$Y$6)),INDEX('Trailing Average'!$H$402:$Y$402,MATCH(AV123,'Trailing Average'!$H$6:$Y$6))) + AJ140,"") -> 0.05021621465 | AW140: =IFERROR(IF(AT121="iBoxx- Nominal", INDEX('Trailing Average'!$H$147:$Y$147,MATCH(AW$47,'Trailing Average'!$H$6:$Y$6)),INDEX('Trailing Average'!$H$402:$Y$402,MATCH(AW$47,'Trailing Average'!$H$6:$Y$6))) + AJ140,"") -> 0.05185725181 | AX140: =IFERROR(IF(AT121="iBoxx- Nominal", INDEX('Trailing Average'!$H$147:$Y$147,MATCH(AX$47,'Trailing Average'!$H$6:$Y$6)),INDEX('Trailing Average'!$H$402:$Y$402,MATCH(AX$47,'Trailing Average'!$H$6:$Y$6))) + AJ140,"") -> 0.05350094938 | AY140: =IFERROR(IF(AT121="iBoxx- Nominal", INDEX('Trailing Average'!$H$147:$Y$147,MATCH(AY$47,'Trailing Average'!$H$6:$Y$6)),INDEX('Trailing Average'!$H$402:$Y$402,MATCH(AY$47,'Trailing Average'!$H$6:$Y$6))) + AJ140,"") -> 0.0555908104 | AZ140: 0.05204726484
